Workbook

Sheet Index
B45: Please enable macros to utilise full functionality of the dashboard
B47: About the data In response to the emerging COVID-19 pandemic, the annual Victorian Population Health Survey (VPHS) 2020 was amended from previous versions to capture critical insights related to the pandemic response and the impact it had on Victorians. Several questions normally included in the survey were modified or replaced with COVID-19-pandemic-relevant questions. The questions that were removed, or modified, to allow for the pandemic relevant questions, relate to: • Physical activity (modified) • Alcohol consumption (modified) • Fruit and vegetable consumption (modified) • Sugar-sweetened beverage consumption (excluded) • Snack food consumption (excluded) While compliance with physical activity, alcohol, fruit and vegetables consumption guidelines were not directly assessed, three questions were included to assess whether respondent’s physical activity, alcohol, and fruit and vegetable consumption patterns had changed in response to the disruptions caused by the COVID-19 pandemic. The findings will be included in a report about the impact of COVID-19 due later this calendar year.
B48: Reporting at Local Government Area level Every three years, the VPHS is undertaken with an enhanced sample size to enable detailed reporting at LGA level. As a result of the changes outlined above, measures that were altered or removed during the 2020 survey will not be available until the next LGA level survey, anticipated for 2023. Estimates by LGA-level reported in the 2017 survey can be used in the interim. As many estimates from the VPHS 2020 were impacted by the COVID-19 pandemic, the results need to be interpreted with caution, and may not be suitable for use as a baseline measure for planned interventions or a comparator for surveillance purposes. Further updates to this information product Based on feedback, the information contained on this page has been further refined to provide three views of estimates for LGAs: (1) All indicator estimates for a particular LGA (2) Estimates for all LGAs for a particular indicator and (3) Estimates for all LGAS aggregated in a particular DHHS area and DHHS division. In addition, we have included a tab with the concordance of LGAs with DHHS areas and divisions. We hope you find these helpful. As always, we welcome your feedback on our reporting products via vahi@vahi.vic.gov.au.

Sheet Infographic
B3: Select LGA
B4: Alpine (S)
B14: OBESITY - BMI
B32: SMOKING
B50: MENTAL HEALTH and WELLBEING
B68: SOCIAL CAPITAL

Sheet Estimates by Indicator
B7: Select LGA
B8: Bayside (C)
C14: =B8 -> Bayside (C) | H14: =VLOOKUP($C$14,'Geography LOOKUP'!$A:$D,3,FALSE) -> Bayside Peninsula Area | M14: =VLOOKUP($C$14,'Geography LOOKUP'!$A:$D,4,FALSE) -> South Division | R14: Victoria
E15: 95% CI | J15: 95% CI | O15: 95% CI | T15: 95% CI
C16: % | E16: LL | F16: UL | H16: % | J16: LL | K16: UL | M16: % | O16: LL | P16: UL | R16: % | T16: LL | U16: UL
B17: OBESITY - BMI
B18: Underweight (BMI < 18.5) | C18: =IF(D18="**","",SUMIFS(SummaryData!$D:$D,SummaryData!$A:$A,$B$17,SummaryData!$B:$B,$B18,SummaryData!$C:$C,$C$14)) -> 4.216801 | D18: =IF(SUMIFS(SummaryData!$N:$N,SummaryData!$A:$A,$B$17,SummaryData!$B:$B,$B18,SummaryData!$C:$C,$C$14)>=50,"**", (IF(SUMIFS(SummaryData!$N:$N,SummaryData!$A:$A,$B$17,SummaryData!$B:$B,$B18,SummaryData!$C:$C,$C$14)>25, IF(SUMIFS(SummaryData!$N:$N,SummaryData!$A:$A,$B$17,SummaryData!$B:$B,$B18,SummaryData!$C:$C,$C$14)<50,"*"," ")," "))) -> * | E18: =IF(D18="**","",SUMIFS(SummaryData!$E:$E,SummaryData!$A:$A,$B$17,SummaryData!$B:$B,$B18,SummaryData!$C:$C,$C$14)) -> 1.713769 | F18: =IF(D18="**","",SUMIFS(SummaryData!$F:$F,SummaryData!$A:$A,$B$17,SummaryData!$B:$B,$B18,SummaryData!$C:$C,$C$14)) -> 10.00353 | H18: =IF(I18="**","",SUMIFS(SummaryData!$D:$D,SummaryData!$A:$A,$B$17,SummaryData!$B:$B,$B18,SummaryData!$C:$C,$H$14)) -> 2.128206 | I18: =IF(SUMIFS(SummaryData!$N:$N,SummaryData!$A:$A,$B$17,SummaryData!$B:$B,$B18,SummaryData!$C:$C,$H$14)>=50,"**", (IF(SUMIFS(SummaryData!$N:$N,SummaryData!$A:$A,$B$17,SummaryData!$B:$B,$B18,SummaryData!$C:$C,$H$14)>25, IF(SUMIFS(SummaryData!$N:$N,SummaryData!$A:$A,$B$17,SummaryData!$B:$B,$B18,SummaryData!$C:$C,$H$14)<50,"*"," ")," "))) ->  | J18: =IF(I18="**","",SUMIFS(SummaryData!$E:$E,SummaryData!$A:$A,$B$17,SummaryData!$B:$B,$B18,SummaryData!$C:$C,$H$14)) -> 1.472906 | K18: =IF(I18="**","",SUMIFS(SummaryData!$F:$F,SummaryData!$A:$A,$B$17,SummaryData!$B:$B,$B18,SummaryData!$C:$C,$H$14)) -> 3.065979 | M18: =IF(N18="**","",SUMIFS(SummaryData!$D:$D,SummaryData!$A:$A,$B$17,SummaryData!$B:$B,$B18,SummaryData!$C:$C,$M$14)) -> 1.961746 | N18: =IF(SUMIFS(SummaryData!$N:$N,SummaryData!$A:$A,$B$17,SummaryData!$B:$B,$B18,SummaryData!$C:$C,$M$14)>=50,"**", (IF(SUMIFS(SummaryData!$N:$N,SummaryData!$A:$A,$B$17,SummaryData!$B:$B,$B18,SummaryData!$C:$C,$M$14)>25, IF(SUMIFS(SummaryData!$N:$N,SummaryData!$A:$A,$B$17,SummaryData!$B:$B,$B18,SummaryData!$C:$C,$M$14)<50,"*"," ")," "))) ->  | O18: =IF(N18="**","",SUMIFS(SummaryData!$E:$E,SummaryData!$A:$A,$B$17,SummaryData!$B:$B,$B18,SummaryData!$C:$C,$M$14)) -> 1.440573 | P18: =IF(N18="**","",SUMIFS(SummaryData!$F:$F,SummaryData!$A:$A,$B$17,SummaryData!$B:$B,$B18,SummaryData!$C:$C,$M$14)) -> 2.666368 | R18: =SUMIFS(SummaryData!$D:$D,SummaryData!$A:$A,$B$17,SummaryData!$B:$B,$B18,SummaryData!$C:$C,$R$14) -> 2.111413 | T18: =SUMIFS(SummaryData!$E:$E,SummaryData!$A:$A,$B$17,SummaryData!$B:$B,$B18,SummaryData!$C:$C,$R$14) -> 1.799879 | U18: =SUMIFS(SummaryData!$F:$F,SummaryData!$A:$A,$B$17,SummaryData!$B:$B,$B18,SummaryData!$C:$C,$R$14) -> 2.475509
B19: Normal weight (18.5 ≥ BMI < 25) | C19: =IF(D19="**","",SUMIFS(SummaryData!$D:$D,SummaryData!$A:$A,$B$17,SummaryData!$B:$B,$B19,SummaryData!$C:$C,$C$14)) -> 46.92429 | D19: =IF(SUMIFS(SummaryData!$N:$N,SummaryData!$A:$A,$B$17,SummaryData!$B:$B,$B19,SummaryData!$C:$C,$C$14)>=50,"**", (IF(SUMIFS(SummaryData!$N:$N,SummaryData!$A:$A,$B$17,SummaryData!$B:$B,$B19,SummaryData!$C:$C,$C$14)>25, IF(SUMIFS(SummaryData!$N:$N,SummaryData!$A:$A,$B$17,SummaryData!$B:$B,$B19,SummaryData!$C:$C,$C$14)<50,"*"," ")," "))) ->  | E19: =IF(D19="**","",SUMIFS(SummaryData!$E:$E,SummaryData!$A:$A,$B$17,SummaryData!$B:$B,$B19,SummaryData!$C:$C,$C$14)) -> 39.92852 | F19: =IF(D19="**","",SUMIFS(SummaryData!$F:$F,SummaryData!$A:$A,$B$17,SummaryData!$B:$B,$B19,SummaryData!$C:$C,$C$14)) -> 54.04306 | H19: =IF(I19="**","",SUMIFS(SummaryData!$D:$D,SummaryData!$A:$A,$B$17,SummaryData!$B:$B,$B19,SummaryData!$C:$C,$H$14)) -> 40.49654 | I19: =IF(SUMIFS(SummaryData!$N:$N,SummaryData!$A:$A,$B$17,SummaryData!$B:$B,$B19,SummaryData!$C:$C,$H$14)>=50,"**", (IF(SUMIFS(SummaryData!$N:$N,SummaryData!$A:$A,$B$17,SummaryData!$B:$B,$B19,SummaryData!$C:$C,$H$14)>25, IF(SUMIFS(SummaryData!$N:$N,SummaryData!$A:$A,$B$17,SummaryData!$B:$B,$B19,SummaryData!$C:$C,$H$14)<50,"*"," ")," "))) ->  | J19: =IF(I19="**","",SUMIFS(SummaryData!$E:$E,SummaryData!$A:$A,$B$17,SummaryData!$B:$B,$B19,SummaryData!$C:$C,$H$14)) -> 38.13867 | K19: =IF(I19="**","",SUMIFS(SummaryData!$F:$F,SummaryData!$A:$A,$B$17,SummaryData!$B:$B,$B19,SummaryData!$C:$C,$H$14)) -> 42.8991 | M19: =IF(N19="**","",SUMIFS(SummaryData!$D:$D,SummaryData!$A:$A,$B$17,SummaryData!$B:$B,$B19,SummaryData!$C:$C,$M$14)) -> 35.97648 | N19: =IF(SUMIFS(SummaryData!$N:$N,SummaryData!$A:$A,$B$17,SummaryData!$B:$B,$B19,SummaryData!$C:$C,$M$14)>=50,"**", (IF(SUMIFS(SummaryData!$N:$N,SummaryData!$A:$A,$B$17,SummaryData!$B:$B,$B19,SummaryData!$C:$C,$M$14)>25, IF(SUMIFS(SummaryData!$N:$N,SummaryData!$A:$A,$B$17,SummaryData!$B:$B,$B19,SummaryData!$C:$C,$M$14)<50,"*"," ")," "))) ->  | O19: =IF(N19="**","",SUMIFS(SummaryData!$E:$E,SummaryData!$A:$A,$B$17,SummaryData!$B:$B,$B19,SummaryData!$C:$C,$M$14)) -> 34.15614 | P19: =IF(N19="**","",SUMIFS(SummaryData!$F:$F,SummaryData!$A:$A,$B$17,SummaryData!$B:$B,$B19,SummaryData!$C:$C,$M$14)) -> 37.83809 | R19: =SUMIFS(SummaryData!$D:$D,SummaryData!$A:$A,$B$17,SummaryData!$B:$B,$B19,SummaryData!$C:$C,$R$14) -> 36.35468 | T19: =SUMIFS(SummaryData!$E:$E,SummaryData!$A:$A,$B$17,SummaryData!$B:$B,$B19,SummaryData!$C:$C,$R$14) -> 35.38633 | U19: =SUMIFS(SummaryData!$F:$F,SummaryData!$A:$A,$B$17,SummaryData!$B:$B,$B19,SummaryData!$C:$C,$R$14) -> 37.33422
B20: Overweight, but not obese (25 ≥ BMI < 30) | C20: =IF(D20="**","",SUMIFS(SummaryData!$D:$D,SummaryData!$A:$A,$B$17,SummaryData!$B:$B,$B20,SummaryData!$C:$C,$C$14)) -> 24.17256 | D20: =IF(SUMIFS(SummaryData!$N:$N,SummaryData!$A:$A,$B$17,SummaryData!$B:$B,$B20,SummaryData!$C:$C,$C$14)>=50,"**", (IF(SUMIFS(SummaryData!$N:$N,SummaryData!$A:$A,$B$17,SummaryData!$B:$B,$B20,SummaryData!$C:$C,$C$14)>25, IF(SUMIFS(SummaryData!$N:$N,SummaryData!$A:$A,$B$17,SummaryData!$B:$B,$B20,SummaryData!$C:$C,$C$14)<50,"*"," ")," "))) ->  | E20: =IF(D20="**","",SUMIFS(SummaryData!$E:$E,SummaryData!$A:$A,$B$17,SummaryData!$B:$B,$B20,SummaryData!$C:$C,$C$14)) -> 19.24496 | F20: =IF(D20="**","",SUMIFS(SummaryData!$F:$F,SummaryData!$A:$A,$B$17,SummaryData!$B:$B,$B20,SummaryData!$C:$C,$C$14)) -> 29.89479 | H20: =IF(I20="**","",SUMIFS(SummaryData!$D:$D,SummaryData!$A:$A,$B$17,SummaryData!$B:$B,$B20,SummaryData!$C:$C,$H$14)) -> 29.72691 | I20: =IF(SUMIFS(SummaryData!$N:$N,SummaryData!$A:$A,$B$17,SummaryData!$B:$B,$B20,SummaryData!$C:$C,$H$14)>=50,"**", (IF(SUMIFS(SummaryData!$N:$N,SummaryData!$A:$A,$B$17,SummaryData!$B:$B,$B20,SummaryData!$C:$C,$H$14)>25, IF(SUMIFS(SummaryData!$N:$N,SummaryData!$A:$A,$B$17,SummaryData!$B:$B,$B20,SummaryData!$C:$C,$H$14)<50,"*"," ")," "))) ->  | J20: =IF(I20="**","",SUMIFS(SummaryData!$E:$E,SummaryData!$A:$A,$B$17,SummaryData!$B:$B,$B20,SummaryData!$C:$C,$H$14)) -> 27.56676 | K20: =IF(I20="**","",SUMIFS(SummaryData!$F:$F,SummaryData!$A:$A,$B$17,SummaryData!$B:$B,$B20,SummaryData!$C:$C,$H$14)) -> 31.98158 | M20: =IF(N20="**","",SUMIFS(SummaryData!$D:$D,SummaryData!$A:$A,$B$17,SummaryData!$B:$B,$B20,SummaryData!$C:$C,$M$14)) -> 30.38361 | N20: =IF(SUMIFS(SummaryData!$N:$N,SummaryData!$A:$A,$B$17,SummaryData!$B:$B,$B20,SummaryData!$C:$C,$M$14)>=50,"**", (IF(SUMIFS(SummaryData!$N:$N,SummaryData!$A:$A,$B$17,SummaryData!$B:$B,$B20,SummaryData!$C:$C,$M$14)>25, IF(SUMIFS(SummaryData!$N:$N,SummaryData!$A:$A,$B$17,SummaryData!$B:$B,$B20,SummaryData!$C:$C,$M$14)<50,"*"," ")," "))) ->  | O20: =IF(N20="**","",SUMIFS(SummaryData!$E:$E,SummaryData!$A:$A,$B$17,SummaryData!$B:$B,$B20,SummaryData!$C:$C,$M$14)) -> 28.66613 | P20: =IF(N20="**","",SUMIFS(SummaryData!$F:$F,SummaryData!$A:$A,$B$17,SummaryData!$B:$B,$B20,SummaryData!$C:$C,$M$14)) -> 32.1576 | R20: =SUMIFS(SummaryData!$D:$D,SummaryData!$A:$A,$B$17,SummaryData!$B:$B,$B20,SummaryData!$C:$C,$R$14) -> 30.12785 | T20: =SUMIFS(SummaryData!$E:$E,SummaryData!$A:$A,$B$17,SummaryData!$B:$B,$B20,SummaryData!$C:$C,$R$14) -> 29.20904 | U20: =SUMIFS(SummaryData!$F:$F,SummaryData!$A:$A,$B$17,SummaryData!$B:$B,$B20,SummaryData!$C:$C,$R$14) -> 31.06288
B21: Obese (BMI ≥ 30) | C21: =IF(D21="**","",SUMIFS(SummaryData!$D:$D,SummaryData!$A:$A,$B$17,SummaryData!$B:$B,$B21,SummaryData!$C:$C,$C$14)) -> 14.00265 | D21: =IF(SUMIFS(SummaryData!$N:$N,SummaryData!$A:$A,$B$17,SummaryData!$B:$B,$B21,SummaryData!$C:$C,$C$14)>=50,"**", (IF(SUMIFS(SummaryData!$N:$N,SummaryData!$A:$A,$B$17,SummaryData!$B:$B,$B21,SummaryData!$C:$C,$C$14)>25, IF(SUMIFS(SummaryData!$N:$N,SummaryData!$A:$A,$B$17,SummaryData!$B:$B,$B21,SummaryData!$C:$C,$C$14)<50,"*"," ")," "))) ->  | E21: =IF(D21="**","",SUMIFS(SummaryData!$E:$E,SummaryData!$A:$A,$B$17,SummaryData!$B:$B,$B21,SummaryData!$C:$C,$C$14)) -> 9.849496 | F21: =IF(D21="**","",SUMIFS(SummaryData!$F:$F,SummaryData!$A:$A,$B$17,SummaryData!$B:$B,$B21,SummaryData!$C:$C,$C$14)) -> 19.5277 | H21: =IF(I21="**","",SUMIFS(SummaryData!$D:$D,SummaryData!$A:$A,$B$17,SummaryData!$B:$B,$B21,SummaryData!$C:$C,$H$14)) -> 17.60024 | I21: =IF(SUMIFS(SummaryData!$N:$N,SummaryData!$A:$A,$B$17,SummaryData!$B:$B,$B21,SummaryData!$C:$C,$H$14)>=50,"**", (IF(SUMIFS(SummaryData!$N:$N,SummaryData!$A:$A,$B$17,SummaryData!$B:$B,$B21,SummaryData!$C:$C,$H$14)>25, IF(SUMIFS(SummaryData!$N:$N,SummaryData!$A:$A,$B$17,SummaryData!$B:$B,$B21,SummaryData!$C:$C,$H$14)<50,"*"," ")," "))) ->  | J21: =IF(I21="**","",SUMIFS(SummaryData!$E:$E,SummaryData!$A:$A,$B$17,SummaryData!$B:$B,$B21,SummaryData!$C:$C,$H$14)) -> 15.82762 | K21: =IF(I21="**","",SUMIFS(SummaryData!$F:$F,SummaryData!$A:$A,$B$17,SummaryData!$B:$B,$B21,SummaryData!$C:$C,$H$14)) -> 19.52534 | M21: =IF(N21="**","",SUMIFS(SummaryData!$D:$D,SummaryData!$A:$A,$B$17,SummaryData!$B:$B,$B21,SummaryData!$C:$C,$M$14)) -> 21.40843 | N21: =IF(SUMIFS(SummaryData!$N:$N,SummaryData!$A:$A,$B$17,SummaryData!$B:$B,$B21,SummaryData!$C:$C,$M$14)>=50,"**", (IF(SUMIFS(SummaryData!$N:$N,SummaryData!$A:$A,$B$17,SummaryData!$B:$B,$B21,SummaryData!$C:$C,$M$14)>25, IF(SUMIFS(SummaryData!$N:$N,SummaryData!$A:$A,$B$17,SummaryData!$B:$B,$B21,SummaryData!$C:$C,$M$14)<50,"*"," ")," "))) ->  | O21: =IF(N21="**","",SUMIFS(SummaryData!$E:$E,SummaryData!$A:$A,$B$17,SummaryData!$B:$B,$B21,SummaryData!$C:$C,$M$14)) -> 19.88596 | P21: =IF(N21="**","",SUMIFS(SummaryData!$F:$F,SummaryData!$A:$A,$B$17,SummaryData!$B:$B,$B21,SummaryData!$C:$C,$M$14)) -> 23.01398 | R21: =SUMIFS(SummaryData!$D:$D,SummaryData!$A:$A,$B$17,SummaryData!$B:$B,$B21,SummaryData!$C:$C,$R$14) -> 20.90529 | T21: =SUMIFS(SummaryData!$E:$E,SummaryData!$A:$A,$B$17,SummaryData!$B:$B,$B21,SummaryData!$C:$C,$R$14) -> 20.10758 | U21: =SUMIFS(SummaryData!$F:$F,SummaryData!$A:$A,$B$17,SummaryData!$B:$B,$B21,SummaryData!$C:$C,$R$14) -> 21.72603
B22: OBESITY - Overweight category
B23: Overweight (BMI ≥ 25) | C23: =IF(D23="**","",SUMIFS(SummaryData!$D:$D,SummaryData!$A:$A,$B$22,SummaryData!$B:$B,$B23,SummaryData!$C:$C,$C$14)) -> 38.17521 | D23: =IF(SUMIFS(SummaryData!$N:$N,SummaryData!$A:$A,$B$22,SummaryData!$B:$B,$B23,SummaryData!$C:$C,$C$14)>=50,"**",(IF(SUMIFS(SummaryData!$N:$N,SummaryData!$A:$A,$B$22,SummaryData!$B:$B,$B23,SummaryData!$C:$C,$C$14)>25,IF(SUMIFS(SummaryData!$N:$N,SummaryData!$A:$A,$B$22,SummaryData!$B:$B,$B23,SummaryData!$C:$C,$C$14),"*"," ")," "))) ->  | E23: =IF(D23="**","",SUMIFS(SummaryData!$E:$E,SummaryData!$A:$A,$B$22,SummaryData!$B:$B,$B23,SummaryData!$C:$C,$C$14)) -> 31.82347 | F23: =IF(D23="**","",SUMIFS(SummaryData!$F:$F,SummaryData!$A:$A,$B$22,SummaryData!$B:$B,$B23,SummaryData!$C:$C,$C$14)) -> 44.95869 | H23: =IF(I23="**","",SUMIFS(SummaryData!$D:$D,SummaryData!$A:$A,$B$22,SummaryData!$B:$B,$B23,SummaryData!$C:$C,$H$14)) -> 47.32715 | I23: =IF(SUMIFS(SummaryData!$N:$N,SummaryData!$A:$A,$B$22,SummaryData!$B:$B,$B23,SummaryData!$C:$C,$H$14)>=50,"**",(IF(SUMIFS(SummaryData!$N:$N,SummaryData!$A:$A,$B$22,SummaryData!$B:$B,$B23,SummaryData!$C:$C,$H$14)>25,IF(SUMIFS(SummaryData!$N:$N,SummaryData!$A:$A,$B$22,SummaryData!$B:$B,$B23,SummaryData!$C:$C,$H$14),"*"," ")," "))) ->  | J23: =IF(I23="**","",SUMIFS(SummaryData!$E:$E,SummaryData!$A:$A,$B$22,SummaryData!$B:$B,$B23,SummaryData!$C:$C,$H$14)) -> 44.96994 | K23: =IF(I23="**","",SUMIFS(SummaryData!$F:$F,SummaryData!$A:$A,$B$22,SummaryData!$B:$B,$B23,SummaryData!$C:$C,$H$14)) -> 49.69633 | M23: =IF(N23="**","",SUMIFS(SummaryData!$D:$D,SummaryData!$A:$A,$B$22,SummaryData!$B:$B,$B23,SummaryData!$C:$C,$M$14)) -> 51.79204 | N23: =IF(SUMIFS(SummaryData!$N:$N,SummaryData!$A:$A,$B$22,SummaryData!$B:$B,$B23,SummaryData!$C:$C,$M$14)>=50,"**",(IF(SUMIFS(SummaryData!$N:$N,SummaryData!$A:$A,$B$22,SummaryData!$B:$B,$B23,SummaryData!$C:$C,$M$14)>25,IF(SUMIFS(SummaryData!$N:$N,SummaryData!$A:$A,$B$22,SummaryData!$B:$B,$B23,SummaryData!$C:$C,$M$14),"*"," ")," "))) ->  | O23: =IF(N23="**","",SUMIFS(SummaryData!$E:$E,SummaryData!$A:$A,$B$22,SummaryData!$B:$B,$B23,SummaryData!$C:$C,$M$14)) -> 49.91862 | P23: =IF(N23="**","",SUMIFS(SummaryData!$F:$F,SummaryData!$A:$A,$B$22,SummaryData!$B:$B,$B23,SummaryData!$C:$C,$M$14)) -> 53.66044 | R23: =SUMIFS(SummaryData!$D:$D,SummaryData!$A:$A,$B$22,SummaryData!$B:$B,$B23,SummaryData!$C:$C,$R$14) -> 51.03313 | T23: =SUMIFS(SummaryData!$E:$E,SummaryData!$A:$A,$B$22,SummaryData!$B:$B,$B23,SummaryData!$C:$C,$R$14) -> 50.03507 | U23: =SUMIFS(SummaryData!$F:$F,SummaryData!$A:$A,$B$22,SummaryData!$B:$B,$B23,SummaryData!$C:$C,$R$14) -> 52.03037
B24: Not-overweight (BMI <25) | C24: =IF(D24="**","",SUMIFS(SummaryData!$D:$D,SummaryData!$A:$A,$B$22,SummaryData!$B:$B,$B24,SummaryData!$C:$C,$C$14)) -> 51.14109 | D24: =IF(SUMIFS(SummaryData!$N:$N,SummaryData!$A:$A,$B$22,SummaryData!$B:$B,$B24,SummaryData!$C:$C,$C$14)>=50,"**",(IF(SUMIFS(SummaryData!$N:$N,SummaryData!$A:$A,$B$22,SummaryData!$B:$B,$B24,SummaryData!$C:$C,$C$14)>25,IF(SUMIFS(SummaryData!$N:$N,SummaryData!$A:$A,$B$22,SummaryData!$B:$B,$B24,SummaryData!$C:$C,$C$14),"*"," ")," "))) ->  | E24: =IF(D24="**","",SUMIFS(SummaryData!$E:$E,SummaryData!$A:$A,$B$22,SummaryData!$B:$B,$B24,SummaryData!$C:$C,$C$14)) -> 44.23335 | F24: =IF(D24="**","",SUMIFS(SummaryData!$F:$F,SummaryData!$A:$A,$B$22,SummaryData!$B:$B,$B24,SummaryData!$C:$C,$C$14)) -> 58.00552 | H24: =IF(I24="**","",SUMIFS(SummaryData!$D:$D,SummaryData!$A:$A,$B$22,SummaryData!$B:$B,$B24,SummaryData!$C:$C,$H$14)) -> 42.62475 | I24: =IF(SUMIFS(SummaryData!$N:$N,SummaryData!$A:$A,$B$22,SummaryData!$B:$B,$B24,SummaryData!$C:$C,$H$14)>=50,"**",(IF(SUMIFS(SummaryData!$N:$N,SummaryData!$A:$A,$B$22,SummaryData!$B:$B,$B24,SummaryData!$C:$C,$H$14)>25,IF(SUMIFS(SummaryData!$N:$N,SummaryData!$A:$A,$B$22,SummaryData!$B:$B,$B24,SummaryData!$C:$C,$H$14),"*"," ")," "))) ->  | J24: =IF(I24="**","",SUMIFS(SummaryData!$E:$E,SummaryData!$A:$A,$B$22,SummaryData!$B:$B,$B24,SummaryData!$C:$C,$H$14)) -> 40.25445 | K24: =IF(I24="**","",SUMIFS(SummaryData!$F:$F,SummaryData!$A:$A,$B$22,SummaryData!$B:$B,$B24,SummaryData!$C:$C,$H$14)) -> 45.02943 | M24: =IF(N24="**","",SUMIFS(SummaryData!$D:$D,SummaryData!$A:$A,$B$22,SummaryData!$B:$B,$B24,SummaryData!$C:$C,$M$14)) -> 37.93823 | N24: =IF(SUMIFS(SummaryData!$N:$N,SummaryData!$A:$A,$B$22,SummaryData!$B:$B,$B24,SummaryData!$C:$C,$M$14)>=50,"**",(IF(SUMIFS(SummaryData!$N:$N,SummaryData!$A:$A,$B$22,SummaryData!$B:$B,$B24,SummaryData!$C:$C,$M$14)>25,IF(SUMIFS(SummaryData!$N:$N,SummaryData!$A:$A,$B$22,SummaryData!$B:$B,$B24,SummaryData!$C:$C,$M$14),"*"," ")," "))) ->  | O24: =IF(N24="**","",SUMIFS(SummaryData!$E:$E,SummaryData!$A:$A,$B$22,SummaryData!$B:$B,$B24,SummaryData!$C:$C,$M$14)) -> 36.10354 | P24: =IF(N24="**","",SUMIFS(SummaryData!$F:$F,SummaryData!$A:$A,$B$22,SummaryData!$B:$B,$B24,SummaryData!$C:$C,$M$14)) -> 39.80807 | R24: =SUMIFS(SummaryData!$D:$D,SummaryData!$A:$A,$B$22,SummaryData!$B:$B,$B24,SummaryData!$C:$C,$R$14) -> 38.4661 | T24: =SUMIFS(SummaryData!$E:$E,SummaryData!$A:$A,$B$22,SummaryData!$B:$B,$B24,SummaryData!$C:$C,$R$14) -> 37.49056 | U24: =SUMIFS(SummaryData!$F:$F,SummaryData!$A:$A,$B$22,SummaryData!$B:$B,$B24,SummaryData!$C:$C,$R$14) -> 39.45099
B25: OBESITY - Extended BMI category
B26: Obese Class I (30 ≥ BMI < 35) | C26: =IF(D26="**","",SUMIFS(SummaryData!$D:$D,SummaryData!$A:$A,$B$25,SummaryData!$B:$B,$B26,SummaryData!$C:$C,$C$14)) -> 8.326371 | D26: =IF(SUMIFS(SummaryData!$N:$N,SummaryData!$A:$A,$B$25,SummaryData!$B:$B,$B26,SummaryData!$C:$C,$C$14)>=50,"**", (IF(SUMIFS(SummaryData!$N:$N,SummaryData!$A:$A,$B$25,SummaryData!$B:$B,$B26,SummaryData!$C:$C,$C$14)>25, IF(SUMIFS(SummaryData!$N:$N,SummaryData!$A:$A,$B$25,SummaryData!$B:$B,$B26,SummaryData!$C:$C,$C$14)<50,"*"," ")," "))) ->  | E26: =IF(D26="**","",SUMIFS(SummaryData!$E:$E,SummaryData!$A:$A,$B$25,SummaryData!$B:$B,$B26,SummaryData!$C:$C,$C$14)) -> 5.272007 | F26: =IF(D26="**","",SUMIFS(SummaryData!$F:$F,SummaryData!$A:$A,$B$25,SummaryData!$B:$B,$B26,SummaryData!$C:$C,$C$14)) -> 12.90915 | H26: =IF(I26="**","",SUMIFS(SummaryData!$D:$D,SummaryData!$A:$A,$B$25,SummaryData!$B:$B,$B26,SummaryData!$C:$C,$H$14)) -> 11.32664 | I26: =IF(SUMIFS(SummaryData!$N:$N,SummaryData!$A:$A,$B$25,SummaryData!$B:$B,$B26,SummaryData!$C:$C,$H$14)>=50,"**", (IF(SUMIFS(SummaryData!$N:$N,SummaryData!$A:$A,$B$25,SummaryData!$B:$B,$B26,SummaryData!$C:$C,$H$14)>25, IF(SUMIFS(SummaryData!$N:$N,SummaryData!$A:$A,$B$25,SummaryData!$B:$B,$B26,SummaryData!$C:$C,$H$14)<50,"*"," ")," "))) ->  | J26: =IF(I26="**","",SUMIFS(SummaryData!$E:$E,SummaryData!$A:$A,$B$25,SummaryData!$B:$B,$B26,SummaryData!$C:$C,$H$14)) -> 9.878399 | K26: =IF(I26="**","",SUMIFS(SummaryData!$F:$F,SummaryData!$A:$A,$B$25,SummaryData!$B:$B,$B26,SummaryData!$C:$C,$H$14)) -> 12.95667 | M26: =IF(N26="**","",SUMIFS(SummaryData!$D:$D,SummaryData!$A:$A,$B$25,SummaryData!$B:$B,$B26,SummaryData!$C:$C,$M$14)) -> 13.54602 | N26: =IF(SUMIFS(SummaryData!$N:$N,SummaryData!$A:$A,$B$25,SummaryData!$B:$B,$B26,SummaryData!$C:$C,$M$14)>=50,"**", (IF(SUMIFS(SummaryData!$N:$N,SummaryData!$A:$A,$B$25,SummaryData!$B:$B,$B26,SummaryData!$C:$C,$M$14)>25, IF(SUMIFS(SummaryData!$N:$N,SummaryData!$A:$A,$B$25,SummaryData!$B:$B,$B26,SummaryData!$C:$C,$M$14)<50,"*"," ")," "))) ->  | O26: =IF(N26="**","",SUMIFS(SummaryData!$E:$E,SummaryData!$A:$A,$B$25,SummaryData!$B:$B,$B26,SummaryData!$C:$C,$M$14)) -> 12.29864 | P26: =IF(N26="**","",SUMIFS(SummaryData!$F:$F,SummaryData!$A:$A,$B$25,SummaryData!$B:$B,$B26,SummaryData!$C:$C,$M$14)) -> 14.89842 | R26: =SUMIFS(SummaryData!$D:$D,SummaryData!$A:$A,$B$25,SummaryData!$B:$B,$B26,SummaryData!$C:$C,$R$14) -> 13.57524 | T26: =SUMIFS(SummaryData!$E:$E,SummaryData!$A:$A,$B$25,SummaryData!$B:$B,$B26,SummaryData!$C:$C,$R$14) -> 12.89523 | U26: =SUMIFS(SummaryData!$F:$F,SummaryData!$A:$A,$B$25,SummaryData!$B:$B,$B26,SummaryData!$C:$C,$R$14) -> 14.28523
B27: Obese Class II (35 ≥ BMI < 40) | C27: =IF(D27="**","",SUMIFS(SummaryData!$D:$D,SummaryData!$A:$A,$B$25,SummaryData!$B:$B,$B27,SummaryData!$C:$C,$C$14)) -> 5.241709 | D27: =IF(SUMIFS(SummaryData!$N:$N,SummaryData!$A:$A,$B$25,SummaryData!$B:$B,$B27,SummaryData!$C:$C,$C$14)>=50,"**", (IF(SUMIFS(SummaryData!$N:$N,SummaryData!$A:$A,$B$25,SummaryData!$B:$B,$B27,SummaryData!$C:$C,$C$14)>25, IF(SUMIFS(SummaryData!$N:$N,SummaryData!$A:$A,$B$25,SummaryData!$B:$B,$B27,SummaryData!$C:$C,$C$14)<50,"*"," ")," "))) -> * | E27: =IF(D27="**","",SUMIFS(SummaryData!$E:$E,SummaryData!$A:$A,$B$25,SummaryData!$B:$B,$B27,SummaryData!$C:$C,$C$14)) -> 2.724147 | F27: =IF(D27="**","",SUMIFS(SummaryData!$F:$F,SummaryData!$A:$A,$B$25,SummaryData!$B:$B,$B27,SummaryData!$C:$C,$C$14)) -> 9.850314 | H27: =IF(I27="**","",SUMIFS(SummaryData!$D:$D,SummaryData!$A:$A,$B$25,SummaryData!$B:$B,$B27,SummaryData!$C:$C,$H$14)) -> 4.665137 | I27: =IF(SUMIFS(SummaryData!$N:$N,SummaryData!$A:$A,$B$25,SummaryData!$B:$B,$B27,SummaryData!$C:$C,$H$14)>=50,"**", (IF(SUMIFS(SummaryData!$N:$N,SummaryData!$A:$A,$B$25,SummaryData!$B:$B,$B27,SummaryData!$C:$C,$H$14)>25, IF(SUMIFS(SummaryData!$N:$N,SummaryData!$A:$A,$B$25,SummaryData!$B:$B,$B27,SummaryData!$C:$C,$H$14)<50,"*"," ")," "))) ->  | J27: =IF(I27="**","",SUMIFS(SummaryData!$E:$E,SummaryData!$A:$A,$B$25,SummaryData!$B:$B,$B27,SummaryData!$C:$C,$H$14)) -> 3.712639 | K27: =IF(I27="**","",SUMIFS(SummaryData!$F:$F,SummaryData!$A:$A,$B$25,SummaryData!$B:$B,$B27,SummaryData!$C:$C,$H$14)) -> 5.847165 | M27: =IF(N27="**","",SUMIFS(SummaryData!$D:$D,SummaryData!$A:$A,$B$25,SummaryData!$B:$B,$B27,SummaryData!$C:$C,$M$14)) -> 5.29584 | N27: =IF(SUMIFS(SummaryData!$N:$N,SummaryData!$A:$A,$B$25,SummaryData!$B:$B,$B27,SummaryData!$C:$C,$M$14)>=50,"**", (IF(SUMIFS(SummaryData!$N:$N,SummaryData!$A:$A,$B$25,SummaryData!$B:$B,$B27,SummaryData!$C:$C,$M$14)>25, IF(SUMIFS(SummaryData!$N:$N,SummaryData!$A:$A,$B$25,SummaryData!$B:$B,$B27,SummaryData!$C:$C,$M$14)<50,"*"," ")," "))) ->  | O27: =IF(N27="**","",SUMIFS(SummaryData!$E:$E,SummaryData!$A:$A,$B$25,SummaryData!$B:$B,$B27,SummaryData!$C:$C,$M$14)) -> 4.494039 | P27: =IF(N27="**","",SUMIFS(SummaryData!$F:$F,SummaryData!$A:$A,$B$25,SummaryData!$B:$B,$B27,SummaryData!$C:$C,$M$14)) -> 6.231361 | R27: =SUMIFS(SummaryData!$D:$D,SummaryData!$A:$A,$B$25,SummaryData!$B:$B,$B27,SummaryData!$C:$C,$R$14) -> 4.73045 | T27: =SUMIFS(SummaryData!$E:$E,SummaryData!$A:$A,$B$25,SummaryData!$B:$B,$B27,SummaryData!$C:$C,$R$14) -> 4.336845 | U27: =SUMIFS(SummaryData!$F:$F,SummaryData!$A:$A,$B$25,SummaryData!$B:$B,$B27,SummaryData!$C:$C,$R$14) -> 5.157852
B28: Obese Class III (BMI ≥ 40) | C28: =IF(D28="**","",SUMIFS(SummaryData!$D:$D,SummaryData!$A:$A,$B$25,SummaryData!$B:$B,$B28,SummaryData!$C:$C,$C$14)) ->  | D28: =IF(SUMIFS(SummaryData!$N:$N,SummaryData!$A:$A,$B$25,SummaryData!$B:$B,$B28,SummaryData!$C:$C,$C$14)>=50,"**", (IF(SUMIFS(SummaryData!$N:$N,SummaryData!$A:$A,$B$25,SummaryData!$B:$B,$B28,SummaryData!$C:$C,$C$14)>25, IF(SUMIFS(SummaryData!$N:$N,SummaryData!$A:$A,$B$25,SummaryData!$B:$B,$B28,SummaryData!$C:$C,$C$14)<50,"*"," ")," "))) -> ** | E28: =IF(D28="**","",SUMIFS(SummaryData!$E:$E,SummaryData!$A:$A,$B$25,SummaryData!$B:$B,$B28,SummaryData!$C:$C,$C$14)) ->  | F28: =IF(D28="**","",SUMIFS(SummaryData!$F:$F,SummaryData!$A:$A,$B$25,SummaryData!$B:$B,$B28,SummaryData!$C:$C,$C$14)) ->  | H28: =IF(I28="**","",SUMIFS(SummaryData!$D:$D,SummaryData!$A:$A,$B$25,SummaryData!$B:$B,$B28,SummaryData!$C:$C,$H$14)) -> 1.608468 | I28: =IF(SUMIFS(SummaryData!$N:$N,SummaryData!$A:$A,$B$25,SummaryData!$B:$B,$B28,SummaryData!$C:$C,$H$14)>=50,"**", (IF(SUMIFS(SummaryData!$N:$N,SummaryData!$A:$A,$B$25,SummaryData!$B:$B,$B28,SummaryData!$C:$C,$H$14)>25, IF(SUMIFS(SummaryData!$N:$N,SummaryData!$A:$A,$B$25,SummaryData!$B:$B,$B28,SummaryData!$C:$C,$H$14)<50,"*"," ")," "))) ->  | J28: =IF(I28="**","",SUMIFS(SummaryData!$E:$E,SummaryData!$A:$A,$B$25,SummaryData!$B:$B,$B28,SummaryData!$C:$C,$H$14)) -> 1.106049 | K28: =IF(I28="**","",SUMIFS(SummaryData!$F:$F,SummaryData!$A:$A,$B$25,SummaryData!$B:$B,$B28,SummaryData!$C:$C,$H$14)) -> 2.333722 | M28: =IF(N28="**","",SUMIFS(SummaryData!$D:$D,SummaryData!$A:$A,$B$25,SummaryData!$B:$B,$B28,SummaryData!$C:$C,$M$14)) -> 2.566573 | N28: =IF(SUMIFS(SummaryData!$N:$N,SummaryData!$A:$A,$B$25,SummaryData!$B:$B,$B28,SummaryData!$C:$C,$M$14)>=50,"**", (IF(SUMIFS(SummaryData!$N:$N,SummaryData!$A:$A,$B$25,SummaryData!$B:$B,$B28,SummaryData!$C:$C,$M$14)>25, IF(SUMIFS(SummaryData!$N:$N,SummaryData!$A:$A,$B$25,SummaryData!$B:$B,$B28,SummaryData!$C:$C,$M$14)<50,"*"," ")," "))) ->  | O28: =IF(N28="**","",SUMIFS(SummaryData!$E:$E,SummaryData!$A:$A,$B$25,SummaryData!$B:$B,$B28,SummaryData!$C:$C,$M$14)) -> 2.004909 | P28: =IF(N28="**","",SUMIFS(SummaryData!$F:$F,SummaryData!$A:$A,$B$25,SummaryData!$B:$B,$B28,SummaryData!$C:$C,$M$14)) -> 3.280317 | R28: =SUMIFS(SummaryData!$D:$D,SummaryData!$A:$A,$B$25,SummaryData!$B:$B,$B28,SummaryData!$C:$C,$R$14) -> 2.599595 | T28: =SUMIFS(SummaryData!$E:$E,SummaryData!$A:$A,$B$25,SummaryData!$B:$B,$B28,SummaryData!$C:$C,$R$14) -> 2.307381 | U28: =SUMIFS(SummaryData!$F:$F,SummaryData!$A:$A,$B$25,SummaryData!$B:$B,$B28,SummaryData!$C:$C,$R$14) -> 2.927708
B29: SMOKING - Smoking status
B30: Daily smoker | C30: =IF(D30="**","",SUMIFS(SummaryData!$D:$D,SummaryData!$A:$A,$B$29,SummaryData!$B:$B,$B30,SummaryData!$C:$C,$C$14)) -> 8.448622 | D30: =IF(SUMIFS(SummaryData!$N:$N,SummaryData!$A:$A,$B$29,SummaryData!$B:$B,$B30,SummaryData!$C:$C,$C$14)>=50,"**",(IF(SUMIFS(SummaryData!$N:$N,SummaryData!$A:$A,$B$29,SummaryData!$B:$B,$B30,SummaryData!$C:$C,$C$14)>25,IF(SUMIFS(SummaryData!$N:$N,SummaryData!$A:$A,$B$29,SummaryData!$B:$B,$B30,SummaryData!$C:$C,$C$14),"*"," ")," "))) -> * | E30: =IF(D30="**","",SUMIFS(SummaryData!$E:$E,SummaryData!$A:$A,$B$29,SummaryData!$B:$B,$B30,SummaryData!$C:$C,$C$14)) -> 4.917099 | F30: =IF(D30="**","",SUMIFS(SummaryData!$F:$F,SummaryData!$A:$A,$B$29,SummaryData!$B:$B,$B30,SummaryData!$C:$C,$C$14)) -> 14.13936 | H30: =IF(I30="**","",SUMIFS(SummaryData!$D:$D,SummaryData!$A:$A,$B$29,SummaryData!$B:$B,$B30,SummaryData!$C:$C,$H$14)) -> 11.15635 | I30: =IF(SUMIFS(SummaryData!$N:$N,SummaryData!$A:$A,$B$29,SummaryData!$B:$B,$B30,SummaryData!$C:$C,$H$14)>=50,"**",(IF(SUMIFS(SummaryData!$N:$N,SummaryData!$A:$A,$B$29,SummaryData!$B:$B,$B30,SummaryData!$C:$C,$H$14)>25,IF(SUMIFS(SummaryData!$N:$N,SummaryData!$A:$A,$B$29,SummaryData!$B:$B,$B30,SummaryData!$C:$C,$H$14),"*"," ")," "))) ->  | J30: =IF(I30="**","",SUMIFS(SummaryData!$E:$E,SummaryData!$A:$A,$B$29,SummaryData!$B:$B,$B30,SummaryData!$C:$C,$H$14)) -> 9.617768 | K30: =IF(I30="**","",SUMIFS(SummaryData!$F:$F,SummaryData!$A:$A,$B$29,SummaryData!$B:$B,$B30,SummaryData!$C:$C,$H$14)) -> 12.90592 | M30: =IF(N30="**","",SUMIFS(SummaryData!$D:$D,SummaryData!$A:$A,$B$29,SummaryData!$B:$B,$B30,SummaryData!$C:$C,$M$14)) -> 12.38472 | N30: =IF(SUMIFS(SummaryData!$N:$N,SummaryData!$A:$A,$B$29,SummaryData!$B:$B,$B30,SummaryData!$C:$C,$M$14)>=50,"**",(IF(SUMIFS(SummaryData!$N:$N,SummaryData!$A:$A,$B$29,SummaryData!$B:$B,$B30,SummaryData!$C:$C,$M$14)>25,IF(SUMIFS(SummaryData!$N:$N,SummaryData!$A:$A,$B$29,SummaryData!$B:$B,$B30,SummaryData!$C:$C,$M$14),"*"," ")," "))) ->  | O30: =IF(N30="**","",SUMIFS(SummaryData!$E:$E,SummaryData!$A:$A,$B$29,SummaryData!$B:$B,$B30,SummaryData!$C:$C,$M$14)) -> 11.12462 | P30: =IF(N30="**","",SUMIFS(SummaryData!$F:$F,SummaryData!$A:$A,$B$29,SummaryData!$B:$B,$B30,SummaryData!$C:$C,$M$14)) -> 13.76544 | R30: =SUMIFS(SummaryData!$D:$D,SummaryData!$A:$A,$B$29,SummaryData!$B:$B,$B30,SummaryData!$C:$C,$R$14) -> 12.02495 | T30: =SUMIFS(SummaryData!$E:$E,SummaryData!$A:$A,$B$29,SummaryData!$B:$B,$B30,SummaryData!$C:$C,$R$14) -> 11.36221 | U30: =SUMIFS(SummaryData!$F:$F,SummaryData!$A:$A,$B$29,SummaryData!$B:$B,$B30,SummaryData!$C:$C,$R$14) -> 12.72079
B31: Occasional smoker | C31: =IF(D31="**","",SUMIFS(SummaryData!$D:$D,SummaryData!$A:$A,$B$29,SummaryData!$B:$B,$B31,SummaryData!$C:$C,$C$14)) -> 3.779643 | D31: =IF(SUMIFS(SummaryData!$N:$N,SummaryData!$A:$A,$B$29,SummaryData!$B:$B,$B31,SummaryData!$C:$C,$C$14)>=50,"**",(IF(SUMIFS(SummaryData!$N:$N,SummaryData!$A:$A,$B$29,SummaryData!$B:$B,$B31,SummaryData!$C:$C,$C$14)>25,IF(SUMIFS(SummaryData!$N:$N,SummaryData!$A:$A,$B$29,SummaryData!$B:$B,$B31,SummaryData!$C:$C,$C$14),"*"," ")," "))) -> * | E31: =IF(D31="**","",SUMIFS(SummaryData!$E:$E,SummaryData!$A:$A,$B$29,SummaryData!$B:$B,$B31,SummaryData!$C:$C,$C$14)) -> 1.780894 | F31: =IF(D31="**","",SUMIFS(SummaryData!$F:$F,SummaryData!$A:$A,$B$29,SummaryData!$B:$B,$B31,SummaryData!$C:$C,$C$14)) -> 7.842527 | H31: =SUMIFS(SummaryData!$D:$D,SummaryData!$A:$A,$B$29,SummaryData!$B:$B,$B31,SummaryData!$C:$C,$H$14) -> 3.693232 | J31: =SUMIFS(SummaryData!$E:$E,SummaryData!$A:$A,$B$29,SummaryData!$B:$B,$B31,SummaryData!$C:$C,$H$14) -> 2.829036 | K31: =SUMIFS(SummaryData!$F:$F,SummaryData!$A:$A,$B$29,SummaryData!$B:$B,$B31,SummaryData!$C:$C,$H$14) -> 4.808354 | M31: =IF(N31="**","",SUMIFS(SummaryData!$D:$D,SummaryData!$A:$A,$B$29,SummaryData!$B:$B,$B31,SummaryData!$C:$C,$M$14)) -> 4.044209 | N31: =IF(SUMIFS(SummaryData!$N:$N,SummaryData!$A:$A,$B$29,SummaryData!$B:$B,$B31,SummaryData!$C:$C,$M$14)>=50,"**",(IF(SUMIFS(SummaryData!$N:$N,SummaryData!$A:$A,$B$29,SummaryData!$B:$B,$B31,SummaryData!$C:$C,$M$14)>25,IF(SUMIFS(SummaryData!$N:$N,SummaryData!$A:$A,$B$29,SummaryData!$B:$B,$B31,SummaryData!$C:$C,$M$14),"*"," ")," "))) ->  | O31: =IF(N31="**","",SUMIFS(SummaryData!$E:$E,SummaryData!$A:$A,$B$29,SummaryData!$B:$B,$B31,SummaryData!$C:$C,$M$14)) -> 3.339861 | P31: =IF(N31="**","",SUMIFS(SummaryData!$F:$F,SummaryData!$A:$A,$B$29,SummaryData!$B:$B,$B31,SummaryData!$C:$C,$M$14)) -> 4.889583 | R31: =SUMIFS(SummaryData!$D:$D,SummaryData!$A:$A,$B$29,SummaryData!$B:$B,$B31,SummaryData!$C:$C,$R$14) -> 4.421485 | T31: =SUMIFS(SummaryData!$E:$E,SummaryData!$A:$A,$B$29,SummaryData!$B:$B,$B31,SummaryData!$C:$C,$R$14) -> 4.002762 | U31: =SUMIFS(SummaryData!$F:$F,SummaryData!$A:$A,$B$29,SummaryData!$B:$B,$B31,SummaryData!$C:$C,$R$14) -> 4.881783
B32: Current smoker (Daily + Occassional) | C32: =IF(D32="**","",SUMIFS(SummaryData!$D:$D,SummaryData!$A:$A,$B$29,SummaryData!$B:$B,$B32,SummaryData!$C:$C,$C$14)) -> 12.22827 | D32: =IF(SUMIFS(SummaryData!$N:$N,SummaryData!$A:$A,$B$29,SummaryData!$B:$B,$B32,SummaryData!$C:$C,$C$14)>=50,"**",(IF(SUMIFS(SummaryData!$N:$N,SummaryData!$A:$A,$B$29,SummaryData!$B:$B,$B32,SummaryData!$C:$C,$C$14)>25,IF(SUMIFS(SummaryData!$N:$N,SummaryData!$A:$A,$B$29,SummaryData!$B:$B,$B32,SummaryData!$C:$C,$C$14),"*"," ")," "))) ->  | E32: =IF(D32="**","",SUMIFS(SummaryData!$E:$E,SummaryData!$A:$A,$B$29,SummaryData!$B:$B,$B32,SummaryData!$C:$C,$C$14)) -> 7.917801 | F32: =IF(D32="**","",SUMIFS(SummaryData!$F:$F,SummaryData!$A:$A,$B$29,SummaryData!$B:$B,$B32,SummaryData!$C:$C,$C$14)) -> 18.41604 | H32: =SUMIFS(SummaryData!$D:$D,SummaryData!$A:$A,$B$29,SummaryData!$B:$B,$B32,SummaryData!$C:$C,$H$14) -> 14.84958 | J32: =SUMIFS(SummaryData!$E:$E,SummaryData!$A:$A,$B$29,SummaryData!$B:$B,$B32,SummaryData!$C:$C,$H$14) -> 13.10107 | K32: =SUMIFS(SummaryData!$F:$F,SummaryData!$A:$A,$B$29,SummaryData!$B:$B,$B32,SummaryData!$C:$C,$H$14) -> 16.78638 | M32: =IF(N32="**","",SUMIFS(SummaryData!$D:$D,SummaryData!$A:$A,$B$29,SummaryData!$B:$B,$B32,SummaryData!$C:$C,$M$14)) -> 16.42893 | N32: =IF(SUMIFS(SummaryData!$N:$N,SummaryData!$A:$A,$B$29,SummaryData!$B:$B,$B32,SummaryData!$C:$C,$M$14)>=50,"**",(IF(SUMIFS(SummaryData!$N:$N,SummaryData!$A:$A,$B$29,SummaryData!$B:$B,$B32,SummaryData!$C:$C,$M$14)>25,IF(SUMIFS(SummaryData!$N:$N,SummaryData!$A:$A,$B$29,SummaryData!$B:$B,$B32,SummaryData!$C:$C,$M$14),"*"," ")," "))) ->  | O32: =IF(N32="**","",SUMIFS(SummaryData!$E:$E,SummaryData!$A:$A,$B$29,SummaryData!$B:$B,$B32,SummaryData!$C:$C,$M$14)) -> 15.01317 | P32: =IF(N32="**","",SUMIFS(SummaryData!$F:$F,SummaryData!$A:$A,$B$29,SummaryData!$B:$B,$B32,SummaryData!$C:$C,$M$14)) -> 17.94999 | R32: =SUMIFS(SummaryData!$D:$D,SummaryData!$A:$A,$B$29,SummaryData!$B:$B,$B32,SummaryData!$C:$C,$R$14) -> 16.44643 | T32: =SUMIFS(SummaryData!$E:$E,SummaryData!$A:$A,$B$29,SummaryData!$B:$B,$B32,SummaryData!$C:$C,$R$14) -> 15.68833 | U32: =SUMIFS(SummaryData!$F:$F,SummaryData!$A:$A,$B$29,SummaryData!$B:$B,$B32,SummaryData!$C:$C,$R$14) -> 17.23368
B33: Ex-smoker | C33: =IF(D33="**","",SUMIFS(SummaryData!$D:$D,SummaryData!$A:$A,$B$29,SummaryData!$B:$B,$B33,SummaryData!$C:$C,$C$14)) -> 21.27687 | D33: =IF(SUMIFS(SummaryData!$N:$N,SummaryData!$A:$A,$B$29,SummaryData!$B:$B,$B33,SummaryData!$C:$C,$C$14)>=50,"**",(IF(SUMIFS(SummaryData!$N:$N,SummaryData!$A:$A,$B$29,SummaryData!$B:$B,$B33,SummaryData!$C:$C,$C$14)>25,IF(SUMIFS(SummaryData!$N:$N,SummaryData!$A:$A,$B$29,SummaryData!$B:$B,$B33,SummaryData!$C:$C,$C$14),"*"," ")," "))) ->  | E33: =IF(D33="**","",SUMIFS(SummaryData!$E:$E,SummaryData!$A:$A,$B$29,SummaryData!$B:$B,$B33,SummaryData!$C:$C,$C$14)) -> 16.71231 | F33: =IF(D33="**","",SUMIFS(SummaryData!$F:$F,SummaryData!$A:$A,$B$29,SummaryData!$B:$B,$B33,SummaryData!$C:$C,$C$14)) -> 26.68864 | H33: =SUMIFS(SummaryData!$D:$D,SummaryData!$A:$A,$B$29,SummaryData!$B:$B,$B33,SummaryData!$C:$C,$H$14) -> 24.04792 | J33: =SUMIFS(SummaryData!$E:$E,SummaryData!$A:$A,$B$29,SummaryData!$B:$B,$B33,SummaryData!$C:$C,$H$14) -> 22.08568 | K33: =SUMIFS(SummaryData!$F:$F,SummaryData!$A:$A,$B$29,SummaryData!$B:$B,$B33,SummaryData!$C:$C,$H$14) -> 26.12603 | M33: =IF(N33="**","",SUMIFS(SummaryData!$D:$D,SummaryData!$A:$A,$B$29,SummaryData!$B:$B,$B33,SummaryData!$C:$C,$M$14)) -> 23.25415 | N33: =IF(SUMIFS(SummaryData!$N:$N,SummaryData!$A:$A,$B$29,SummaryData!$B:$B,$B33,SummaryData!$C:$C,$M$14)>=50,"**",(IF(SUMIFS(SummaryData!$N:$N,SummaryData!$A:$A,$B$29,SummaryData!$B:$B,$B33,SummaryData!$C:$C,$M$14)>25,IF(SUMIFS(SummaryData!$N:$N,SummaryData!$A:$A,$B$29,SummaryData!$B:$B,$B33,SummaryData!$C:$C,$M$14),"*"," ")," "))) ->  | O33: =IF(N33="**","",SUMIFS(SummaryData!$E:$E,SummaryData!$A:$A,$B$29,SummaryData!$B:$B,$B33,SummaryData!$C:$C,$M$14)) -> 21.79929 | P33: =IF(N33="**","",SUMIFS(SummaryData!$F:$F,SummaryData!$A:$A,$B$29,SummaryData!$B:$B,$B33,SummaryData!$C:$C,$M$14)) -> 24.77534 | R33: =SUMIFS(SummaryData!$D:$D,SummaryData!$A:$A,$B$29,SummaryData!$B:$B,$B33,SummaryData!$C:$C,$R$14) -> 22.83416 | T33: =SUMIFS(SummaryData!$E:$E,SummaryData!$A:$A,$B$29,SummaryData!$B:$B,$B33,SummaryData!$C:$C,$R$14) -> 22.04792 | U33: =SUMIFS(SummaryData!$F:$F,SummaryData!$A:$A,$B$29,SummaryData!$B:$B,$B33,SummaryData!$C:$C,$R$14) -> 23.63994
B34: Non-smoker | C34: =IF(D34="**","",SUMIFS(SummaryData!$D:$D,SummaryData!$A:$A,$B$29,SummaryData!$B:$B,$B34,SummaryData!$C:$C,$C$14)) -> 62.83493 | D34: =IF(SUMIFS(SummaryData!$N:$N,SummaryData!$A:$A,$B$29,SummaryData!$B:$B,$B34,SummaryData!$C:$C,$C$14)>=50,"**",(IF(SUMIFS(SummaryData!$N:$N,SummaryData!$A:$A,$B$29,SummaryData!$B:$B,$B34,SummaryData!$C:$C,$C$14)>25,IF(SUMIFS(SummaryData!$N:$N,SummaryData!$A:$A,$B$29,SummaryData!$B:$B,$B34,SummaryData!$C:$C,$C$14),"*"," ")," "))) ->  | E34: =IF(D34="**","",SUMIFS(SummaryData!$E:$E,SummaryData!$A:$A,$B$29,SummaryData!$B:$B,$B34,SummaryData!$C:$C,$C$14)) -> 55.92642 | F34: =IF(D34="**","",SUMIFS(SummaryData!$F:$F,SummaryData!$A:$A,$B$29,SummaryData!$B:$B,$B34,SummaryData!$C:$C,$C$14)) -> 69.25583 | H34: =SUMIFS(SummaryData!$D:$D,SummaryData!$A:$A,$B$29,SummaryData!$B:$B,$B34,SummaryData!$C:$C,$H$14) -> 60.05114 | J34: =SUMIFS(SummaryData!$E:$E,SummaryData!$A:$A,$B$29,SummaryData!$B:$B,$B34,SummaryData!$C:$C,$H$14) -> 57.63801 | K34: =SUMIFS(SummaryData!$F:$F,SummaryData!$A:$A,$B$29,SummaryData!$B:$B,$B34,SummaryData!$C:$C,$H$14) -> 62.41645 | M34: =IF(N34="**","",SUMIFS(SummaryData!$D:$D,SummaryData!$A:$A,$B$29,SummaryData!$B:$B,$B34,SummaryData!$C:$C,$M$14)) -> 59.39993 | N34: =IF(SUMIFS(SummaryData!$N:$N,SummaryData!$A:$A,$B$29,SummaryData!$B:$B,$B34,SummaryData!$C:$C,$M$14)>=50,"**",(IF(SUMIFS(SummaryData!$N:$N,SummaryData!$A:$A,$B$29,SummaryData!$B:$B,$B34,SummaryData!$C:$C,$M$14)>25,IF(SUMIFS(SummaryData!$N:$N,SummaryData!$A:$A,$B$29,SummaryData!$B:$B,$B34,SummaryData!$C:$C,$M$14),"*"," ")," "))) ->  | O34: =IF(N34="**","",SUMIFS(SummaryData!$E:$E,SummaryData!$A:$A,$B$29,SummaryData!$B:$B,$B34,SummaryData!$C:$C,$M$14)) -> 57.53981 | P34: =IF(N34="**","",SUMIFS(SummaryData!$F:$F,SummaryData!$A:$A,$B$29,SummaryData!$B:$B,$B34,SummaryData!$C:$C,$M$14)) -> 61.23347 | R34: =SUMIFS(SummaryData!$D:$D,SummaryData!$A:$A,$B$29,SummaryData!$B:$B,$B34,SummaryData!$C:$C,$R$14) -> 59.79451 | T34: =SUMIFS(SummaryData!$E:$E,SummaryData!$A:$A,$B$29,SummaryData!$B:$B,$B34,SummaryData!$C:$C,$R$14) -> 58.8084 | U34: =SUMIFS(SummaryData!$F:$F,SummaryData!$A:$A,$B$29,SummaryData!$B:$B,$B34,SummaryData!$C:$C,$R$14) -> 60.77276
B35: MENTAL HEALTH and WELLBEING - Level of psychological distress
B36: Low (K10 < 16) | C36: =IF(D36="**","",SUMIFS(SummaryData!$D:$D,SummaryData!$A:$A,$B$35,SummaryData!$B:$B,$B36,SummaryData!$C:$C,$C$14)) -> 52.3273 | D36: =IF(SUMIFS(SummaryData!$N:$N,SummaryData!$A:$A,$B$35,SummaryData!$B:$B,$B36,SummaryData!$C:$C,$C$14)>=50,"**",(IF(SUMIFS(SummaryData!$N:$N,SummaryData!$A:$A,$B$35,SummaryData!$B:$B,$B36,SummaryData!$C:$C,$C$14)>25,IF(SUMIFS(SummaryData!$N:$N,SummaryData!$A:$A,$B$35,SummaryData!$B:$B,$B36,SummaryData!$C:$C,$C$14),"*"," ")," "))) ->  | E36: =IF(D36="**","",SUMIFS(SummaryData!$E:$E,SummaryData!$A:$A,$B$35,SummaryData!$B:$B,$B36,SummaryData!$C:$C,$C$14)) -> 45.13521 | F36: =IF(D36="**","",SUMIFS(SummaryData!$F:$F,SummaryData!$A:$A,$B$35,SummaryData!$B:$B,$B36,SummaryData!$C:$C,$C$14)) -> 59.42415 | H36: =IF(I36="**","",SUMIFS(SummaryData!$D:$D,SummaryData!$A:$A,$B$35,SummaryData!$B:$B,$B36,SummaryData!$C:$C,$H$14)) -> 47.31516 | I36: =IF(SUMIFS(SummaryData!$N:$N,SummaryData!$A:$A,$B$35,SummaryData!$B:$B,$B36,SummaryData!$C:$C,$H$14)>=50,"**",(IF(SUMIFS(SummaryData!$N:$N,SummaryData!$A:$A,$B$35,SummaryData!$B:$B,$B36,SummaryData!$C:$C,$H$14)>25,IF(SUMIFS(SummaryData!$N:$N,SummaryData!$A:$A,$B$35,SummaryData!$B:$B,$B36,SummaryData!$C:$C,$H$14),"*"," ")," "))) ->  | J36: =IF(I36="**","",SUMIFS(SummaryData!$E:$E,SummaryData!$A:$A,$B$35,SummaryData!$B:$B,$B36,SummaryData!$C:$C,$H$14)) -> 44.84825 | K36: =IF(I36="**","",SUMIFS(SummaryData!$F:$F,SummaryData!$A:$A,$B$35,SummaryData!$B:$B,$B36,SummaryData!$C:$C,$H$14)) -> 49.79525 | M36: =IF(N36="**","",SUMIFS(SummaryData!$D:$D,SummaryData!$A:$A,$B$35,SummaryData!$B:$B,$B36,SummaryData!$C:$C,$M$14)) -> 47.17593 | N36: =IF(SUMIFS(SummaryData!$N:$N,SummaryData!$A:$A,$B$35,SummaryData!$B:$B,$B36,SummaryData!$C:$C,$M$14)>=50,"**",(IF(SUMIFS(SummaryData!$N:$N,SummaryData!$A:$A,$B$35,SummaryData!$B:$B,$B36,SummaryData!$C:$C,$M$14)>25,IF(SUMIFS(SummaryData!$N:$N,SummaryData!$A:$A,$B$35,SummaryData!$B:$B,$B36,SummaryData!$C:$C,$M$14),"*"," ")," "))) ->  | O36: =IF(N36="**","",SUMIFS(SummaryData!$E:$E,SummaryData!$A:$A,$B$35,SummaryData!$B:$B,$B36,SummaryData!$C:$C,$M$14)) -> 45.2759 | P36: =IF(N36="**","",SUMIFS(SummaryData!$F:$F,SummaryData!$A:$A,$B$35,SummaryData!$B:$B,$B36,SummaryData!$C:$C,$M$14)) -> 49.08418 | R36: =SUMIFS(SummaryData!$D:$D,SummaryData!$A:$A,$B$35,SummaryData!$B:$B,$B36,SummaryData!$C:$C,$R$14) -> 44.89753 | T36: =SUMIFS(SummaryData!$E:$E,SummaryData!$A:$A,$B$35,SummaryData!$B:$B,$B36,SummaryData!$C:$C,$R$14) -> 43.89629 | U36: =SUMIFS(SummaryData!$F:$F,SummaryData!$A:$A,$B$35,SummaryData!$B:$B,$B36,SummaryData!$C:$C,$R$14) -> 45.90294
B37: Moderate (K10 16–21) | C37: =IF(D37="**","",SUMIFS(SummaryData!$D:$D,SummaryData!$A:$A,$B$35,SummaryData!$B:$B,$B37,SummaryData!$C:$C,$C$14)) -> 30.79177 | D37: =IF(SUMIFS(SummaryData!$N:$N,SummaryData!$A:$A,$B$35,SummaryData!$B:$B,$B37,SummaryData!$C:$C,$C$14)>=50,"**",(IF(SUMIFS(SummaryData!$N:$N,SummaryData!$A:$A,$B$35,SummaryData!$B:$B,$B37,SummaryData!$C:$C,$C$14)>25,IF(SUMIFS(SummaryData!$N:$N,SummaryData!$A:$A,$B$35,SummaryData!$B:$B,$B37,SummaryData!$C:$C,$C$14),"*"," ")," "))) ->  | E37: =IF(D37="**","",SUMIFS(SummaryData!$E:$E,SummaryData!$A:$A,$B$35,SummaryData!$B:$B,$B37,SummaryData!$C:$C,$C$14)) -> 24.37313 | F37: =IF(D37="**","",SUMIFS(SummaryData!$F:$F,SummaryData!$A:$A,$B$35,SummaryData!$B:$B,$B37,SummaryData!$C:$C,$C$14)) -> 38.05028 | H37: =SUMIFS(SummaryData!$D:$D,SummaryData!$A:$A,$B$35,SummaryData!$B:$B,$B37,SummaryData!$C:$C,$H$14) -> 26.81423 | J37: =SUMIFS(SummaryData!$E:$E,SummaryData!$A:$A,$B$35,SummaryData!$B:$B,$B37,SummaryData!$C:$C,$H$14) -> 24.63646 | K37: =SUMIFS(SummaryData!$F:$F,SummaryData!$A:$A,$B$35,SummaryData!$B:$B,$B37,SummaryData!$C:$C,$H$14) -> 29.11014 | M37: =IF(N37="**","",SUMIFS(SummaryData!$D:$D,SummaryData!$A:$A,$B$35,SummaryData!$B:$B,$B37,SummaryData!$C:$C,$M$14)) -> 25.51162 | N37: =IF(SUMIFS(SummaryData!$N:$N,SummaryData!$A:$A,$B$35,SummaryData!$B:$B,$B37,SummaryData!$C:$C,$M$14)>=50,"**",(IF(SUMIFS(SummaryData!$N:$N,SummaryData!$A:$A,$B$35,SummaryData!$B:$B,$B37,SummaryData!$C:$C,$M$14)>25,IF(SUMIFS(SummaryData!$N:$N,SummaryData!$A:$A,$B$35,SummaryData!$B:$B,$B37,SummaryData!$C:$C,$M$14),"*"," ")," "))) ->  | O37: =IF(N37="**","",SUMIFS(SummaryData!$E:$E,SummaryData!$A:$A,$B$35,SummaryData!$B:$B,$B37,SummaryData!$C:$C,$M$14)) -> 23.85445 | P37: =IF(N37="**","",SUMIFS(SummaryData!$F:$F,SummaryData!$A:$A,$B$35,SummaryData!$B:$B,$B37,SummaryData!$C:$C,$M$14)) -> 27.24273 | R37: =SUMIFS(SummaryData!$D:$D,SummaryData!$A:$A,$B$35,SummaryData!$B:$B,$B37,SummaryData!$C:$C,$R$14) -> 26.42945 | T37: =SUMIFS(SummaryData!$E:$E,SummaryData!$A:$A,$B$35,SummaryData!$B:$B,$B37,SummaryData!$C:$C,$R$14) -> 25.53082 | U37: =SUMIFS(SummaryData!$F:$F,SummaryData!$A:$A,$B$35,SummaryData!$B:$B,$B37,SummaryData!$C:$C,$R$14) -> 27.3481
B38: High (K10 22–29) | C38: =IF(D38="**","",SUMIFS(SummaryData!$D:$D,SummaryData!$A:$A,$B$35,SummaryData!$B:$B,$B38,SummaryData!$C:$C,$C$14)) -> 7.221469 | D38: =IF(SUMIFS(SummaryData!$N:$N,SummaryData!$A:$A,$B$35,SummaryData!$B:$B,$B38,SummaryData!$C:$C,$C$14)>=50,"**",(IF(SUMIFS(SummaryData!$N:$N,SummaryData!$A:$A,$B$35,SummaryData!$B:$B,$B38,SummaryData!$C:$C,$C$14)>25,IF(SUMIFS(SummaryData!$N:$N,SummaryData!$A:$A,$B$35,SummaryData!$B:$B,$B38,SummaryData!$C:$C,$C$14),"*"," ")," "))) ->  | E38: =IF(D38="**","",SUMIFS(SummaryData!$E:$E,SummaryData!$A:$A,$B$35,SummaryData!$B:$B,$B38,SummaryData!$C:$C,$C$14)) -> 4.809062 | F38: =IF(D38="**","",SUMIFS(SummaryData!$F:$F,SummaryData!$A:$A,$B$35,SummaryData!$B:$B,$B38,SummaryData!$C:$C,$C$14)) -> 10.7079 | H38: =SUMIFS(SummaryData!$D:$D,SummaryData!$A:$A,$B$35,SummaryData!$B:$B,$B38,SummaryData!$C:$C,$H$14) -> 14.69552 | J38: =SUMIFS(SummaryData!$E:$E,SummaryData!$A:$A,$B$35,SummaryData!$B:$B,$B38,SummaryData!$C:$C,$H$14) -> 12.96774 | K38: =SUMIFS(SummaryData!$F:$F,SummaryData!$A:$A,$B$35,SummaryData!$B:$B,$B38,SummaryData!$C:$C,$H$14) -> 16.60956 | M38: =IF(N38="**","",SUMIFS(SummaryData!$D:$D,SummaryData!$A:$A,$B$35,SummaryData!$B:$B,$B38,SummaryData!$C:$C,$M$14)) -> 14.36607 | N38: =IF(SUMIFS(SummaryData!$N:$N,SummaryData!$A:$A,$B$35,SummaryData!$B:$B,$B38,SummaryData!$C:$C,$M$14)>=50,"**",(IF(SUMIFS(SummaryData!$N:$N,SummaryData!$A:$A,$B$35,SummaryData!$B:$B,$B38,SummaryData!$C:$C,$M$14)>25,IF(SUMIFS(SummaryData!$N:$N,SummaryData!$A:$A,$B$35,SummaryData!$B:$B,$B38,SummaryData!$C:$C,$M$14),"*"," ")," "))) ->  | O38: =IF(N38="**","",SUMIFS(SummaryData!$E:$E,SummaryData!$A:$A,$B$35,SummaryData!$B:$B,$B38,SummaryData!$C:$C,$M$14)) -> 13.00969 | P38: =IF(N38="**","",SUMIFS(SummaryData!$F:$F,SummaryData!$A:$A,$B$35,SummaryData!$B:$B,$B38,SummaryData!$C:$C,$M$14)) -> 15.83813 | R38: =SUMIFS(SummaryData!$D:$D,SummaryData!$A:$A,$B$35,SummaryData!$B:$B,$B38,SummaryData!$C:$C,$R$14) -> 15.2036 | T38: =SUMIFS(SummaryData!$E:$E,SummaryData!$A:$A,$B$35,SummaryData!$B:$B,$B38,SummaryData!$C:$C,$R$14) -> 14.45991 | U38: =SUMIFS(SummaryData!$F:$F,SummaryData!$A:$A,$B$35,SummaryData!$B:$B,$B38,SummaryData!$C:$C,$R$14) -> 15.97839
B39: Very high (K10 30+) | C39: =IF(D39="**","",SUMIFS(SummaryData!$D:$D,SummaryData!$A:$A,$B$35,SummaryData!$B:$B,$B39,SummaryData!$C:$C,$C$14)) -> 6.843082 | D39: =IF(SUMIFS(SummaryData!$N:$N,SummaryData!$A:$A,$B$35,SummaryData!$B:$B,$B39,SummaryData!$C:$C,$C$14)>=50,"**",(IF(SUMIFS(SummaryData!$N:$N,SummaryData!$A:$A,$B$35,SummaryData!$B:$B,$B39,SummaryData!$C:$C,$C$14)>25,IF(SUMIFS(SummaryData!$N:$N,SummaryData!$A:$A,$B$35,SummaryData!$B:$B,$B39,SummaryData!$C:$C,$C$14),"*"," ")," "))) -> * | E39: =IF(D39="**","",SUMIFS(SummaryData!$E:$E,SummaryData!$A:$A,$B$35,SummaryData!$B:$B,$B39,SummaryData!$C:$C,$C$14)) -> 3.595605 | F39: =IF(D39="**","",SUMIFS(SummaryData!$F:$F,SummaryData!$A:$A,$B$35,SummaryData!$B:$B,$B39,SummaryData!$C:$C,$C$14)) -> 12.63908 | H39: =SUMIFS(SummaryData!$D:$D,SummaryData!$A:$A,$B$35,SummaryData!$B:$B,$B39,SummaryData!$C:$C,$H$14) -> 8.128603 | J39: =SUMIFS(SummaryData!$E:$E,SummaryData!$A:$A,$B$35,SummaryData!$B:$B,$B39,SummaryData!$C:$C,$H$14) -> 6.81564 | K39: =SUMIFS(SummaryData!$F:$F,SummaryData!$A:$A,$B$35,SummaryData!$B:$B,$B39,SummaryData!$C:$C,$H$14) -> 9.668251 | M39: =IF(N39="**","",SUMIFS(SummaryData!$D:$D,SummaryData!$A:$A,$B$35,SummaryData!$B:$B,$B39,SummaryData!$C:$C,$M$14)) -> 8.648459 | N39: =IF(SUMIFS(SummaryData!$N:$N,SummaryData!$A:$A,$B$35,SummaryData!$B:$B,$B39,SummaryData!$C:$C,$M$14)>=50,"**",(IF(SUMIFS(SummaryData!$N:$N,SummaryData!$A:$A,$B$35,SummaryData!$B:$B,$B39,SummaryData!$C:$C,$M$14)>25,IF(SUMIFS(SummaryData!$N:$N,SummaryData!$A:$A,$B$35,SummaryData!$B:$B,$B39,SummaryData!$C:$C,$M$14),"*"," ")," "))) ->  | O39: =IF(N39="**","",SUMIFS(SummaryData!$E:$E,SummaryData!$A:$A,$B$35,SummaryData!$B:$B,$B39,SummaryData!$C:$C,$M$14)) -> 7.575402 | P39: =IF(N39="**","",SUMIFS(SummaryData!$F:$F,SummaryData!$A:$A,$B$35,SummaryData!$B:$B,$B39,SummaryData!$C:$C,$M$14)) -> 9.857304 | R39: =SUMIFS(SummaryData!$D:$D,SummaryData!$A:$A,$B$35,SummaryData!$B:$B,$B39,SummaryData!$C:$C,$R$14) -> 8.309484 | T39: =SUMIFS(SummaryData!$E:$E,SummaryData!$A:$A,$B$35,SummaryData!$B:$B,$B39,SummaryData!$C:$C,$R$14) -> 7.734076 | U39: =SUMIFS(SummaryData!$F:$F,SummaryData!$A:$A,$B$35,SummaryData!$B:$B,$B39,SummaryData!$C:$C,$R$14) -> 8.923561
B40: High / very high (K10 22+) | C40: =IF(D40="**","",SUMIFS(SummaryData!$D:$D,SummaryData!$A:$A,$B$35,SummaryData!$B:$B,$B40,SummaryData!$C:$C,$C$14)) -> 14.06455 | D40: =IF(SUMIFS(SummaryData!$N:$N,SummaryData!$A:$A,$B$35,SummaryData!$B:$B,$B40,SummaryData!$C:$C,$C$14)>=50,"**",(IF(SUMIFS(SummaryData!$N:$N,SummaryData!$A:$A,$B$35,SummaryData!$B:$B,$B40,SummaryData!$C:$C,$C$14)>25,IF(SUMIFS(SummaryData!$N:$N,SummaryData!$A:$A,$B$35,SummaryData!$B:$B,$B40,SummaryData!$C:$C,$C$14),"*"," ")," "))) ->  | E40: =IF(D40="**","",SUMIFS(SummaryData!$E:$E,SummaryData!$A:$A,$B$35,SummaryData!$B:$B,$B40,SummaryData!$C:$C,$C$14)) -> 9.678939 | F40: =IF(D40="**","",SUMIFS(SummaryData!$F:$F,SummaryData!$A:$A,$B$35,SummaryData!$B:$B,$B40,SummaryData!$C:$C,$C$14)) -> 19.99736 | H40: =SUMIFS(SummaryData!$D:$D,SummaryData!$A:$A,$B$35,SummaryData!$B:$B,$B40,SummaryData!$C:$C,$H$14) -> 22.82412 | J40: =SUMIFS(SummaryData!$E:$E,SummaryData!$A:$A,$B$35,SummaryData!$B:$B,$B40,SummaryData!$C:$C,$H$14) -> 20.74216 | K40: =SUMIFS(SummaryData!$F:$F,SummaryData!$A:$A,$B$35,SummaryData!$B:$B,$B40,SummaryData!$C:$C,$H$14) -> 25.049 | M40: =IF(N40="**","",SUMIFS(SummaryData!$D:$D,SummaryData!$A:$A,$B$35,SummaryData!$B:$B,$B40,SummaryData!$C:$C,$M$14)) -> 23.01453 | N40: =IF(SUMIFS(SummaryData!$N:$N,SummaryData!$A:$A,$B$35,SummaryData!$B:$B,$B40,SummaryData!$C:$C,$M$14)>=50,"**",(IF(SUMIFS(SummaryData!$N:$N,SummaryData!$A:$A,$B$35,SummaryData!$B:$B,$B40,SummaryData!$C:$C,$M$14)>25,IF(SUMIFS(SummaryData!$N:$N,SummaryData!$A:$A,$B$35,SummaryData!$B:$B,$B40,SummaryData!$C:$C,$M$14),"*"," ")," "))) ->  | O40: =IF(N40="**","",SUMIFS(SummaryData!$E:$E,SummaryData!$A:$A,$B$35,SummaryData!$B:$B,$B40,SummaryData!$C:$C,$M$14)) -> 21.3794 | P40: =IF(N40="**","",SUMIFS(SummaryData!$F:$F,SummaryData!$A:$A,$B$35,SummaryData!$B:$B,$B40,SummaryData!$C:$C,$M$14)) -> 24.73538 | R40: =SUMIFS(SummaryData!$D:$D,SummaryData!$A:$A,$B$35,SummaryData!$B:$B,$B40,SummaryData!$C:$C,$R$14) -> 23.51308 | T40: =SUMIFS(SummaryData!$E:$E,SummaryData!$A:$A,$B$35,SummaryData!$B:$B,$B40,SummaryData!$C:$C,$R$14) -> 22.63349 | U40: =SUMIFS(SummaryData!$F:$F,SummaryData!$A:$A,$B$35,SummaryData!$B:$B,$B40,SummaryData!$C:$C,$R$14) -> 24.41606
B41: MENTAL HEALTH and WELLBEING - Self-reported health status
B42: Excellent / very good | C42: =IF(D42="**","",SUMIFS(SummaryData!$D:$D,SummaryData!$A:$A,$B$41,SummaryData!$B:$B,$B42,SummaryData!$C:$C,$C$14)) -> 59.07469 | D42: =IF(SUMIFS(SummaryData!$N:$N,SummaryData!$A:$A,$B$41,SummaryData!$B:$B,$B42,SummaryData!$C:$C,$C$14)>=50,"**",(IF(SUMIFS(SummaryData!$N:$N,SummaryData!$A:$A,$B$41,SummaryData!$B:$B,$B42,SummaryData!$C:$C,$C$14)>25,IF(SUMIFS(SummaryData!$N:$N,SummaryData!$A:$A,$B$41,SummaryData!$B:$B,$B42,SummaryData!$C:$C,$C$14),"*"," ")," "))) ->  | E42: =IF(D42="**","",SUMIFS(SummaryData!$E:$E,SummaryData!$A:$A,$B$41,SummaryData!$B:$B,$B42,SummaryData!$C:$C,$C$14)) -> 51.78755 | F42: =IF(D42="**","",SUMIFS(SummaryData!$F:$F,SummaryData!$A:$A,$B$41,SummaryData!$B:$B,$B42,SummaryData!$C:$C,$C$14)) -> 65.98386 | H42: =IF(I42="**","",SUMIFS(SummaryData!$D:$D,SummaryData!$A:$A,$B$41,SummaryData!$B:$B,$B42,SummaryData!$C:$C,$H$14)) -> 44.9144 | I42: =IF(SUMIFS(SummaryData!$N:$N,SummaryData!$A:$A,$B$41,SummaryData!$B:$B,$B42,SummaryData!$C:$C,$H$14)>=50,"**",(IF(SUMIFS(SummaryData!$N:$N,SummaryData!$A:$A,$B$41,SummaryData!$B:$B,$B42,SummaryData!$C:$C,$H$14)>25,IF(SUMIFS(SummaryData!$N:$N,SummaryData!$A:$A,$B$41,SummaryData!$B:$B,$B42,SummaryData!$C:$C,$H$14),"*"," ")," "))) ->  | J42: =IF(I42="**","",SUMIFS(SummaryData!$E:$E,SummaryData!$A:$A,$B$41,SummaryData!$B:$B,$B42,SummaryData!$C:$C,$H$14)) -> 42.44892 | K42: =IF(I42="**","",SUMIFS(SummaryData!$F:$F,SummaryData!$A:$A,$B$41,SummaryData!$B:$B,$B42,SummaryData!$C:$C,$H$14)) -> 47.40514 | M42: =IF(N42="**","",SUMIFS(SummaryData!$D:$D,SummaryData!$A:$A,$B$41,SummaryData!$B:$B,$B42,SummaryData!$C:$C,$M$14)) -> 41.67981 | N42: =IF(SUMIFS(SummaryData!$N:$N,SummaryData!$A:$A,$B$41,SummaryData!$B:$B,$B42,SummaryData!$C:$C,$M$14)>=50,"**",(IF(SUMIFS(SummaryData!$N:$N,SummaryData!$A:$A,$B$41,SummaryData!$B:$B,$B42,SummaryData!$C:$C,$M$14)>25,IF(SUMIFS(SummaryData!$N:$N,SummaryData!$A:$A,$B$41,SummaryData!$B:$B,$B42,SummaryData!$C:$C,$M$14),"*"," ")," "))) ->  | O42: =IF(N42="**","",SUMIFS(SummaryData!$E:$E,SummaryData!$A:$A,$B$41,SummaryData!$B:$B,$B42,SummaryData!$C:$C,$M$14)) -> 39.80336 | P42: =IF(N42="**","",SUMIFS(SummaryData!$F:$F,SummaryData!$A:$A,$B$41,SummaryData!$B:$B,$B42,SummaryData!$C:$C,$M$14)) -> 43.58068 | R42: =SUMIFS(SummaryData!$D:$D,SummaryData!$A:$A,$B$41,SummaryData!$B:$B,$B42,SummaryData!$C:$C,$R$14) -> 40.50204 | T42: =SUMIFS(SummaryData!$E:$E,SummaryData!$A:$A,$B$41,SummaryData!$B:$B,$B42,SummaryData!$C:$C,$R$14) -> 39.51008 | U42: =SUMIFS(SummaryData!$F:$F,SummaryData!$A:$A,$B$41,SummaryData!$B:$B,$B42,SummaryData!$C:$C,$R$14) -> 41.50181
B43: Good | C43: =IF(D43="**","",SUMIFS(SummaryData!$D:$D,SummaryData!$A:$A,$B$41,SummaryData!$B:$B,$B43,SummaryData!$C:$C,$C$14)) -> 26.27917 | D43: =IF(SUMIFS(SummaryData!$N:$N,SummaryData!$A:$A,$B$41,SummaryData!$B:$B,$B43,SummaryData!$C:$C,$C$14)>=50,"**",(IF(SUMIFS(SummaryData!$N:$N,SummaryData!$A:$A,$B$41,SummaryData!$B:$B,$B43,SummaryData!$C:$C,$C$14)>25,IF(SUMIFS(SummaryData!$N:$N,SummaryData!$A:$A,$B$41,SummaryData!$B:$B,$B43,SummaryData!$C:$C,$C$14),"*"," ")," "))) ->  | E43: =IF(D43="**","",SUMIFS(SummaryData!$E:$E,SummaryData!$A:$A,$B$41,SummaryData!$B:$B,$B43,SummaryData!$C:$C,$C$14)) -> 20.53297 | F43: =IF(D43="**","",SUMIFS(SummaryData!$F:$F,SummaryData!$A:$A,$B$41,SummaryData!$B:$B,$B43,SummaryData!$C:$C,$C$14)) -> 32.96634 | H43: =IF(I43="**","",SUMIFS(SummaryData!$D:$D,SummaryData!$A:$A,$B$41,SummaryData!$B:$B,$B43,SummaryData!$C:$C,$H$14)) -> 35.99875 | I43: =IF(SUMIFS(SummaryData!$N:$N,SummaryData!$A:$A,$B$41,SummaryData!$B:$B,$B43,SummaryData!$C:$C,$H$14)>=50,"**",(IF(SUMIFS(SummaryData!$N:$N,SummaryData!$A:$A,$B$41,SummaryData!$B:$B,$B43,SummaryData!$C:$C,$H$14)>25,IF(SUMIFS(SummaryData!$N:$N,SummaryData!$A:$A,$B$41,SummaryData!$B:$B,$B43,SummaryData!$C:$C,$H$14),"*"," ")," "))) ->  | J43: =IF(I43="**","",SUMIFS(SummaryData!$E:$E,SummaryData!$A:$A,$B$41,SummaryData!$B:$B,$B43,SummaryData!$C:$C,$H$14)) -> 33.60709 | K43: =IF(I43="**","",SUMIFS(SummaryData!$F:$F,SummaryData!$A:$A,$B$41,SummaryData!$B:$B,$B43,SummaryData!$C:$C,$H$14)) -> 38.46202 | M43: =IF(N43="**","",SUMIFS(SummaryData!$D:$D,SummaryData!$A:$A,$B$41,SummaryData!$B:$B,$B43,SummaryData!$C:$C,$M$14)) -> 37.31485 | N43: =IF(SUMIFS(SummaryData!$N:$N,SummaryData!$A:$A,$B$41,SummaryData!$B:$B,$B43,SummaryData!$C:$C,$M$14)>=50,"**",(IF(SUMIFS(SummaryData!$N:$N,SummaryData!$A:$A,$B$41,SummaryData!$B:$B,$B43,SummaryData!$C:$C,$M$14)>25,IF(SUMIFS(SummaryData!$N:$N,SummaryData!$A:$A,$B$41,SummaryData!$B:$B,$B43,SummaryData!$C:$C,$M$14),"*"," ")," "))) ->  | O43: =IF(N43="**","",SUMIFS(SummaryData!$E:$E,SummaryData!$A:$A,$B$41,SummaryData!$B:$B,$B43,SummaryData!$C:$C,$M$14)) -> 35.42524 | P43: =IF(N43="**","",SUMIFS(SummaryData!$F:$F,SummaryData!$A:$A,$B$41,SummaryData!$B:$B,$B43,SummaryData!$C:$C,$M$14)) -> 39.24399 | R43: =SUMIFS(SummaryData!$D:$D,SummaryData!$A:$A,$B$41,SummaryData!$B:$B,$B43,SummaryData!$C:$C,$R$14) -> 37.70523 | T43: =SUMIFS(SummaryData!$E:$E,SummaryData!$A:$A,$B$41,SummaryData!$B:$B,$B43,SummaryData!$C:$C,$R$14) -> 36.70359 | U43: =SUMIFS(SummaryData!$F:$F,SummaryData!$A:$A,$B$41,SummaryData!$B:$B,$B43,SummaryData!$C:$C,$R$14) -> 38.71748
B44: Fair/poor | C44: =IF(D44="**","",SUMIFS(SummaryData!$D:$D,SummaryData!$A:$A,$B$41,SummaryData!$B:$B,$B44,SummaryData!$C:$C,$C$14)) -> 14.64615 | D44: =IF(SUMIFS(SummaryData!$N:$N,SummaryData!$A:$A,$B$41,SummaryData!$B:$B,$B44,SummaryData!$C:$C,$C$14)>=50,"**",(IF(SUMIFS(SummaryData!$N:$N,SummaryData!$A:$A,$B$41,SummaryData!$B:$B,$B44,SummaryData!$C:$C,$C$14)>25,IF(SUMIFS(SummaryData!$N:$N,SummaryData!$A:$A,$B$41,SummaryData!$B:$B,$B44,SummaryData!$C:$C,$C$14),"*"," ")," "))) ->  | E44: =IF(D44="**","",SUMIFS(SummaryData!$E:$E,SummaryData!$A:$A,$B$41,SummaryData!$B:$B,$B44,SummaryData!$C:$C,$C$14)) -> 9.891918 | F44: =IF(D44="**","",SUMIFS(SummaryData!$F:$F,SummaryData!$A:$A,$B$41,SummaryData!$B:$B,$B44,SummaryData!$C:$C,$C$14)) -> 21.14904 | H44: =IF(I44="**","",SUMIFS(SummaryData!$D:$D,SummaryData!$A:$A,$B$41,SummaryData!$B:$B,$B44,SummaryData!$C:$C,$H$14)) -> 18.80769 | I44: =IF(SUMIFS(SummaryData!$N:$N,SummaryData!$A:$A,$B$41,SummaryData!$B:$B,$B44,SummaryData!$C:$C,$H$14)>=50,"**",(IF(SUMIFS(SummaryData!$N:$N,SummaryData!$A:$A,$B$41,SummaryData!$B:$B,$B44,SummaryData!$C:$C,$H$14)>25,IF(SUMIFS(SummaryData!$N:$N,SummaryData!$A:$A,$B$41,SummaryData!$B:$B,$B44,SummaryData!$C:$C,$H$14),"*"," ")," "))) ->  | J44: =IF(I44="**","",SUMIFS(SummaryData!$E:$E,SummaryData!$A:$A,$B$41,SummaryData!$B:$B,$B44,SummaryData!$C:$C,$H$14)) -> 16.91841 | K44: =IF(I44="**","",SUMIFS(SummaryData!$F:$F,SummaryData!$A:$A,$B$41,SummaryData!$B:$B,$B44,SummaryData!$C:$C,$H$14)) -> 20.855 | M44: =IF(N44="**","",SUMIFS(SummaryData!$D:$D,SummaryData!$A:$A,$B$41,SummaryData!$B:$B,$B44,SummaryData!$C:$C,$M$14)) -> 20.73572 | N44: =IF(SUMIFS(SummaryData!$N:$N,SummaryData!$A:$A,$B$41,SummaryData!$B:$B,$B44,SummaryData!$C:$C,$M$14)>=50,"**",(IF(SUMIFS(SummaryData!$N:$N,SummaryData!$A:$A,$B$41,SummaryData!$B:$B,$B44,SummaryData!$C:$C,$M$14)>25,IF(SUMIFS(SummaryData!$N:$N,SummaryData!$A:$A,$B$41,SummaryData!$B:$B,$B44,SummaryData!$C:$C,$M$14),"*"," ")," "))) ->  | O44: =IF(N44="**","",SUMIFS(SummaryData!$E:$E,SummaryData!$A:$A,$B$41,SummaryData!$B:$B,$B44,SummaryData!$C:$C,$M$14)) -> 19.20806 | P44: =IF(N44="**","",SUMIFS(SummaryData!$F:$F,SummaryData!$A:$A,$B$41,SummaryData!$B:$B,$B44,SummaryData!$C:$C,$M$14)) -> 22.35127 | R44: =SUMIFS(SummaryData!$D:$D,SummaryData!$A:$A,$B$41,SummaryData!$B:$B,$B44,SummaryData!$C:$C,$R$14) -> 21.41569 | T44: =SUMIFS(SummaryData!$E:$E,SummaryData!$A:$A,$B$41,SummaryData!$B:$B,$B44,SummaryData!$C:$C,$R$14) -> 20.57313 | U44: =SUMIFS(SummaryData!$F:$F,SummaryData!$A:$A,$B$41,SummaryData!$B:$B,$B44,SummaryData!$C:$C,$R$14) -> 22.28308
B45: MENTAL HEALTH and WELLBEING - Life satisfaction
B46: Low or medium (0–6) | C46: =IF(D46="**","",SUMIFS(SummaryData!$D:$D,SummaryData!$A:$A,$B$45,SummaryData!$B:$B,$B46,SummaryData!$C:$C,$C$14)) -> 18.20956 | D46: =IF(SUMIFS(SummaryData!$N:$N,SummaryData!$A:$A,$B$45,SummaryData!$B:$B,$B46,SummaryData!$C:$C,$C$14)>=50,"**",(IF(SUMIFS(SummaryData!$N:$N,SummaryData!$A:$A,$B$45,SummaryData!$B:$B,$B46,SummaryData!$C:$C,$C$14)>25,IF(SUMIFS(SummaryData!$N:$N,SummaryData!$A:$A,$B$45,SummaryData!$B:$B,$B46,SummaryData!$C:$C,$C$14),"*"," ")," "))) ->  | E46: =IF(D46="**","",SUMIFS(SummaryData!$E:$E,SummaryData!$A:$A,$B$45,SummaryData!$B:$B,$B46,SummaryData!$C:$C,$C$14)) -> 12.88933 | F46: =IF(D46="**","",SUMIFS(SummaryData!$F:$F,SummaryData!$A:$A,$B$45,SummaryData!$B:$B,$B46,SummaryData!$C:$C,$C$14)) -> 25.09319 | H46: =IF(I46="**","",SUMIFS(SummaryData!$D:$D,SummaryData!$A:$A,$B$45,SummaryData!$B:$B,$B46,SummaryData!$C:$C,$H$14)) -> 22.54882 | I46: =IF(SUMIFS(SummaryData!$N:$N,SummaryData!$A:$A,$B$45,SummaryData!$B:$B,$B46,SummaryData!$C:$C,$H$14)>=50,"**",(IF(SUMIFS(SummaryData!$N:$N,SummaryData!$A:$A,$B$45,SummaryData!$B:$B,$B46,SummaryData!$C:$C,$H$14)>25,IF(SUMIFS(SummaryData!$N:$N,SummaryData!$A:$A,$B$45,SummaryData!$B:$B,$B46,SummaryData!$C:$C,$H$14),"*"," ")," "))) ->  | J46: =IF(I46="**","",SUMIFS(SummaryData!$E:$E,SummaryData!$A:$A,$B$45,SummaryData!$B:$B,$B46,SummaryData!$C:$C,$H$14)) -> 20.48669 | K46: =IF(I46="**","",SUMIFS(SummaryData!$F:$F,SummaryData!$A:$A,$B$45,SummaryData!$B:$B,$B46,SummaryData!$C:$C,$H$14)) -> 24.75391 | M46: =IF(N46="**","",SUMIFS(SummaryData!$D:$D,SummaryData!$A:$A,$B$45,SummaryData!$B:$B,$B46,SummaryData!$C:$C,$M$14)) -> 22.7755 | N46: =IF(SUMIFS(SummaryData!$N:$N,SummaryData!$A:$A,$B$45,SummaryData!$B:$B,$B46,SummaryData!$C:$C,$M$14)>=50,"**",(IF(SUMIFS(SummaryData!$N:$N,SummaryData!$A:$A,$B$45,SummaryData!$B:$B,$B46,SummaryData!$C:$C,$M$14)>25,IF(SUMIFS(SummaryData!$N:$N,SummaryData!$A:$A,$B$45,SummaryData!$B:$B,$B46,SummaryData!$C:$C,$M$14),"*"," ")," "))) ->  | O46: =IF(N46="**","",SUMIFS(SummaryData!$E:$E,SummaryData!$A:$A,$B$45,SummaryData!$B:$B,$B46,SummaryData!$C:$C,$M$14)) -> 21.14862 | P46: =IF(N46="**","",SUMIFS(SummaryData!$F:$F,SummaryData!$A:$A,$B$45,SummaryData!$B:$B,$B46,SummaryData!$C:$C,$M$14)) -> 24.48867 | R46: =SUMIFS(SummaryData!$D:$D,SummaryData!$A:$A,$B$45,SummaryData!$B:$B,$B46,SummaryData!$C:$C,$R$14) -> 22.30317 | T46: =SUMIFS(SummaryData!$E:$E,SummaryData!$A:$A,$B$45,SummaryData!$B:$B,$B46,SummaryData!$C:$C,$R$14) -> 21.42945 | U46: =SUMIFS(SummaryData!$F:$F,SummaryData!$A:$A,$B$45,SummaryData!$B:$B,$B46,SummaryData!$C:$C,$R$14) -> 23.202
B47: High (7–8) | C47: =IF(D47="**","",SUMIFS(SummaryData!$D:$D,SummaryData!$A:$A,$B$45,SummaryData!$B:$B,$B47,SummaryData!$C:$C,$C$14)) -> 49.21836 | D47: =IF(SUMIFS(SummaryData!$N:$N,SummaryData!$A:$A,$B$45,SummaryData!$B:$B,$B47,SummaryData!$C:$C,$C$14)>=50,"**",(IF(SUMIFS(SummaryData!$N:$N,SummaryData!$A:$A,$B$45,SummaryData!$B:$B,$B47,SummaryData!$C:$C,$C$14)>25,IF(SUMIFS(SummaryData!$N:$N,SummaryData!$A:$A,$B$45,SummaryData!$B:$B,$B47,SummaryData!$C:$C,$C$14),"*"," ")," "))) ->  | E47: =IF(D47="**","",SUMIFS(SummaryData!$E:$E,SummaryData!$A:$A,$B$45,SummaryData!$B:$B,$B47,SummaryData!$C:$C,$C$14)) -> 42.45218 | F47: =IF(D47="**","",SUMIFS(SummaryData!$F:$F,SummaryData!$A:$A,$B$45,SummaryData!$B:$B,$B47,SummaryData!$C:$C,$C$14)) -> 56.01331 | H47: =IF(I47="**","",SUMIFS(SummaryData!$D:$D,SummaryData!$A:$A,$B$45,SummaryData!$B:$B,$B47,SummaryData!$C:$C,$H$14)) -> 50.12051 | I47: =IF(SUMIFS(SummaryData!$N:$N,SummaryData!$A:$A,$B$45,SummaryData!$B:$B,$B47,SummaryData!$C:$C,$H$14)>=50,"**",(IF(SUMIFS(SummaryData!$N:$N,SummaryData!$A:$A,$B$45,SummaryData!$B:$B,$B47,SummaryData!$C:$C,$H$14)>25,IF(SUMIFS(SummaryData!$N:$N,SummaryData!$A:$A,$B$45,SummaryData!$B:$B,$B47,SummaryData!$C:$C,$H$14),"*"," ")," "))) ->  | J47: =IF(I47="**","",SUMIFS(SummaryData!$E:$E,SummaryData!$A:$A,$B$45,SummaryData!$B:$B,$B47,SummaryData!$C:$C,$H$14)) -> 47.61474 | K47: =IF(I47="**","",SUMIFS(SummaryData!$F:$F,SummaryData!$A:$A,$B$45,SummaryData!$B:$B,$B47,SummaryData!$C:$C,$H$14)) -> 52.62568 | M47: =IF(N47="**","",SUMIFS(SummaryData!$D:$D,SummaryData!$A:$A,$B$45,SummaryData!$B:$B,$B47,SummaryData!$C:$C,$M$14)) -> 47.42296 | N47: =IF(SUMIFS(SummaryData!$N:$N,SummaryData!$A:$A,$B$45,SummaryData!$B:$B,$B47,SummaryData!$C:$C,$M$14)>=50,"**",(IF(SUMIFS(SummaryData!$N:$N,SummaryData!$A:$A,$B$45,SummaryData!$B:$B,$B47,SummaryData!$C:$C,$M$14)>25,IF(SUMIFS(SummaryData!$N:$N,SummaryData!$A:$A,$B$45,SummaryData!$B:$B,$B47,SummaryData!$C:$C,$M$14),"*"," ")," "))) ->  | O47: =IF(N47="**","",SUMIFS(SummaryData!$E:$E,SummaryData!$A:$A,$B$45,SummaryData!$B:$B,$B47,SummaryData!$C:$C,$M$14)) -> 45.4823 | P47: =IF(N47="**","",SUMIFS(SummaryData!$F:$F,SummaryData!$A:$A,$B$45,SummaryData!$B:$B,$B47,SummaryData!$C:$C,$M$14)) -> 49.37143 | R47: =SUMIFS(SummaryData!$D:$D,SummaryData!$A:$A,$B$45,SummaryData!$B:$B,$B47,SummaryData!$C:$C,$R$14) -> 49.64177 | T47: =SUMIFS(SummaryData!$E:$E,SummaryData!$A:$A,$B$45,SummaryData!$B:$B,$B47,SummaryData!$C:$C,$R$14) -> 48.61466 | U47: =SUMIFS(SummaryData!$F:$F,SummaryData!$A:$A,$B$45,SummaryData!$B:$B,$B47,SummaryData!$C:$C,$R$14) -> 50.66917
B48: Very high (9–10) | C48: =IF(D48="**","",SUMIFS(SummaryData!$D:$D,SummaryData!$A:$A,$B$45,SummaryData!$B:$B,$B48,SummaryData!$C:$C,$C$14)) -> 32.33921 | D48: =IF(SUMIFS(SummaryData!$N:$N,SummaryData!$A:$A,$B$45,SummaryData!$B:$B,$B48,SummaryData!$C:$C,$C$14)>=50,"**",(IF(SUMIFS(SummaryData!$N:$N,SummaryData!$A:$A,$B$45,SummaryData!$B:$B,$B48,SummaryData!$C:$C,$C$14)>25,IF(SUMIFS(SummaryData!$N:$N,SummaryData!$A:$A,$B$45,SummaryData!$B:$B,$B48,SummaryData!$C:$C,$C$14),"*"," ")," "))) ->  | E48: =IF(D48="**","",SUMIFS(SummaryData!$E:$E,SummaryData!$A:$A,$B$45,SummaryData!$B:$B,$B48,SummaryData!$C:$C,$C$14)) -> 26.03608 | F48: =IF(D48="**","",SUMIFS(SummaryData!$F:$F,SummaryData!$A:$A,$B$45,SummaryData!$B:$B,$B48,SummaryData!$C:$C,$C$14)) -> 39.35633 | H48: =IF(I48="**","",SUMIFS(SummaryData!$D:$D,SummaryData!$A:$A,$B$45,SummaryData!$B:$B,$B48,SummaryData!$C:$C,$H$14)) -> 26.72983 | I48: =IF(SUMIFS(SummaryData!$N:$N,SummaryData!$A:$A,$B$45,SummaryData!$B:$B,$B48,SummaryData!$C:$C,$H$14)>=50,"**",(IF(SUMIFS(SummaryData!$N:$N,SummaryData!$A:$A,$B$45,SummaryData!$B:$B,$B48,SummaryData!$C:$C,$H$14)>25,IF(SUMIFS(SummaryData!$N:$N,SummaryData!$A:$A,$B$45,SummaryData!$B:$B,$B48,SummaryData!$C:$C,$H$14),"*"," ")," "))) ->  | J48: =IF(I48="**","",SUMIFS(SummaryData!$E:$E,SummaryData!$A:$A,$B$45,SummaryData!$B:$B,$B48,SummaryData!$C:$C,$H$14)) -> 24.60565 | K48: =IF(I48="**","",SUMIFS(SummaryData!$F:$F,SummaryData!$A:$A,$B$45,SummaryData!$B:$B,$B48,SummaryData!$C:$C,$H$14)) -> 28.96694 | M48: =IF(N48="**","",SUMIFS(SummaryData!$D:$D,SummaryData!$A:$A,$B$45,SummaryData!$B:$B,$B48,SummaryData!$C:$C,$M$14)) -> 28.44193 | N48: =IF(SUMIFS(SummaryData!$N:$N,SummaryData!$A:$A,$B$45,SummaryData!$B:$B,$B48,SummaryData!$C:$C,$M$14)>=50,"**",(IF(SUMIFS(SummaryData!$N:$N,SummaryData!$A:$A,$B$45,SummaryData!$B:$B,$B48,SummaryData!$C:$C,$M$14)>25,IF(SUMIFS(SummaryData!$N:$N,SummaryData!$A:$A,$B$45,SummaryData!$B:$B,$B48,SummaryData!$C:$C,$M$14),"*"," ")," "))) ->  | O48: =IF(N48="**","",SUMIFS(SummaryData!$E:$E,SummaryData!$A:$A,$B$45,SummaryData!$B:$B,$B48,SummaryData!$C:$C,$M$14)) -> 26.76221 | P48: =IF(N48="**","",SUMIFS(SummaryData!$F:$F,SummaryData!$A:$A,$B$45,SummaryData!$B:$B,$B48,SummaryData!$C:$C,$M$14)) -> 30.18363 | R48: =SUMIFS(SummaryData!$D:$D,SummaryData!$A:$A,$B$45,SummaryData!$B:$B,$B48,SummaryData!$C:$C,$R$14) -> 26.8603 | T48: =SUMIFS(SummaryData!$E:$E,SummaryData!$A:$A,$B$45,SummaryData!$B:$B,$B48,SummaryData!$C:$C,$R$14) -> 25.98797 | U48: =SUMIFS(SummaryData!$F:$F,SummaryData!$A:$A,$B$45,SummaryData!$B:$B,$B48,SummaryData!$C:$C,$R$14) -> 27.75093
B49: SOCIAL CAPITAL - Feeling of trust - Most people could be trusted
B50: Yes, definitely | C50: =IF(D50="**","",SUMIFS(SummaryData!$D:$D,SummaryData!$A:$A,$B$49,SummaryData!$B:$B,$B50,SummaryData!$C:$C,$C$14)) -> 40.18018 | D50: =IF(SUMIFS(SummaryData!$N:$N,SummaryData!$A:$A,$B$49,SummaryData!$B:$B,$B50,SummaryData!$C:$C,$C$14)>50,"**",(IF(SUMIFS(SummaryData!$N:$N,SummaryData!$A:$A,$B$49,SummaryData!$B:$B,$B50,SummaryData!$C:$C,$C$14)>25,IF(SUMIFS(SummaryData!$N:$N,SummaryData!$A:$A,$B$49,SummaryData!$B:$B,$B50,SummaryData!$C:$C,$C$14),"*"," ")," "))) ->  | E50: =IF(D50="**","",SUMIFS(SummaryData!$E:$E,SummaryData!$A:$A,$B$49,SummaryData!$B:$B,$B50,SummaryData!$C:$C,$C$14)) -> 33.64963 | F50: =IF(D50="**","",SUMIFS(SummaryData!$F:$F,SummaryData!$A:$A,$B$49,SummaryData!$B:$B,$B50,SummaryData!$C:$C,$C$14)) -> 47.07885 | H50: =IF(I50="**","",SUMIFS(SummaryData!$D:$D,SummaryData!$A:$A,$B$49,SummaryData!$B:$B,$B50,SummaryData!$C:$C,$H$14)) -> 41.01433 | I50: =IF(SUMIFS(SummaryData!$N:$N,SummaryData!$A:$A,$B$49,SummaryData!$B:$B,$B50,SummaryData!$C:$C,$H$14)>50,"**",(IF(SUMIFS(SummaryData!$N:$N,SummaryData!$A:$A,$B$49,SummaryData!$B:$B,$B50,SummaryData!$C:$C,$H$14)>25,IF(SUMIFS(SummaryData!$N:$N,SummaryData!$A:$A,$B$49,SummaryData!$B:$B,$B50,SummaryData!$C:$C,$H$14),"*"," ")," "))) ->  | J50: =IF(I50="**","",SUMIFS(SummaryData!$E:$E,SummaryData!$A:$A,$B$49,SummaryData!$B:$B,$B50,SummaryData!$C:$C,$H$14)) -> 38.58588 | K50: =IF(I50="**","",SUMIFS(SummaryData!$F:$F,SummaryData!$A:$A,$B$49,SummaryData!$B:$B,$B50,SummaryData!$C:$C,$H$14)) -> 43.48739 | M50: =IF(N50="**","",SUMIFS(SummaryData!$D:$D,SummaryData!$A:$A,$B$49,SummaryData!$B:$B,$B50,SummaryData!$C:$C,$M$14)) -> 35.89065 | N50: =IF(SUMIFS(SummaryData!$N:$N,SummaryData!$A:$A,$B$49,SummaryData!$B:$B,$B50,SummaryData!$C:$C,$M$14)>50,"**",(IF(SUMIFS(SummaryData!$N:$N,SummaryData!$A:$A,$B$49,SummaryData!$B:$B,$B50,SummaryData!$C:$C,$M$14)>25,IF(SUMIFS(SummaryData!$N:$N,SummaryData!$A:$A,$B$49,SummaryData!$B:$B,$B50,SummaryData!$C:$C,$M$14),"*"," ")," "))) ->  | O50: =IF(N50="**","",SUMIFS(SummaryData!$E:$E,SummaryData!$A:$A,$B$49,SummaryData!$B:$B,$B50,SummaryData!$C:$C,$M$14)) -> 34.10712 | P50: =IF(N50="**","",SUMIFS(SummaryData!$F:$F,SummaryData!$A:$A,$B$49,SummaryData!$B:$B,$B50,SummaryData!$C:$C,$M$14)) -> 37.71407 | R50: =IF(SUMIFS(SummaryData!$D:$D,SummaryData!$A:$A,$B$49,SummaryData!$B:$B,$B50,SummaryData!$C:$C,$R$14)=0,"NA",SUMIFS(SummaryData!$D:$D,SummaryData!$A:$A,$B$49,SummaryData!$B:$B,$B50,SummaryData!$C:$C,$R$14)) -> 36.13424 | T50: =IF(SUMIFS(SummaryData!$E:$E,SummaryData!$A:$A,$B$49,SummaryData!$B:$B,$B50,SummaryData!$C:$C,$R$14)=0,"NA",SUMIFS(SummaryData!$E:$E,SummaryData!$A:$A,$B$49,SummaryData!$B:$B,$B50,SummaryData!$C:$C,$R$14)) -> 35.1755 | U50: =IF(SUMIFS(SummaryData!$F:$F,SummaryData!$A:$A,$B$49,SummaryData!$B:$B,$B50,SummaryData!$C:$C,$R$14)=0,"NA",SUMIFS(SummaryData!$F:$F,SummaryData!$A:$A,$B$49,SummaryData!$B:$B,$B50,SummaryData!$C:$C,$R$14)) -> 37.10416
B51: Sometimes | C51: =IF(D51="**","",SUMIFS(SummaryData!$D:$D,SummaryData!$A:$A,$B$49,SummaryData!$B:$B,$B51,SummaryData!$C:$C,$C$14)) -> 46.90293 | D51: =IF(SUMIFS(SummaryData!$N:$N,SummaryData!$A:$A,$B$49,SummaryData!$B:$B,$B51,SummaryData!$C:$C,$C$14)>50,"**",(IF(SUMIFS(SummaryData!$N:$N,SummaryData!$A:$A,$B$49,SummaryData!$B:$B,$B51,SummaryData!$C:$C,$C$14)>25,IF(SUMIFS(SummaryData!$N:$N,SummaryData!$A:$A,$B$49,SummaryData!$B:$B,$B51,SummaryData!$C:$C,$C$14),"*"," ")," "))) ->  | E51: =IF(D51="**","",SUMIFS(SummaryData!$E:$E,SummaryData!$A:$A,$B$49,SummaryData!$B:$B,$B51,SummaryData!$C:$C,$C$14)) -> 39.73868 | F51: =IF(D51="**","",SUMIFS(SummaryData!$F:$F,SummaryData!$A:$A,$B$49,SummaryData!$B:$B,$B51,SummaryData!$C:$C,$C$14)) -> 54.19716 | H51: =IF(I51="**","",SUMIFS(SummaryData!$D:$D,SummaryData!$A:$A,$B$49,SummaryData!$B:$B,$B51,SummaryData!$C:$C,$H$14)) -> 46.36458 | I51: =IF(SUMIFS(SummaryData!$N:$N,SummaryData!$A:$A,$B$49,SummaryData!$B:$B,$B51,SummaryData!$C:$C,$H$14)>50,"**",(IF(SUMIFS(SummaryData!$N:$N,SummaryData!$A:$A,$B$49,SummaryData!$B:$B,$B51,SummaryData!$C:$C,$H$14)>25,IF(SUMIFS(SummaryData!$N:$N,SummaryData!$A:$A,$B$49,SummaryData!$B:$B,$B51,SummaryData!$C:$C,$H$14),"*"," ")," "))) ->  | J51: =IF(I51="**","",SUMIFS(SummaryData!$E:$E,SummaryData!$A:$A,$B$49,SummaryData!$B:$B,$B51,SummaryData!$C:$C,$H$14)) -> 43.87643 | K51: =IF(I51="**","",SUMIFS(SummaryData!$F:$F,SummaryData!$A:$A,$B$49,SummaryData!$B:$B,$B51,SummaryData!$C:$C,$H$14)) -> 48.87096 | M51: =IF(N51="**","",SUMIFS(SummaryData!$D:$D,SummaryData!$A:$A,$B$49,SummaryData!$B:$B,$B51,SummaryData!$C:$C,$M$14)) -> 49.42326 | N51: =IF(SUMIFS(SummaryData!$N:$N,SummaryData!$A:$A,$B$49,SummaryData!$B:$B,$B51,SummaryData!$C:$C,$M$14)>50,"**",(IF(SUMIFS(SummaryData!$N:$N,SummaryData!$A:$A,$B$49,SummaryData!$B:$B,$B51,SummaryData!$C:$C,$M$14)>25,IF(SUMIFS(SummaryData!$N:$N,SummaryData!$A:$A,$B$49,SummaryData!$B:$B,$B51,SummaryData!$C:$C,$M$14),"*"," ")," "))) ->  | O51: =IF(N51="**","",SUMIFS(SummaryData!$E:$E,SummaryData!$A:$A,$B$49,SummaryData!$B:$B,$B51,SummaryData!$C:$C,$M$14)) -> 47.49668 | P51: =IF(N51="**","",SUMIFS(SummaryData!$F:$F,SummaryData!$A:$A,$B$49,SummaryData!$B:$B,$B51,SummaryData!$C:$C,$M$14)) -> 51.35156 | R51: =IF(SUMIFS(SummaryData!$D:$D,SummaryData!$A:$A,$B$49,SummaryData!$B:$B,$B51,SummaryData!$C:$C,$R$14)=0,"NA",SUMIFS(SummaryData!$D:$D,SummaryData!$A:$A,$B$49,SummaryData!$B:$B,$B51,SummaryData!$C:$C,$R$14)) -> 47.71268 | T51: =IF(SUMIFS(SummaryData!$E:$E,SummaryData!$A:$A,$B$49,SummaryData!$B:$B,$B51,SummaryData!$C:$C,$R$14)=0,"NA",SUMIFS(SummaryData!$E:$E,SummaryData!$A:$A,$B$49,SummaryData!$B:$B,$B51,SummaryData!$C:$C,$R$14)) -> 46.68885 | U51: =IF(SUMIFS(SummaryData!$F:$F,SummaryData!$A:$A,$B$49,SummaryData!$B:$B,$B51,SummaryData!$C:$C,$R$14)=0,"NA",SUMIFS(SummaryData!$F:$F,SummaryData!$A:$A,$B$49,SummaryData!$B:$B,$B51,SummaryData!$C:$C,$R$14)) -> 48.73843
B52: Never, or not often | C52: =IF(D52="**","",SUMIFS(SummaryData!$D:$D,SummaryData!$A:$A,$B$49,SummaryData!$B:$B,$B52,SummaryData!$C:$C,$C$14)) -> 10.68717 | D52: =IF(SUMIFS(SummaryData!$N:$N,SummaryData!$A:$A,$B$49,SummaryData!$B:$B,$B52,SummaryData!$C:$C,$C$14)>50,"**",(IF(SUMIFS(SummaryData!$N:$N,SummaryData!$A:$A,$B$49,SummaryData!$B:$B,$B52,SummaryData!$C:$C,$C$14)>25,IF(SUMIFS(SummaryData!$N:$N,SummaryData!$A:$A,$B$49,SummaryData!$B:$B,$B52,SummaryData!$C:$C,$C$14),"*"," ")," "))) ->  | E52: =IF(D52="**","",SUMIFS(SummaryData!$E:$E,SummaryData!$A:$A,$B$49,SummaryData!$B:$B,$B52,SummaryData!$C:$C,$C$14)) -> 6.554052 | F52: =IF(D52="**","",SUMIFS(SummaryData!$F:$F,SummaryData!$A:$A,$B$49,SummaryData!$B:$B,$B52,SummaryData!$C:$C,$C$14)) -> 16.95385 | H52: =IF(I52="**","",SUMIFS(SummaryData!$D:$D,SummaryData!$A:$A,$B$49,SummaryData!$B:$B,$B52,SummaryData!$C:$C,$H$14)) -> 10.93274 | I52: =IF(SUMIFS(SummaryData!$N:$N,SummaryData!$A:$A,$B$49,SummaryData!$B:$B,$B52,SummaryData!$C:$C,$H$14)>50,"**",(IF(SUMIFS(SummaryData!$N:$N,SummaryData!$A:$A,$B$49,SummaryData!$B:$B,$B52,SummaryData!$C:$C,$H$14)>25,IF(SUMIFS(SummaryData!$N:$N,SummaryData!$A:$A,$B$49,SummaryData!$B:$B,$B52,SummaryData!$C:$C,$H$14),"*"," ")," "))) ->  | J52: =IF(I52="**","",SUMIFS(SummaryData!$E:$E,SummaryData!$A:$A,$B$49,SummaryData!$B:$B,$B52,SummaryData!$C:$C,$H$14)) -> 9.430801 | K52: =IF(I52="**","",SUMIFS(SummaryData!$F:$F,SummaryData!$A:$A,$B$49,SummaryData!$B:$B,$B52,SummaryData!$C:$C,$H$14)) -> 12.6405 | M52: =IF(N52="**","",SUMIFS(SummaryData!$D:$D,SummaryData!$A:$A,$B$49,SummaryData!$B:$B,$B52,SummaryData!$C:$C,$M$14)) -> 12.92735 | N52: =IF(SUMIFS(SummaryData!$N:$N,SummaryData!$A:$A,$B$49,SummaryData!$B:$B,$B52,SummaryData!$C:$C,$M$14)>50,"**",(IF(SUMIFS(SummaryData!$N:$N,SummaryData!$A:$A,$B$49,SummaryData!$B:$B,$B52,SummaryData!$C:$C,$M$14)>25,IF(SUMIFS(SummaryData!$N:$N,SummaryData!$A:$A,$B$49,SummaryData!$B:$B,$B52,SummaryData!$C:$C,$M$14),"*"," ")," "))) ->  | O52: =IF(N52="**","",SUMIFS(SummaryData!$E:$E,SummaryData!$A:$A,$B$49,SummaryData!$B:$B,$B52,SummaryData!$C:$C,$M$14)) -> 11.64507 | P52: =IF(N52="**","",SUMIFS(SummaryData!$F:$F,SummaryData!$A:$A,$B$49,SummaryData!$B:$B,$B52,SummaryData!$C:$C,$M$14)) -> 14.32794 | R52: =IF(SUMIFS(SummaryData!$D:$D,SummaryData!$A:$A,$B$49,SummaryData!$B:$B,$B52,SummaryData!$C:$C,$R$14)=0,"NA",SUMIFS(SummaryData!$D:$D,SummaryData!$A:$A,$B$49,SummaryData!$B:$B,$B52,SummaryData!$C:$C,$R$14)) -> 14.22342 | T52: =IF(SUMIFS(SummaryData!$E:$E,SummaryData!$A:$A,$B$49,SummaryData!$B:$B,$B52,SummaryData!$C:$C,$R$14)=0,"NA",SUMIFS(SummaryData!$E:$E,SummaryData!$A:$A,$B$49,SummaryData!$B:$B,$B52,SummaryData!$C:$C,$R$14)) -> 13.47632 | U52: =IF(SUMIFS(SummaryData!$F:$F,SummaryData!$A:$A,$B$49,SummaryData!$B:$B,$B52,SummaryData!$C:$C,$R$14)=0,"NA",SUMIFS(SummaryData!$F:$F,SummaryData!$A:$A,$B$49,SummaryData!$B:$B,$B52,SummaryData!$C:$C,$R$14)) -> 15.00476
B53: SOCIAL CAPITAL - Tolerance of diversity - Multiculturalism makes life in your area better
B54: Yes, definitely | C54: =IF(D54="**","",SUMIFS(SummaryData!$D:$D,SummaryData!$A:$A,$B$53,SummaryData!$B:$B,$B54,SummaryData!$C:$C,$C$14)) -> 71.12094 | D54: =IF(SUMIFS(SummaryData!$N:$N,SummaryData!$A:$A,$B$53,SummaryData!$B:$B,$B54,SummaryData!$C:$C,$C$14)>=50,"**",(IF(SUMIFS(SummaryData!$N:$N,SummaryData!$A:$A,$B$53,SummaryData!$B:$B,$B54,SummaryData!$C:$C,$C$14)>25,IF(SUMIFS(SummaryData!$N:$N,SummaryData!$A:$A,$B$53,SummaryData!$B:$B,$B54,SummaryData!$C:$C,$C$14),"*"," ")," "))) ->  | E54: =IF(D54="**","",SUMIFS(SummaryData!$E:$E,SummaryData!$A:$A,$B$53,SummaryData!$B:$B,$B54,SummaryData!$C:$C,$C$14)) -> 64.47507 | F54: =IF(D54="**","",SUMIFS(SummaryData!$F:$F,SummaryData!$A:$A,$B$53,SummaryData!$B:$B,$B54,SummaryData!$C:$C,$C$14)) -> 76.96766 | H54: =IF(I54="**","",SUMIFS(SummaryData!$D:$D,SummaryData!$A:$A,$B$53,SummaryData!$B:$B,$B54,SummaryData!$C:$C,$H$14)) -> 70.61294 | I54: =IF(SUMIFS(SummaryData!$N:$N,SummaryData!$A:$A,$B$53,SummaryData!$B:$B,$B54,SummaryData!$C:$C,$H$14)>=50,"**",(IF(SUMIFS(SummaryData!$N:$N,SummaryData!$A:$A,$B$53,SummaryData!$B:$B,$B54,SummaryData!$C:$C,$H$14)>25,IF(SUMIFS(SummaryData!$N:$N,SummaryData!$A:$A,$B$53,SummaryData!$B:$B,$B54,SummaryData!$C:$C,$H$14),"*"," ")," "))) ->  | J54: =IF(I54="**","",SUMIFS(SummaryData!$E:$E,SummaryData!$A:$A,$B$53,SummaryData!$B:$B,$B54,SummaryData!$C:$C,$H$14)) -> 68.37218 | K54: =IF(I54="**","",SUMIFS(SummaryData!$F:$F,SummaryData!$A:$A,$B$53,SummaryData!$B:$B,$B54,SummaryData!$C:$C,$H$14)) -> 72.75821 | M54: =IF(N54="**","",SUMIFS(SummaryData!$D:$D,SummaryData!$A:$A,$B$53,SummaryData!$B:$B,$B54,SummaryData!$C:$C,$M$14)) -> 63.82163 | N54: =IF(SUMIFS(SummaryData!$N:$N,SummaryData!$A:$A,$B$53,SummaryData!$B:$B,$B54,SummaryData!$C:$C,$M$14)>=50,"**",(IF(SUMIFS(SummaryData!$N:$N,SummaryData!$A:$A,$B$53,SummaryData!$B:$B,$B54,SummaryData!$C:$C,$M$14)>25,IF(SUMIFS(SummaryData!$N:$N,SummaryData!$A:$A,$B$53,SummaryData!$B:$B,$B54,SummaryData!$C:$C,$M$14),"*"," ")," "))) ->  | O54: =IF(N54="**","",SUMIFS(SummaryData!$E:$E,SummaryData!$A:$A,$B$53,SummaryData!$B:$B,$B54,SummaryData!$C:$C,$M$14)) -> 62.00294 | P54: =IF(N54="**","",SUMIFS(SummaryData!$F:$F,SummaryData!$A:$A,$B$53,SummaryData!$B:$B,$B54,SummaryData!$C:$C,$M$14)) -> 65.60157 | R54: =IF(SUMIFS(SummaryData!$D:$D,SummaryData!$A:$A,$B$53,SummaryData!$B:$B,$B54,SummaryData!$C:$C,$R$14)=0,"NA",SUMIFS(SummaryData!$D:$D,SummaryData!$A:$A,$B$53,SummaryData!$B:$B,$B54,SummaryData!$C:$C,$R$14)) -> 63.45813 | T54: =IF(SUMIFS(SummaryData!$E:$E,SummaryData!$A:$A,$B$53,SummaryData!$B:$B,$B54,SummaryData!$C:$C,$R$14)=0,"NA",SUMIFS(SummaryData!$E:$E,SummaryData!$A:$A,$B$53,SummaryData!$B:$B,$B54,SummaryData!$C:$C,$R$14)) -> 62.49121 | U54: =IF(SUMIFS(SummaryData!$F:$F,SummaryData!$A:$A,$B$53,SummaryData!$B:$B,$B54,SummaryData!$C:$C,$R$14)=0,"NA",SUMIFS(SummaryData!$F:$F,SummaryData!$A:$A,$B$53,SummaryData!$B:$B,$B54,SummaryData!$C:$C,$R$14)) -> 64.41432
B55: Sometimes | C55: =IF(D55="**","",SUMIFS(SummaryData!$D:$D,SummaryData!$A:$A,$B$53,SummaryData!$B:$B,$B55,SummaryData!$C:$C,$C$14)) -> 20.30001 | D55: =IF(SUMIFS(SummaryData!$N:$N,SummaryData!$A:$A,$B$53,SummaryData!$B:$B,$B55,SummaryData!$C:$C,$C$14)>=50,"**",(IF(SUMIFS(SummaryData!$N:$N,SummaryData!$A:$A,$B$53,SummaryData!$B:$B,$B55,SummaryData!$C:$C,$C$14)>25,IF(SUMIFS(SummaryData!$N:$N,SummaryData!$A:$A,$B$53,SummaryData!$B:$B,$B55,SummaryData!$C:$C,$C$14),"*"," ")," "))) ->  | E55: =IF(D55="**","",SUMIFS(SummaryData!$E:$E,SummaryData!$A:$A,$B$53,SummaryData!$B:$B,$B55,SummaryData!$C:$C,$C$14)) -> 15.03736 | F55: =IF(D55="**","",SUMIFS(SummaryData!$F:$F,SummaryData!$A:$A,$B$53,SummaryData!$B:$B,$B55,SummaryData!$C:$C,$C$14)) -> 26.82296 | H55: =IF(I55="**","",SUMIFS(SummaryData!$D:$D,SummaryData!$A:$A,$B$53,SummaryData!$B:$B,$B55,SummaryData!$C:$C,$H$14)) -> 18.7896 | I55: =IF(SUMIFS(SummaryData!$N:$N,SummaryData!$A:$A,$B$53,SummaryData!$B:$B,$B55,SummaryData!$C:$C,$H$14)>=50,"**",(IF(SUMIFS(SummaryData!$N:$N,SummaryData!$A:$A,$B$53,SummaryData!$B:$B,$B55,SummaryData!$C:$C,$H$14)>25,IF(SUMIFS(SummaryData!$N:$N,SummaryData!$A:$A,$B$53,SummaryData!$B:$B,$B55,SummaryData!$C:$C,$H$14),"*"," ")," "))) ->  | J55: =IF(I55="**","",SUMIFS(SummaryData!$E:$E,SummaryData!$A:$A,$B$53,SummaryData!$B:$B,$B55,SummaryData!$C:$C,$H$14)) -> 16.9312 | K55: =IF(I55="**","",SUMIFS(SummaryData!$F:$F,SummaryData!$A:$A,$B$53,SummaryData!$B:$B,$B55,SummaryData!$C:$C,$H$14)) -> 20.80091 | M55: =IF(N55="**","",SUMIFS(SummaryData!$D:$D,SummaryData!$A:$A,$B$53,SummaryData!$B:$B,$B55,SummaryData!$C:$C,$M$14)) -> 23.07361 | N55: =IF(SUMIFS(SummaryData!$N:$N,SummaryData!$A:$A,$B$53,SummaryData!$B:$B,$B55,SummaryData!$C:$C,$M$14)>=50,"**",(IF(SUMIFS(SummaryData!$N:$N,SummaryData!$A:$A,$B$53,SummaryData!$B:$B,$B55,SummaryData!$C:$C,$M$14)>25,IF(SUMIFS(SummaryData!$N:$N,SummaryData!$A:$A,$B$53,SummaryData!$B:$B,$B55,SummaryData!$C:$C,$M$14),"*"," ")," "))) ->  | O55: =IF(N55="**","",SUMIFS(SummaryData!$E:$E,SummaryData!$A:$A,$B$53,SummaryData!$B:$B,$B55,SummaryData!$C:$C,$M$14)) -> 21.48603 | P55: =IF(N55="**","",SUMIFS(SummaryData!$F:$F,SummaryData!$A:$A,$B$53,SummaryData!$B:$B,$B55,SummaryData!$C:$C,$M$14)) -> 24.74152 | R55: =IF(SUMIFS(SummaryData!$D:$D,SummaryData!$A:$A,$B$53,SummaryData!$B:$B,$B55,SummaryData!$C:$C,$R$14)=0,"NA",SUMIFS(SummaryData!$D:$D,SummaryData!$A:$A,$B$53,SummaryData!$B:$B,$B55,SummaryData!$C:$C,$R$14)) -> 23.53253 | T55: =IF(SUMIFS(SummaryData!$E:$E,SummaryData!$A:$A,$B$53,SummaryData!$B:$B,$B55,SummaryData!$C:$C,$R$14)=0,"NA",SUMIFS(SummaryData!$E:$E,SummaryData!$A:$A,$B$53,SummaryData!$B:$B,$B55,SummaryData!$C:$C,$R$14)) -> 22.67021 | U55: =IF(SUMIFS(SummaryData!$F:$F,SummaryData!$A:$A,$B$53,SummaryData!$B:$B,$B55,SummaryData!$C:$C,$R$14)=0,"NA",SUMIFS(SummaryData!$F:$F,SummaryData!$A:$A,$B$53,SummaryData!$B:$B,$B55,SummaryData!$C:$C,$R$14)) -> 24.41729
B56: Never, or not often | C56: =IF(D56="**","",SUMIFS(SummaryData!$D:$D,SummaryData!$A:$A,$B$53,SummaryData!$B:$B,$B56,SummaryData!$C:$C,$C$14)) -> 3.533593 | D56: =IF(SUMIFS(SummaryData!$N:$N,SummaryData!$A:$A,$B$53,SummaryData!$B:$B,$B56,SummaryData!$C:$C,$C$14)>=50,"**",(IF(SUMIFS(SummaryData!$N:$N,SummaryData!$A:$A,$B$53,SummaryData!$B:$B,$B56,SummaryData!$C:$C,$C$14)>25,IF(SUMIFS(SummaryData!$N:$N,SummaryData!$A:$A,$B$53,SummaryData!$B:$B,$B56,SummaryData!$C:$C,$C$14),"*"," ")," "))) -> * | E56: =IF(D56="**","",SUMIFS(SummaryData!$E:$E,SummaryData!$A:$A,$B$53,SummaryData!$B:$B,$B56,SummaryData!$C:$C,$C$14)) -> 1.92189 | F56: =IF(D56="**","",SUMIFS(SummaryData!$F:$F,SummaryData!$A:$A,$B$53,SummaryData!$B:$B,$B56,SummaryData!$C:$C,$C$14)) -> 6.408559 | H56: =IF(I56="**","",SUMIFS(SummaryData!$D:$D,SummaryData!$A:$A,$B$53,SummaryData!$B:$B,$B56,SummaryData!$C:$C,$H$14)) -> 5.581313 | I56: =IF(SUMIFS(SummaryData!$N:$N,SummaryData!$A:$A,$B$53,SummaryData!$B:$B,$B56,SummaryData!$C:$C,$H$14)>=50,"**",(IF(SUMIFS(SummaryData!$N:$N,SummaryData!$A:$A,$B$53,SummaryData!$B:$B,$B56,SummaryData!$C:$C,$H$14)>25,IF(SUMIFS(SummaryData!$N:$N,SummaryData!$A:$A,$B$53,SummaryData!$B:$B,$B56,SummaryData!$C:$C,$H$14),"*"," ")," "))) ->  | J56: =IF(I56="**","",SUMIFS(SummaryData!$E:$E,SummaryData!$A:$A,$B$53,SummaryData!$B:$B,$B56,SummaryData!$C:$C,$H$14)) -> 4.54118 | K56: =IF(I56="**","",SUMIFS(SummaryData!$F:$F,SummaryData!$A:$A,$B$53,SummaryData!$B:$B,$B56,SummaryData!$C:$C,$H$14)) -> 6.842606 | M56: =IF(N56="**","",SUMIFS(SummaryData!$D:$D,SummaryData!$A:$A,$B$53,SummaryData!$B:$B,$B56,SummaryData!$C:$C,$M$14)) -> 7.015515 | N56: =IF(SUMIFS(SummaryData!$N:$N,SummaryData!$A:$A,$B$53,SummaryData!$B:$B,$B56,SummaryData!$C:$C,$M$14)>=50,"**",(IF(SUMIFS(SummaryData!$N:$N,SummaryData!$A:$A,$B$53,SummaryData!$B:$B,$B56,SummaryData!$C:$C,$M$14)>25,IF(SUMIFS(SummaryData!$N:$N,SummaryData!$A:$A,$B$53,SummaryData!$B:$B,$B56,SummaryData!$C:$C,$M$14),"*"," ")," "))) ->  | O56: =IF(N56="**","",SUMIFS(SummaryData!$E:$E,SummaryData!$A:$A,$B$53,SummaryData!$B:$B,$B56,SummaryData!$C:$C,$M$14)) -> 6.114153 | P56: =IF(N56="**","",SUMIFS(SummaryData!$F:$F,SummaryData!$A:$A,$B$53,SummaryData!$B:$B,$B56,SummaryData!$C:$C,$M$14)) -> 8.03838 | R56: =IF(SUMIFS(SummaryData!$D:$D,SummaryData!$A:$A,$B$53,SummaryData!$B:$B,$B56,SummaryData!$C:$C,$R$14)=0,"NA",SUMIFS(SummaryData!$D:$D,SummaryData!$A:$A,$B$53,SummaryData!$B:$B,$B56,SummaryData!$C:$C,$R$14)) -> 6.735372 | T56: =IF(SUMIFS(SummaryData!$E:$E,SummaryData!$A:$A,$B$53,SummaryData!$B:$B,$B56,SummaryData!$C:$C,$R$14)=0,"NA",SUMIFS(SummaryData!$E:$E,SummaryData!$A:$A,$B$53,SummaryData!$B:$B,$B56,SummaryData!$C:$C,$R$14)) -> 6.23692 | U56: =IF(SUMIFS(SummaryData!$F:$F,SummaryData!$A:$A,$B$53,SummaryData!$B:$B,$B56,SummaryData!$C:$C,$R$14)=0,"NA",SUMIFS(SummaryData!$F:$F,SummaryData!$A:$A,$B$53,SummaryData!$B:$B,$B56,SummaryData!$C:$C,$R$14)) -> 7.270571
B57: Not applicable | C57: =IF(D57="**","",SUMIFS(SummaryData!$D:$D,SummaryData!$A:$A,$B$53,SummaryData!$B:$B,$B57,SummaryData!$C:$C,$C$14)) -> 3.672855 | D57: =IF(SUMIFS(SummaryData!$N:$N,SummaryData!$A:$A,$B$53,SummaryData!$B:$B,$B57,SummaryData!$C:$C,$C$14)>=50,"**",(IF(SUMIFS(SummaryData!$N:$N,SummaryData!$A:$A,$B$53,SummaryData!$B:$B,$B57,SummaryData!$C:$C,$C$14)>25,IF(SUMIFS(SummaryData!$N:$N,SummaryData!$A:$A,$B$53,SummaryData!$B:$B,$B57,SummaryData!$C:$C,$C$14),"*"," ")," "))) -> * | E57: =IF(D57="**","",SUMIFS(SummaryData!$E:$E,SummaryData!$A:$A,$B$53,SummaryData!$B:$B,$B57,SummaryData!$C:$C,$C$14)) -> 2.193681 | F57: =IF(D57="**","",SUMIFS(SummaryData!$F:$F,SummaryData!$A:$A,$B$53,SummaryData!$B:$B,$B57,SummaryData!$C:$C,$C$14)) -> 6.087343 | H57: =IF(I57="**","",SUMIFS(SummaryData!$D:$D,SummaryData!$A:$A,$B$53,SummaryData!$B:$B,$B57,SummaryData!$C:$C,$H$14)) -> 2.663072 | I57: =IF(SUMIFS(SummaryData!$N:$N,SummaryData!$A:$A,$B$53,SummaryData!$B:$B,$B57,SummaryData!$C:$C,$H$14)>=50,"**",(IF(SUMIFS(SummaryData!$N:$N,SummaryData!$A:$A,$B$53,SummaryData!$B:$B,$B57,SummaryData!$C:$C,$H$14)>25,IF(SUMIFS(SummaryData!$N:$N,SummaryData!$A:$A,$B$53,SummaryData!$B:$B,$B57,SummaryData!$C:$C,$H$14),"*"," ")," "))) ->  | J57: =IF(I57="**","",SUMIFS(SummaryData!$E:$E,SummaryData!$A:$A,$B$53,SummaryData!$B:$B,$B57,SummaryData!$C:$C,$H$14)) -> 2.020977 | K57: =IF(I57="**","",SUMIFS(SummaryData!$F:$F,SummaryData!$A:$A,$B$53,SummaryData!$B:$B,$B57,SummaryData!$C:$C,$H$14)) -> 3.501879 | M57: =IF(N57="**","",SUMIFS(SummaryData!$D:$D,SummaryData!$A:$A,$B$53,SummaryData!$B:$B,$B57,SummaryData!$C:$C,$M$14)) -> 3.003285 | N57: =IF(SUMIFS(SummaryData!$N:$N,SummaryData!$A:$A,$B$53,SummaryData!$B:$B,$B57,SummaryData!$C:$C,$M$14)>=50,"**",(IF(SUMIFS(SummaryData!$N:$N,SummaryData!$A:$A,$B$53,SummaryData!$B:$B,$B57,SummaryData!$C:$C,$M$14)>25,IF(SUMIFS(SummaryData!$N:$N,SummaryData!$A:$A,$B$53,SummaryData!$B:$B,$B57,SummaryData!$C:$C,$M$14),"*"," ")," "))) ->  | O57: =IF(N57="**","",SUMIFS(SummaryData!$E:$E,SummaryData!$A:$A,$B$53,SummaryData!$B:$B,$B57,SummaryData!$C:$C,$M$14)) -> 2.508286 | P57: =IF(N57="**","",SUMIFS(SummaryData!$F:$F,SummaryData!$A:$A,$B$53,SummaryData!$B:$B,$B57,SummaryData!$C:$C,$M$14)) -> 3.59237 | R57: =IF(SUMIFS(SummaryData!$D:$D,SummaryData!$A:$A,$B$53,SummaryData!$B:$B,$B57,SummaryData!$C:$C,$R$14)=0,"NA",SUMIFS(SummaryData!$D:$D,SummaryData!$A:$A,$B$53,SummaryData!$B:$B,$B57,SummaryData!$C:$C,$R$14)) -> 2.735406 | T57: =IF(SUMIFS(SummaryData!$E:$E,SummaryData!$A:$A,$B$53,SummaryData!$B:$B,$B57,SummaryData!$C:$C,$R$14)=0,"NA",SUMIFS(SummaryData!$E:$E,SummaryData!$A:$A,$B$53,SummaryData!$B:$B,$B57,SummaryData!$C:$C,$R$14)) -> 2.479673 | U57: =IF(SUMIFS(SummaryData!$F:$F,SummaryData!$A:$A,$B$53,SummaryData!$B:$B,$B57,SummaryData!$C:$C,$R$14)=0,"NA",SUMIFS(SummaryData!$F:$F,SummaryData!$A:$A,$B$53,SummaryData!$B:$B,$B57,SummaryData!$C:$C,$R$14)) -> 3.016698
B58: SOCIAL CAPITAL - Feelings of being valued by society
B59: Yes, definitely | C59: =IF(D59="**","",SUMIFS(SummaryData!$D:$D,SummaryData!$A:$A,$B$58,SummaryData!$B:$B,$B59,SummaryData!$C:$C,$C$14)) -> 58.89534 | D59: =IF(SUMIFS(SummaryData!$N:$N,SummaryData!$A:$A,$B$58,SummaryData!$B:$B,$B59,SummaryData!$C:$C,$C$14)>=50,"**",(IF(SUMIFS(SummaryData!$N:$N,SummaryData!$A:$A,$B$58,SummaryData!$B:$B,$B59,SummaryData!$C:$C,$C$14)>25,IF(SUMIFS(SummaryData!$N:$N,SummaryData!$A:$A,$B$58,SummaryData!$B:$B,$B59,SummaryData!$C:$C,$C$14),"*"," ")," "))) ->  | E59: =IF(D59="**","",SUMIFS(SummaryData!$E:$E,SummaryData!$A:$A,$B$58,SummaryData!$B:$B,$B59,SummaryData!$C:$C,$C$14)) -> 51.66561 | F59: =IF(D59="**","",SUMIFS(SummaryData!$F:$F,SummaryData!$A:$A,$B$58,SummaryData!$B:$B,$B59,SummaryData!$C:$C,$C$14)) -> 65.76034 | H59: =IF(I59="**","",SUMIFS(SummaryData!$D:$D,SummaryData!$A:$A,$B$58,SummaryData!$B:$B,$B59,SummaryData!$C:$C,$H$14)) -> 55.5596 | I59: =IF(SUMIFS(SummaryData!$N:$N,SummaryData!$A:$A,$B$58,SummaryData!$B:$B,$B59,SummaryData!$C:$C,$H$14)>=50,"**",(IF(SUMIFS(SummaryData!$N:$N,SummaryData!$A:$A,$B$58,SummaryData!$B:$B,$B59,SummaryData!$C:$C,$H$14)>25,IF(SUMIFS(SummaryData!$N:$N,SummaryData!$A:$A,$B$58,SummaryData!$B:$B,$B59,SummaryData!$C:$C,$H$14),"*"," ")," "))) ->  | J59: =IF(I59="**","",SUMIFS(SummaryData!$E:$E,SummaryData!$A:$A,$B$58,SummaryData!$B:$B,$B59,SummaryData!$C:$C,$H$14)) -> 53.04582 | K59: =IF(I59="**","",SUMIFS(SummaryData!$F:$F,SummaryData!$A:$A,$B$58,SummaryData!$B:$B,$B59,SummaryData!$C:$C,$H$14)) -> 58.04524 | M59: =IF(N59="**","",SUMIFS(SummaryData!$D:$D,SummaryData!$A:$A,$B$58,SummaryData!$B:$B,$B59,SummaryData!$C:$C,$M$14)) -> 52.64341 | N59: =IF(SUMIFS(SummaryData!$N:$N,SummaryData!$A:$A,$B$58,SummaryData!$B:$B,$B59,SummaryData!$C:$C,$M$14)>=50,"**",(IF(SUMIFS(SummaryData!$N:$N,SummaryData!$A:$A,$B$58,SummaryData!$B:$B,$B59,SummaryData!$C:$C,$M$14)>25,IF(SUMIFS(SummaryData!$N:$N,SummaryData!$A:$A,$B$58,SummaryData!$B:$B,$B59,SummaryData!$C:$C,$M$14),"*"," ")," "))) ->  | O59: =IF(N59="**","",SUMIFS(SummaryData!$E:$E,SummaryData!$A:$A,$B$58,SummaryData!$B:$B,$B59,SummaryData!$C:$C,$M$14)) -> 50.70063 | P59: =IF(N59="**","",SUMIFS(SummaryData!$F:$F,SummaryData!$A:$A,$B$58,SummaryData!$B:$B,$B59,SummaryData!$C:$C,$M$14)) -> 54.57821 | R59: =IF(SUMIFS(SummaryData!$D:$D,SummaryData!$A:$A,$B$58,SummaryData!$B:$B,$B59,SummaryData!$C:$C,$R$14)=0,"NA",SUMIFS(SummaryData!$D:$D,SummaryData!$A:$A,$B$58,SummaryData!$B:$B,$B59,SummaryData!$C:$C,$R$14)) -> 51.64791 | T59: =IF(SUMIFS(SummaryData!$E:$E,SummaryData!$A:$A,$B$58,SummaryData!$B:$B,$B59,SummaryData!$C:$C,$R$14)=0,"NA",SUMIFS(SummaryData!$E:$E,SummaryData!$A:$A,$B$58,SummaryData!$B:$B,$B59,SummaryData!$C:$C,$R$14)) -> 50.61848 | U59: =IF(SUMIFS(SummaryData!$F:$F,SummaryData!$A:$A,$B$58,SummaryData!$B:$B,$B59,SummaryData!$C:$C,$R$14)=0,"NA",SUMIFS(SummaryData!$F:$F,SummaryData!$A:$A,$B$58,SummaryData!$B:$B,$B59,SummaryData!$C:$C,$R$14)) -> 52.67595
B60: Sometimes | C60: =IF(D60="**","",SUMIFS(SummaryData!$D:$D,SummaryData!$A:$A,$B$58,SummaryData!$B:$B,$B60,SummaryData!$C:$C,$C$14)) -> 31.04909 | D60: =IF(SUMIFS(SummaryData!$N:$N,SummaryData!$A:$A,$B$58,SummaryData!$B:$B,$B60,SummaryData!$C:$C,$C$14)>=50,"**",(IF(SUMIFS(SummaryData!$N:$N,SummaryData!$A:$A,$B$58,SummaryData!$B:$B,$B60,SummaryData!$C:$C,$C$14)>25,IF(SUMIFS(SummaryData!$N:$N,SummaryData!$A:$A,$B$58,SummaryData!$B:$B,$B60,SummaryData!$C:$C,$C$14),"*"," ")," "))) ->  | E60: =IF(D60="**","",SUMIFS(SummaryData!$E:$E,SummaryData!$A:$A,$B$58,SummaryData!$B:$B,$B60,SummaryData!$C:$C,$C$14)) -> 24.7818 | F60: =IF(D60="**","",SUMIFS(SummaryData!$F:$F,SummaryData!$A:$A,$B$58,SummaryData!$B:$B,$B60,SummaryData!$C:$C,$C$14)) -> 38.09855 | H60: =IF(I60="**","",SUMIFS(SummaryData!$D:$D,SummaryData!$A:$A,$B$58,SummaryData!$B:$B,$B60,SummaryData!$C:$C,$H$14)) -> 32.58431 | I60: =IF(SUMIFS(SummaryData!$N:$N,SummaryData!$A:$A,$B$58,SummaryData!$B:$B,$B60,SummaryData!$C:$C,$H$14)>=50,"**",(IF(SUMIFS(SummaryData!$N:$N,SummaryData!$A:$A,$B$58,SummaryData!$B:$B,$B60,SummaryData!$C:$C,$H$14)>25,IF(SUMIFS(SummaryData!$N:$N,SummaryData!$A:$A,$B$58,SummaryData!$B:$B,$B60,SummaryData!$C:$C,$H$14),"*"," ")," "))) ->  | J60: =IF(I60="**","",SUMIFS(SummaryData!$E:$E,SummaryData!$A:$A,$B$58,SummaryData!$B:$B,$B60,SummaryData!$C:$C,$H$14)) -> 30.24774 | K60: =IF(I60="**","",SUMIFS(SummaryData!$F:$F,SummaryData!$A:$A,$B$58,SummaryData!$B:$B,$B60,SummaryData!$C:$C,$H$14)) -> 35.01078 | M60: =IF(N60="**","",SUMIFS(SummaryData!$D:$D,SummaryData!$A:$A,$B$58,SummaryData!$B:$B,$B60,SummaryData!$C:$C,$M$14)) -> 33.2929 | N60: =IF(SUMIFS(SummaryData!$N:$N,SummaryData!$A:$A,$B$58,SummaryData!$B:$B,$B60,SummaryData!$C:$C,$M$14)>=50,"**",(IF(SUMIFS(SummaryData!$N:$N,SummaryData!$A:$A,$B$58,SummaryData!$B:$B,$B60,SummaryData!$C:$C,$M$14)>25,IF(SUMIFS(SummaryData!$N:$N,SummaryData!$A:$A,$B$58,SummaryData!$B:$B,$B60,SummaryData!$C:$C,$M$14),"*"," ")," "))) ->  | O60: =IF(N60="**","",SUMIFS(SummaryData!$E:$E,SummaryData!$A:$A,$B$58,SummaryData!$B:$B,$B60,SummaryData!$C:$C,$M$14)) -> 31.46998 | P60: =IF(N60="**","",SUMIFS(SummaryData!$F:$F,SummaryData!$A:$A,$B$58,SummaryData!$B:$B,$B60,SummaryData!$C:$C,$M$14)) -> 35.16724 | R60: =IF(SUMIFS(SummaryData!$D:$D,SummaryData!$A:$A,$B$58,SummaryData!$B:$B,$B60,SummaryData!$C:$C,$R$14)=0,"NA",SUMIFS(SummaryData!$D:$D,SummaryData!$A:$A,$B$58,SummaryData!$B:$B,$B60,SummaryData!$C:$C,$R$14)) -> 34.20581 | T60: =IF(SUMIFS(SummaryData!$E:$E,SummaryData!$A:$A,$B$58,SummaryData!$B:$B,$B60,SummaryData!$C:$C,$R$14)=0,"NA",SUMIFS(SummaryData!$E:$E,SummaryData!$A:$A,$B$58,SummaryData!$B:$B,$B60,SummaryData!$C:$C,$R$14)) -> 33.23416 | U60: =IF(SUMIFS(SummaryData!$F:$F,SummaryData!$A:$A,$B$58,SummaryData!$B:$B,$B60,SummaryData!$C:$C,$R$14)=0,"NA",SUMIFS(SummaryData!$F:$F,SummaryData!$A:$A,$B$58,SummaryData!$B:$B,$B60,SummaryData!$C:$C,$R$14)) -> 35.19089
B61: Never, or not often | C61: =IF(D61="**","",SUMIFS(SummaryData!$D:$D,SummaryData!$A:$A,$B$58,SummaryData!$B:$B,$B61,SummaryData!$C:$C,$C$14)) -> 7.045246 | D61: =IF(SUMIFS(SummaryData!$N:$N,SummaryData!$A:$A,$B$58,SummaryData!$B:$B,$B61,SummaryData!$C:$C,$C$14)>=50,"**",(IF(SUMIFS(SummaryData!$N:$N,SummaryData!$A:$A,$B$58,SummaryData!$B:$B,$B61,SummaryData!$C:$C,$C$14)>25,IF(SUMIFS(SummaryData!$N:$N,SummaryData!$A:$A,$B$58,SummaryData!$B:$B,$B61,SummaryData!$C:$C,$C$14),"*"," ")," "))) -> * | E61: =IF(D61="**","",SUMIFS(SummaryData!$E:$E,SummaryData!$A:$A,$B$58,SummaryData!$B:$B,$B61,SummaryData!$C:$C,$C$14)) -> 3.829057 | F61: =IF(D61="**","",SUMIFS(SummaryData!$F:$F,SummaryData!$A:$A,$B$58,SummaryData!$B:$B,$B61,SummaryData!$C:$C,$C$14)) -> 12.60868 | H61: =IF(I61="**","",SUMIFS(SummaryData!$D:$D,SummaryData!$A:$A,$B$58,SummaryData!$B:$B,$B61,SummaryData!$C:$C,$H$14)) -> 9.564806 | I61: =IF(SUMIFS(SummaryData!$N:$N,SummaryData!$A:$A,$B$58,SummaryData!$B:$B,$B61,SummaryData!$C:$C,$H$14)>=50,"**",(IF(SUMIFS(SummaryData!$N:$N,SummaryData!$A:$A,$B$58,SummaryData!$B:$B,$B61,SummaryData!$C:$C,$H$14)>25,IF(SUMIFS(SummaryData!$N:$N,SummaryData!$A:$A,$B$58,SummaryData!$B:$B,$B61,SummaryData!$C:$C,$H$14),"*"," ")," "))) ->  | J61: =IF(I61="**","",SUMIFS(SummaryData!$E:$E,SummaryData!$A:$A,$B$58,SummaryData!$B:$B,$B61,SummaryData!$C:$C,$H$14)) -> 8.150594 | K61: =IF(I61="**","",SUMIFS(SummaryData!$F:$F,SummaryData!$A:$A,$B$58,SummaryData!$B:$B,$B61,SummaryData!$C:$C,$H$14)) -> 11.19449 | M61: =IF(N61="**","",SUMIFS(SummaryData!$D:$D,SummaryData!$A:$A,$B$58,SummaryData!$B:$B,$B61,SummaryData!$C:$C,$M$14)) -> 11.11155 | N61: =IF(SUMIFS(SummaryData!$N:$N,SummaryData!$A:$A,$B$58,SummaryData!$B:$B,$B61,SummaryData!$C:$C,$M$14)>=50,"**",(IF(SUMIFS(SummaryData!$N:$N,SummaryData!$A:$A,$B$58,SummaryData!$B:$B,$B61,SummaryData!$C:$C,$M$14)>25,IF(SUMIFS(SummaryData!$N:$N,SummaryData!$A:$A,$B$58,SummaryData!$B:$B,$B61,SummaryData!$C:$C,$M$14),"*"," ")," "))) ->  | O61: =IF(N61="**","",SUMIFS(SummaryData!$E:$E,SummaryData!$A:$A,$B$58,SummaryData!$B:$B,$B61,SummaryData!$C:$C,$M$14)) -> 9.931275 | P61: =IF(N61="**","",SUMIFS(SummaryData!$F:$F,SummaryData!$A:$A,$B$58,SummaryData!$B:$B,$B61,SummaryData!$C:$C,$M$14)) -> 12.41276 | R61: =IF(SUMIFS(SummaryData!$D:$D,SummaryData!$A:$A,$B$58,SummaryData!$B:$B,$B61,SummaryData!$C:$C,$R$14)=0,"NA",SUMIFS(SummaryData!$D:$D,SummaryData!$A:$A,$B$58,SummaryData!$B:$B,$B61,SummaryData!$C:$C,$R$14)) -> 10.9836 | T61: =IF(SUMIFS(SummaryData!$E:$E,SummaryData!$A:$A,$B$58,SummaryData!$B:$B,$B61,SummaryData!$C:$C,$R$14)=0,"NA",SUMIFS(SummaryData!$E:$E,SummaryData!$A:$A,$B$58,SummaryData!$B:$B,$B61,SummaryData!$C:$C,$R$14)) -> 10.33294 | U61: =IF(SUMIFS(SummaryData!$F:$F,SummaryData!$A:$A,$B$58,SummaryData!$B:$B,$B61,SummaryData!$C:$C,$R$14)=0,"NA",SUMIFS(SummaryData!$F:$F,SummaryData!$A:$A,$B$58,SummaryData!$B:$B,$B61,SummaryData!$C:$C,$R$14)) -> 11.66989
B62: SOCIAL CAPITAL - Neighbourhood tenure (years)
B63: < 1 | C63: =IF(D63="**","",SUMIFS(SummaryData!$D:$D,SummaryData!$A:$A,$B$62,SummaryData!$B:$B,$B63,SummaryData!$C:$C,$C$14)) -> 4.946274 | D63: =IF(SUMIFS(SummaryData!$N:$N,SummaryData!$A:$A,$B$62,SummaryData!$B:$B,$B63,SummaryData!$C:$C,$C$14)>=50,"**",(IF(SUMIFS(SummaryData!$N:$N,SummaryData!$A:$A,$B$62,SummaryData!$B:$B,$B63,SummaryData!$C:$C,$C$14)>25,IF(SUMIFS(SummaryData!$N:$N,SummaryData!$A:$A,$B$62,SummaryData!$B:$B,$B63,SummaryData!$C:$C,$C$14),"*"," ")," "))) -> * | E63: =IF(D63="**","",SUMIFS(SummaryData!$E:$E,SummaryData!$A:$A,$B$62,SummaryData!$B:$B,$B63,SummaryData!$C:$C,$C$14)) -> 2.489483 | F63: =IF(D63="**","",SUMIFS(SummaryData!$F:$F,SummaryData!$A:$A,$B$62,SummaryData!$B:$B,$B63,SummaryData!$C:$C,$C$14)) -> 9.589169 | H63: =IF(I63="**","",SUMIFS(SummaryData!$D:$D,SummaryData!$A:$A,$B$62,SummaryData!$B:$B,$B63,SummaryData!$C:$C,$H$14)) -> 13.25069 | I63: =IF(SUMIFS(SummaryData!$N:$N,SummaryData!$A:$A,$B$62,SummaryData!$B:$B,$B63,SummaryData!$C:$C,$H$14)>=50,"**",(IF(SUMIFS(SummaryData!$N:$N,SummaryData!$A:$A,$B$62,SummaryData!$B:$B,$B63,SummaryData!$C:$C,$H$14)>25,IF(SUMIFS(SummaryData!$N:$N,SummaryData!$A:$A,$B$62,SummaryData!$B:$B,$B63,SummaryData!$C:$C,$H$14),"*"," ")," "))) ->  | J63: =IF(I63="**","",SUMIFS(SummaryData!$E:$E,SummaryData!$A:$A,$B$62,SummaryData!$B:$B,$B63,SummaryData!$C:$C,$H$14)) -> 11.59954 | K63: =IF(I63="**","",SUMIFS(SummaryData!$F:$F,SummaryData!$A:$A,$B$62,SummaryData!$B:$B,$B63,SummaryData!$C:$C,$H$14)) -> 15.09674 | M63: =IF(N63="**","",SUMIFS(SummaryData!$D:$D,SummaryData!$A:$A,$B$62,SummaryData!$B:$B,$B63,SummaryData!$C:$C,$M$14)) -> 12.21158 | N63: =IF(SUMIFS(SummaryData!$N:$N,SummaryData!$A:$A,$B$62,SummaryData!$B:$B,$B63,SummaryData!$C:$C,$M$14)>=50,"**",(IF(SUMIFS(SummaryData!$N:$N,SummaryData!$A:$A,$B$62,SummaryData!$B:$B,$B63,SummaryData!$C:$C,$M$14)>25,IF(SUMIFS(SummaryData!$N:$N,SummaryData!$A:$A,$B$62,SummaryData!$B:$B,$B63,SummaryData!$C:$C,$M$14),"*"," ")," "))) ->  | O63: =IF(N63="**","",SUMIFS(SummaryData!$E:$E,SummaryData!$A:$A,$B$62,SummaryData!$B:$B,$B63,SummaryData!$C:$C,$M$14)) -> 10.98736 | P63: =IF(N63="**","",SUMIFS(SummaryData!$F:$F,SummaryData!$A:$A,$B$62,SummaryData!$B:$B,$B63,SummaryData!$C:$C,$M$14)) -> 13.55144 | R63: =IF(SUMIFS(SummaryData!$D:$D,SummaryData!$A:$A,$B$62,SummaryData!$B:$B,$B63,SummaryData!$C:$C,$R$14)=0,"NA",SUMIFS(SummaryData!$D:$D,SummaryData!$A:$A,$B$62,SummaryData!$B:$B,$B63,SummaryData!$C:$C,$R$14)) -> 13.27665 | T63: =IF(SUMIFS(SummaryData!$E:$E,SummaryData!$A:$A,$B$62,SummaryData!$B:$B,$B63,SummaryData!$C:$C,$R$14)=0,"NA",SUMIFS(SummaryData!$E:$E,SummaryData!$A:$A,$B$62,SummaryData!$B:$B,$B63,SummaryData!$C:$C,$R$14)) -> 12.58532 | U63: =IF(SUMIFS(SummaryData!$F:$F,SummaryData!$A:$A,$B$62,SummaryData!$B:$B,$B63,SummaryData!$C:$C,$R$14)=0,"NA",SUMIFS(SummaryData!$F:$F,SummaryData!$A:$A,$B$62,SummaryData!$B:$B,$B63,SummaryData!$C:$C,$R$14)) -> 13.99988
B64: > 1 but ≤ 5 | C64: =IF(D64="**","",SUMIFS(SummaryData!$D:$D,SummaryData!$A:$A,$B$62,SummaryData!$B:$B,$B64,SummaryData!$C:$C,$C$14)) -> 25.53377 | D64: =IF(SUMIFS(SummaryData!$N:$N,SummaryData!$A:$A,$B$62,SummaryData!$B:$B,$B64,SummaryData!$C:$C,$C$14)>=50,"**",(IF(SUMIFS(SummaryData!$N:$N,SummaryData!$A:$A,$B$62,SummaryData!$B:$B,$B64,SummaryData!$C:$C,$C$14)>25,IF(SUMIFS(SummaryData!$N:$N,SummaryData!$A:$A,$B$62,SummaryData!$B:$B,$B64,SummaryData!$C:$C,$C$14),"*"," ")," "))) ->  | E64: =IF(D64="**","",SUMIFS(SummaryData!$E:$E,SummaryData!$A:$A,$B$62,SummaryData!$B:$B,$B64,SummaryData!$C:$C,$C$14)) -> 19.95172 | F64: =IF(D64="**","",SUMIFS(SummaryData!$F:$F,SummaryData!$A:$A,$B$62,SummaryData!$B:$B,$B64,SummaryData!$C:$C,$C$14)) -> 32.05221 | H64: =IF(I64="**","",SUMIFS(SummaryData!$D:$D,SummaryData!$A:$A,$B$62,SummaryData!$B:$B,$B64,SummaryData!$C:$C,$H$14)) -> 32.00469 | I64: =IF(SUMIFS(SummaryData!$N:$N,SummaryData!$A:$A,$B$62,SummaryData!$B:$B,$B64,SummaryData!$C:$C,$H$14)>=50,"**",(IF(SUMIFS(SummaryData!$N:$N,SummaryData!$A:$A,$B$62,SummaryData!$B:$B,$B64,SummaryData!$C:$C,$H$14)>25,IF(SUMIFS(SummaryData!$N:$N,SummaryData!$A:$A,$B$62,SummaryData!$B:$B,$B64,SummaryData!$C:$C,$H$14),"*"," ")," "))) ->  | J64: =IF(I64="**","",SUMIFS(SummaryData!$E:$E,SummaryData!$A:$A,$B$62,SummaryData!$B:$B,$B64,SummaryData!$C:$C,$H$14)) -> 29.74344 | K64: =IF(I64="**","",SUMIFS(SummaryData!$F:$F,SummaryData!$A:$A,$B$62,SummaryData!$B:$B,$B64,SummaryData!$C:$C,$H$14)) -> 34.35378 | M64: =IF(N64="**","",SUMIFS(SummaryData!$D:$D,SummaryData!$A:$A,$B$62,SummaryData!$B:$B,$B64,SummaryData!$C:$C,$M$14)) -> 30.63231 | N64: =IF(SUMIFS(SummaryData!$N:$N,SummaryData!$A:$A,$B$62,SummaryData!$B:$B,$B64,SummaryData!$C:$C,$M$14)>=50,"**",(IF(SUMIFS(SummaryData!$N:$N,SummaryData!$A:$A,$B$62,SummaryData!$B:$B,$B64,SummaryData!$C:$C,$M$14)>25,IF(SUMIFS(SummaryData!$N:$N,SummaryData!$A:$A,$B$62,SummaryData!$B:$B,$B64,SummaryData!$C:$C,$M$14),"*"," ")," "))) ->  | O64: =IF(N64="**","",SUMIFS(SummaryData!$E:$E,SummaryData!$A:$A,$B$62,SummaryData!$B:$B,$B64,SummaryData!$C:$C,$M$14)) -> 28.8896 | P64: =IF(N64="**","",SUMIFS(SummaryData!$F:$F,SummaryData!$A:$A,$B$62,SummaryData!$B:$B,$B64,SummaryData!$C:$C,$M$14)) -> 32.43221 | R64: =IF(SUMIFS(SummaryData!$D:$D,SummaryData!$A:$A,$B$62,SummaryData!$B:$B,$B64,SummaryData!$C:$C,$R$14)=0,"NA",SUMIFS(SummaryData!$D:$D,SummaryData!$A:$A,$B$62,SummaryData!$B:$B,$B64,SummaryData!$C:$C,$R$14)) -> 29.09928 | T64: =IF(SUMIFS(SummaryData!$E:$E,SummaryData!$A:$A,$B$62,SummaryData!$B:$B,$B64,SummaryData!$C:$C,$R$14)=0,"NA",SUMIFS(SummaryData!$E:$E,SummaryData!$A:$A,$B$62,SummaryData!$B:$B,$B64,SummaryData!$C:$C,$R$14)) -> 28.18933 | U64: =IF(SUMIFS(SummaryData!$F:$F,SummaryData!$A:$A,$B$62,SummaryData!$B:$B,$B64,SummaryData!$C:$C,$R$14)=0,"NA",SUMIFS(SummaryData!$F:$F,SummaryData!$A:$A,$B$62,SummaryData!$B:$B,$B64,SummaryData!$C:$C,$R$14)) -> 30.02632
B65: > 5 but ≤ 10 | C65: =IF(D65="**","",SUMIFS(SummaryData!$D:$D,SummaryData!$A:$A,$B$62,SummaryData!$B:$B,$B65,SummaryData!$C:$C,$C$14)) -> 18.32193 | D65: =IF(SUMIFS(SummaryData!$N:$N,SummaryData!$A:$A,$B$62,SummaryData!$B:$B,$B65,SummaryData!$C:$C,$C$14)>=50,"**",(IF(SUMIFS(SummaryData!$N:$N,SummaryData!$A:$A,$B$62,SummaryData!$B:$B,$B65,SummaryData!$C:$C,$C$14)>25,IF(SUMIFS(SummaryData!$N:$N,SummaryData!$A:$A,$B$62,SummaryData!$B:$B,$B65,SummaryData!$C:$C,$C$14),"*"," ")," "))) ->  | E65: =IF(D65="**","",SUMIFS(SummaryData!$E:$E,SummaryData!$A:$A,$B$62,SummaryData!$B:$B,$B65,SummaryData!$C:$C,$C$14)) -> 13.56537 | F65: =IF(D65="**","",SUMIFS(SummaryData!$F:$F,SummaryData!$A:$A,$B$62,SummaryData!$B:$B,$B65,SummaryData!$C:$C,$C$14)) -> 24.27786 | H65: =IF(I65="**","",SUMIFS(SummaryData!$D:$D,SummaryData!$A:$A,$B$62,SummaryData!$B:$B,$B65,SummaryData!$C:$C,$H$14)) -> 15.36133 | I65: =IF(SUMIFS(SummaryData!$N:$N,SummaryData!$A:$A,$B$62,SummaryData!$B:$B,$B65,SummaryData!$C:$C,$H$14)>=50,"**",(IF(SUMIFS(SummaryData!$N:$N,SummaryData!$A:$A,$B$62,SummaryData!$B:$B,$B65,SummaryData!$C:$C,$H$14)>25,IF(SUMIFS(SummaryData!$N:$N,SummaryData!$A:$A,$B$62,SummaryData!$B:$B,$B65,SummaryData!$C:$C,$H$14),"*"," ")," "))) ->  | J65: =IF(I65="**","",SUMIFS(SummaryData!$E:$E,SummaryData!$A:$A,$B$62,SummaryData!$B:$B,$B65,SummaryData!$C:$C,$H$14)) -> 13.71789 | K65: =IF(I65="**","",SUMIFS(SummaryData!$F:$F,SummaryData!$A:$A,$B$62,SummaryData!$B:$B,$B65,SummaryData!$C:$C,$H$14)) -> 17.1625 | M65: =IF(N65="**","",SUMIFS(SummaryData!$D:$D,SummaryData!$A:$A,$B$62,SummaryData!$B:$B,$B65,SummaryData!$C:$C,$M$14)) -> 17.40333 | N65: =IF(SUMIFS(SummaryData!$N:$N,SummaryData!$A:$A,$B$62,SummaryData!$B:$B,$B65,SummaryData!$C:$C,$M$14)>=50,"**",(IF(SUMIFS(SummaryData!$N:$N,SummaryData!$A:$A,$B$62,SummaryData!$B:$B,$B65,SummaryData!$C:$C,$M$14)>25,IF(SUMIFS(SummaryData!$N:$N,SummaryData!$A:$A,$B$62,SummaryData!$B:$B,$B65,SummaryData!$C:$C,$M$14),"*"," ")," "))) ->  | O65: =IF(N65="**","",SUMIFS(SummaryData!$E:$E,SummaryData!$A:$A,$B$62,SummaryData!$B:$B,$B65,SummaryData!$C:$C,$M$14)) -> 15.98007 | P65: =IF(N65="**","",SUMIFS(SummaryData!$F:$F,SummaryData!$A:$A,$B$62,SummaryData!$B:$B,$B65,SummaryData!$C:$C,$M$14)) -> 18.92479 | R65: =IF(SUMIFS(SummaryData!$D:$D,SummaryData!$A:$A,$B$62,SummaryData!$B:$B,$B65,SummaryData!$C:$C,$R$14)=0,"NA",SUMIFS(SummaryData!$D:$D,SummaryData!$A:$A,$B$62,SummaryData!$B:$B,$B65,SummaryData!$C:$C,$R$14)) -> 15.79481 | T65: =IF(SUMIFS(SummaryData!$E:$E,SummaryData!$A:$A,$B$62,SummaryData!$B:$B,$B65,SummaryData!$C:$C,$R$14)=0,"NA",SUMIFS(SummaryData!$E:$E,SummaryData!$A:$A,$B$62,SummaryData!$B:$B,$B65,SummaryData!$C:$C,$R$14)) -> 15.07642 | U65: =IF(SUMIFS(SummaryData!$F:$F,SummaryData!$A:$A,$B$62,SummaryData!$B:$B,$B65,SummaryData!$C:$C,$R$14)=0,"NA",SUMIFS(SummaryData!$F:$F,SummaryData!$A:$A,$B$62,SummaryData!$B:$B,$B65,SummaryData!$C:$C,$R$14)) -> 16.54077
B66: > 10 | C66: =IF(D66="**","",SUMIFS(SummaryData!$D:$D,SummaryData!$A:$A,$B$62,SummaryData!$B:$B,$B66,SummaryData!$C:$C,$C$14)) -> 51.19803 | D66: =IF(SUMIFS(SummaryData!$N:$N,SummaryData!$A:$A,$B$62,SummaryData!$B:$B,$B66,SummaryData!$C:$C,$C$14)>=50,"**",(IF(SUMIFS(SummaryData!$N:$N,SummaryData!$A:$A,$B$62,SummaryData!$B:$B,$B66,SummaryData!$C:$C,$C$14)>25,IF(SUMIFS(SummaryData!$N:$N,SummaryData!$A:$A,$B$62,SummaryData!$B:$B,$B66,SummaryData!$C:$C,$C$14),"*"," ")," "))) ->  | E66: =IF(D66="**","",SUMIFS(SummaryData!$E:$E,SummaryData!$A:$A,$B$62,SummaryData!$B:$B,$B66,SummaryData!$C:$C,$C$14)) -> 44.34827 | F66: =IF(D66="**","",SUMIFS(SummaryData!$F:$F,SummaryData!$A:$A,$B$62,SummaryData!$B:$B,$B66,SummaryData!$C:$C,$C$14)) -> 58.00308 | H66: =IF(I66="**","",SUMIFS(SummaryData!$D:$D,SummaryData!$A:$A,$B$62,SummaryData!$B:$B,$B66,SummaryData!$C:$C,$H$14)) -> 39.22441 | I66: =IF(SUMIFS(SummaryData!$N:$N,SummaryData!$A:$A,$B$62,SummaryData!$B:$B,$B66,SummaryData!$C:$C,$H$14)>=50,"**",(IF(SUMIFS(SummaryData!$N:$N,SummaryData!$A:$A,$B$62,SummaryData!$B:$B,$B66,SummaryData!$C:$C,$H$14)>25,IF(SUMIFS(SummaryData!$N:$N,SummaryData!$A:$A,$B$62,SummaryData!$B:$B,$B66,SummaryData!$C:$C,$H$14),"*"," ")," "))) ->  | J66: =IF(I66="**","",SUMIFS(SummaryData!$E:$E,SummaryData!$A:$A,$B$62,SummaryData!$B:$B,$B66,SummaryData!$C:$C,$H$14)) -> 37.04751 | K66: =IF(I66="**","",SUMIFS(SummaryData!$F:$F,SummaryData!$A:$A,$B$62,SummaryData!$B:$B,$B66,SummaryData!$C:$C,$H$14)) -> 41.44501 | M66: =IF(N66="**","",SUMIFS(SummaryData!$D:$D,SummaryData!$A:$A,$B$62,SummaryData!$B:$B,$B66,SummaryData!$C:$C,$M$14)) -> 39.50472 | N66: =IF(SUMIFS(SummaryData!$N:$N,SummaryData!$A:$A,$B$62,SummaryData!$B:$B,$B66,SummaryData!$C:$C,$M$14)>=50,"**",(IF(SUMIFS(SummaryData!$N:$N,SummaryData!$A:$A,$B$62,SummaryData!$B:$B,$B66,SummaryData!$C:$C,$M$14)>25,IF(SUMIFS(SummaryData!$N:$N,SummaryData!$A:$A,$B$62,SummaryData!$B:$B,$B66,SummaryData!$C:$C,$M$14),"*"," ")," "))) ->  | O66: =IF(N66="**","",SUMIFS(SummaryData!$E:$E,SummaryData!$A:$A,$B$62,SummaryData!$B:$B,$B66,SummaryData!$C:$C,$M$14)) -> 37.81944 | P66: =IF(N66="**","",SUMIFS(SummaryData!$F:$F,SummaryData!$A:$A,$B$62,SummaryData!$B:$B,$B66,SummaryData!$C:$C,$M$14)) -> 41.21533 | R66: =IF(SUMIFS(SummaryData!$D:$D,SummaryData!$A:$A,$B$62,SummaryData!$B:$B,$B66,SummaryData!$C:$C,$R$14)=0,"NA",SUMIFS(SummaryData!$D:$D,SummaryData!$A:$A,$B$62,SummaryData!$B:$B,$B66,SummaryData!$C:$C,$R$14)) -> 41.50449 | T66: =IF(SUMIFS(SummaryData!$E:$E,SummaryData!$A:$A,$B$62,SummaryData!$B:$B,$B66,SummaryData!$C:$C,$R$14)=0,"NA",SUMIFS(SummaryData!$E:$E,SummaryData!$A:$A,$B$62,SummaryData!$B:$B,$B66,SummaryData!$C:$C,$R$14)) -> 40.59445 | U66: =IF(SUMIFS(SummaryData!$F:$F,SummaryData!$A:$A,$B$62,SummaryData!$B:$B,$B66,SummaryData!$C:$C,$R$14)=0,"NA",SUMIFS(SummaryData!$F:$F,SummaryData!$A:$A,$B$62,SummaryData!$B:$B,$B66,SummaryData!$C:$C,$R$14)) -> 42.42037
B67: SOCIAL CAPITAL - Home ownership status
B68: Owned, no mortgage | C68: =IF(D68="**","",SUMIFS(SummaryData!$D:$D,SummaryData!$A:$A,$B$67,SummaryData!$B:$B,$B68,SummaryData!$C:$C,$C$14)) -> 34.72302 | D68: =IF(SUMIFS(SummaryData!$N:$N,SummaryData!$A:$A,$B$67,SummaryData!$B:$B,$B68,SummaryData!$C:$C,$C$14)>=50,"**",(IF(SUMIFS(SummaryData!$N:$N,SummaryData!$A:$A,$B$67,SummaryData!$B:$B,$B68,SummaryData!$C:$C,$C$14)>25,IF(SUMIFS(SummaryData!$N:$N,SummaryData!$A:$A,$B$67,SummaryData!$B:$B,$B68,SummaryData!$C:$C,$C$14),"*"," ")," "))) ->  | E68: =IF(D68="**","",SUMIFS(SummaryData!$E:$E,SummaryData!$A:$A,$B$67,SummaryData!$B:$B,$B68,SummaryData!$C:$C,$C$14)) -> 29.02617 | F68: =IF(D68="**","",SUMIFS(SummaryData!$F:$F,SummaryData!$A:$A,$B$67,SummaryData!$B:$B,$B68,SummaryData!$C:$C,$C$14)) -> 40.89375 | H68: =IF(I68="**","",SUMIFS(SummaryData!$D:$D,SummaryData!$A:$A,$B$67,SummaryData!$B:$B,$B68,SummaryData!$C:$C,$H$14)) -> 27.77223 | I68: =IF(SUMIFS(SummaryData!$N:$N,SummaryData!$A:$A,$B$67,SummaryData!$B:$B,$B68,SummaryData!$C:$C,$H$14)>=50,"**",(IF(SUMIFS(SummaryData!$N:$N,SummaryData!$A:$A,$B$67,SummaryData!$B:$B,$B68,SummaryData!$C:$C,$H$14)>25,IF(SUMIFS(SummaryData!$N:$N,SummaryData!$A:$A,$B$67,SummaryData!$B:$B,$B68,SummaryData!$C:$C,$H$14),"*"," ")," "))) ->  | J68: =IF(I68="**","",SUMIFS(SummaryData!$E:$E,SummaryData!$A:$A,$B$67,SummaryData!$B:$B,$B68,SummaryData!$C:$C,$H$14)) -> 25.95352 | K68: =IF(I68="**","",SUMIFS(SummaryData!$F:$F,SummaryData!$A:$A,$B$67,SummaryData!$B:$B,$B68,SummaryData!$C:$C,$H$14)) -> 29.66732 | M68: =IF(N68="**","",SUMIFS(SummaryData!$D:$D,SummaryData!$A:$A,$B$67,SummaryData!$B:$B,$B68,SummaryData!$C:$C,$M$14)) -> 28.02383 | N68: =IF(SUMIFS(SummaryData!$N:$N,SummaryData!$A:$A,$B$67,SummaryData!$B:$B,$B68,SummaryData!$C:$C,$M$14)>=50,"**",(IF(SUMIFS(SummaryData!$N:$N,SummaryData!$A:$A,$B$67,SummaryData!$B:$B,$B68,SummaryData!$C:$C,$M$14)>25,IF(SUMIFS(SummaryData!$N:$N,SummaryData!$A:$A,$B$67,SummaryData!$B:$B,$B68,SummaryData!$C:$C,$M$14),"*"," ")," "))) ->  | O68: =IF(N68="**","",SUMIFS(SummaryData!$E:$E,SummaryData!$A:$A,$B$67,SummaryData!$B:$B,$B68,SummaryData!$C:$C,$M$14)) -> 26.63698 | P68: =IF(N68="**","",SUMIFS(SummaryData!$F:$F,SummaryData!$A:$A,$B$67,SummaryData!$B:$B,$B68,SummaryData!$C:$C,$M$14)) -> 29.45389 | R68: =IF(SUMIFS(SummaryData!$D:$D,SummaryData!$A:$A,$B$67,SummaryData!$B:$B,$B68,SummaryData!$C:$C,$R$14)=0,"NA",SUMIFS(SummaryData!$D:$D,SummaryData!$A:$A,$B$67,SummaryData!$B:$B,$B68,SummaryData!$C:$C,$R$14)) -> 28.20998 | S68: =IF(SUMIFS(SummaryData!$G:$G,SummaryData!$A:$A,$B$67,SummaryData!$B:$B,$B68,SummaryData!$C:$C,$R$14)>=50,"**", IF(SUMIFS(SummaryData!$G:$G,SummaryData!$A:$A,$B$67,SummaryData!$B:$B,$B68,SummaryData!$C:$C,$R$14)>25, IF(SUMIFS(SummaryData!$G:$G,SummaryData!$A:$A,$B$67,SummaryData!$B:$B,$B68,SummaryData!$C:$C,$R$14)<50,"*",""),"")) ->  | T68: =IF(SUMIFS(SummaryData!$E:$E,SummaryData!$A:$A,$B$67,SummaryData!$B:$B,$B68,SummaryData!$C:$C,$R$14)=0,"NA",SUMIFS(SummaryData!$E:$E,SummaryData!$A:$A,$B$67,SummaryData!$B:$B,$B68,SummaryData!$C:$C,$R$14)) -> 27.4509 | U68: =IF(SUMIFS(SummaryData!$F:$F,SummaryData!$A:$A,$B$67,SummaryData!$B:$B,$B68,SummaryData!$C:$C,$R$14)=0,"NA",SUMIFS(SummaryData!$F:$F,SummaryData!$A:$A,$B$67,SummaryData!$B:$B,$B68,SummaryData!$C:$C,$R$14)) -> 28.98166
B69: Owned with mortgage | C69: =IF(D69="**","",SUMIFS(SummaryData!$D:$D,SummaryData!$A:$A,$B$67,SummaryData!$B:$B,$B69,SummaryData!$C:$C,$C$14)) -> 35.68798 | D69: =IF(SUMIFS(SummaryData!$N:$N,SummaryData!$A:$A,$B$67,SummaryData!$B:$B,$B69,SummaryData!$C:$C,$C$14)>=50,"**",(IF(SUMIFS(SummaryData!$N:$N,SummaryData!$A:$A,$B$67,SummaryData!$B:$B,$B69,SummaryData!$C:$C,$C$14)>25,IF(SUMIFS(SummaryData!$N:$N,SummaryData!$A:$A,$B$67,SummaryData!$B:$B,$B69,SummaryData!$C:$C,$C$14),"*"," ")," "))) ->  | E69: =IF(D69="**","",SUMIFS(SummaryData!$E:$E,SummaryData!$A:$A,$B$67,SummaryData!$B:$B,$B69,SummaryData!$C:$C,$C$14)) -> 29.36738 | F69: =IF(D69="**","",SUMIFS(SummaryData!$F:$F,SummaryData!$A:$A,$B$67,SummaryData!$B:$B,$B69,SummaryData!$C:$C,$C$14)) -> 42.54945 | H69: =IF(I69="**","",SUMIFS(SummaryData!$D:$D,SummaryData!$A:$A,$B$67,SummaryData!$B:$B,$B69,SummaryData!$C:$C,$H$14)) -> 32.73966 | I69: =IF(SUMIFS(SummaryData!$N:$N,SummaryData!$A:$A,$B$67,SummaryData!$B:$B,$B69,SummaryData!$C:$C,$H$14)>=50,"**",(IF(SUMIFS(SummaryData!$N:$N,SummaryData!$A:$A,$B$67,SummaryData!$B:$B,$B69,SummaryData!$C:$C,$H$14)>25,IF(SUMIFS(SummaryData!$N:$N,SummaryData!$A:$A,$B$67,SummaryData!$B:$B,$B69,SummaryData!$C:$C,$H$14),"*"," ")," "))) ->  | J69: =IF(I69="**","",SUMIFS(SummaryData!$E:$E,SummaryData!$A:$A,$B$67,SummaryData!$B:$B,$B69,SummaryData!$C:$C,$H$14)) -> 30.57039 | K69: =IF(I69="**","",SUMIFS(SummaryData!$F:$F,SummaryData!$A:$A,$B$67,SummaryData!$B:$B,$B69,SummaryData!$C:$C,$H$14)) -> 34.9853 | M69: =IF(N69="**","",SUMIFS(SummaryData!$D:$D,SummaryData!$A:$A,$B$67,SummaryData!$B:$B,$B69,SummaryData!$C:$C,$M$14)) -> 36.08114 | N69: =IF(SUMIFS(SummaryData!$N:$N,SummaryData!$A:$A,$B$67,SummaryData!$B:$B,$B69,SummaryData!$C:$C,$M$14)>=50,"**",(IF(SUMIFS(SummaryData!$N:$N,SummaryData!$A:$A,$B$67,SummaryData!$B:$B,$B69,SummaryData!$C:$C,$M$14)>25,IF(SUMIFS(SummaryData!$N:$N,SummaryData!$A:$A,$B$67,SummaryData!$B:$B,$B69,SummaryData!$C:$C,$M$14),"*"," ")," "))) ->  | O69: =IF(N69="**","",SUMIFS(SummaryData!$E:$E,SummaryData!$A:$A,$B$67,SummaryData!$B:$B,$B69,SummaryData!$C:$C,$M$14)) -> 34.36368 | P69: =IF(N69="**","",SUMIFS(SummaryData!$F:$F,SummaryData!$A:$A,$B$67,SummaryData!$B:$B,$B69,SummaryData!$C:$C,$M$14)) -> 37.83496 | R69: =IF(SUMIFS(SummaryData!$D:$D,SummaryData!$A:$A,$B$67,SummaryData!$B:$B,$B69,SummaryData!$C:$C,$R$14)=0,"NA",SUMIFS(SummaryData!$D:$D,SummaryData!$A:$A,$B$67,SummaryData!$B:$B,$B69,SummaryData!$C:$C,$R$14)) -> 35.15665 | S69: =IF(SUMIFS(SummaryData!$G:$G,SummaryData!$A:$A,$B$67,SummaryData!$B:$B,$B69,SummaryData!$C:$C,$R$14)>=50,"**", IF(SUMIFS(SummaryData!$G:$G,SummaryData!$A:$A,$B$67,SummaryData!$B:$B,$B69,SummaryData!$C:$C,$R$14)>25, IF(SUMIFS(SummaryData!$G:$G,SummaryData!$A:$A,$B$67,SummaryData!$B:$B,$B69,SummaryData!$C:$C,$R$14)<50,"*",""),"")) ->  | T69: =IF(SUMIFS(SummaryData!$E:$E,SummaryData!$A:$A,$B$67,SummaryData!$B:$B,$B69,SummaryData!$C:$C,$R$14)=0,"NA",SUMIFS(SummaryData!$E:$E,SummaryData!$A:$A,$B$67,SummaryData!$B:$B,$B69,SummaryData!$C:$C,$R$14)) -> 34.25294 | U69: =IF(SUMIFS(SummaryData!$F:$F,SummaryData!$A:$A,$B$67,SummaryData!$B:$B,$B69,SummaryData!$C:$C,$R$14)=0,"NA",SUMIFS(SummaryData!$F:$F,SummaryData!$A:$A,$B$67,SummaryData!$B:$B,$B69,SummaryData!$C:$C,$R$14)) -> 36.07112
B70: Rented from DHHS/Community housing agency | C70: =IF(D70="**","",SUMIFS(SummaryData!$D:$D,SummaryData!$A:$A,$B$67,SummaryData!$B:$B,$B70,SummaryData!$C:$C,$C$14)) ->  | D70: =IF(SUMIFS(SummaryData!$N:$N,SummaryData!$A:$A,$B$67,SummaryData!$B:$B,$B70,SummaryData!$C:$C,$C$14)>=50,"**",(IF(SUMIFS(SummaryData!$N:$N,SummaryData!$A:$A,$B$67,SummaryData!$B:$B,$B70,SummaryData!$C:$C,$C$14)>25,IF(SUMIFS(SummaryData!$N:$N,SummaryData!$A:$A,$B$67,SummaryData!$B:$B,$B70,SummaryData!$C:$C,$C$14),"*"," ")," "))) -> ** | E70: =IF(D70="**","",SUMIFS(SummaryData!$E:$E,SummaryData!$A:$A,$B$67,SummaryData!$B:$B,$B70,SummaryData!$C:$C,$C$14)) ->  | F70: =IF(D70="**","",SUMIFS(SummaryData!$F:$F,SummaryData!$A:$A,$B$67,SummaryData!$B:$B,$B70,SummaryData!$C:$C,$C$14)) ->  | H70: =IF(I70="**","",SUMIFS(SummaryData!$D:$D,SummaryData!$A:$A,$B$67,SummaryData!$B:$B,$B70,SummaryData!$C:$C,$H$14)) -> 2.35721 | I70: =IF(SUMIFS(SummaryData!$N:$N,SummaryData!$A:$A,$B$67,SummaryData!$B:$B,$B70,SummaryData!$C:$C,$H$14)>=50,"**",(IF(SUMIFS(SummaryData!$N:$N,SummaryData!$A:$A,$B$67,SummaryData!$B:$B,$B70,SummaryData!$C:$C,$H$14)>25,IF(SUMIFS(SummaryData!$N:$N,SummaryData!$A:$A,$B$67,SummaryData!$B:$B,$B70,SummaryData!$C:$C,$H$14),"*"," ")," "))) ->  | J70: =IF(I70="**","",SUMIFS(SummaryData!$E:$E,SummaryData!$A:$A,$B$67,SummaryData!$B:$B,$B70,SummaryData!$C:$C,$H$14)) -> 1.66915 | K70: =IF(I70="**","",SUMIFS(SummaryData!$F:$F,SummaryData!$A:$A,$B$67,SummaryData!$B:$B,$B70,SummaryData!$C:$C,$H$14)) -> 3.319329 | M70: =IF(N70="**","",SUMIFS(SummaryData!$D:$D,SummaryData!$A:$A,$B$67,SummaryData!$B:$B,$B70,SummaryData!$C:$C,$M$14)) -> 3.200708 | N70: =IF(SUMIFS(SummaryData!$N:$N,SummaryData!$A:$A,$B$67,SummaryData!$B:$B,$B70,SummaryData!$C:$C,$M$14)>=50,"**",(IF(SUMIFS(SummaryData!$N:$N,SummaryData!$A:$A,$B$67,SummaryData!$B:$B,$B70,SummaryData!$C:$C,$M$14)>25,IF(SUMIFS(SummaryData!$N:$N,SummaryData!$A:$A,$B$67,SummaryData!$B:$B,$B70,SummaryData!$C:$C,$M$14),"*"," ")," "))) ->  | O70: =IF(N70="**","",SUMIFS(SummaryData!$E:$E,SummaryData!$A:$A,$B$67,SummaryData!$B:$B,$B70,SummaryData!$C:$C,$M$14)) -> 2.538041 | P70: =IF(N70="**","",SUMIFS(SummaryData!$F:$F,SummaryData!$A:$A,$B$67,SummaryData!$B:$B,$B70,SummaryData!$C:$C,$M$14)) -> 4.029241 | R70: =IF(SUMIFS(SummaryData!$D:$D,SummaryData!$A:$A,$B$67,SummaryData!$B:$B,$B70,SummaryData!$C:$C,$R$14)=0,"NA",SUMIFS(SummaryData!$D:$D,SummaryData!$A:$A,$B$67,SummaryData!$B:$B,$B70,SummaryData!$C:$C,$R$14)) -> 3.315589 | S70: =IF(SUMIFS(SummaryData!$G:$G,SummaryData!$A:$A,$B$67,SummaryData!$B:$B,$B70,SummaryData!$C:$C,$R$14)>=50,"**", IF(SUMIFS(SummaryData!$G:$G,SummaryData!$A:$A,$B$67,SummaryData!$B:$B,$B70,SummaryData!$C:$C,$R$14)>25, IF(SUMIFS(SummaryData!$G:$G,SummaryData!$A:$A,$B$67,SummaryData!$B:$B,$B70,SummaryData!$C:$C,$R$14)<50,"*",""),"")) ->  | T70: =IF(SUMIFS(SummaryData!$E:$E,SummaryData!$A:$A,$B$67,SummaryData!$B:$B,$B70,SummaryData!$C:$C,$R$14)=0,"NA",SUMIFS(SummaryData!$E:$E,SummaryData!$A:$A,$B$67,SummaryData!$B:$B,$B70,SummaryData!$C:$C,$R$14)) -> 2.941112 | U70: =IF(SUMIFS(SummaryData!$F:$F,SummaryData!$A:$A,$B$67,SummaryData!$B:$B,$B70,SummaryData!$C:$C,$R$14)=0,"NA",SUMIFS(SummaryData!$F:$F,SummaryData!$A:$A,$B$67,SummaryData!$B:$B,$B70,SummaryData!$C:$C,$R$14)) -> 3.735912
B71: Rented privately | C71: =IF(D71="**","",SUMIFS(SummaryData!$D:$D,SummaryData!$A:$A,$B$67,SummaryData!$B:$B,$B71,SummaryData!$C:$C,$C$14)) -> 21.01455 | D71: =IF(SUMIFS(SummaryData!$N:$N,SummaryData!$A:$A,$B$67,SummaryData!$B:$B,$B71,SummaryData!$C:$C,$C$14)>=50,"**",(IF(SUMIFS(SummaryData!$N:$N,SummaryData!$A:$A,$B$67,SummaryData!$B:$B,$B71,SummaryData!$C:$C,$C$14)>25,IF(SUMIFS(SummaryData!$N:$N,SummaryData!$A:$A,$B$67,SummaryData!$B:$B,$B71,SummaryData!$C:$C,$C$14),"*"," ")," "))) ->  | E71: =IF(D71="**","",SUMIFS(SummaryData!$E:$E,SummaryData!$A:$A,$B$67,SummaryData!$B:$B,$B71,SummaryData!$C:$C,$C$14)) -> 15.38286 | F71: =IF(D71="**","",SUMIFS(SummaryData!$F:$F,SummaryData!$A:$A,$B$67,SummaryData!$B:$B,$B71,SummaryData!$C:$C,$C$14)) -> 28.02515 | H71: =IF(I71="**","",SUMIFS(SummaryData!$D:$D,SummaryData!$A:$A,$B$67,SummaryData!$B:$B,$B71,SummaryData!$C:$C,$H$14)) -> 32.22897 | I71: =IF(SUMIFS(SummaryData!$N:$N,SummaryData!$A:$A,$B$67,SummaryData!$B:$B,$B71,SummaryData!$C:$C,$H$14)>=50,"**",(IF(SUMIFS(SummaryData!$N:$N,SummaryData!$A:$A,$B$67,SummaryData!$B:$B,$B71,SummaryData!$C:$C,$H$14)>25,IF(SUMIFS(SummaryData!$N:$N,SummaryData!$A:$A,$B$67,SummaryData!$B:$B,$B71,SummaryData!$C:$C,$H$14),"*"," ")," "))) ->  | J71: =IF(I71="**","",SUMIFS(SummaryData!$E:$E,SummaryData!$A:$A,$B$67,SummaryData!$B:$B,$B71,SummaryData!$C:$C,$H$14)) -> 30.00482 | K71: =IF(I71="**","",SUMIFS(SummaryData!$F:$F,SummaryData!$A:$A,$B$67,SummaryData!$B:$B,$B71,SummaryData!$C:$C,$H$14)) -> 34.53664 | M71: =IF(N71="**","",SUMIFS(SummaryData!$D:$D,SummaryData!$A:$A,$B$67,SummaryData!$B:$B,$B71,SummaryData!$C:$C,$M$14)) -> 27.5325 | N71: =IF(SUMIFS(SummaryData!$N:$N,SummaryData!$A:$A,$B$67,SummaryData!$B:$B,$B71,SummaryData!$C:$C,$M$14)>=50,"**",(IF(SUMIFS(SummaryData!$N:$N,SummaryData!$A:$A,$B$67,SummaryData!$B:$B,$B71,SummaryData!$C:$C,$M$14)>25,IF(SUMIFS(SummaryData!$N:$N,SummaryData!$A:$A,$B$67,SummaryData!$B:$B,$B71,SummaryData!$C:$C,$M$14),"*"," ")," "))) ->  | O71: =IF(N71="**","",SUMIFS(SummaryData!$E:$E,SummaryData!$A:$A,$B$67,SummaryData!$B:$B,$B71,SummaryData!$C:$C,$M$14)) -> 25.90211 | P71: =IF(N71="**","",SUMIFS(SummaryData!$F:$F,SummaryData!$A:$A,$B$67,SummaryData!$B:$B,$B71,SummaryData!$C:$C,$M$14)) -> 29.22503 | R71: =IF(SUMIFS(SummaryData!$D:$D,SummaryData!$A:$A,$B$67,SummaryData!$B:$B,$B71,SummaryData!$C:$C,$R$14)=0,"NA",SUMIFS(SummaryData!$D:$D,SummaryData!$A:$A,$B$67,SummaryData!$B:$B,$B71,SummaryData!$C:$C,$R$14)) -> 28.25904 | S71: =IF(SUMIFS(SummaryData!$G:$G,SummaryData!$A:$A,$B$67,SummaryData!$B:$B,$B71,SummaryData!$C:$C,$R$14)>=50,"**", IF(SUMIFS(SummaryData!$G:$G,SummaryData!$A:$A,$B$67,SummaryData!$B:$B,$B71,SummaryData!$C:$C,$R$14)>25, IF(SUMIFS(SummaryData!$G:$G,SummaryData!$A:$A,$B$67,SummaryData!$B:$B,$B71,SummaryData!$C:$C,$R$14)<50,"*",""),"")) ->  | T71: =IF(SUMIFS(SummaryData!$E:$E,SummaryData!$A:$A,$B$67,SummaryData!$B:$B,$B71,SummaryData!$C:$C,$R$14)=0,"NA",SUMIFS(SummaryData!$E:$E,SummaryData!$A:$A,$B$67,SummaryData!$B:$B,$B71,SummaryData!$C:$C,$R$14)) -> 27.37393 | U71: =IF(SUMIFS(SummaryData!$F:$F,SummaryData!$A:$A,$B$67,SummaryData!$B:$B,$B71,SummaryData!$C:$C,$R$14)=0,"NA",SUMIFS(SummaryData!$F:$F,SummaryData!$A:$A,$B$67,SummaryData!$B:$B,$B71,SummaryData!$C:$C,$R$14)) -> 29.16128
B72: Other | C72: =IF(D72="**","",SUMIFS(SummaryData!$D:$D,SummaryData!$A:$A,$B$67,SummaryData!$B:$B,$B72,SummaryData!$C:$C,$C$14)) ->  | D72: =IF(SUMIFS(SummaryData!$N:$N,SummaryData!$A:$A,$B$67,SummaryData!$B:$B,$B72,SummaryData!$C:$C,$C$14)>=50,"**",(IF(SUMIFS(SummaryData!$N:$N,SummaryData!$A:$A,$B$67,SummaryData!$B:$B,$B72,SummaryData!$C:$C,$C$14)>25,IF(SUMIFS(SummaryData!$N:$N,SummaryData!$A:$A,$B$67,SummaryData!$B:$B,$B72,SummaryData!$C:$C,$C$14),"*"," ")," "))) -> ** | E72: =IF(D72="**","",SUMIFS(SummaryData!$E:$E,SummaryData!$A:$A,$B$67,SummaryData!$B:$B,$B72,SummaryData!$C:$C,$C$14)) ->  | F72: =IF(D72="**","",SUMIFS(SummaryData!$F:$F,SummaryData!$A:$A,$B$67,SummaryData!$B:$B,$B72,SummaryData!$C:$C,$C$14)) ->  | H72: =IF(I72="**","",SUMIFS(SummaryData!$D:$D,SummaryData!$A:$A,$B$67,SummaryData!$B:$B,$B72,SummaryData!$C:$C,$H$14)) -> 1.303983 | I72: =IF(SUMIFS(SummaryData!$N:$N,SummaryData!$A:$A,$B$67,SummaryData!$B:$B,$B72,SummaryData!$C:$C,$H$14)>=50,"**",(IF(SUMIFS(SummaryData!$N:$N,SummaryData!$A:$A,$B$67,SummaryData!$B:$B,$B72,SummaryData!$C:$C,$H$14)>25,IF(SUMIFS(SummaryData!$N:$N,SummaryData!$A:$A,$B$67,SummaryData!$B:$B,$B72,SummaryData!$C:$C,$H$14),"*"," ")," "))) ->  | J72: =IF(I72="**","",SUMIFS(SummaryData!$E:$E,SummaryData!$A:$A,$B$67,SummaryData!$B:$B,$B72,SummaryData!$C:$C,$H$14)) -> 0.8105932 | K72: =IF(I72="**","",SUMIFS(SummaryData!$F:$F,SummaryData!$A:$A,$B$67,SummaryData!$B:$B,$B72,SummaryData!$C:$C,$H$14)) -> 2.091355 | M72: =IF(N72="**","",SUMIFS(SummaryData!$D:$D,SummaryData!$A:$A,$B$67,SummaryData!$B:$B,$B72,SummaryData!$C:$C,$M$14)) -> 1.408346 | N72: =IF(SUMIFS(SummaryData!$N:$N,SummaryData!$A:$A,$B$67,SummaryData!$B:$B,$B72,SummaryData!$C:$C,$M$14)>=50,"**",(IF(SUMIFS(SummaryData!$N:$N,SummaryData!$A:$A,$B$67,SummaryData!$B:$B,$B72,SummaryData!$C:$C,$M$14)>25,IF(SUMIFS(SummaryData!$N:$N,SummaryData!$A:$A,$B$67,SummaryData!$B:$B,$B72,SummaryData!$C:$C,$M$14),"*"," ")," "))) ->  | O72: =IF(N72="**","",SUMIFS(SummaryData!$E:$E,SummaryData!$A:$A,$B$67,SummaryData!$B:$B,$B72,SummaryData!$C:$C,$M$14)) -> 1.004374 | P72: =IF(N72="**","",SUMIFS(SummaryData!$F:$F,SummaryData!$A:$A,$B$67,SummaryData!$B:$B,$B72,SummaryData!$C:$C,$M$14)) -> 1.971566 | R72: =IF(SUMIFS(SummaryData!$D:$D,SummaryData!$A:$A,$B$67,SummaryData!$B:$B,$B72,SummaryData!$C:$C,$R$14)=0,"NA",SUMIFS(SummaryData!$D:$D,SummaryData!$A:$A,$B$67,SummaryData!$B:$B,$B72,SummaryData!$C:$C,$R$14)) -> 1.432941 | S72: =IF(SUMIFS(SummaryData!$G:$G,SummaryData!$A:$A,$B$67,SummaryData!$B:$B,$B72,SummaryData!$C:$C,$R$14)>=50,"**", IF(SUMIFS(SummaryData!$G:$G,SummaryData!$A:$A,$B$67,SummaryData!$B:$B,$B72,SummaryData!$C:$C,$R$14)>25, IF(SUMIFS(SummaryData!$G:$G,SummaryData!$A:$A,$B$67,SummaryData!$B:$B,$B72,SummaryData!$C:$C,$R$14)<50,"*",""),"")) ->  | T72: =IF(SUMIFS(SummaryData!$E:$E,SummaryData!$A:$A,$B$67,SummaryData!$B:$B,$B72,SummaryData!$C:$C,$R$14)=0,"NA",SUMIFS(SummaryData!$E:$E,SummaryData!$A:$A,$B$67,SummaryData!$B:$B,$B72,SummaryData!$C:$C,$R$14)) -> 1.196537 | U72: =IF(SUMIFS(SummaryData!$F:$F,SummaryData!$A:$A,$B$67,SummaryData!$B:$B,$B72,SummaryData!$C:$C,$R$14)=0,"NA",SUMIFS(SummaryData!$F:$F,SummaryData!$A:$A,$B$67,SummaryData!$B:$B,$B72,SummaryData!$C:$C,$R$14)) -> 1.715241
B73: SOCIAL CAPITAL - Do you have close friends or family whom you talk to regularly?
B74: Yes | C74: =IF(D74="**","",SUMIFS(SummaryData!$D:$D,SummaryData!$A:$A,$B$73,SummaryData!$B:$B,$B74,SummaryData!$C:$C,$C$14)) -> 98.95602 | D74: =IF(SUMIFS(SummaryData!$N:$N,SummaryData!$A:$A,$B$73,SummaryData!$B:$B,$B74,SummaryData!$C:$C,$C$14)>=50,"**",(IF(SUMIFS(SummaryData!$N:$N,SummaryData!$A:$A,$B$73,SummaryData!$B:$B,$B74,SummaryData!$C:$C,$C$14)>25,IF(SUMIFS(SummaryData!$N:$N,SummaryData!$A:$A,$B$73,SummaryData!$B:$B,$B74,SummaryData!$C:$C,$C$14),"*"," ")," "))) ->  | E74: =IF(D74="**","",SUMIFS(SummaryData!$E:$E,SummaryData!$A:$A,$B$73,SummaryData!$B:$B,$B74,SummaryData!$C:$C,$C$14)) -> 97.63182 | F74: =IF(D74="**","",SUMIFS(SummaryData!$F:$F,SummaryData!$A:$A,$B$73,SummaryData!$B:$B,$B74,SummaryData!$C:$C,$C$14)) -> 99.54324 | H74: =IF(I74="**","",SUMIFS(SummaryData!$D:$D,SummaryData!$A:$A,$B$73,SummaryData!$B:$B,$B74,SummaryData!$C:$C,$H$14)) -> 95.6546 | I74: =IF(SUMIFS(SummaryData!$N:$N,SummaryData!$A:$A,$B$73,SummaryData!$B:$B,$B74,SummaryData!$C:$C,$H$14)>=50,"**",(IF(SUMIFS(SummaryData!$N:$N,SummaryData!$A:$A,$B$73,SummaryData!$B:$B,$B74,SummaryData!$C:$C,$H$14)>25,IF(SUMIFS(SummaryData!$N:$N,SummaryData!$A:$A,$B$73,SummaryData!$B:$B,$B74,SummaryData!$C:$C,$H$14),"*"," ")," "))) ->  | J74: =IF(I74="**","",SUMIFS(SummaryData!$E:$E,SummaryData!$A:$A,$B$73,SummaryData!$B:$B,$B74,SummaryData!$C:$C,$H$14)) -> 94.37336 | K74: =IF(I74="**","",SUMIFS(SummaryData!$F:$F,SummaryData!$A:$A,$B$73,SummaryData!$B:$B,$B74,SummaryData!$C:$C,$H$14)) -> 96.65444 | M74: =IF(N74="**","",SUMIFS(SummaryData!$D:$D,SummaryData!$A:$A,$B$73,SummaryData!$B:$B,$B74,SummaryData!$C:$C,$M$14)) -> 94.85065 | N74: =IF(SUMIFS(SummaryData!$N:$N,SummaryData!$A:$A,$B$73,SummaryData!$B:$B,$B74,SummaryData!$C:$C,$M$14)>=50,"**",(IF(SUMIFS(SummaryData!$N:$N,SummaryData!$A:$A,$B$73,SummaryData!$B:$B,$B74,SummaryData!$C:$C,$M$14)>25,IF(SUMIFS(SummaryData!$N:$N,SummaryData!$A:$A,$B$73,SummaryData!$B:$B,$B74,SummaryData!$C:$C,$M$14),"*"," ")," "))) ->  | O74: =IF(N74="**","",SUMIFS(SummaryData!$E:$E,SummaryData!$A:$A,$B$73,SummaryData!$B:$B,$B74,SummaryData!$C:$C,$M$14)) -> 93.80647 | P74: =IF(N74="**","",SUMIFS(SummaryData!$F:$F,SummaryData!$A:$A,$B$73,SummaryData!$B:$B,$B74,SummaryData!$C:$C,$M$14)) -> 95.7268 | R74: =IF(SUMIFS(SummaryData!$D:$D,SummaryData!$A:$A,$B$73,SummaryData!$B:$B,$B74,SummaryData!$C:$C,$R$14)=0,"NA",SUMIFS(SummaryData!$D:$D,SummaryData!$A:$A,$B$73,SummaryData!$B:$B,$B74,SummaryData!$C:$C,$R$14)) -> 95.20404 | T74: =IF(SUMIFS(SummaryData!$E:$E,SummaryData!$A:$A,$B$73,SummaryData!$B:$B,$B74,SummaryData!$C:$C,$R$14)=0,"NA",SUMIFS(SummaryData!$E:$E,SummaryData!$A:$A,$B$73,SummaryData!$B:$B,$B74,SummaryData!$C:$C,$R$14)) -> 94.70445 | U74: =IF(SUMIFS(SummaryData!$F:$F,SummaryData!$A:$A,$B$73,SummaryData!$B:$B,$B74,SummaryData!$C:$C,$R$14)=0,"NA",SUMIFS(SummaryData!$F:$F,SummaryData!$A:$A,$B$73,SummaryData!$B:$B,$B74,SummaryData!$C:$C,$R$14)) -> 95.65867
B75: No | C75: =IF(D75="**","",SUMIFS(SummaryData!$D:$D,SummaryData!$A:$A,$B$73,SummaryData!$B:$B,$B75,SummaryData!$C:$C,$C$14)) -> 1.043976 | D75: =IF(SUMIFS(SummaryData!$N:$N,SummaryData!$A:$A,$B$73,SummaryData!$B:$B,$B75,SummaryData!$C:$C,$C$14)>=50,"**",(IF(SUMIFS(SummaryData!$N:$N,SummaryData!$A:$A,$B$73,SummaryData!$B:$B,$B75,SummaryData!$C:$C,$C$14)>25,IF(SUMIFS(SummaryData!$N:$N,SummaryData!$A:$A,$B$73,SummaryData!$B:$B,$B75,SummaryData!$C:$C,$C$14),"*"," ")," "))) -> * | E75: =IF(D75="**","",SUMIFS(SummaryData!$E:$E,SummaryData!$A:$A,$B$73,SummaryData!$B:$B,$B75,SummaryData!$C:$C,$C$14)) -> 0.4567575 | F75: =IF(D75="**","",SUMIFS(SummaryData!$F:$F,SummaryData!$A:$A,$B$73,SummaryData!$B:$B,$B75,SummaryData!$C:$C,$C$14)) -> 2.368175 | H75: =IF(I75="**","",SUMIFS(SummaryData!$D:$D,SummaryData!$A:$A,$B$73,SummaryData!$B:$B,$B75,SummaryData!$C:$C,$H$14)) -> 4.345395 | I75: =IF(SUMIFS(SummaryData!$N:$N,SummaryData!$A:$A,$B$73,SummaryData!$B:$B,$B75,SummaryData!$C:$C,$H$14)>=50,"**",(IF(SUMIFS(SummaryData!$N:$N,SummaryData!$A:$A,$B$73,SummaryData!$B:$B,$B75,SummaryData!$C:$C,$H$14)>25,IF(SUMIFS(SummaryData!$N:$N,SummaryData!$A:$A,$B$73,SummaryData!$B:$B,$B75,SummaryData!$C:$C,$H$14),"*"," ")," "))) ->  | J75: =IF(I75="**","",SUMIFS(SummaryData!$E:$E,SummaryData!$A:$A,$B$73,SummaryData!$B:$B,$B75,SummaryData!$C:$C,$H$14)) -> 3.345559 | K75: =IF(I75="**","",SUMIFS(SummaryData!$F:$F,SummaryData!$A:$A,$B$73,SummaryData!$B:$B,$B75,SummaryData!$C:$C,$H$14)) -> 5.626642 | M75: =IF(N75="**","",SUMIFS(SummaryData!$D:$D,SummaryData!$A:$A,$B$73,SummaryData!$B:$B,$B75,SummaryData!$C:$C,$M$14)) -> 5.101702 | N75: =IF(SUMIFS(SummaryData!$N:$N,SummaryData!$A:$A,$B$73,SummaryData!$B:$B,$B75,SummaryData!$C:$C,$M$14)>=50,"**",(IF(SUMIFS(SummaryData!$N:$N,SummaryData!$A:$A,$B$73,SummaryData!$B:$B,$B75,SummaryData!$C:$C,$M$14)>25,IF(SUMIFS(SummaryData!$N:$N,SummaryData!$A:$A,$B$73,SummaryData!$B:$B,$B75,SummaryData!$C:$C,$M$14),"*"," ")," "))) ->  | O75: =IF(N75="**","",SUMIFS(SummaryData!$E:$E,SummaryData!$A:$A,$B$73,SummaryData!$B:$B,$B75,SummaryData!$C:$C,$M$14)) -> 4.228035 | P75: =IF(N75="**","",SUMIFS(SummaryData!$F:$F,SummaryData!$A:$A,$B$73,SummaryData!$B:$B,$B75,SummaryData!$C:$C,$M$14)) -> 6.144318 | R75: =IF(SUMIFS(SummaryData!$D:$D,SummaryData!$A:$A,$B$73,SummaryData!$B:$B,$B75,SummaryData!$C:$C,$R$14)=0,"NA",SUMIFS(SummaryData!$D:$D,SummaryData!$A:$A,$B$73,SummaryData!$B:$B,$B75,SummaryData!$C:$C,$R$14)) -> 4.684232 | T75: =IF(SUMIFS(SummaryData!$E:$E,SummaryData!$A:$A,$B$73,SummaryData!$B:$B,$B75,SummaryData!$C:$C,$R$14)=0,"NA",SUMIFS(SummaryData!$E:$E,SummaryData!$A:$A,$B$73,SummaryData!$B:$B,$B75,SummaryData!$C:$C,$R$14)) -> 4.233496 | U75: =IF(SUMIFS(SummaryData!$F:$F,SummaryData!$A:$A,$B$73,SummaryData!$B:$B,$B75,SummaryData!$C:$C,$R$14)=0,"NA",SUMIFS(SummaryData!$F:$F,SummaryData!$A:$A,$B$73,SummaryData!$B:$B,$B75,SummaryData!$C:$C,$R$14)) -> 5.180361
B76: SOCIAL CAPITAL - How often do you talk to your friends?
B77: Every day | C77: =IF(D77="**","",SUMIFS(SummaryData!$D:$D,SummaryData!$A:$A,$B$76,SummaryData!$B:$B,$B77,SummaryData!$C:$C,$C$14)) -> 42.39816 | D77: =IF(SUMIFS(SummaryData!$N:$N,SummaryData!$A:$A,$B$76,SummaryData!$B:$B,$B77,SummaryData!$C:$C,$C$14)>=50,"**",(IF(SUMIFS(SummaryData!$N:$N,SummaryData!$A:$A,$B$76,SummaryData!$B:$B,$B77,SummaryData!$C:$C,$C$14)>25,IF(SUMIFS(SummaryData!$N:$N,SummaryData!$A:$A,$B$76,SummaryData!$B:$B,$B77,SummaryData!$C:$C,$C$14),"*"," ")," "))) ->  | E77: =IF(D77="**","",SUMIFS(SummaryData!$E:$E,SummaryData!$A:$A,$B$76,SummaryData!$B:$B,$B77,SummaryData!$C:$C,$C$14)) -> 35.45022 | F77: =IF(D77="**","",SUMIFS(SummaryData!$F:$F,SummaryData!$A:$A,$B$76,SummaryData!$B:$B,$B77,SummaryData!$C:$C,$C$14)) -> 49.66022 | H77: =IF(I77="**","",SUMIFS(SummaryData!$D:$D,SummaryData!$A:$A,$B$76,SummaryData!$B:$B,$B77,SummaryData!$C:$C,$H$14)) -> 37.02406 | I77: =IF(SUMIFS(SummaryData!$N:$N,SummaryData!$A:$A,$B$76,SummaryData!$B:$B,$B77,SummaryData!$C:$C,$H$14)>=50,"**",(IF(SUMIFS(SummaryData!$N:$N,SummaryData!$A:$A,$B$76,SummaryData!$B:$B,$B77,SummaryData!$C:$C,$H$14)>25,IF(SUMIFS(SummaryData!$N:$N,SummaryData!$A:$A,$B$76,SummaryData!$B:$B,$B77,SummaryData!$C:$C,$H$14),"*"," ")," "))) ->  | J77: =IF(I77="**","",SUMIFS(SummaryData!$E:$E,SummaryData!$A:$A,$B$76,SummaryData!$B:$B,$B77,SummaryData!$C:$C,$H$14)) -> 34.68035 | K77: =IF(I77="**","",SUMIFS(SummaryData!$F:$F,SummaryData!$A:$A,$B$76,SummaryData!$B:$B,$B77,SummaryData!$C:$C,$H$14)) -> 39.43054 | M77: =IF(N77="**","",SUMIFS(SummaryData!$D:$D,SummaryData!$A:$A,$B$76,SummaryData!$B:$B,$B77,SummaryData!$C:$C,$M$14)) -> 33.62732 | N77: =IF(SUMIFS(SummaryData!$N:$N,SummaryData!$A:$A,$B$76,SummaryData!$B:$B,$B77,SummaryData!$C:$C,$M$14)>=50,"**",(IF(SUMIFS(SummaryData!$N:$N,SummaryData!$A:$A,$B$76,SummaryData!$B:$B,$B77,SummaryData!$C:$C,$M$14)>25,IF(SUMIFS(SummaryData!$N:$N,SummaryData!$A:$A,$B$76,SummaryData!$B:$B,$B77,SummaryData!$C:$C,$M$14),"*"," ")," "))) ->  | O77: =IF(N77="**","",SUMIFS(SummaryData!$E:$E,SummaryData!$A:$A,$B$76,SummaryData!$B:$B,$B77,SummaryData!$C:$C,$M$14)) -> 31.86581 | P77: =IF(N77="**","",SUMIFS(SummaryData!$F:$F,SummaryData!$A:$A,$B$76,SummaryData!$B:$B,$B77,SummaryData!$C:$C,$M$14)) -> 35.43556 | R77: =IF(SUMIFS(SummaryData!$D:$D,SummaryData!$A:$A,$B$76,SummaryData!$B:$B,$B77,SummaryData!$C:$C,$R$14)=0,"NA",SUMIFS(SummaryData!$D:$D,SummaryData!$A:$A,$B$76,SummaryData!$B:$B,$B77,SummaryData!$C:$C,$R$14)) -> 34.03577 | T77: =IF(SUMIFS(SummaryData!$E:$E,SummaryData!$A:$A,$B$76,SummaryData!$B:$B,$B77,SummaryData!$C:$C,$R$14)=0,"NA",SUMIFS(SummaryData!$E:$E,SummaryData!$A:$A,$B$76,SummaryData!$B:$B,$B77,SummaryData!$C:$C,$R$14)) -> 33.08604 | U77: =IF(SUMIFS(SummaryData!$F:$F,SummaryData!$A:$A,$B$76,SummaryData!$B:$B,$B77,SummaryData!$C:$C,$R$14)=0,"NA",SUMIFS(SummaryData!$F:$F,SummaryData!$A:$A,$B$76,SummaryData!$B:$B,$B77,SummaryData!$C:$C,$R$14)) -> 34.99851
B78: A few times a week | C78: =IF(D78="**","",SUMIFS(SummaryData!$D:$D,SummaryData!$A:$A,$B$76,SummaryData!$B:$B,$B78,SummaryData!$C:$C,$C$14)) -> 41.7997 | D78: =IF(SUMIFS(SummaryData!$N:$N,SummaryData!$A:$A,$B$76,SummaryData!$B:$B,$B78,SummaryData!$C:$C,$C$14)>=50,"**",(IF(SUMIFS(SummaryData!$N:$N,SummaryData!$A:$A,$B$76,SummaryData!$B:$B,$B78,SummaryData!$C:$C,$C$14)>25,IF(SUMIFS(SummaryData!$N:$N,SummaryData!$A:$A,$B$76,SummaryData!$B:$B,$B78,SummaryData!$C:$C,$C$14),"*"," ")," "))) ->  | E78: =IF(D78="**","",SUMIFS(SummaryData!$E:$E,SummaryData!$A:$A,$B$76,SummaryData!$B:$B,$B78,SummaryData!$C:$C,$C$14)) -> 35.12789 | F78: =IF(D78="**","",SUMIFS(SummaryData!$F:$F,SummaryData!$A:$A,$B$76,SummaryData!$B:$B,$B78,SummaryData!$C:$C,$C$14)) -> 48.78573 | H78: =IF(I78="**","",SUMIFS(SummaryData!$D:$D,SummaryData!$A:$A,$B$76,SummaryData!$B:$B,$B78,SummaryData!$C:$C,$H$14)) -> 43.77214 | I78: =IF(SUMIFS(SummaryData!$N:$N,SummaryData!$A:$A,$B$76,SummaryData!$B:$B,$B78,SummaryData!$C:$C,$H$14)>=50,"**",(IF(SUMIFS(SummaryData!$N:$N,SummaryData!$A:$A,$B$76,SummaryData!$B:$B,$B78,SummaryData!$C:$C,$H$14)>25,IF(SUMIFS(SummaryData!$N:$N,SummaryData!$A:$A,$B$76,SummaryData!$B:$B,$B78,SummaryData!$C:$C,$H$14),"*"," ")," "))) ->  | J78: =IF(I78="**","",SUMIFS(SummaryData!$E:$E,SummaryData!$A:$A,$B$76,SummaryData!$B:$B,$B78,SummaryData!$C:$C,$H$14)) -> 41.33761 | K78: =IF(I78="**","",SUMIFS(SummaryData!$F:$F,SummaryData!$A:$A,$B$76,SummaryData!$B:$B,$B78,SummaryData!$C:$C,$H$14)) -> 46.23703 | M78: =IF(N78="**","",SUMIFS(SummaryData!$D:$D,SummaryData!$A:$A,$B$76,SummaryData!$B:$B,$B78,SummaryData!$C:$C,$M$14)) -> 46.10203 | N78: =IF(SUMIFS(SummaryData!$N:$N,SummaryData!$A:$A,$B$76,SummaryData!$B:$B,$B78,SummaryData!$C:$C,$M$14)>=50,"**",(IF(SUMIFS(SummaryData!$N:$N,SummaryData!$A:$A,$B$76,SummaryData!$B:$B,$B78,SummaryData!$C:$C,$M$14)>25,IF(SUMIFS(SummaryData!$N:$N,SummaryData!$A:$A,$B$76,SummaryData!$B:$B,$B78,SummaryData!$C:$C,$M$14),"*"," ")," "))) ->  | O78: =IF(N78="**","",SUMIFS(SummaryData!$E:$E,SummaryData!$A:$A,$B$76,SummaryData!$B:$B,$B78,SummaryData!$C:$C,$M$14)) -> 44.18275 | P78: =IF(N78="**","",SUMIFS(SummaryData!$F:$F,SummaryData!$A:$A,$B$76,SummaryData!$B:$B,$B78,SummaryData!$C:$C,$M$14)) -> 48.03293 | R78: =IF(SUMIFS(SummaryData!$D:$D,SummaryData!$A:$A,$B$76,SummaryData!$B:$B,$B78,SummaryData!$C:$C,$R$14)=0,"NA",SUMIFS(SummaryData!$D:$D,SummaryData!$A:$A,$B$76,SummaryData!$B:$B,$B78,SummaryData!$C:$C,$R$14)) -> 45.52486 | T78: =IF(SUMIFS(SummaryData!$E:$E,SummaryData!$A:$A,$B$76,SummaryData!$B:$B,$B78,SummaryData!$C:$C,$R$14)=0,"NA",SUMIFS(SummaryData!$E:$E,SummaryData!$A:$A,$B$76,SummaryData!$B:$B,$B78,SummaryData!$C:$C,$R$14)) -> 44.50555 | U78: =IF(SUMIFS(SummaryData!$F:$F,SummaryData!$A:$A,$B$76,SummaryData!$B:$B,$B78,SummaryData!$C:$C,$R$14)=0,"NA",SUMIFS(SummaryData!$F:$F,SummaryData!$A:$A,$B$76,SummaryData!$B:$B,$B78,SummaryData!$C:$C,$R$14)) -> 46.54793
B79: A few times a month | C79: =IF(D79="**","",SUMIFS(SummaryData!$D:$D,SummaryData!$A:$A,$B$76,SummaryData!$B:$B,$B79,SummaryData!$C:$C,$C$14)) -> 12.63689 | D79: =IF(SUMIFS(SummaryData!$N:$N,SummaryData!$A:$A,$B$76,SummaryData!$B:$B,$B79,SummaryData!$C:$C,$C$14)>=50,"**",(IF(SUMIFS(SummaryData!$N:$N,SummaryData!$A:$A,$B$76,SummaryData!$B:$B,$B79,SummaryData!$C:$C,$C$14)>25,IF(SUMIFS(SummaryData!$N:$N,SummaryData!$A:$A,$B$76,SummaryData!$B:$B,$B79,SummaryData!$C:$C,$C$14),"*"," ")," "))) ->  | E79: =IF(D79="**","",SUMIFS(SummaryData!$E:$E,SummaryData!$A:$A,$B$76,SummaryData!$B:$B,$B79,SummaryData!$C:$C,$C$14)) -> 8.409977 | F79: =IF(D79="**","",SUMIFS(SummaryData!$F:$F,SummaryData!$A:$A,$B$76,SummaryData!$B:$B,$B79,SummaryData!$C:$C,$C$14)) -> 18.55782 | H79: =IF(I79="**","",SUMIFS(SummaryData!$D:$D,SummaryData!$A:$A,$B$76,SummaryData!$B:$B,$B79,SummaryData!$C:$C,$H$14)) -> 14.59457 | I79: =IF(SUMIFS(SummaryData!$N:$N,SummaryData!$A:$A,$B$76,SummaryData!$B:$B,$B79,SummaryData!$C:$C,$H$14)>=50,"**",(IF(SUMIFS(SummaryData!$N:$N,SummaryData!$A:$A,$B$76,SummaryData!$B:$B,$B79,SummaryData!$C:$C,$H$14)>25,IF(SUMIFS(SummaryData!$N:$N,SummaryData!$A:$A,$B$76,SummaryData!$B:$B,$B79,SummaryData!$C:$C,$H$14),"*"," ")," "))) ->  | J79: =IF(I79="**","",SUMIFS(SummaryData!$E:$E,SummaryData!$A:$A,$B$76,SummaryData!$B:$B,$B79,SummaryData!$C:$C,$H$14)) -> 12.92321 | K79: =IF(I79="**","",SUMIFS(SummaryData!$F:$F,SummaryData!$A:$A,$B$76,SummaryData!$B:$B,$B79,SummaryData!$C:$C,$H$14)) -> 16.44127 | M79: =IF(N79="**","",SUMIFS(SummaryData!$D:$D,SummaryData!$A:$A,$B$76,SummaryData!$B:$B,$B79,SummaryData!$C:$C,$M$14)) -> 15.09591 | N79: =IF(SUMIFS(SummaryData!$N:$N,SummaryData!$A:$A,$B$76,SummaryData!$B:$B,$B79,SummaryData!$C:$C,$M$14)>=50,"**",(IF(SUMIFS(SummaryData!$N:$N,SummaryData!$A:$A,$B$76,SummaryData!$B:$B,$B79,SummaryData!$C:$C,$M$14)>25,IF(SUMIFS(SummaryData!$N:$N,SummaryData!$A:$A,$B$76,SummaryData!$B:$B,$B79,SummaryData!$C:$C,$M$14),"*"," ")," "))) ->  | O79: =IF(N79="**","",SUMIFS(SummaryData!$E:$E,SummaryData!$A:$A,$B$76,SummaryData!$B:$B,$B79,SummaryData!$C:$C,$M$14)) -> 13.77034 | P79: =IF(N79="**","",SUMIFS(SummaryData!$F:$F,SummaryData!$A:$A,$B$76,SummaryData!$B:$B,$B79,SummaryData!$C:$C,$M$14)) -> 16.52464 | R79: =IF(SUMIFS(SummaryData!$D:$D,SummaryData!$A:$A,$B$76,SummaryData!$B:$B,$B79,SummaryData!$C:$C,$R$14)=0,"NA",SUMIFS(SummaryData!$D:$D,SummaryData!$A:$A,$B$76,SummaryData!$B:$B,$B79,SummaryData!$C:$C,$R$14)) -> 15.42947 | T79: =IF(SUMIFS(SummaryData!$E:$E,SummaryData!$A:$A,$B$76,SummaryData!$B:$B,$B79,SummaryData!$C:$C,$R$14)=0,"NA",SUMIFS(SummaryData!$E:$E,SummaryData!$A:$A,$B$76,SummaryData!$B:$B,$B79,SummaryData!$C:$C,$R$14)) -> 14.71782 | U79: =IF(SUMIFS(SummaryData!$F:$F,SummaryData!$A:$A,$B$76,SummaryData!$B:$B,$B79,SummaryData!$C:$C,$R$14)=0,"NA",SUMIFS(SummaryData!$F:$F,SummaryData!$A:$A,$B$76,SummaryData!$B:$B,$B79,SummaryData!$C:$C,$R$14)) -> 16.16901
B80: Less than monthly | C80: =IF(D80="**","",SUMIFS(SummaryData!$D:$D,SummaryData!$A:$A,$B$76,SummaryData!$B:$B,$B80,SummaryData!$C:$C,$C$14)) -> 2.818609 | D80: =IF(SUMIFS(SummaryData!$N:$N,SummaryData!$A:$A,$B$76,SummaryData!$B:$B,$B80,SummaryData!$C:$C,$C$14)>=50,"**",(IF(SUMIFS(SummaryData!$N:$N,SummaryData!$A:$A,$B$76,SummaryData!$B:$B,$B80,SummaryData!$C:$C,$C$14)>25,IF(SUMIFS(SummaryData!$N:$N,SummaryData!$A:$A,$B$76,SummaryData!$B:$B,$B80,SummaryData!$C:$C,$C$14),"*"," ")," "))) -> * | E80: =IF(D80="**","",SUMIFS(SummaryData!$E:$E,SummaryData!$A:$A,$B$76,SummaryData!$B:$B,$B80,SummaryData!$C:$C,$C$14)) -> 1.254539 | F80: =IF(D80="**","",SUMIFS(SummaryData!$F:$F,SummaryData!$A:$A,$B$76,SummaryData!$B:$B,$B80,SummaryData!$C:$C,$C$14)) -> 6.210016 | H80: =IF(I80="**","",SUMIFS(SummaryData!$D:$D,SummaryData!$A:$A,$B$76,SummaryData!$B:$B,$B80,SummaryData!$C:$C,$H$14)) -> 2.639584 | I80: =IF(SUMIFS(SummaryData!$N:$N,SummaryData!$A:$A,$B$76,SummaryData!$B:$B,$B80,SummaryData!$C:$C,$H$14)>=50,"**",(IF(SUMIFS(SummaryData!$N:$N,SummaryData!$A:$A,$B$76,SummaryData!$B:$B,$B80,SummaryData!$C:$C,$H$14)>25,IF(SUMIFS(SummaryData!$N:$N,SummaryData!$A:$A,$B$76,SummaryData!$B:$B,$B80,SummaryData!$C:$C,$H$14),"*"," ")," "))) ->  | J80: =IF(I80="**","",SUMIFS(SummaryData!$E:$E,SummaryData!$A:$A,$B$76,SummaryData!$B:$B,$B80,SummaryData!$C:$C,$H$14)) -> 1.922124 | K80: =IF(I80="**","",SUMIFS(SummaryData!$F:$F,SummaryData!$A:$A,$B$76,SummaryData!$B:$B,$B80,SummaryData!$C:$C,$H$14)) -> 3.614976 | M80: =IF(N80="**","",SUMIFS(SummaryData!$D:$D,SummaryData!$A:$A,$B$76,SummaryData!$B:$B,$B80,SummaryData!$C:$C,$M$14)) -> 2.9515 | N80: =IF(SUMIFS(SummaryData!$N:$N,SummaryData!$A:$A,$B$76,SummaryData!$B:$B,$B80,SummaryData!$C:$C,$M$14)>=50,"**",(IF(SUMIFS(SummaryData!$N:$N,SummaryData!$A:$A,$B$76,SummaryData!$B:$B,$B80,SummaryData!$C:$C,$M$14)>25,IF(SUMIFS(SummaryData!$N:$N,SummaryData!$A:$A,$B$76,SummaryData!$B:$B,$B80,SummaryData!$C:$C,$M$14),"*"," ")," "))) ->  | O80: =IF(N80="**","",SUMIFS(SummaryData!$E:$E,SummaryData!$A:$A,$B$76,SummaryData!$B:$B,$B80,SummaryData!$C:$C,$M$14)) -> 2.294812 | P80: =IF(N80="**","",SUMIFS(SummaryData!$F:$F,SummaryData!$A:$A,$B$76,SummaryData!$B:$B,$B80,SummaryData!$C:$C,$M$14)) -> 3.788821 | R80: =IF(SUMIFS(SummaryData!$D:$D,SummaryData!$A:$A,$B$76,SummaryData!$B:$B,$B80,SummaryData!$C:$C,$R$14)=0,"NA",SUMIFS(SummaryData!$D:$D,SummaryData!$A:$A,$B$76,SummaryData!$B:$B,$B80,SummaryData!$C:$C,$R$14)) -> 2.831514 | T80: =IF(SUMIFS(SummaryData!$E:$E,SummaryData!$A:$A,$B$76,SummaryData!$B:$B,$B80,SummaryData!$C:$C,$R$14)=0,"NA",SUMIFS(SummaryData!$E:$E,SummaryData!$A:$A,$B$76,SummaryData!$B:$B,$B80,SummaryData!$C:$C,$R$14)) -> 2.483588 | U80: =IF(SUMIFS(SummaryData!$F:$F,SummaryData!$A:$A,$B$76,SummaryData!$B:$B,$B80,SummaryData!$C:$C,$R$14)=0,"NA",SUMIFS(SummaryData!$F:$F,SummaryData!$A:$A,$B$76,SummaryData!$B:$B,$B80,SummaryData!$C:$C,$R$14)) -> 3.226568
B81: Less than twice a year | C81: =IF(D81="**","",SUMIFS(SummaryData!$D:$D,SummaryData!$A:$A,$B$76,SummaryData!$B:$B,$B81,SummaryData!$C:$C,$C$14)) ->  | D81: =IF(SUMIFS(SummaryData!$N:$N,SummaryData!$A:$A,$B$76,SummaryData!$B:$B,$B81,SummaryData!$C:$C,$C$14)>=50,"**",(IF(SUMIFS(SummaryData!$N:$N,SummaryData!$A:$A,$B$76,SummaryData!$B:$B,$B81,SummaryData!$C:$C,$C$14)>25,IF(SUMIFS(SummaryData!$N:$N,SummaryData!$A:$A,$B$76,SummaryData!$B:$B,$B81,SummaryData!$C:$C,$C$14),"*"," ")," "))) -> ** | E81: =IF(D81="**","",SUMIFS(SummaryData!$E:$E,SummaryData!$A:$A,$B$76,SummaryData!$B:$B,$B81,SummaryData!$C:$C,$C$14)) ->  | F81: =IF(D81="**","",SUMIFS(SummaryData!$F:$F,SummaryData!$A:$A,$B$76,SummaryData!$B:$B,$B81,SummaryData!$C:$C,$C$14)) ->  | H81: =IF(I81="**","",SUMIFS(SummaryData!$D:$D,SummaryData!$A:$A,$B$76,SummaryData!$B:$B,$B81,SummaryData!$C:$C,$H$14)) -> 0.7060822 | I81: =IF(SUMIFS(SummaryData!$N:$N,SummaryData!$A:$A,$B$76,SummaryData!$B:$B,$B81,SummaryData!$C:$C,$H$14)>=50,"**",(IF(SUMIFS(SummaryData!$N:$N,SummaryData!$A:$A,$B$76,SummaryData!$B:$B,$B81,SummaryData!$C:$C,$H$14)>25,IF(SUMIFS(SummaryData!$N:$N,SummaryData!$A:$A,$B$76,SummaryData!$B:$B,$B81,SummaryData!$C:$C,$H$14),"*"," ")," "))) -> * | J81: =IF(I81="**","",SUMIFS(SummaryData!$E:$E,SummaryData!$A:$A,$B$76,SummaryData!$B:$B,$B81,SummaryData!$C:$C,$H$14)) -> 0.3690135 | K81: =IF(I81="**","",SUMIFS(SummaryData!$F:$F,SummaryData!$A:$A,$B$76,SummaryData!$B:$B,$B81,SummaryData!$C:$C,$H$14)) -> 1.346878 | M81: =IF(N81="**","",SUMIFS(SummaryData!$D:$D,SummaryData!$A:$A,$B$76,SummaryData!$B:$B,$B81,SummaryData!$C:$C,$M$14)) -> 0.6328609 | N81: =IF(SUMIFS(SummaryData!$N:$N,SummaryData!$A:$A,$B$76,SummaryData!$B:$B,$B81,SummaryData!$C:$C,$M$14)>=50,"**",(IF(SUMIFS(SummaryData!$N:$N,SummaryData!$A:$A,$B$76,SummaryData!$B:$B,$B81,SummaryData!$C:$C,$M$14)>25,IF(SUMIFS(SummaryData!$N:$N,SummaryData!$A:$A,$B$76,SummaryData!$B:$B,$B81,SummaryData!$C:$C,$M$14),"*"," ")," "))) -> * | O81: =IF(N81="**","",SUMIFS(SummaryData!$E:$E,SummaryData!$A:$A,$B$76,SummaryData!$B:$B,$B81,SummaryData!$C:$C,$M$14)) -> 0.375474 | P81: =IF(N81="**","",SUMIFS(SummaryData!$F:$F,SummaryData!$A:$A,$B$76,SummaryData!$B:$B,$B81,SummaryData!$C:$C,$M$14)) -> 1.0648 | R81: =IF(SUMIFS(SummaryData!$D:$D,SummaryData!$A:$A,$B$76,SummaryData!$B:$B,$B81,SummaryData!$C:$C,$R$14)=0,"NA",SUMIFS(SummaryData!$D:$D,SummaryData!$A:$A,$B$76,SummaryData!$B:$B,$B81,SummaryData!$C:$C,$R$14)) -> 0.590205 | T81: =IF(SUMIFS(SummaryData!$E:$E,SummaryData!$A:$A,$B$76,SummaryData!$B:$B,$B81,SummaryData!$C:$C,$R$14)=0,"NA",SUMIFS(SummaryData!$E:$E,SummaryData!$A:$A,$B$76,SummaryData!$B:$B,$B81,SummaryData!$C:$C,$R$14)) -> 0.4534015 | U81: =IF(SUMIFS(SummaryData!$F:$F,SummaryData!$A:$A,$B$76,SummaryData!$B:$B,$B81,SummaryData!$C:$C,$R$14)=0,"NA",SUMIFS(SummaryData!$F:$F,SummaryData!$A:$A,$B$76,SummaryData!$B:$B,$B81,SummaryData!$C:$C,$R$14)) -> 0.7679674
B82: Never | C82: =IF(D82="**","",SUMIFS(SummaryData!$D:$D,SummaryData!$A:$A,$B$76,SummaryData!$B:$B,$B82,SummaryData!$C:$C,$C$14)) ->  | D82: =IF(SUMIFS(SummaryData!$N:$N,SummaryData!$A:$A,$B$76,SummaryData!$B:$B,$B82,SummaryData!$C:$C,$C$14)>=50,"**",(IF(SUMIFS(SummaryData!$N:$N,SummaryData!$A:$A,$B$76,SummaryData!$B:$B,$B82,SummaryData!$C:$C,$C$14)>25,IF(SUMIFS(SummaryData!$N:$N,SummaryData!$A:$A,$B$76,SummaryData!$B:$B,$B82,SummaryData!$C:$C,$C$14),"*"," ")," "))) -> ** | E82: =IF(D82="**","",SUMIFS(SummaryData!$E:$E,SummaryData!$A:$A,$B$76,SummaryData!$B:$B,$B82,SummaryData!$C:$C,$C$14)) ->  | F82: =IF(D82="**","",SUMIFS(SummaryData!$F:$F,SummaryData!$A:$A,$B$76,SummaryData!$B:$B,$B82,SummaryData!$C:$C,$C$14)) ->  | H82: =IF(I82="**","",SUMIFS(SummaryData!$D:$D,SummaryData!$A:$A,$B$76,SummaryData!$B:$B,$B82,SummaryData!$C:$C,$H$14)) -> 0.6748631 | I82: =IF(SUMIFS(SummaryData!$N:$N,SummaryData!$A:$A,$B$76,SummaryData!$B:$B,$B82,SummaryData!$C:$C,$H$14)>=50,"**",(IF(SUMIFS(SummaryData!$N:$N,SummaryData!$A:$A,$B$76,SummaryData!$B:$B,$B82,SummaryData!$C:$C,$H$14)>25,IF(SUMIFS(SummaryData!$N:$N,SummaryData!$A:$A,$B$76,SummaryData!$B:$B,$B82,SummaryData!$C:$C,$H$14),"*"," ")," "))) -> * | J82: =IF(I82="**","",SUMIFS(SummaryData!$E:$E,SummaryData!$A:$A,$B$76,SummaryData!$B:$B,$B82,SummaryData!$C:$C,$H$14)) -> 0.3552031 | K82: =IF(I82="**","",SUMIFS(SummaryData!$F:$F,SummaryData!$A:$A,$B$76,SummaryData!$B:$B,$B82,SummaryData!$C:$C,$H$14)) -> 1.278506 | M82: =IF(N82="**","",SUMIFS(SummaryData!$D:$D,SummaryData!$A:$A,$B$76,SummaryData!$B:$B,$B82,SummaryData!$C:$C,$M$14)) -> 1.008935 | N82: =IF(SUMIFS(SummaryData!$N:$N,SummaryData!$A:$A,$B$76,SummaryData!$B:$B,$B82,SummaryData!$C:$C,$M$14)>=50,"**",(IF(SUMIFS(SummaryData!$N:$N,SummaryData!$A:$A,$B$76,SummaryData!$B:$B,$B82,SummaryData!$C:$C,$M$14)>25,IF(SUMIFS(SummaryData!$N:$N,SummaryData!$A:$A,$B$76,SummaryData!$B:$B,$B82,SummaryData!$C:$C,$M$14),"*"," ")," "))) ->  | O82: =IF(N82="**","",SUMIFS(SummaryData!$E:$E,SummaryData!$A:$A,$B$76,SummaryData!$B:$B,$B82,SummaryData!$C:$C,$M$14)) -> 0.6682751 | P82: =IF(N82="**","",SUMIFS(SummaryData!$F:$F,SummaryData!$A:$A,$B$76,SummaryData!$B:$B,$B82,SummaryData!$C:$C,$M$14)) -> 1.520592 | R82: =IF(SUMIFS(SummaryData!$D:$D,SummaryData!$A:$A,$B$76,SummaryData!$B:$B,$B82,SummaryData!$C:$C,$R$14)=0,"NA",SUMIFS(SummaryData!$D:$D,SummaryData!$A:$A,$B$76,SummaryData!$B:$B,$B82,SummaryData!$C:$C,$R$14)) -> 0.9223081 | T82: =IF(SUMIFS(SummaryData!$E:$E,SummaryData!$A:$A,$B$76,SummaryData!$B:$B,$B82,SummaryData!$C:$C,$R$14)=0,"NA",SUMIFS(SummaryData!$E:$E,SummaryData!$A:$A,$B$76,SummaryData!$B:$B,$B82,SummaryData!$C:$C,$R$14)) -> 0.7372134 | U82: =IF(SUMIFS(SummaryData!$F:$F,SummaryData!$A:$A,$B$76,SummaryData!$B:$B,$B82,SummaryData!$C:$C,$R$14)=0,"NA",SUMIFS(SummaryData!$F:$F,SummaryData!$A:$A,$B$76,SummaryData!$B:$B,$B82,SummaryData!$C:$C,$R$14)) -> 1.153335
B83: SOCIAL CAPITAL - How often do you talk to your family?
B84: Every day | C84: =IF(D84="**","",SUMIFS(SummaryData!$D:$D,SummaryData!$A:$A,$B$83,SummaryData!$B:$B,$B84,SummaryData!$C:$C,$C$14)) -> 26.40719 | D84: =IF(SUMIFS(SummaryData!$N:$N,SummaryData!$A:$A,$B$83,SummaryData!$B:$B,$B84,SummaryData!$C:$C,$C$14)>=50,"**",(IF(SUMIFS(SummaryData!$N:$N,SummaryData!$A:$A,$B$83,SummaryData!$B:$B,$B84,SummaryData!$C:$C,$C$14)>25,IF(SUMIFS(SummaryData!$N:$N,SummaryData!$A:$A,$B$83,SummaryData!$B:$B,$B84,SummaryData!$C:$C,$C$14),"*"," ")," "))) ->  | E84: =IF(D84="**","",SUMIFS(SummaryData!$E:$E,SummaryData!$A:$A,$B$83,SummaryData!$B:$B,$B84,SummaryData!$C:$C,$C$14)) -> 20.89845 | F84: =IF(D84="**","",SUMIFS(SummaryData!$F:$F,SummaryData!$A:$A,$B$83,SummaryData!$B:$B,$B84,SummaryData!$C:$C,$C$14)) -> 32.76651 | H84: =IF(I84="**","",SUMIFS(SummaryData!$D:$D,SummaryData!$A:$A,$B$83,SummaryData!$B:$B,$B84,SummaryData!$C:$C,$H$14)) -> 26.82487 | I84: =IF(SUMIFS(SummaryData!$N:$N,SummaryData!$A:$A,$B$83,SummaryData!$B:$B,$B84,SummaryData!$C:$C,$H$14)>=50,"**",(IF(SUMIFS(SummaryData!$N:$N,SummaryData!$A:$A,$B$83,SummaryData!$B:$B,$B84,SummaryData!$C:$C,$H$14)>25,IF(SUMIFS(SummaryData!$N:$N,SummaryData!$A:$A,$B$83,SummaryData!$B:$B,$B84,SummaryData!$C:$C,$H$14),"*"," ")," "))) ->  | J84: =IF(I84="**","",SUMIFS(SummaryData!$E:$E,SummaryData!$A:$A,$B$83,SummaryData!$B:$B,$B84,SummaryData!$C:$C,$H$14)) -> 24.6747 | K84: =IF(I84="**","",SUMIFS(SummaryData!$F:$F,SummaryData!$A:$A,$B$83,SummaryData!$B:$B,$B84,SummaryData!$C:$C,$H$14)) -> 29.09004 | M84: =IF(N84="**","",SUMIFS(SummaryData!$D:$D,SummaryData!$A:$A,$B$83,SummaryData!$B:$B,$B84,SummaryData!$C:$C,$M$14)) -> 28.59006 | N84: =IF(SUMIFS(SummaryData!$N:$N,SummaryData!$A:$A,$B$83,SummaryData!$B:$B,$B84,SummaryData!$C:$C,$M$14)>=50,"**",(IF(SUMIFS(SummaryData!$N:$N,SummaryData!$A:$A,$B$83,SummaryData!$B:$B,$B84,SummaryData!$C:$C,$M$14)>25,IF(SUMIFS(SummaryData!$N:$N,SummaryData!$A:$A,$B$83,SummaryData!$B:$B,$B84,SummaryData!$C:$C,$M$14),"*"," ")," "))) ->  | O84: =IF(N84="**","",SUMIFS(SummaryData!$E:$E,SummaryData!$A:$A,$B$83,SummaryData!$B:$B,$B84,SummaryData!$C:$C,$M$14)) -> 26.86754 | P84: =IF(N84="**","",SUMIFS(SummaryData!$F:$F,SummaryData!$A:$A,$B$83,SummaryData!$B:$B,$B84,SummaryData!$C:$C,$M$14)) -> 30.37715 | R84: =IF(SUMIFS(SummaryData!$D:$D,SummaryData!$A:$A,$B$83,SummaryData!$B:$B,$B84,SummaryData!$C:$C,$R$14)=0,"NA",SUMIFS(SummaryData!$D:$D,SummaryData!$A:$A,$B$83,SummaryData!$B:$B,$B84,SummaryData!$C:$C,$R$14)) -> 28.37626 | T84: =IF(SUMIFS(SummaryData!$E:$E,SummaryData!$A:$A,$B$83,SummaryData!$B:$B,$B84,SummaryData!$C:$C,$R$14)=0,"NA",SUMIFS(SummaryData!$E:$E,SummaryData!$A:$A,$B$83,SummaryData!$B:$B,$B84,SummaryData!$C:$C,$R$14)) -> 27.4559 | U84: =IF(SUMIFS(SummaryData!$F:$F,SummaryData!$A:$A,$B$83,SummaryData!$B:$B,$B84,SummaryData!$C:$C,$R$14)=0,"NA",SUMIFS(SummaryData!$F:$F,SummaryData!$A:$A,$B$83,SummaryData!$B:$B,$B84,SummaryData!$C:$C,$R$14)) -> 29.31501
B85: A few times a week | C85: =IF(D85="**","",SUMIFS(SummaryData!$D:$D,SummaryData!$A:$A,$B$83,SummaryData!$B:$B,$B85,SummaryData!$C:$C,$C$14)) -> 47.43614 | D85: =IF(SUMIFS(SummaryData!$N:$N,SummaryData!$A:$A,$B$83,SummaryData!$B:$B,$B85,SummaryData!$C:$C,$C$14)>=50,"**",(IF(SUMIFS(SummaryData!$N:$N,SummaryData!$A:$A,$B$83,SummaryData!$B:$B,$B85,SummaryData!$C:$C,$C$14)>25,IF(SUMIFS(SummaryData!$N:$N,SummaryData!$A:$A,$B$83,SummaryData!$B:$B,$B85,SummaryData!$C:$C,$C$14),"*"," ")," "))) ->  | E85: =IF(D85="**","",SUMIFS(SummaryData!$E:$E,SummaryData!$A:$A,$B$83,SummaryData!$B:$B,$B85,SummaryData!$C:$C,$C$14)) -> 40.29473 | F85: =IF(D85="**","",SUMIFS(SummaryData!$F:$F,SummaryData!$A:$A,$B$83,SummaryData!$B:$B,$B85,SummaryData!$C:$C,$C$14)) -> 54.684 | H85: =IF(I85="**","",SUMIFS(SummaryData!$D:$D,SummaryData!$A:$A,$B$83,SummaryData!$B:$B,$B85,SummaryData!$C:$C,$H$14)) -> 48.14747 | I85: =IF(SUMIFS(SummaryData!$N:$N,SummaryData!$A:$A,$B$83,SummaryData!$B:$B,$B85,SummaryData!$C:$C,$H$14)>=50,"**",(IF(SUMIFS(SummaryData!$N:$N,SummaryData!$A:$A,$B$83,SummaryData!$B:$B,$B85,SummaryData!$C:$C,$H$14)>25,IF(SUMIFS(SummaryData!$N:$N,SummaryData!$A:$A,$B$83,SummaryData!$B:$B,$B85,SummaryData!$C:$C,$H$14),"*"," ")," "))) ->  | J85: =IF(I85="**","",SUMIFS(SummaryData!$E:$E,SummaryData!$A:$A,$B$83,SummaryData!$B:$B,$B85,SummaryData!$C:$C,$H$14)) -> 45.65002 | K85: =IF(I85="**","",SUMIFS(SummaryData!$F:$F,SummaryData!$A:$A,$B$83,SummaryData!$B:$B,$B85,SummaryData!$C:$C,$H$14)) -> 50.65421 | M85: =IF(N85="**","",SUMIFS(SummaryData!$D:$D,SummaryData!$A:$A,$B$83,SummaryData!$B:$B,$B85,SummaryData!$C:$C,$M$14)) -> 48.1975 | N85: =IF(SUMIFS(SummaryData!$N:$N,SummaryData!$A:$A,$B$83,SummaryData!$B:$B,$B85,SummaryData!$C:$C,$M$14)>=50,"**",(IF(SUMIFS(SummaryData!$N:$N,SummaryData!$A:$A,$B$83,SummaryData!$B:$B,$B85,SummaryData!$C:$C,$M$14)>25,IF(SUMIFS(SummaryData!$N:$N,SummaryData!$A:$A,$B$83,SummaryData!$B:$B,$B85,SummaryData!$C:$C,$M$14),"*"," ")," "))) ->  | O85: =IF(N85="**","",SUMIFS(SummaryData!$E:$E,SummaryData!$A:$A,$B$83,SummaryData!$B:$B,$B85,SummaryData!$C:$C,$M$14)) -> 46.2584 | P85: =IF(N85="**","",SUMIFS(SummaryData!$F:$F,SummaryData!$A:$A,$B$83,SummaryData!$B:$B,$B85,SummaryData!$C:$C,$M$14)) -> 50.14204 | R85: =IF(SUMIFS(SummaryData!$D:$D,SummaryData!$A:$A,$B$83,SummaryData!$B:$B,$B85,SummaryData!$C:$C,$R$14)=0,"NA",SUMIFS(SummaryData!$D:$D,SummaryData!$A:$A,$B$83,SummaryData!$B:$B,$B85,SummaryData!$C:$C,$R$14)) -> 47.2716 | T85: =IF(SUMIFS(SummaryData!$E:$E,SummaryData!$A:$A,$B$83,SummaryData!$B:$B,$B85,SummaryData!$C:$C,$R$14)=0,"NA",SUMIFS(SummaryData!$E:$E,SummaryData!$A:$A,$B$83,SummaryData!$B:$B,$B85,SummaryData!$C:$C,$R$14)) -> 46.24634 | U85: =IF(SUMIFS(SummaryData!$F:$F,SummaryData!$A:$A,$B$83,SummaryData!$B:$B,$B85,SummaryData!$C:$C,$R$14)=0,"NA",SUMIFS(SummaryData!$F:$F,SummaryData!$A:$A,$B$83,SummaryData!$B:$B,$B85,SummaryData!$C:$C,$R$14)) -> 48.29918
B86: A few times a month | C86: =IF(D86="**","",SUMIFS(SummaryData!$D:$D,SummaryData!$A:$A,$B$83,SummaryData!$B:$B,$B86,SummaryData!$C:$C,$C$14)) -> 20.39695 | D86: =IF(SUMIFS(SummaryData!$N:$N,SummaryData!$A:$A,$B$83,SummaryData!$B:$B,$B86,SummaryData!$C:$C,$C$14)>=50,"**",(IF(SUMIFS(SummaryData!$N:$N,SummaryData!$A:$A,$B$83,SummaryData!$B:$B,$B86,SummaryData!$C:$C,$C$14)>25,IF(SUMIFS(SummaryData!$N:$N,SummaryData!$A:$A,$B$83,SummaryData!$B:$B,$B86,SummaryData!$C:$C,$C$14),"*"," ")," "))) ->  | E86: =IF(D86="**","",SUMIFS(SummaryData!$E:$E,SummaryData!$A:$A,$B$83,SummaryData!$B:$B,$B86,SummaryData!$C:$C,$C$14)) -> 14.94136 | F86: =IF(D86="**","",SUMIFS(SummaryData!$F:$F,SummaryData!$A:$A,$B$83,SummaryData!$B:$B,$B86,SummaryData!$C:$C,$C$14)) -> 27.20739 | H86: =IF(I86="**","",SUMIFS(SummaryData!$D:$D,SummaryData!$A:$A,$B$83,SummaryData!$B:$B,$B86,SummaryData!$C:$C,$H$14)) -> 19.72818 | I86: =IF(SUMIFS(SummaryData!$N:$N,SummaryData!$A:$A,$B$83,SummaryData!$B:$B,$B86,SummaryData!$C:$C,$H$14)>=50,"**",(IF(SUMIFS(SummaryData!$N:$N,SummaryData!$A:$A,$B$83,SummaryData!$B:$B,$B86,SummaryData!$C:$C,$H$14)>25,IF(SUMIFS(SummaryData!$N:$N,SummaryData!$A:$A,$B$83,SummaryData!$B:$B,$B86,SummaryData!$C:$C,$H$14),"*"," ")," "))) ->  | J86: =IF(I86="**","",SUMIFS(SummaryData!$E:$E,SummaryData!$A:$A,$B$83,SummaryData!$B:$B,$B86,SummaryData!$C:$C,$H$14)) -> 17.77257 | K86: =IF(I86="**","",SUMIFS(SummaryData!$F:$F,SummaryData!$A:$A,$B$83,SummaryData!$B:$B,$B86,SummaryData!$C:$C,$H$14)) -> 21.84181 | M86: =IF(N86="**","",SUMIFS(SummaryData!$D:$D,SummaryData!$A:$A,$B$83,SummaryData!$B:$B,$B86,SummaryData!$C:$C,$M$14)) -> 17.67964 | N86: =IF(SUMIFS(SummaryData!$N:$N,SummaryData!$A:$A,$B$83,SummaryData!$B:$B,$B86,SummaryData!$C:$C,$M$14)>=50,"**",(IF(SUMIFS(SummaryData!$N:$N,SummaryData!$A:$A,$B$83,SummaryData!$B:$B,$B86,SummaryData!$C:$C,$M$14)>25,IF(SUMIFS(SummaryData!$N:$N,SummaryData!$A:$A,$B$83,SummaryData!$B:$B,$B86,SummaryData!$C:$C,$M$14),"*"," ")," "))) ->  | O86: =IF(N86="**","",SUMIFS(SummaryData!$E:$E,SummaryData!$A:$A,$B$83,SummaryData!$B:$B,$B86,SummaryData!$C:$C,$M$14)) -> 16.27008 | P86: =IF(N86="**","",SUMIFS(SummaryData!$F:$F,SummaryData!$A:$A,$B$83,SummaryData!$B:$B,$B86,SummaryData!$C:$C,$M$14)) -> 19.18333 | R86: =IF(SUMIFS(SummaryData!$D:$D,SummaryData!$A:$A,$B$83,SummaryData!$B:$B,$B86,SummaryData!$C:$C,$R$14)=0,"NA",SUMIFS(SummaryData!$D:$D,SummaryData!$A:$A,$B$83,SummaryData!$B:$B,$B86,SummaryData!$C:$C,$R$14)) -> 18.32963 | T86: =IF(SUMIFS(SummaryData!$E:$E,SummaryData!$A:$A,$B$83,SummaryData!$B:$B,$B86,SummaryData!$C:$C,$R$14)=0,"NA",SUMIFS(SummaryData!$E:$E,SummaryData!$A:$A,$B$83,SummaryData!$B:$B,$B86,SummaryData!$C:$C,$R$14)) -> 17.55059 | U86: =IF(SUMIFS(SummaryData!$F:$F,SummaryData!$A:$A,$B$83,SummaryData!$B:$B,$B86,SummaryData!$C:$C,$R$14)=0,"NA",SUMIFS(SummaryData!$F:$F,SummaryData!$A:$A,$B$83,SummaryData!$B:$B,$B86,SummaryData!$C:$C,$R$14)) -> 19.13523
B87: Less than monthly | C87: =IF(D87="**","",SUMIFS(SummaryData!$D:$D,SummaryData!$A:$A,$B$83,SummaryData!$B:$B,$B87,SummaryData!$C:$C,$C$14)) -> 2.205758 | D87: =IF(SUMIFS(SummaryData!$N:$N,SummaryData!$A:$A,$B$83,SummaryData!$B:$B,$B87,SummaryData!$C:$C,$C$14)>=50,"**",(IF(SUMIFS(SummaryData!$N:$N,SummaryData!$A:$A,$B$83,SummaryData!$B:$B,$B87,SummaryData!$C:$C,$C$14)>25,IF(SUMIFS(SummaryData!$N:$N,SummaryData!$A:$A,$B$83,SummaryData!$B:$B,$B87,SummaryData!$C:$C,$C$14),"*"," ")," "))) -> * | E87: =IF(D87="**","",SUMIFS(SummaryData!$E:$E,SummaryData!$A:$A,$B$83,SummaryData!$B:$B,$B87,SummaryData!$C:$C,$C$14)) -> 1.153105 | F87: =IF(D87="**","",SUMIFS(SummaryData!$F:$F,SummaryData!$A:$A,$B$83,SummaryData!$B:$B,$B87,SummaryData!$C:$C,$C$14)) -> 4.178737 | H87: =IF(I87="**","",SUMIFS(SummaryData!$D:$D,SummaryData!$A:$A,$B$83,SummaryData!$B:$B,$B87,SummaryData!$C:$C,$H$14)) -> 2.510578 | I87: =IF(SUMIFS(SummaryData!$N:$N,SummaryData!$A:$A,$B$83,SummaryData!$B:$B,$B87,SummaryData!$C:$C,$H$14)>=50,"**",(IF(SUMIFS(SummaryData!$N:$N,SummaryData!$A:$A,$B$83,SummaryData!$B:$B,$B87,SummaryData!$C:$C,$H$14)>25,IF(SUMIFS(SummaryData!$N:$N,SummaryData!$A:$A,$B$83,SummaryData!$B:$B,$B87,SummaryData!$C:$C,$H$14),"*"," ")," "))) ->  | J87: =IF(I87="**","",SUMIFS(SummaryData!$E:$E,SummaryData!$A:$A,$B$83,SummaryData!$B:$B,$B87,SummaryData!$C:$C,$H$14)) -> 1.848816 | K87: =IF(I87="**","",SUMIFS(SummaryData!$F:$F,SummaryData!$A:$A,$B$83,SummaryData!$B:$B,$B87,SummaryData!$C:$C,$H$14)) -> 3.401001 | M87: =IF(N87="**","",SUMIFS(SummaryData!$D:$D,SummaryData!$A:$A,$B$83,SummaryData!$B:$B,$B87,SummaryData!$C:$C,$M$14)) -> 2.612013 | N87: =IF(SUMIFS(SummaryData!$N:$N,SummaryData!$A:$A,$B$83,SummaryData!$B:$B,$B87,SummaryData!$C:$C,$M$14)>=50,"**",(IF(SUMIFS(SummaryData!$N:$N,SummaryData!$A:$A,$B$83,SummaryData!$B:$B,$B87,SummaryData!$C:$C,$M$14)>25,IF(SUMIFS(SummaryData!$N:$N,SummaryData!$A:$A,$B$83,SummaryData!$B:$B,$B87,SummaryData!$C:$C,$M$14),"*"," ")," "))) ->  | O87: =IF(N87="**","",SUMIFS(SummaryData!$E:$E,SummaryData!$A:$A,$B$83,SummaryData!$B:$B,$B87,SummaryData!$C:$C,$M$14)) -> 2.076804 | P87: =IF(N87="**","",SUMIFS(SummaryData!$F:$F,SummaryData!$A:$A,$B$83,SummaryData!$B:$B,$B87,SummaryData!$C:$C,$M$14)) -> 3.280529 | R87: =IF(SUMIFS(SummaryData!$D:$D,SummaryData!$A:$A,$B$83,SummaryData!$B:$B,$B87,SummaryData!$C:$C,$R$14)=0,"NA",SUMIFS(SummaryData!$D:$D,SummaryData!$A:$A,$B$83,SummaryData!$B:$B,$B87,SummaryData!$C:$C,$R$14)) -> 3.03702 | T87: =IF(SUMIFS(SummaryData!$E:$E,SummaryData!$A:$A,$B$83,SummaryData!$B:$B,$B87,SummaryData!$C:$C,$R$14)=0,"NA",SUMIFS(SummaryData!$E:$E,SummaryData!$A:$A,$B$83,SummaryData!$B:$B,$B87,SummaryData!$C:$C,$R$14)) -> 2.707608 | U87: =IF(SUMIFS(SummaryData!$F:$F,SummaryData!$A:$A,$B$83,SummaryData!$B:$B,$B87,SummaryData!$C:$C,$R$14)=0,"NA",SUMIFS(SummaryData!$F:$F,SummaryData!$A:$A,$B$83,SummaryData!$B:$B,$B87,SummaryData!$C:$C,$R$14)) -> 3.405106
B88: Less than twice a year | C88: =IF(D88="**","",SUMIFS(SummaryData!$D:$D,SummaryData!$A:$A,$B$83,SummaryData!$B:$B,$B88,SummaryData!$C:$C,$C$14)) ->  | D88: =IF(SUMIFS(SummaryData!$N:$N,SummaryData!$A:$A,$B$83,SummaryData!$B:$B,$B88,SummaryData!$C:$C,$C$14)>=50,"**",(IF(SUMIFS(SummaryData!$N:$N,SummaryData!$A:$A,$B$83,SummaryData!$B:$B,$B88,SummaryData!$C:$C,$C$14)>25,IF(SUMIFS(SummaryData!$N:$N,SummaryData!$A:$A,$B$83,SummaryData!$B:$B,$B88,SummaryData!$C:$C,$C$14),"*"," ")," "))) -> ** | E88: =IF(D88="**","",SUMIFS(SummaryData!$E:$E,SummaryData!$A:$A,$B$83,SummaryData!$B:$B,$B88,SummaryData!$C:$C,$C$14)) ->  | F88: =IF(D88="**","",SUMIFS(SummaryData!$F:$F,SummaryData!$A:$A,$B$83,SummaryData!$B:$B,$B88,SummaryData!$C:$C,$C$14)) ->  | H88: =IF(I88="**","",SUMIFS(SummaryData!$D:$D,SummaryData!$A:$A,$B$83,SummaryData!$B:$B,$B88,SummaryData!$C:$C,$H$14)) -> 1.319876 | I88: =IF(SUMIFS(SummaryData!$N:$N,SummaryData!$A:$A,$B$83,SummaryData!$B:$B,$B88,SummaryData!$C:$C,$H$14)>=50,"**",(IF(SUMIFS(SummaryData!$N:$N,SummaryData!$A:$A,$B$83,SummaryData!$B:$B,$B88,SummaryData!$C:$C,$H$14)>25,IF(SUMIFS(SummaryData!$N:$N,SummaryData!$A:$A,$B$83,SummaryData!$B:$B,$B88,SummaryData!$C:$C,$H$14),"*"," ")," "))) ->  | J88: =IF(I88="**","",SUMIFS(SummaryData!$E:$E,SummaryData!$A:$A,$B$83,SummaryData!$B:$B,$B88,SummaryData!$C:$C,$H$14)) -> 0.8637965 | K88: =IF(I88="**","",SUMIFS(SummaryData!$F:$F,SummaryData!$A:$A,$B$83,SummaryData!$B:$B,$B88,SummaryData!$C:$C,$H$14)) -> 2.011876 | M88: =IF(N88="**","",SUMIFS(SummaryData!$D:$D,SummaryData!$A:$A,$B$83,SummaryData!$B:$B,$B88,SummaryData!$C:$C,$M$14)) -> 1.304762 | N88: =IF(SUMIFS(SummaryData!$N:$N,SummaryData!$A:$A,$B$83,SummaryData!$B:$B,$B88,SummaryData!$C:$C,$M$14)>=50,"**",(IF(SUMIFS(SummaryData!$N:$N,SummaryData!$A:$A,$B$83,SummaryData!$B:$B,$B88,SummaryData!$C:$C,$M$14)>25,IF(SUMIFS(SummaryData!$N:$N,SummaryData!$A:$A,$B$83,SummaryData!$B:$B,$B88,SummaryData!$C:$C,$M$14),"*"," ")," "))) ->  | O88: =IF(N88="**","",SUMIFS(SummaryData!$E:$E,SummaryData!$A:$A,$B$83,SummaryData!$B:$B,$B88,SummaryData!$C:$C,$M$14)) -> 0.9265403 | P88: =IF(N88="**","",SUMIFS(SummaryData!$F:$F,SummaryData!$A:$A,$B$83,SummaryData!$B:$B,$B88,SummaryData!$C:$C,$M$14)) -> 1.834519 | R88: =IF(SUMIFS(SummaryData!$D:$D,SummaryData!$A:$A,$B$83,SummaryData!$B:$B,$B88,SummaryData!$C:$C,$R$14)=0,"NA",SUMIFS(SummaryData!$D:$D,SummaryData!$A:$A,$B$83,SummaryData!$B:$B,$B88,SummaryData!$C:$C,$R$14)) -> 1.206783 | T88: =IF(SUMIFS(SummaryData!$E:$E,SummaryData!$A:$A,$B$83,SummaryData!$B:$B,$B88,SummaryData!$C:$C,$R$14)=0,"NA",SUMIFS(SummaryData!$E:$E,SummaryData!$A:$A,$B$83,SummaryData!$B:$B,$B88,SummaryData!$C:$C,$R$14)) -> 0.9990266 | U88: =IF(SUMIFS(SummaryData!$F:$F,SummaryData!$A:$A,$B$83,SummaryData!$B:$B,$B88,SummaryData!$C:$C,$R$14)=0,"NA",SUMIFS(SummaryData!$F:$F,SummaryData!$A:$A,$B$83,SummaryData!$B:$B,$B88,SummaryData!$C:$C,$R$14)) -> 1.457108
B89: Never | C89: =IF(D89="**","",SUMIFS(SummaryData!$D:$D,SummaryData!$A:$A,$B$83,SummaryData!$B:$B,$B89,SummaryData!$C:$C,$C$14)) ->  | D89: =IF(SUMIFS(SummaryData!$N:$N,SummaryData!$A:$A,$B$83,SummaryData!$B:$B,$B89,SummaryData!$C:$C,$C$14)>=50,"**",(IF(SUMIFS(SummaryData!$N:$N,SummaryData!$A:$A,$B$83,SummaryData!$B:$B,$B89,SummaryData!$C:$C,$C$14)>25,IF(SUMIFS(SummaryData!$N:$N,SummaryData!$A:$A,$B$83,SummaryData!$B:$B,$B89,SummaryData!$C:$C,$C$14),"*"," ")," "))) -> ** | E89: =IF(D89="**","",SUMIFS(SummaryData!$E:$E,SummaryData!$A:$A,$B$83,SummaryData!$B:$B,$B89,SummaryData!$C:$C,$C$14)) ->  | F89: =IF(D89="**","",SUMIFS(SummaryData!$F:$F,SummaryData!$A:$A,$B$83,SummaryData!$B:$B,$B89,SummaryData!$C:$C,$C$14)) ->  | H89: =IF(I89="**","",SUMIFS(SummaryData!$D:$D,SummaryData!$A:$A,$B$83,SummaryData!$B:$B,$B89,SummaryData!$C:$C,$H$14)) -> 0.9965948 | I89: =IF(SUMIFS(SummaryData!$N:$N,SummaryData!$A:$A,$B$83,SummaryData!$B:$B,$B89,SummaryData!$C:$C,$H$14)>=50,"**",(IF(SUMIFS(SummaryData!$N:$N,SummaryData!$A:$A,$B$83,SummaryData!$B:$B,$B89,SummaryData!$C:$C,$H$14)>25,IF(SUMIFS(SummaryData!$N:$N,SummaryData!$A:$A,$B$83,SummaryData!$B:$B,$B89,SummaryData!$C:$C,$H$14),"*"," ")," "))) ->  | J89: =IF(I89="**","",SUMIFS(SummaryData!$E:$E,SummaryData!$A:$A,$B$83,SummaryData!$B:$B,$B89,SummaryData!$C:$C,$H$14)) -> 0.6106794 | K89: =IF(I89="**","",SUMIFS(SummaryData!$F:$F,SummaryData!$A:$A,$B$83,SummaryData!$B:$B,$B89,SummaryData!$C:$C,$H$14)) -> 1.622406 | M89: =IF(N89="**","",SUMIFS(SummaryData!$D:$D,SummaryData!$A:$A,$B$83,SummaryData!$B:$B,$B89,SummaryData!$C:$C,$M$14)) -> 1.200709 | N89: =IF(SUMIFS(SummaryData!$N:$N,SummaryData!$A:$A,$B$83,SummaryData!$B:$B,$B89,SummaryData!$C:$C,$M$14)>=50,"**",(IF(SUMIFS(SummaryData!$N:$N,SummaryData!$A:$A,$B$83,SummaryData!$B:$B,$B89,SummaryData!$C:$C,$M$14)>25,IF(SUMIFS(SummaryData!$N:$N,SummaryData!$A:$A,$B$83,SummaryData!$B:$B,$B89,SummaryData!$C:$C,$M$14),"*"," ")," "))) ->  | O89: =IF(N89="**","",SUMIFS(SummaryData!$E:$E,SummaryData!$A:$A,$B$83,SummaryData!$B:$B,$B89,SummaryData!$C:$C,$M$14)) -> 0.8165568 | P89: =IF(N89="**","",SUMIFS(SummaryData!$F:$F,SummaryData!$A:$A,$B$83,SummaryData!$B:$B,$B89,SummaryData!$C:$C,$M$14)) -> 1.762375 | R89: =IF(SUMIFS(SummaryData!$D:$D,SummaryData!$A:$A,$B$83,SummaryData!$B:$B,$B89,SummaryData!$C:$C,$R$14)=0,"NA",SUMIFS(SummaryData!$D:$D,SummaryData!$A:$A,$B$83,SummaryData!$B:$B,$B89,SummaryData!$C:$C,$R$14)) -> 1.281863 | T89: =IF(SUMIFS(SummaryData!$E:$E,SummaryData!$A:$A,$B$83,SummaryData!$B:$B,$B89,SummaryData!$C:$C,$R$14)=0,"NA",SUMIFS(SummaryData!$E:$E,SummaryData!$A:$A,$B$83,SummaryData!$B:$B,$B89,SummaryData!$C:$C,$R$14)) -> 1.048206 | U89: =IF(SUMIFS(SummaryData!$F:$F,SummaryData!$A:$A,$B$83,SummaryData!$B:$B,$B89,SummaryData!$C:$C,$R$14)=0,"NA",SUMIFS(SummaryData!$F:$F,SummaryData!$A:$A,$B$83,SummaryData!$B:$B,$B89,SummaryData!$C:$C,$R$14)) -> 1.566779
B90: POVERTY - Ran out of money to buy food in last 12 months
B91: Ran out of money to buy food in last 12 months | C91: =IF(D91="**","",SUMIFS(SummaryData!$D:$D,SummaryData!$A:$A,$B$90,SummaryData!$B:$B,$B91,SummaryData!$C:$C,$C$14)) -> 2.402332 | D91: =IF(SUMIFS(SummaryData!$N:$N,SummaryData!$A:$A,$B$90,SummaryData!$B:$B,$B91,SummaryData!$C:$C,$C$14)>=50,"**",(IF(SUMIFS(SummaryData!$N:$N,SummaryData!$A:$A,$B$90,SummaryData!$B:$B,$B91,SummaryData!$C:$C,$C$14)>25,IF(SUMIFS(SummaryData!$N:$N,SummaryData!$A:$A,$B$90,SummaryData!$B:$B,$B91,SummaryData!$C:$C,$C$14),"*"," ")," "))) -> * | E91: =IF(D91="**","",SUMIFS(SummaryData!$E:$E,SummaryData!$A:$A,$B$90,SummaryData!$B:$B,$B91,SummaryData!$C:$C,$C$14)) -> 1.090359 | F91: =IF(D91="**","",SUMIFS(SummaryData!$F:$F,SummaryData!$A:$A,$B$90,SummaryData!$B:$B,$B91,SummaryData!$C:$C,$C$14)) -> 5.209785 | H91: =IF(I91="**","",SUMIFS(SummaryData!$D:$D,SummaryData!$A:$A,$B$90,SummaryData!$B:$B,$B91,SummaryData!$C:$C,$H$14)) -> 4.519785 | I91: =IF(SUMIFS(SummaryData!$N:$N,SummaryData!$A:$A,$B$90,SummaryData!$B:$B,$B91,SummaryData!$C:$C,$H$14)>=50,"**",(IF(SUMIFS(SummaryData!$N:$N,SummaryData!$A:$A,$B$90,SummaryData!$B:$B,$B91,SummaryData!$C:$C,$H$14)>25,IF(SUMIFS(SummaryData!$N:$N,SummaryData!$A:$A,$B$90,SummaryData!$B:$B,$B91,SummaryData!$C:$C,$H$14),"*"," ")," "))) ->  | J91: =IF(I91="**","",SUMIFS(SummaryData!$E:$E,SummaryData!$A:$A,$B$90,SummaryData!$B:$B,$B91,SummaryData!$C:$C,$H$14)) -> 3.526964 | K91: =IF(I91="**","",SUMIFS(SummaryData!$F:$F,SummaryData!$A:$A,$B$90,SummaryData!$B:$B,$B91,SummaryData!$C:$C,$H$14)) -> 5.775351 | M91: =IF(N91="**","",SUMIFS(SummaryData!$D:$D,SummaryData!$A:$A,$B$90,SummaryData!$B:$B,$B91,SummaryData!$C:$C,$M$14)) -> 5.747315 | N91: =IF(SUMIFS(SummaryData!$N:$N,SummaryData!$A:$A,$B$90,SummaryData!$B:$B,$B91,SummaryData!$C:$C,$M$14)>=50,"**",(IF(SUMIFS(SummaryData!$N:$N,SummaryData!$A:$A,$B$90,SummaryData!$B:$B,$B91,SummaryData!$C:$C,$M$14)>25,IF(SUMIFS(SummaryData!$N:$N,SummaryData!$A:$A,$B$90,SummaryData!$B:$B,$B91,SummaryData!$C:$C,$M$14),"*"," ")," "))) ->  | O91: =IF(N91="**","",SUMIFS(SummaryData!$E:$E,SummaryData!$A:$A,$B$90,SummaryData!$B:$B,$B91,SummaryData!$C:$C,$M$14)) -> 4.871369 | P91: =IF(N91="**","",SUMIFS(SummaryData!$F:$F,SummaryData!$A:$A,$B$90,SummaryData!$B:$B,$B91,SummaryData!$C:$C,$M$14)) -> 6.769561 | R91: =IF(SUMIFS(SummaryData!$D:$D,SummaryData!$A:$A,$B$90,SummaryData!$B:$B,$B91,SummaryData!$C:$C,$R$14)=0,"NA",SUMIFS(SummaryData!$D:$D,SummaryData!$A:$A,$B$90,SummaryData!$B:$B,$B91,SummaryData!$C:$C,$R$14)) -> 5.86546 | T91: =IF(SUMIFS(SummaryData!$E:$E,SummaryData!$A:$A,$B$90,SummaryData!$B:$B,$B91,SummaryData!$C:$C,$R$14)=0,"NA",SUMIFS(SummaryData!$E:$E,SummaryData!$A:$A,$B$90,SummaryData!$B:$B,$B91,SummaryData!$C:$C,$R$14)) -> 5.392801 | U91: =IF(SUMIFS(SummaryData!$F:$F,SummaryData!$A:$A,$B$90,SummaryData!$B:$B,$B91,SummaryData!$C:$C,$R$14)=0,"NA",SUMIFS(SummaryData!$F:$F,SummaryData!$A:$A,$B$90,SummaryData!$B:$B,$B91,SummaryData!$C:$C,$R$14)) -> 6.376755
B95: Data were age-standardised to the 2011 Victorian population.
B96: LL/UL 95% CI = lower/upper limit of 95 per cent confidence interval.
B97: Estimates that are (statistically) significantly different from the corresponding estimate for Victoria are identified by colour as follows: above or below.
B98: Estimates may not add to 100 per cent due to a proportion of 'don't know' or 'refused to say' responses, not reported here.
B99: Relative standard error (RSE) = standard error/point estimate * 100; interpretation below:
B100: * Estimate has a RSE between 25 and 50 per cent and should be interpreted with caution.
B101: ** Estimate has a RSE greater than 50 per cent and is not reported as it is unreliable for general use.

Sheet Estimates by LGA
B7: Select indicator
B8: OBESITY - BMI
C10: =VLOOKUP(B8,Lookup!$CL:$CR,2,FALSE) -> Underweight (BMI < 18.5) | H10: =IF(VLOOKUP(B8,Lookup!$CL:$CR,3,FALSE)=0,"",VLOOKUP(B8,Lookup!$CL:$CR,3,FALSE)) -> Normal weight (18.5 ≥ BMI < 25) | M10: =IF(VLOOKUP(B8,Lookup!$CL:$CR,4,FALSE)=0,"",VLOOKUP(B8,Lookup!$CL:$CR,4,FALSE)) -> Overweight, but not obese (25 ≥ BMI < 30) | R10: =IF(VLOOKUP(B8,Lookup!$CL:$CR,5,FALSE)=0,"",VLOOKUP(B8,Lookup!$CL:$CR,5,FALSE)) -> Obese (BMI ≥ 30) | W10: =IF(VLOOKUP(B8,Lookup!$CL:$CR,6,FALSE)=0,"",VLOOKUP(B8,Lookup!$CL:$CR,6,FALSE)) ->  | AB10: =IF(VLOOKUP(B8,Lookup!$CL:$CR,7,FALSE)=0,"",VLOOKUP(B8,Lookup!$CL:$CR,7,FALSE)) -> 
E11: 95% CI | J11: 95% CI | O11: 95% CI | T11: 95% CI | Y11: 95% CI | AD11: 95% CI
B12: LGA | C12: % | E12: LL | F12: UL | H12: % | J12: LL | K12: UL | M12: % | O12: LL | P12: UL | R12: % | T12: LL | U12: UL | W12: % | Y12: LL | Z12: UL | AB12: % | AD12: LL | AE12: UL
B13: Alpine (S) | C13: =IF(D13="**","",SUMIFS(SummaryData!$D:$D,SummaryData!$A:$A,$B$8,SummaryData!$B:$B,$C$10,SummaryData!$C:$C,$B13)) -> 1.856395 | D13: =IF(SUMIFS(SummaryData!$N:$N,SummaryData!$A:$A,$B$8,SummaryData!$B:$B,$C$10,SummaryData!$C:$C,$B13)>=50,"**", (IF(SUMIFS(SummaryData!$N:$N,SummaryData!$A:$A,$B$8,SummaryData!$B:$B,$C$10,SummaryData!$C:$C,$B$13)>25, IF(SUMIFS(SummaryData!$N:$N,SummaryData!$A:$A,$B$8,SummaryData!$B:$B,$C$10,SummaryData!$C:$C,$B$13)<50,"*"," ")," "))) -> * | E13: =IF(D13="**","",SUMIFS(SummaryData!$E:$E,SummaryData!$A:$A,$B$8,SummaryData!$B:$B,$C$10,SummaryData!$C:$C,$B13)) -> 0.7514866 | F13: =IF(D13="**","",SUMIFS(SummaryData!$F:$F,SummaryData!$A:$A,$B$8,SummaryData!$B:$B,$C$10,SummaryData!$C:$C,$B13)) -> 4.511991 | H13: =IF(I13="**","",SUMIFS(SummaryData!$D:$D,SummaryData!$A:$A,$B$8,SummaryData!$B:$B,$H$10,SummaryData!$C:$C,$B13)) -> 34.00694 | I13: =IF(SUMIFS(SummaryData!$N:$N,SummaryData!$A:$A,$B$8,SummaryData!$B:$B,$H$10,SummaryData!$C:$C,$B13)>=50,"**", (IF(SUMIFS(SummaryData!$N:$N,SummaryData!$A:$A,$B$8,SummaryData!$B:$B,$H$10,SummaryData!$C:$C,$B13)>25, IF(SUMIFS(SummaryData!$N:$N,SummaryData!$A:$A,$B$8,SummaryData!$B:$B,$H$10,SummaryData!$C:$C,$B13)<50,"*"," ")," "))) ->  | J13: =IF(I13="**","",SUMIFS(SummaryData!$E:$E,SummaryData!$A:$A,$B$8,SummaryData!$B:$B,$H$10,SummaryData!$C:$C,$B13)) -> 26.31251 | K13: =IF(I13="**","",SUMIFS(SummaryData!$F:$F,SummaryData!$A:$A,$B$8,SummaryData!$B:$B,$H$10,SummaryData!$C:$C,$B13)) -> 42.64913 | M13: =IF(N13="**","",SUMIFS(SummaryData!$D:$D,SummaryData!$A:$A,$B$8,SummaryData!$B:$B,$M$10,SummaryData!$C:$C,$B13)) -> 32.86016 | N13: =IF(SUMIFS(SummaryData!$N:$N,SummaryData!$A:$A,$B$8,SummaryData!$B:$B,$M$10,SummaryData!$C:$C,$B13)>=50,"**", (IF(SUMIFS(SummaryData!$N:$N,SummaryData!$A:$A,$B$8,SummaryData!$B:$B,$M$10,SummaryData!$C:$C,$B13)>25, IF(SUMIFS(SummaryData!$N:$N,SummaryData!$A:$A,$B$8,SummaryData!$B:$B,$M$10,SummaryData!$C:$C,$B13)<50,"*"," ")," "))) ->  | O13: =IF(N13="**","",SUMIFS(SummaryData!$E:$E,SummaryData!$A:$A,$B$8,SummaryData!$B:$B,$M$10,SummaryData!$C:$C,$B13)) -> 25.03773 | P13: =IF(N13="**","",SUMIFS(SummaryData!$F:$F,SummaryData!$A:$A,$B$8,SummaryData!$B:$B,$M$10,SummaryData!$C:$C,$B13)) -> 41.76488 | R13: =IF(S13="**","",SUMIFS(SummaryData!$D:$D,SummaryData!$A:$A,$B$8,SummaryData!$B:$B,$R$10,SummaryData!$C:$C,$B13)) -> 25.24006 | S13: =IF(SUMIFS(SummaryData!$N:$N,SummaryData!$A:$A,$B$8,SummaryData!$B:$B,$R$10,SummaryData!$C:$C,$B13)>=50,"**", (IF(SUMIFS(SummaryData!$N:$N,SummaryData!$A:$A,$B$8,SummaryData!$B:$B,$R$10,SummaryData!$C:$C,$B13)>25, IF(SUMIFS(SummaryData!$N:$N,SummaryData!$A:$A,$B$8,SummaryData!$B:$B,$R$10,SummaryData!$C:$C,$B13)<50,"*"," ")," "))) ->  | T13: =IF(S13="**","",SUMIFS(SummaryData!$E:$E,SummaryData!$A:$A,$B$8,SummaryData!$B:$B,$R$10,SummaryData!$C:$C,$B13)) -> 18.25036 | U13: =IF(S13="**","",SUMIFS(SummaryData!$F:$F,SummaryData!$A:$A,$B$8,SummaryData!$B:$B,$R$10,SummaryData!$C:$C,$B13)) -> 33.79993 | W13: =IF(X13="**","",SUMIFS(SummaryData!$D:$D,SummaryData!$A:$A,$B$8,SummaryData!$B:$B,$W$10,SummaryData!$C:$C,$B13)) -> 0 | X13: =IF(SUMIFS(SummaryData!$N:$N,SummaryData!$A:$A,$B$8,SummaryData!$B:$B,$W$10,SummaryData!$C:$C,$B13)>=50,"**", (IF(SUMIFS(SummaryData!$N:$N,SummaryData!$A:$A,$B$8,SummaryData!$B:$B,$W$10,SummaryData!$C:$C,$B13)>25, IF(SUMIFS(SummaryData!$N:$N,SummaryData!$A:$A,$B$8,SummaryData!$B:$B,$W$10,SummaryData!$C:$C,$B13)<50,"*"," ")," "))) ->  | Y13: =IF(X13="**","",SUMIFS(SummaryData!$E:$E,SummaryData!$A:$A,$B$8,SummaryData!$B:$B,$W$10,SummaryData!$C:$C,$B13)) -> 0 | Z13: =IF(X13="**","",SUMIFS(SummaryData!$F:$F,SummaryData!$A:$A,$B$8,SummaryData!$B:$B,$W$10,SummaryData!$C:$C,$B13)) -> 0 | AB13: =IF(AC13="**","",SUMIFS(SummaryData!$D:$D,SummaryData!$A:$A,$B$8,SummaryData!$B:$B,$AB$10,SummaryData!$C:$C,$B13)) -> 0 | AC13: =IF(SUMIFS(SummaryData!$N:$N,SummaryData!$A:$A,$B$8,SummaryData!$B:$B,$AB$10,SummaryData!$C:$C,$B13)>=50,"**", (IF(SUMIFS(SummaryData!$N:$N,SummaryData!$A:$A,$B$8,SummaryData!$B:$B,$AB$10,SummaryData!$C:$C,$B13)>25, IF(SUMIFS(SummaryData!$N:$N,SummaryData!$A:$A,$B$8,SummaryData!$B:$B,$AB$10,SummaryData!$C:$C,$B13)<50,"*"," ")," "))) ->  | AD13: =IF(AC13="**","",SUMIFS(SummaryData!$E:$E,SummaryData!$A:$A,$B$8,SummaryData!$B:$B,$AB$10,SummaryData!$C:$C,$B13)) -> 0 | AE13: =IF(AC13="**","",SUMIFS(SummaryData!$F:$F,SummaryData!$A:$A,$B$8,SummaryData!$B:$B,$AB$10,SummaryData!$C:$C,$B13)) -> 0
B14: Ararat (RC) | C14: =IF(D14="**","",SUMIFS(SummaryData!$D:$D,SummaryData!$A:$A,$B$8,SummaryData!$B:$B,$C$10,SummaryData!$C:$C,$B14)) ->  | D14: =IF(SUMIFS(SummaryData!$N:$N,SummaryData!$A:$A,$B$8,SummaryData!$B:$B,$C$10,SummaryData!$C:$C,$B14)>=50,"**", (IF(SUMIFS(SummaryData!$N:$N,SummaryData!$A:$A,$B$8,SummaryData!$B:$B,$C$10,SummaryData!$C:$C,$B$13)>25, IF(SUMIFS(SummaryData!$N:$N,SummaryData!$A:$A,$B$8,SummaryData!$B:$B,$C$10,SummaryData!$C:$C,$B$13)<50,"*"," ")," "))) -> ** | E14: =IF(D14="**","",SUMIFS(SummaryData!$E:$E,SummaryData!$A:$A,$B$8,SummaryData!$B:$B,$C$10,SummaryData!$C:$C,$B14)) ->  | F14: =IF(D14="**","",SUMIFS(SummaryData!$F:$F,SummaryData!$A:$A,$B$8,SummaryData!$B:$B,$C$10,SummaryData!$C:$C,$B14)) ->  | H14: =IF(I14="**","",SUMIFS(SummaryData!$D:$D,SummaryData!$A:$A,$B$8,SummaryData!$B:$B,$H$10,SummaryData!$C:$C,$B14)) -> 23.65268 | I14: =IF(SUMIFS(SummaryData!$N:$N,SummaryData!$A:$A,$B$8,SummaryData!$B:$B,$H$10,SummaryData!$C:$C,$B14)>=50,"**", (IF(SUMIFS(SummaryData!$N:$N,SummaryData!$A:$A,$B$8,SummaryData!$B:$B,$H$10,SummaryData!$C:$C,$B14)>25, IF(SUMIFS(SummaryData!$N:$N,SummaryData!$A:$A,$B$8,SummaryData!$B:$B,$H$10,SummaryData!$C:$C,$B14)<50,"*"," ")," "))) ->  | J14: =IF(I14="**","",SUMIFS(SummaryData!$E:$E,SummaryData!$A:$A,$B$8,SummaryData!$B:$B,$H$10,SummaryData!$C:$C,$B14)) -> 17.30286 | K14: =IF(I14="**","",SUMIFS(SummaryData!$F:$F,SummaryData!$A:$A,$B$8,SummaryData!$B:$B,$H$10,SummaryData!$C:$C,$B14)) -> 31.44665 | M14: =IF(N14="**","",SUMIFS(SummaryData!$D:$D,SummaryData!$A:$A,$B$8,SummaryData!$B:$B,$M$10,SummaryData!$C:$C,$B14)) -> 36.90917 | N14: =IF(SUMIFS(SummaryData!$N:$N,SummaryData!$A:$A,$B$8,SummaryData!$B:$B,$M$10,SummaryData!$C:$C,$B14)>=50,"**", (IF(SUMIFS(SummaryData!$N:$N,SummaryData!$A:$A,$B$8,SummaryData!$B:$B,$M$10,SummaryData!$C:$C,$B14)>25, IF(SUMIFS(SummaryData!$N:$N,SummaryData!$A:$A,$B$8,SummaryData!$B:$B,$M$10,SummaryData!$C:$C,$B14)<50,"*"," ")," "))) ->  | O14: =IF(N14="**","",SUMIFS(SummaryData!$E:$E,SummaryData!$A:$A,$B$8,SummaryData!$B:$B,$M$10,SummaryData!$C:$C,$B14)) -> 29.33613 | P14: =IF(N14="**","",SUMIFS(SummaryData!$F:$F,SummaryData!$A:$A,$B$8,SummaryData!$B:$B,$M$10,SummaryData!$C:$C,$B14)) -> 45.18703 | R14: =IF(S14="**","",SUMIFS(SummaryData!$D:$D,SummaryData!$A:$A,$B$8,SummaryData!$B:$B,$R$10,SummaryData!$C:$C,$B14)) -> 28.73454 | S14: =IF(SUMIFS(SummaryData!$N:$N,SummaryData!$A:$A,$B$8,SummaryData!$B:$B,$R$10,SummaryData!$C:$C,$B14)>=50,"**", (IF(SUMIFS(SummaryData!$N:$N,SummaryData!$A:$A,$B$8,SummaryData!$B:$B,$R$10,SummaryData!$C:$C,$B14)>25, IF(SUMIFS(SummaryData!$N:$N,SummaryData!$A:$A,$B$8,SummaryData!$B:$B,$R$10,SummaryData!$C:$C,$B14)<50,"*"," ")," "))) ->  | T14: =IF(S14="**","",SUMIFS(SummaryData!$E:$E,SummaryData!$A:$A,$B$8,SummaryData!$B:$B,$R$10,SummaryData!$C:$C,$B14)) -> 23.62045 | U14: =IF(S14="**","",SUMIFS(SummaryData!$F:$F,SummaryData!$A:$A,$B$8,SummaryData!$B:$B,$R$10,SummaryData!$C:$C,$B14)) -> 34.45637 | W14: =IF(X14="**","",SUMIFS(SummaryData!$D:$D,SummaryData!$A:$A,$B$8,SummaryData!$B:$B,$W$10,SummaryData!$C:$C,$B14)) -> 0 | X14: =IF(SUMIFS(SummaryData!$N:$N,SummaryData!$A:$A,$B$8,SummaryData!$B:$B,$W$10,SummaryData!$C:$C,$B14)>=50,"**", (IF(SUMIFS(SummaryData!$N:$N,SummaryData!$A:$A,$B$8,SummaryData!$B:$B,$W$10,SummaryData!$C:$C,$B14)>25, IF(SUMIFS(SummaryData!$N:$N,SummaryData!$A:$A,$B$8,SummaryData!$B:$B,$W$10,SummaryData!$C:$C,$B14)<50,"*"," ")," "))) ->  | Y14: =IF(X14="**","",SUMIFS(SummaryData!$E:$E,SummaryData!$A:$A,$B$8,SummaryData!$B:$B,$W$10,SummaryData!$C:$C,$B14)) -> 0 | Z14: =IF(X14="**","",SUMIFS(SummaryData!$F:$F,SummaryData!$A:$A,$B$8,SummaryData!$B:$B,$W$10,SummaryData!$C:$C,$B14)) -> 0 | AB14: =IF(AC14="**","",SUMIFS(SummaryData!$D:$D,SummaryData!$A:$A,$B$8,SummaryData!$B:$B,$AB$10,SummaryData!$C:$C,$B14)) -> 0 | AC14: =IF(SUMIFS(SummaryData!$N:$N,SummaryData!$A:$A,$B$8,SummaryData!$B:$B,$AB$10,SummaryData!$C:$C,$B14)>=50,"**", (IF(SUMIFS(SummaryData!$N:$N,SummaryData!$A:$A,$B$8,SummaryData!$B:$B,$AB$10,SummaryData!$C:$C,$B14)>25, IF(SUMIFS(SummaryData!$N:$N,SummaryData!$A:$A,$B$8,SummaryData!$B:$B,$AB$10,SummaryData!$C:$C,$B14)<50,"*"," ")," "))) ->  | AD14: =IF(AC14="**","",SUMIFS(SummaryData!$E:$E,SummaryData!$A:$A,$B$8,SummaryData!$B:$B,$AB$10,SummaryData!$C:$C,$B14)) -> 0 | AE14: =IF(AC14="**","",SUMIFS(SummaryData!$F:$F,SummaryData!$A:$A,$B$8,SummaryData!$B:$B,$AB$10,SummaryData!$C:$C,$B14)) -> 0
B15: Ballarat (C) | C15: =IF(D15="**","",SUMIFS(SummaryData!$D:$D,SummaryData!$A:$A,$B$8,SummaryData!$B:$B,$C$10,SummaryData!$C:$C,$B15)) ->  | D15: =IF(SUMIFS(SummaryData!$N:$N,SummaryData!$A:$A,$B$8,SummaryData!$B:$B,$C$10,SummaryData!$C:$C,$B15)>=50,"**", (IF(SUMIFS(SummaryData!$N:$N,SummaryData!$A:$A,$B$8,SummaryData!$B:$B,$C$10,SummaryData!$C:$C,$B$13)>25, IF(SUMIFS(SummaryData!$N:$N,SummaryData!$A:$A,$B$8,SummaryData!$B:$B,$C$10,SummaryData!$C:$C,$B$13)<50,"*"," ")," "))) -> ** | E15: =IF(D15="**","",SUMIFS(SummaryData!$E:$E,SummaryData!$A:$A,$B$8,SummaryData!$B:$B,$C$10,SummaryData!$C:$C,$B15)) ->  | F15: =IF(D15="**","",SUMIFS(SummaryData!$F:$F,SummaryData!$A:$A,$B$8,SummaryData!$B:$B,$C$10,SummaryData!$C:$C,$B15)) ->  | H15: =IF(I15="**","",SUMIFS(SummaryData!$D:$D,SummaryData!$A:$A,$B$8,SummaryData!$B:$B,$H$10,SummaryData!$C:$C,$B15)) -> 28.62611 | I15: =IF(SUMIFS(SummaryData!$N:$N,SummaryData!$A:$A,$B$8,SummaryData!$B:$B,$H$10,SummaryData!$C:$C,$B15)>=50,"**", (IF(SUMIFS(SummaryData!$N:$N,SummaryData!$A:$A,$B$8,SummaryData!$B:$B,$H$10,SummaryData!$C:$C,$B15)>25, IF(SUMIFS(SummaryData!$N:$N,SummaryData!$A:$A,$B$8,SummaryData!$B:$B,$H$10,SummaryData!$C:$C,$B15)<50,"*"," ")," "))) ->  | J15: =IF(I15="**","",SUMIFS(SummaryData!$E:$E,SummaryData!$A:$A,$B$8,SummaryData!$B:$B,$H$10,SummaryData!$C:$C,$B15)) -> 23.3061 | K15: =IF(I15="**","",SUMIFS(SummaryData!$F:$F,SummaryData!$A:$A,$B$8,SummaryData!$B:$B,$H$10,SummaryData!$C:$C,$B15)) -> 34.61244 | M15: =IF(N15="**","",SUMIFS(SummaryData!$D:$D,SummaryData!$A:$A,$B$8,SummaryData!$B:$B,$M$10,SummaryData!$C:$C,$B15)) -> 32.28166 | N15: =IF(SUMIFS(SummaryData!$N:$N,SummaryData!$A:$A,$B$8,SummaryData!$B:$B,$M$10,SummaryData!$C:$C,$B15)>=50,"**", (IF(SUMIFS(SummaryData!$N:$N,SummaryData!$A:$A,$B$8,SummaryData!$B:$B,$M$10,SummaryData!$C:$C,$B15)>25, IF(SUMIFS(SummaryData!$N:$N,SummaryData!$A:$A,$B$8,SummaryData!$B:$B,$M$10,SummaryData!$C:$C,$B15)<50,"*"," ")," "))) ->  | O15: =IF(N15="**","",SUMIFS(SummaryData!$E:$E,SummaryData!$A:$A,$B$8,SummaryData!$B:$B,$M$10,SummaryData!$C:$C,$B15)) -> 26.62548 | P15: =IF(N15="**","",SUMIFS(SummaryData!$F:$F,SummaryData!$A:$A,$B$8,SummaryData!$B:$B,$M$10,SummaryData!$C:$C,$B15)) -> 38.50879 | R15: =IF(S15="**","",SUMIFS(SummaryData!$D:$D,SummaryData!$A:$A,$B$8,SummaryData!$B:$B,$R$10,SummaryData!$C:$C,$B15)) -> 28.65878 | S15: =IF(SUMIFS(SummaryData!$N:$N,SummaryData!$A:$A,$B$8,SummaryData!$B:$B,$R$10,SummaryData!$C:$C,$B15)>=50,"**", (IF(SUMIFS(SummaryData!$N:$N,SummaryData!$A:$A,$B$8,SummaryData!$B:$B,$R$10,SummaryData!$C:$C,$B15)>25, IF(SUMIFS(SummaryData!$N:$N,SummaryData!$A:$A,$B$8,SummaryData!$B:$B,$R$10,SummaryData!$C:$C,$B15)<50,"*"," ")," "))) ->  | T15: =IF(S15="**","",SUMIFS(SummaryData!$E:$E,SummaryData!$A:$A,$B$8,SummaryData!$B:$B,$R$10,SummaryData!$C:$C,$B15)) -> 23.34783 | U15: =IF(S15="**","",SUMIFS(SummaryData!$F:$F,SummaryData!$A:$A,$B$8,SummaryData!$B:$B,$R$10,SummaryData!$C:$C,$B15)) -> 34.632 | W15: =IF(X15="**","",SUMIFS(SummaryData!$D:$D,SummaryData!$A:$A,$B$8,SummaryData!$B:$B,$W$10,SummaryData!$C:$C,$B15)) -> 0 | X15: =IF(SUMIFS(SummaryData!$N:$N,SummaryData!$A:$A,$B$8,SummaryData!$B:$B,$W$10,SummaryData!$C:$C,$B15)>=50,"**", (IF(SUMIFS(SummaryData!$N:$N,SummaryData!$A:$A,$B$8,SummaryData!$B:$B,$W$10,SummaryData!$C:$C,$B15)>25, IF(SUMIFS(SummaryData!$N:$N,SummaryData!$A:$A,$B$8,SummaryData!$B:$B,$W$10,SummaryData!$C:$C,$B15)<50,"*"," ")," "))) ->  | Y15: =IF(X15="**","",SUMIFS(SummaryData!$E:$E,SummaryData!$A:$A,$B$8,SummaryData!$B:$B,$W$10,SummaryData!$C:$C,$B15)) -> 0 | Z15: =IF(X15="**","",SUMIFS(SummaryData!$F:$F,SummaryData!$A:$A,$B$8,SummaryData!$B:$B,$W$10,SummaryData!$C:$C,$B15)) -> 0 | AB15: =IF(AC15="**","",SUMIFS(SummaryData!$D:$D,SummaryData!$A:$A,$B$8,SummaryData!$B:$B,$AB$10,SummaryData!$C:$C,$B15)) -> 0 | AC15: =IF(SUMIFS(SummaryData!$N:$N,SummaryData!$A:$A,$B$8,SummaryData!$B:$B,$AB$10,SummaryData!$C:$C,$B15)>=50,"**", (IF(SUMIFS(SummaryData!$N:$N,SummaryData!$A:$A,$B$8,SummaryData!$B:$B,$AB$10,SummaryData!$C:$C,$B15)>25, IF(SUMIFS(SummaryData!$N:$N,SummaryData!$A:$A,$B$8,SummaryData!$B:$B,$AB$10,SummaryData!$C:$C,$B15)<50,"*"," ")," "))) ->  | AD15: =IF(AC15="**","",SUMIFS(SummaryData!$E:$E,SummaryData!$A:$A,$B$8,SummaryData!$B:$B,$AB$10,SummaryData!$C:$C,$B15)) -> 0 | AE15: =IF(AC15="**","",SUMIFS(SummaryData!$F:$F,SummaryData!$A:$A,$B$8,SummaryData!$B:$B,$AB$10,SummaryData!$C:$C,$B15)) -> 0
B16: Banyule (C) | C16: =IF(D16="**","",SUMIFS(SummaryData!$D:$D,SummaryData!$A:$A,$B$8,SummaryData!$B:$B,$C$10,SummaryData!$C:$C,$B16)) ->  | D16: =IF(SUMIFS(SummaryData!$N:$N,SummaryData!$A:$A,$B$8,SummaryData!$B:$B,$C$10,SummaryData!$C:$C,$B16)>=50,"**", (IF(SUMIFS(SummaryData!$N:$N,SummaryData!$A:$A,$B$8,SummaryData!$B:$B,$C$10,SummaryData!$C:$C,$B$13)>25, IF(SUMIFS(SummaryData!$N:$N,SummaryData!$A:$A,$B$8,SummaryData!$B:$B,$C$10,SummaryData!$C:$C,$B$13)<50,"*"," ")," "))) -> ** | E16: =IF(D16="**","",SUMIFS(SummaryData!$E:$E,SummaryData!$A:$A,$B$8,SummaryData!$B:$B,$C$10,SummaryData!$C:$C,$B16)) ->  | F16: =IF(D16="**","",SUMIFS(SummaryData!$F:$F,SummaryData!$A:$A,$B$8,SummaryData!$B:$B,$C$10,SummaryData!$C:$C,$B16)) ->  | H16: =IF(I16="**","",SUMIFS(SummaryData!$D:$D,SummaryData!$A:$A,$B$8,SummaryData!$B:$B,$H$10,SummaryData!$C:$C,$B16)) -> 39.18561 | I16: =IF(SUMIFS(SummaryData!$N:$N,SummaryData!$A:$A,$B$8,SummaryData!$B:$B,$H$10,SummaryData!$C:$C,$B16)>=50,"**", (IF(SUMIFS(SummaryData!$N:$N,SummaryData!$A:$A,$B$8,SummaryData!$B:$B,$H$10,SummaryData!$C:$C,$B16)>25, IF(SUMIFS(SummaryData!$N:$N,SummaryData!$A:$A,$B$8,SummaryData!$B:$B,$H$10,SummaryData!$C:$C,$B16)<50,"*"," ")," "))) ->  | J16: =IF(I16="**","",SUMIFS(SummaryData!$E:$E,SummaryData!$A:$A,$B$8,SummaryData!$B:$B,$H$10,SummaryData!$C:$C,$B16)) -> 33.27841 | K16: =IF(I16="**","",SUMIFS(SummaryData!$F:$F,SummaryData!$A:$A,$B$8,SummaryData!$B:$B,$H$10,SummaryData!$C:$C,$B16)) -> 45.42746 | M16: =IF(N16="**","",SUMIFS(SummaryData!$D:$D,SummaryData!$A:$A,$B$8,SummaryData!$B:$B,$M$10,SummaryData!$C:$C,$B16)) -> 34.2304 | N16: =IF(SUMIFS(SummaryData!$N:$N,SummaryData!$A:$A,$B$8,SummaryData!$B:$B,$M$10,SummaryData!$C:$C,$B16)>=50,"**", (IF(SUMIFS(SummaryData!$N:$N,SummaryData!$A:$A,$B$8,SummaryData!$B:$B,$M$10,SummaryData!$C:$C,$B16)>25, IF(SUMIFS(SummaryData!$N:$N,SummaryData!$A:$A,$B$8,SummaryData!$B:$B,$M$10,SummaryData!$C:$C,$B16)<50,"*"," ")," "))) ->  | O16: =IF(N16="**","",SUMIFS(SummaryData!$E:$E,SummaryData!$A:$A,$B$8,SummaryData!$B:$B,$M$10,SummaryData!$C:$C,$B16)) -> 28.42782 | P16: =IF(N16="**","",SUMIFS(SummaryData!$F:$F,SummaryData!$A:$A,$B$8,SummaryData!$B:$B,$M$10,SummaryData!$C:$C,$B16)) -> 40.54642 | R16: =IF(S16="**","",SUMIFS(SummaryData!$D:$D,SummaryData!$A:$A,$B$8,SummaryData!$B:$B,$R$10,SummaryData!$C:$C,$B16)) -> 17.25578 | S16: =IF(SUMIFS(SummaryData!$N:$N,SummaryData!$A:$A,$B$8,SummaryData!$B:$B,$R$10,SummaryData!$C:$C,$B16)>=50,"**", (IF(SUMIFS(SummaryData!$N:$N,SummaryData!$A:$A,$B$8,SummaryData!$B:$B,$R$10,SummaryData!$C:$C,$B16)>25, IF(SUMIFS(SummaryData!$N:$N,SummaryData!$A:$A,$B$8,SummaryData!$B:$B,$R$10,SummaryData!$C:$C,$B16)<50,"*"," ")," "))) ->  | T16: =IF(S16="**","",SUMIFS(SummaryData!$E:$E,SummaryData!$A:$A,$B$8,SummaryData!$B:$B,$R$10,SummaryData!$C:$C,$B16)) -> 13.13018 | U16: =IF(S16="**","",SUMIFS(SummaryData!$F:$F,SummaryData!$A:$A,$B$8,SummaryData!$B:$B,$R$10,SummaryData!$C:$C,$B16)) -> 22.34424 | W16: =IF(X16="**","",SUMIFS(SummaryData!$D:$D,SummaryData!$A:$A,$B$8,SummaryData!$B:$B,$W$10,SummaryData!$C:$C,$B16)) -> 0 | X16: =IF(SUMIFS(SummaryData!$N:$N,SummaryData!$A:$A,$B$8,SummaryData!$B:$B,$W$10,SummaryData!$C:$C,$B16)>=50,"**", (IF(SUMIFS(SummaryData!$N:$N,SummaryData!$A:$A,$B$8,SummaryData!$B:$B,$W$10,SummaryData!$C:$C,$B16)>25, IF(SUMIFS(SummaryData!$N:$N,SummaryData!$A:$A,$B$8,SummaryData!$B:$B,$W$10,SummaryData!$C:$C,$B16)<50,"*"," ")," "))) ->  | Y16: =IF(X16="**","",SUMIFS(SummaryData!$E:$E,SummaryData!$A:$A,$B$8,SummaryData!$B:$B,$W$10,SummaryData!$C:$C,$B16)) -> 0 | Z16: =IF(X16="**","",SUMIFS(SummaryData!$F:$F,SummaryData!$A:$A,$B$8,SummaryData!$B:$B,$W$10,SummaryData!$C:$C,$B16)) -> 0 | AB16: =IF(AC16="**","",SUMIFS(SummaryData!$D:$D,SummaryData!$A:$A,$B$8,SummaryData!$B:$B,$AB$10,SummaryData!$C:$C,$B16)) -> 0 | AC16: =IF(SUMIFS(SummaryData!$N:$N,SummaryData!$A:$A,$B$8,SummaryData!$B:$B,$AB$10,SummaryData!$C:$C,$B16)>=50,"**", (IF(SUMIFS(SummaryData!$N:$N,SummaryData!$A:$A,$B$8,SummaryData!$B:$B,$AB$10,SummaryData!$C:$C,$B16)>25, IF(SUMIFS(SummaryData!$N:$N,SummaryData!$A:$A,$B$8,SummaryData!$B:$B,$AB$10,SummaryData!$C:$C,$B16)<50,"*"," ")," "))) ->  | AD16: =IF(AC16="**","",SUMIFS(SummaryData!$E:$E,SummaryData!$A:$A,$B$8,SummaryData!$B:$B,$AB$10,SummaryData!$C:$C,$B16)) -> 0 | AE16: =IF(AC16="**","",SUMIFS(SummaryData!$F:$F,SummaryData!$A:$A,$B$8,SummaryData!$B:$B,$AB$10,SummaryData!$C:$C,$B16)) -> 0
B17: Bass Coast (S) | C17: =IF(D17="**","",SUMIFS(SummaryData!$D:$D,SummaryData!$A:$A,$B$8,SummaryData!$B:$B,$C$10,SummaryData!$C:$C,$B17)) ->  | D17: =IF(SUMIFS(SummaryData!$N:$N,SummaryData!$A:$A,$B$8,SummaryData!$B:$B,$C$10,SummaryData!$C:$C,$B17)>=50,"**", (IF(SUMIFS(SummaryData!$N:$N,SummaryData!$A:$A,$B$8,SummaryData!$B:$B,$C$10,SummaryData!$C:$C,$B$13)>25, IF(SUMIFS(SummaryData!$N:$N,SummaryData!$A:$A,$B$8,SummaryData!$B:$B,$C$10,SummaryData!$C:$C,$B$13)<50,"*"," ")," "))) -> ** | E17: =IF(D17="**","",SUMIFS(SummaryData!$E:$E,SummaryData!$A:$A,$B$8,SummaryData!$B:$B,$C$10,SummaryData!$C:$C,$B17)) ->  | F17: =IF(D17="**","",SUMIFS(SummaryData!$F:$F,SummaryData!$A:$A,$B$8,SummaryData!$B:$B,$C$10,SummaryData!$C:$C,$B17)) ->  | H17: =IF(I17="**","",SUMIFS(SummaryData!$D:$D,SummaryData!$A:$A,$B$8,SummaryData!$B:$B,$H$10,SummaryData!$C:$C,$B17)) -> 38.32828 | I17: =IF(SUMIFS(SummaryData!$N:$N,SummaryData!$A:$A,$B$8,SummaryData!$B:$B,$H$10,SummaryData!$C:$C,$B17)>=50,"**", (IF(SUMIFS(SummaryData!$N:$N,SummaryData!$A:$A,$B$8,SummaryData!$B:$B,$H$10,SummaryData!$C:$C,$B17)>25, IF(SUMIFS(SummaryData!$N:$N,SummaryData!$A:$A,$B$8,SummaryData!$B:$B,$H$10,SummaryData!$C:$C,$B17)<50,"*"," ")," "))) ->  | J17: =IF(I17="**","",SUMIFS(SummaryData!$E:$E,SummaryData!$A:$A,$B$8,SummaryData!$B:$B,$H$10,SummaryData!$C:$C,$B17)) -> 29.71964 | K17: =IF(I17="**","",SUMIFS(SummaryData!$F:$F,SummaryData!$A:$A,$B$8,SummaryData!$B:$B,$H$10,SummaryData!$C:$C,$B17)) -> 47.73679 | M17: =IF(N17="**","",SUMIFS(SummaryData!$D:$D,SummaryData!$A:$A,$B$8,SummaryData!$B:$B,$M$10,SummaryData!$C:$C,$B17)) -> 24.20968 | N17: =IF(SUMIFS(SummaryData!$N:$N,SummaryData!$A:$A,$B$8,SummaryData!$B:$B,$M$10,SummaryData!$C:$C,$B17)>=50,"**", (IF(SUMIFS(SummaryData!$N:$N,SummaryData!$A:$A,$B$8,SummaryData!$B:$B,$M$10,SummaryData!$C:$C,$B17)>25, IF(SUMIFS(SummaryData!$N:$N,SummaryData!$A:$A,$B$8,SummaryData!$B:$B,$M$10,SummaryData!$C:$C,$B17)<50,"*"," ")," "))) ->  | O17: =IF(N17="**","",SUMIFS(SummaryData!$E:$E,SummaryData!$A:$A,$B$8,SummaryData!$B:$B,$M$10,SummaryData!$C:$C,$B17)) -> 19.23273 | P17: =IF(N17="**","",SUMIFS(SummaryData!$F:$F,SummaryData!$A:$A,$B$8,SummaryData!$B:$B,$M$10,SummaryData!$C:$C,$B17)) -> 29.99622 | R17: =IF(S17="**","",SUMIFS(SummaryData!$D:$D,SummaryData!$A:$A,$B$8,SummaryData!$B:$B,$R$10,SummaryData!$C:$C,$B17)) -> 24.05678 | S17: =IF(SUMIFS(SummaryData!$N:$N,SummaryData!$A:$A,$B$8,SummaryData!$B:$B,$R$10,SummaryData!$C:$C,$B17)>=50,"**", (IF(SUMIFS(SummaryData!$N:$N,SummaryData!$A:$A,$B$8,SummaryData!$B:$B,$R$10,SummaryData!$C:$C,$B17)>25, IF(SUMIFS(SummaryData!$N:$N,SummaryData!$A:$A,$B$8,SummaryData!$B:$B,$R$10,SummaryData!$C:$C,$B17)<50,"*"," ")," "))) ->  | T17: =IF(S17="**","",SUMIFS(SummaryData!$E:$E,SummaryData!$A:$A,$B$8,SummaryData!$B:$B,$R$10,SummaryData!$C:$C,$B17)) -> 17.44707 | U17: =IF(S17="**","",SUMIFS(SummaryData!$F:$F,SummaryData!$A:$A,$B$8,SummaryData!$B:$B,$R$10,SummaryData!$C:$C,$B17)) -> 32.19401 | W17: =IF(X17="**","",SUMIFS(SummaryData!$D:$D,SummaryData!$A:$A,$B$8,SummaryData!$B:$B,$W$10,SummaryData!$C:$C,$B17)) -> 0 | X17: =IF(SUMIFS(SummaryData!$N:$N,SummaryData!$A:$A,$B$8,SummaryData!$B:$B,$W$10,SummaryData!$C:$C,$B17)>=50,"**", (IF(SUMIFS(SummaryData!$N:$N,SummaryData!$A:$A,$B$8,SummaryData!$B:$B,$W$10,SummaryData!$C:$C,$B17)>25, IF(SUMIFS(SummaryData!$N:$N,SummaryData!$A:$A,$B$8,SummaryData!$B:$B,$W$10,SummaryData!$C:$C,$B17)<50,"*"," ")," "))) ->  | Y17: =IF(X17="**","",SUMIFS(SummaryData!$E:$E,SummaryData!$A:$A,$B$8,SummaryData!$B:$B,$W$10,SummaryData!$C:$C,$B17)) -> 0 | Z17: =IF(X17="**","",SUMIFS(SummaryData!$F:$F,SummaryData!$A:$A,$B$8,SummaryData!$B:$B,$W$10,SummaryData!$C:$C,$B17)) -> 0 | AB17: =IF(AC17="**","",SUMIFS(SummaryData!$D:$D,SummaryData!$A:$A,$B$8,SummaryData!$B:$B,$AB$10,SummaryData!$C:$C,$B17)) -> 0 | AC17: =IF(SUMIFS(SummaryData!$N:$N,SummaryData!$A:$A,$B$8,SummaryData!$B:$B,$AB$10,SummaryData!$C:$C,$B17)>=50,"**", (IF(SUMIFS(SummaryData!$N:$N,SummaryData!$A:$A,$B$8,SummaryData!$B:$B,$AB$10,SummaryData!$C:$C,$B17)>25, IF(SUMIFS(SummaryData!$N:$N,SummaryData!$A:$A,$B$8,SummaryData!$B:$B,$AB$10,SummaryData!$C:$C,$B17)<50,"*"," ")," "))) ->  | AD17: =IF(AC17="**","",SUMIFS(SummaryData!$E:$E,SummaryData!$A:$A,$B$8,SummaryData!$B:$B,$AB$10,SummaryData!$C:$C,$B17)) -> 0 | AE17: =IF(AC17="**","",SUMIFS(SummaryData!$F:$F,SummaryData!$A:$A,$B$8,SummaryData!$B:$B,$AB$10,SummaryData!$C:$C,$B17)) -> 0
B18: Baw Baw (S) | C18: =IF(D18="**","",SUMIFS(SummaryData!$D:$D,SummaryData!$A:$A,$B$8,SummaryData!$B:$B,$C$10,SummaryData!$C:$C,$B18)) ->  | D18: =IF(SUMIFS(SummaryData!$N:$N,SummaryData!$A:$A,$B$8,SummaryData!$B:$B,$C$10,SummaryData!$C:$C,$B18)>=50,"**", (IF(SUMIFS(SummaryData!$N:$N,SummaryData!$A:$A,$B$8,SummaryData!$B:$B,$C$10,SummaryData!$C:$C,$B$13)>25, IF(SUMIFS(SummaryData!$N:$N,SummaryData!$A:$A,$B$8,SummaryData!$B:$B,$C$10,SummaryData!$C:$C,$B$13)<50,"*"," ")," "))) -> ** | E18: =IF(D18="**","",SUMIFS(SummaryData!$E:$E,SummaryData!$A:$A,$B$8,SummaryData!$B:$B,$C$10,SummaryData!$C:$C,$B18)) ->  | F18: =IF(D18="**","",SUMIFS(SummaryData!$F:$F,SummaryData!$A:$A,$B$8,SummaryData!$B:$B,$C$10,SummaryData!$C:$C,$B18)) ->  | H18: =IF(I18="**","",SUMIFS(SummaryData!$D:$D,SummaryData!$A:$A,$B$8,SummaryData!$B:$B,$H$10,SummaryData!$C:$C,$B18)) -> 31.53544 | I18: =IF(SUMIFS(SummaryData!$N:$N,SummaryData!$A:$A,$B$8,SummaryData!$B:$B,$H$10,SummaryData!$C:$C,$B18)>=50,"**", (IF(SUMIFS(SummaryData!$N:$N,SummaryData!$A:$A,$B$8,SummaryData!$B:$B,$H$10,SummaryData!$C:$C,$B18)>25, IF(SUMIFS(SummaryData!$N:$N,SummaryData!$A:$A,$B$8,SummaryData!$B:$B,$H$10,SummaryData!$C:$C,$B18)<50,"*"," ")," "))) ->  | J18: =IF(I18="**","",SUMIFS(SummaryData!$E:$E,SummaryData!$A:$A,$B$8,SummaryData!$B:$B,$H$10,SummaryData!$C:$C,$B18)) -> 25.2632 | K18: =IF(I18="**","",SUMIFS(SummaryData!$F:$F,SummaryData!$A:$A,$B$8,SummaryData!$B:$B,$H$10,SummaryData!$C:$C,$B18)) -> 38.56143 | M18: =IF(N18="**","",SUMIFS(SummaryData!$D:$D,SummaryData!$A:$A,$B$8,SummaryData!$B:$B,$M$10,SummaryData!$C:$C,$B18)) -> 34.36917 | N18: =IF(SUMIFS(SummaryData!$N:$N,SummaryData!$A:$A,$B$8,SummaryData!$B:$B,$M$10,SummaryData!$C:$C,$B18)>=50,"**", (IF(SUMIFS(SummaryData!$N:$N,SummaryData!$A:$A,$B$8,SummaryData!$B:$B,$M$10,SummaryData!$C:$C,$B18)>25, IF(SUMIFS(SummaryData!$N:$N,SummaryData!$A:$A,$B$8,SummaryData!$B:$B,$M$10,SummaryData!$C:$C,$B18)<50,"*"," ")," "))) ->  | O18: =IF(N18="**","",SUMIFS(SummaryData!$E:$E,SummaryData!$A:$A,$B$8,SummaryData!$B:$B,$M$10,SummaryData!$C:$C,$B18)) -> 27.95554 | P18: =IF(N18="**","",SUMIFS(SummaryData!$F:$F,SummaryData!$A:$A,$B$8,SummaryData!$B:$B,$M$10,SummaryData!$C:$C,$B18)) -> 41.40851 | R18: =IF(S18="**","",SUMIFS(SummaryData!$D:$D,SummaryData!$A:$A,$B$8,SummaryData!$B:$B,$R$10,SummaryData!$C:$C,$B18)) -> 25.90177 | S18: =IF(SUMIFS(SummaryData!$N:$N,SummaryData!$A:$A,$B$8,SummaryData!$B:$B,$R$10,SummaryData!$C:$C,$B18)>=50,"**", (IF(SUMIFS(SummaryData!$N:$N,SummaryData!$A:$A,$B$8,SummaryData!$B:$B,$R$10,SummaryData!$C:$C,$B18)>25, IF(SUMIFS(SummaryData!$N:$N,SummaryData!$A:$A,$B$8,SummaryData!$B:$B,$R$10,SummaryData!$C:$C,$B18)<50,"*"," ")," "))) ->  | T18: =IF(S18="**","",SUMIFS(SummaryData!$E:$E,SummaryData!$A:$A,$B$8,SummaryData!$B:$B,$R$10,SummaryData!$C:$C,$B18)) -> 20.44759 | U18: =IF(S18="**","",SUMIFS(SummaryData!$F:$F,SummaryData!$A:$A,$B$8,SummaryData!$B:$B,$R$10,SummaryData!$C:$C,$B18)) -> 32.22154 | W18: =IF(X18="**","",SUMIFS(SummaryData!$D:$D,SummaryData!$A:$A,$B$8,SummaryData!$B:$B,$W$10,SummaryData!$C:$C,$B18)) -> 0 | X18: =IF(SUMIFS(SummaryData!$N:$N,SummaryData!$A:$A,$B$8,SummaryData!$B:$B,$W$10,SummaryData!$C:$C,$B18)>=50,"**", (IF(SUMIFS(SummaryData!$N:$N,SummaryData!$A:$A,$B$8,SummaryData!$B:$B,$W$10,SummaryData!$C:$C,$B18)>25, IF(SUMIFS(SummaryData!$N:$N,SummaryData!$A:$A,$B$8,SummaryData!$B:$B,$W$10,SummaryData!$C:$C,$B18)<50,"*"," ")," "))) ->  | Y18: =IF(X18="**","",SUMIFS(SummaryData!$E:$E,SummaryData!$A:$A,$B$8,SummaryData!$B:$B,$W$10,SummaryData!$C:$C,$B18)) -> 0 | Z18: =IF(X18="**","",SUMIFS(SummaryData!$F:$F,SummaryData!$A:$A,$B$8,SummaryData!$B:$B,$W$10,SummaryData!$C:$C,$B18)) -> 0 | AB18: =IF(AC18="**","",SUMIFS(SummaryData!$D:$D,SummaryData!$A:$A,$B$8,SummaryData!$B:$B,$AB$10,SummaryData!$C:$C,$B18)) -> 0 | AC18: =IF(SUMIFS(SummaryData!$N:$N,SummaryData!$A:$A,$B$8,SummaryData!$B:$B,$AB$10,SummaryData!$C:$C,$B18)>=50,"**", (IF(SUMIFS(SummaryData!$N:$N,SummaryData!$A:$A,$B$8,SummaryData!$B:$B,$AB$10,SummaryData!$C:$C,$B18)>25, IF(SUMIFS(SummaryData!$N:$N,SummaryData!$A:$A,$B$8,SummaryData!$B:$B,$AB$10,SummaryData!$C:$C,$B18)<50,"*"," ")," "))) ->  | AD18: =IF(AC18="**","",SUMIFS(SummaryData!$E:$E,SummaryData!$A:$A,$B$8,SummaryData!$B:$B,$AB$10,SummaryData!$C:$C,$B18)) -> 0 | AE18: =IF(AC18="**","",SUMIFS(SummaryData!$F:$F,SummaryData!$A:$A,$B$8,SummaryData!$B:$B,$AB$10,SummaryData!$C:$C,$B18)) -> 0
B19: Bayside (C) | C19: =IF(D19="**","",SUMIFS(SummaryData!$D:$D,SummaryData!$A:$A,$B$8,SummaryData!$B:$B,$C$10,SummaryData!$C:$C,$B19)) -> 4.216801 | D19: =IF(SUMIFS(SummaryData!$N:$N,SummaryData!$A:$A,$B$8,SummaryData!$B:$B,$C$10,SummaryData!$C:$C,$B19)>=50,"**", (IF(SUMIFS(SummaryData!$N:$N,SummaryData!$A:$A,$B$8,SummaryData!$B:$B,$C$10,SummaryData!$C:$C,$B$13)>25, IF(SUMIFS(SummaryData!$N:$N,SummaryData!$A:$A,$B$8,SummaryData!$B:$B,$C$10,SummaryData!$C:$C,$B$13)<50,"*"," ")," "))) -> * | E19: =IF(D19="**","",SUMIFS(SummaryData!$E:$E,SummaryData!$A:$A,$B$8,SummaryData!$B:$B,$C$10,SummaryData!$C:$C,$B19)) -> 1.713769 | F19: =IF(D19="**","",SUMIFS(SummaryData!$F:$F,SummaryData!$A:$A,$B$8,SummaryData!$B:$B,$C$10,SummaryData!$C:$C,$B19)) -> 10.00353 | H19: =IF(I19="**","",SUMIFS(SummaryData!$D:$D,SummaryData!$A:$A,$B$8,SummaryData!$B:$B,$H$10,SummaryData!$C:$C,$B19)) -> 46.92429 | I19: =IF(SUMIFS(SummaryData!$N:$N,SummaryData!$A:$A,$B$8,SummaryData!$B:$B,$H$10,SummaryData!$C:$C,$B19)>=50,"**", (IF(SUMIFS(SummaryData!$N:$N,SummaryData!$A:$A,$B$8,SummaryData!$B:$B,$H$10,SummaryData!$C:$C,$B19)>25, IF(SUMIFS(SummaryData!$N:$N,SummaryData!$A:$A,$B$8,SummaryData!$B:$B,$H$10,SummaryData!$C:$C,$B19)<50,"*"," ")," "))) ->  | J19: =IF(I19="**","",SUMIFS(SummaryData!$E:$E,SummaryData!$A:$A,$B$8,SummaryData!$B:$B,$H$10,SummaryData!$C:$C,$B19)) -> 39.92852 | K19: =IF(I19="**","",SUMIFS(SummaryData!$F:$F,SummaryData!$A:$A,$B$8,SummaryData!$B:$B,$H$10,SummaryData!$C:$C,$B19)) -> 54.04306 | M19: =IF(N19="**","",SUMIFS(SummaryData!$D:$D,SummaryData!$A:$A,$B$8,SummaryData!$B:$B,$M$10,SummaryData!$C:$C,$B19)) -> 24.17256 | N19: =IF(SUMIFS(SummaryData!$N:$N,SummaryData!$A:$A,$B$8,SummaryData!$B:$B,$M$10,SummaryData!$C:$C,$B19)>=50,"**", (IF(SUMIFS(SummaryData!$N:$N,SummaryData!$A:$A,$B$8,SummaryData!$B:$B,$M$10,SummaryData!$C:$C,$B19)>25, IF(SUMIFS(SummaryData!$N:$N,SummaryData!$A:$A,$B$8,SummaryData!$B:$B,$M$10,SummaryData!$C:$C,$B19)<50,"*"," ")," "))) ->  | O19: =IF(N19="**","",SUMIFS(SummaryData!$E:$E,SummaryData!$A:$A,$B$8,SummaryData!$B:$B,$M$10,SummaryData!$C:$C,$B19)) -> 19.24496 | P19: =IF(N19="**","",SUMIFS(SummaryData!$F:$F,SummaryData!$A:$A,$B$8,SummaryData!$B:$B,$M$10,SummaryData!$C:$C,$B19)) -> 29.89479 | R19: =IF(S19="**","",SUMIFS(SummaryData!$D:$D,SummaryData!$A:$A,$B$8,SummaryData!$B:$B,$R$10,SummaryData!$C:$C,$B19)) -> 14.00265 | S19: =IF(SUMIFS(SummaryData!$N:$N,SummaryData!$A:$A,$B$8,SummaryData!$B:$B,$R$10,SummaryData!$C:$C,$B19)>=50,"**", (IF(SUMIFS(SummaryData!$N:$N,SummaryData!$A:$A,$B$8,SummaryData!$B:$B,$R$10,SummaryData!$C:$C,$B19)>25, IF(SUMIFS(SummaryData!$N:$N,SummaryData!$A:$A,$B$8,SummaryData!$B:$B,$R$10,SummaryData!$C:$C,$B19)<50,"*"," ")," "))) ->  | T19: =IF(S19="**","",SUMIFS(SummaryData!$E:$E,SummaryData!$A:$A,$B$8,SummaryData!$B:$B,$R$10,SummaryData!$C:$C,$B19)) -> 9.849496 | U19: =IF(S19="**","",SUMIFS(SummaryData!$F:$F,SummaryData!$A:$A,$B$8,SummaryData!$B:$B,$R$10,SummaryData!$C:$C,$B19)) -> 19.5277 | W19: =IF(X19="**","",SUMIFS(SummaryData!$D:$D,SummaryData!$A:$A,$B$8,SummaryData!$B:$B,$W$10,SummaryData!$C:$C,$B19)) -> 0 | X19: =IF(SUMIFS(SummaryData!$N:$N,SummaryData!$A:$A,$B$8,SummaryData!$B:$B,$W$10,SummaryData!$C:$C,$B19)>=50,"**", (IF(SUMIFS(SummaryData!$N:$N,SummaryData!$A:$A,$B$8,SummaryData!$B:$B,$W$10,SummaryData!$C:$C,$B19)>25, IF(SUMIFS(SummaryData!$N:$N,SummaryData!$A:$A,$B$8,SummaryData!$B:$B,$W$10,SummaryData!$C:$C,$B19)<50,"*"," ")," "))) ->  | Y19: =IF(X19="**","",SUMIFS(SummaryData!$E:$E,SummaryData!$A:$A,$B$8,SummaryData!$B:$B,$W$10,SummaryData!$C:$C,$B19)) -> 0 | Z19: =IF(X19="**","",SUMIFS(SummaryData!$F:$F,SummaryData!$A:$A,$B$8,SummaryData!$B:$B,$W$10,SummaryData!$C:$C,$B19)) -> 0 | AB19: =IF(AC19="**","",SUMIFS(SummaryData!$D:$D,SummaryData!$A:$A,$B$8,SummaryData!$B:$B,$AB$10,SummaryData!$C:$C,$B19)) -> 0 | AC19: =IF(SUMIFS(SummaryData!$N:$N,SummaryData!$A:$A,$B$8,SummaryData!$B:$B,$AB$10,SummaryData!$C:$C,$B19)>=50,"**", (IF(SUMIFS(SummaryData!$N:$N,SummaryData!$A:$A,$B$8,SummaryData!$B:$B,$AB$10,SummaryData!$C:$C,$B19)>25, IF(SUMIFS(SummaryData!$N:$N,SummaryData!$A:$A,$B$8,SummaryData!$B:$B,$AB$10,SummaryData!$C:$C,$B19)<50,"*"," ")," "))) ->  | AD19: =IF(AC19="**","",SUMIFS(SummaryData!$E:$E,SummaryData!$A:$A,$B$8,SummaryData!$B:$B,$AB$10,SummaryData!$C:$C,$B19)) -> 0 | AE19: =IF(AC19="**","",SUMIFS(SummaryData!$F:$F,SummaryData!$A:$A,$B$8,SummaryData!$B:$B,$AB$10,SummaryData!$C:$C,$B19)) -> 0
B20: Benalla (RC) | C20: =IF(D20="**","",SUMIFS(SummaryData!$D:$D,SummaryData!$A:$A,$B$8,SummaryData!$B:$B,$C$10,SummaryData!$C:$C,$B20)) ->  | D20: =IF(SUMIFS(SummaryData!$N:$N,SummaryData!$A:$A,$B$8,SummaryData!$B:$B,$C$10,SummaryData!$C:$C,$B20)>=50,"**", (IF(SUMIFS(SummaryData!$N:$N,SummaryData!$A:$A,$B$8,SummaryData!$B:$B,$C$10,SummaryData!$C:$C,$B$13)>25, IF(SUMIFS(SummaryData!$N:$N,SummaryData!$A:$A,$B$8,SummaryData!$B:$B,$C$10,SummaryData!$C:$C,$B$13)<50,"*"," ")," "))) -> ** | E20: =IF(D20="**","",SUMIFS(SummaryData!$E:$E,SummaryData!$A:$A,$B$8,SummaryData!$B:$B,$C$10,SummaryData!$C:$C,$B20)) ->  | F20: =IF(D20="**","",SUMIFS(SummaryData!$F:$F,SummaryData!$A:$A,$B$8,SummaryData!$B:$B,$C$10,SummaryData!$C:$C,$B20)) ->  | H20: =IF(I20="**","",SUMIFS(SummaryData!$D:$D,SummaryData!$A:$A,$B$8,SummaryData!$B:$B,$H$10,SummaryData!$C:$C,$B20)) -> 26.44021 | I20: =IF(SUMIFS(SummaryData!$N:$N,SummaryData!$A:$A,$B$8,SummaryData!$B:$B,$H$10,SummaryData!$C:$C,$B20)>=50,"**", (IF(SUMIFS(SummaryData!$N:$N,SummaryData!$A:$A,$B$8,SummaryData!$B:$B,$H$10,SummaryData!$C:$C,$B20)>25, IF(SUMIFS(SummaryData!$N:$N,SummaryData!$A:$A,$B$8,SummaryData!$B:$B,$H$10,SummaryData!$C:$C,$B20)<50,"*"," ")," "))) ->  | J20: =IF(I20="**","",SUMIFS(SummaryData!$E:$E,SummaryData!$A:$A,$B$8,SummaryData!$B:$B,$H$10,SummaryData!$C:$C,$B20)) -> 19.47172 | K20: =IF(I20="**","",SUMIFS(SummaryData!$F:$F,SummaryData!$A:$A,$B$8,SummaryData!$B:$B,$H$10,SummaryData!$C:$C,$B20)) -> 34.82411 | M20: =IF(N20="**","",SUMIFS(SummaryData!$D:$D,SummaryData!$A:$A,$B$8,SummaryData!$B:$B,$M$10,SummaryData!$C:$C,$B20)) -> 27.1762 | N20: =IF(SUMIFS(SummaryData!$N:$N,SummaryData!$A:$A,$B$8,SummaryData!$B:$B,$M$10,SummaryData!$C:$C,$B20)>=50,"**", (IF(SUMIFS(SummaryData!$N:$N,SummaryData!$A:$A,$B$8,SummaryData!$B:$B,$M$10,SummaryData!$C:$C,$B20)>25, IF(SUMIFS(SummaryData!$N:$N,SummaryData!$A:$A,$B$8,SummaryData!$B:$B,$M$10,SummaryData!$C:$C,$B20)<50,"*"," ")," "))) ->  | O20: =IF(N20="**","",SUMIFS(SummaryData!$E:$E,SummaryData!$A:$A,$B$8,SummaryData!$B:$B,$M$10,SummaryData!$C:$C,$B20)) -> 20.29576 | P20: =IF(N20="**","",SUMIFS(SummaryData!$F:$F,SummaryData!$A:$A,$B$8,SummaryData!$B:$B,$M$10,SummaryData!$C:$C,$B20)) -> 35.35451 | R20: =IF(S20="**","",SUMIFS(SummaryData!$D:$D,SummaryData!$A:$A,$B$8,SummaryData!$B:$B,$R$10,SummaryData!$C:$C,$B20)) -> 35.13171 | S20: =IF(SUMIFS(SummaryData!$N:$N,SummaryData!$A:$A,$B$8,SummaryData!$B:$B,$R$10,SummaryData!$C:$C,$B20)>=50,"**", (IF(SUMIFS(SummaryData!$N:$N,SummaryData!$A:$A,$B$8,SummaryData!$B:$B,$R$10,SummaryData!$C:$C,$B20)>25, IF(SUMIFS(SummaryData!$N:$N,SummaryData!$A:$A,$B$8,SummaryData!$B:$B,$R$10,SummaryData!$C:$C,$B20)<50,"*"," ")," "))) ->  | T20: =IF(S20="**","",SUMIFS(SummaryData!$E:$E,SummaryData!$A:$A,$B$8,SummaryData!$B:$B,$R$10,SummaryData!$C:$C,$B20)) -> 28.01902 | U20: =IF(S20="**","",SUMIFS(SummaryData!$F:$F,SummaryData!$A:$A,$B$8,SummaryData!$B:$B,$R$10,SummaryData!$C:$C,$B20)) -> 42.97205 | W20: =IF(X20="**","",SUMIFS(SummaryData!$D:$D,SummaryData!$A:$A,$B$8,SummaryData!$B:$B,$W$10,SummaryData!$C:$C,$B20)) -> 0 | X20: =IF(SUMIFS(SummaryData!$N:$N,SummaryData!$A:$A,$B$8,SummaryData!$B:$B,$W$10,SummaryData!$C:$C,$B20)>=50,"**", (IF(SUMIFS(SummaryData!$N:$N,SummaryData!$A:$A,$B$8,SummaryData!$B:$B,$W$10,SummaryData!$C:$C,$B20)>25, IF(SUMIFS(SummaryData!$N:$N,SummaryData!$A:$A,$B$8,SummaryData!$B:$B,$W$10,SummaryData!$C:$C,$B20)<50,"*"," ")," "))) ->  | Y20: =IF(X20="**","",SUMIFS(SummaryData!$E:$E,SummaryData!$A:$A,$B$8,SummaryData!$B:$B,$W$10,SummaryData!$C:$C,$B20)) -> 0 | Z20: =IF(X20="**","",SUMIFS(SummaryData!$F:$F,SummaryData!$A:$A,$B$8,SummaryData!$B:$B,$W$10,SummaryData!$C:$C,$B20)) -> 0 | AB20: =IF(AC20="**","",SUMIFS(SummaryData!$D:$D,SummaryData!$A:$A,$B$8,SummaryData!$B:$B,$AB$10,SummaryData!$C:$C,$B20)) -> 0 | AC20: =IF(SUMIFS(SummaryData!$N:$N,SummaryData!$A:$A,$B$8,SummaryData!$B:$B,$AB$10,SummaryData!$C:$C,$B20)>=50,"**", (IF(SUMIFS(SummaryData!$N:$N,SummaryData!$A:$A,$B$8,SummaryData!$B:$B,$AB$10,SummaryData!$C:$C,$B20)>25, IF(SUMIFS(SummaryData!$N:$N,SummaryData!$A:$A,$B$8,SummaryData!$B:$B,$AB$10,SummaryData!$C:$C,$B20)<50,"*"," ")," "))) ->  | AD20: =IF(AC20="**","",SUMIFS(SummaryData!$E:$E,SummaryData!$A:$A,$B$8,SummaryData!$B:$B,$AB$10,SummaryData!$C:$C,$B20)) -> 0 | AE20: =IF(AC20="**","",SUMIFS(SummaryData!$F:$F,SummaryData!$A:$A,$B$8,SummaryData!$B:$B,$AB$10,SummaryData!$C:$C,$B20)) -> 0
B21: Boroondara (C) | C21: =IF(D21="**","",SUMIFS(SummaryData!$D:$D,SummaryData!$A:$A,$B$8,SummaryData!$B:$B,$C$10,SummaryData!$C:$C,$B21)) -> 2.561692 | D21: =IF(SUMIFS(SummaryData!$N:$N,SummaryData!$A:$A,$B$8,SummaryData!$B:$B,$C$10,SummaryData!$C:$C,$B21)>=50,"**", (IF(SUMIFS(SummaryData!$N:$N,SummaryData!$A:$A,$B$8,SummaryData!$B:$B,$C$10,SummaryData!$C:$C,$B$13)>25, IF(SUMIFS(SummaryData!$N:$N,SummaryData!$A:$A,$B$8,SummaryData!$B:$B,$C$10,SummaryData!$C:$C,$B$13)<50,"*"," ")," "))) -> * | E21: =IF(D21="**","",SUMIFS(SummaryData!$E:$E,SummaryData!$A:$A,$B$8,SummaryData!$B:$B,$C$10,SummaryData!$C:$C,$B21)) -> 1.022604 | F21: =IF(D21="**","",SUMIFS(SummaryData!$F:$F,SummaryData!$A:$A,$B$8,SummaryData!$B:$B,$C$10,SummaryData!$C:$C,$B21)) -> 6.270462 | H21: =IF(I21="**","",SUMIFS(SummaryData!$D:$D,SummaryData!$A:$A,$B$8,SummaryData!$B:$B,$H$10,SummaryData!$C:$C,$B21)) -> 47.35513 | I21: =IF(SUMIFS(SummaryData!$N:$N,SummaryData!$A:$A,$B$8,SummaryData!$B:$B,$H$10,SummaryData!$C:$C,$B21)>=50,"**", (IF(SUMIFS(SummaryData!$N:$N,SummaryData!$A:$A,$B$8,SummaryData!$B:$B,$H$10,SummaryData!$C:$C,$B21)>25, IF(SUMIFS(SummaryData!$N:$N,SummaryData!$A:$A,$B$8,SummaryData!$B:$B,$H$10,SummaryData!$C:$C,$B21)<50,"*"," ")," "))) ->  | J21: =IF(I21="**","",SUMIFS(SummaryData!$E:$E,SummaryData!$A:$A,$B$8,SummaryData!$B:$B,$H$10,SummaryData!$C:$C,$B21)) -> 41.42815 | K21: =IF(I21="**","",SUMIFS(SummaryData!$F:$F,SummaryData!$A:$A,$B$8,SummaryData!$B:$B,$H$10,SummaryData!$C:$C,$B21)) -> 53.35759 | M21: =IF(N21="**","",SUMIFS(SummaryData!$D:$D,SummaryData!$A:$A,$B$8,SummaryData!$B:$B,$M$10,SummaryData!$C:$C,$B21)) -> 31.07511 | N21: =IF(SUMIFS(SummaryData!$N:$N,SummaryData!$A:$A,$B$8,SummaryData!$B:$B,$M$10,SummaryData!$C:$C,$B21)>=50,"**", (IF(SUMIFS(SummaryData!$N:$N,SummaryData!$A:$A,$B$8,SummaryData!$B:$B,$M$10,SummaryData!$C:$C,$B21)>25, IF(SUMIFS(SummaryData!$N:$N,SummaryData!$A:$A,$B$8,SummaryData!$B:$B,$M$10,SummaryData!$C:$C,$B21)<50,"*"," ")," "))) ->  | O21: =IF(N21="**","",SUMIFS(SummaryData!$E:$E,SummaryData!$A:$A,$B$8,SummaryData!$B:$B,$M$10,SummaryData!$C:$C,$B21)) -> 25.54878 | P21: =IF(N21="**","",SUMIFS(SummaryData!$F:$F,SummaryData!$A:$A,$B$8,SummaryData!$B:$B,$M$10,SummaryData!$C:$C,$B21)) -> 37.19955 | R21: =IF(S21="**","",SUMIFS(SummaryData!$D:$D,SummaryData!$A:$A,$B$8,SummaryData!$B:$B,$R$10,SummaryData!$C:$C,$B21)) -> 11.37826 | S21: =IF(SUMIFS(SummaryData!$N:$N,SummaryData!$A:$A,$B$8,SummaryData!$B:$B,$R$10,SummaryData!$C:$C,$B21)>=50,"**", (IF(SUMIFS(SummaryData!$N:$N,SummaryData!$A:$A,$B$8,SummaryData!$B:$B,$R$10,SummaryData!$C:$C,$B21)>25, IF(SUMIFS(SummaryData!$N:$N,SummaryData!$A:$A,$B$8,SummaryData!$B:$B,$R$10,SummaryData!$C:$C,$B21)<50,"*"," ")," "))) ->  | T21: =IF(S21="**","",SUMIFS(SummaryData!$E:$E,SummaryData!$A:$A,$B$8,SummaryData!$B:$B,$R$10,SummaryData!$C:$C,$B21)) -> 7.872396 | U21: =IF(S21="**","",SUMIFS(SummaryData!$F:$F,SummaryData!$A:$A,$B$8,SummaryData!$B:$B,$R$10,SummaryData!$C:$C,$B21)) -> 16.17135 | W21: =IF(X21="**","",SUMIFS(SummaryData!$D:$D,SummaryData!$A:$A,$B$8,SummaryData!$B:$B,$W$10,SummaryData!$C:$C,$B21)) -> 0 | X21: =IF(SUMIFS(SummaryData!$N:$N,SummaryData!$A:$A,$B$8,SummaryData!$B:$B,$W$10,SummaryData!$C:$C,$B21)>=50,"**", (IF(SUMIFS(SummaryData!$N:$N,SummaryData!$A:$A,$B$8,SummaryData!$B:$B,$W$10,SummaryData!$C:$C,$B21)>25, IF(SUMIFS(SummaryData!$N:$N,SummaryData!$A:$A,$B$8,SummaryData!$B:$B,$W$10,SummaryData!$C:$C,$B21)<50,"*"," ")," "))) ->  | Y21: =IF(X21="**","",SUMIFS(SummaryData!$E:$E,SummaryData!$A:$A,$B$8,SummaryData!$B:$B,$W$10,SummaryData!$C:$C,$B21)) -> 0 | Z21: =IF(X21="**","",SUMIFS(SummaryData!$F:$F,SummaryData!$A:$A,$B$8,SummaryData!$B:$B,$W$10,SummaryData!$C:$C,$B21)) -> 0 | AB21: =IF(AC21="**","",SUMIFS(SummaryData!$D:$D,SummaryData!$A:$A,$B$8,SummaryData!$B:$B,$AB$10,SummaryData!$C:$C,$B21)) -> 0 | AC21: =IF(SUMIFS(SummaryData!$N:$N,SummaryData!$A:$A,$B$8,SummaryData!$B:$B,$AB$10,SummaryData!$C:$C,$B21)>=50,"**", (IF(SUMIFS(SummaryData!$N:$N,SummaryData!$A:$A,$B$8,SummaryData!$B:$B,$AB$10,SummaryData!$C:$C,$B21)>25, IF(SUMIFS(SummaryData!$N:$N,SummaryData!$A:$A,$B$8,SummaryData!$B:$B,$AB$10,SummaryData!$C:$C,$B21)<50,"*"," ")," "))) ->  | AD21: =IF(AC21="**","",SUMIFS(SummaryData!$E:$E,SummaryData!$A:$A,$B$8,SummaryData!$B:$B,$AB$10,SummaryData!$C:$C,$B21)) -> 0 | AE21: =IF(AC21="**","",SUMIFS(SummaryData!$F:$F,SummaryData!$A:$A,$B$8,SummaryData!$B:$B,$AB$10,SummaryData!$C:$C,$B21)) -> 0
B22: Brimbank (C) | C22: =IF(D22="**","",SUMIFS(SummaryData!$D:$D,SummaryData!$A:$A,$B$8,SummaryData!$B:$B,$C$10,SummaryData!$C:$C,$B22)) -> 2.284115 | D22: =IF(SUMIFS(SummaryData!$N:$N,SummaryData!$A:$A,$B$8,SummaryData!$B:$B,$C$10,SummaryData!$C:$C,$B22)>=50,"**", (IF(SUMIFS(SummaryData!$N:$N,SummaryData!$A:$A,$B$8,SummaryData!$B:$B,$C$10,SummaryData!$C:$C,$B$13)>25, IF(SUMIFS(SummaryData!$N:$N,SummaryData!$A:$A,$B$8,SummaryData!$B:$B,$C$10,SummaryData!$C:$C,$B$13)<50,"*"," ")," "))) -> * | E22: =IF(D22="**","",SUMIFS(SummaryData!$E:$E,SummaryData!$A:$A,$B$8,SummaryData!$B:$B,$C$10,SummaryData!$C:$C,$B22)) -> 0.910446 | F22: =IF(D22="**","",SUMIFS(SummaryData!$F:$F,SummaryData!$A:$A,$B$8,SummaryData!$B:$B,$C$10,SummaryData!$C:$C,$B22)) -> 5.612954 | H22: =IF(I22="**","",SUMIFS(SummaryData!$D:$D,SummaryData!$A:$A,$B$8,SummaryData!$B:$B,$H$10,SummaryData!$C:$C,$B22)) -> 31.18089 | I22: =IF(SUMIFS(SummaryData!$N:$N,SummaryData!$A:$A,$B$8,SummaryData!$B:$B,$H$10,SummaryData!$C:$C,$B22)>=50,"**", (IF(SUMIFS(SummaryData!$N:$N,SummaryData!$A:$A,$B$8,SummaryData!$B:$B,$H$10,SummaryData!$C:$C,$B22)>25, IF(SUMIFS(SummaryData!$N:$N,SummaryData!$A:$A,$B$8,SummaryData!$B:$B,$H$10,SummaryData!$C:$C,$B22)<50,"*"," ")," "))) ->  | J22: =IF(I22="**","",SUMIFS(SummaryData!$E:$E,SummaryData!$A:$A,$B$8,SummaryData!$B:$B,$H$10,SummaryData!$C:$C,$B22)) -> 25.5249 | K22: =IF(I22="**","",SUMIFS(SummaryData!$F:$F,SummaryData!$A:$A,$B$8,SummaryData!$B:$B,$H$10,SummaryData!$C:$C,$B22)) -> 37.45978 | M22: =IF(N22="**","",SUMIFS(SummaryData!$D:$D,SummaryData!$A:$A,$B$8,SummaryData!$B:$B,$M$10,SummaryData!$C:$C,$B22)) -> 28.61954 | N22: =IF(SUMIFS(SummaryData!$N:$N,SummaryData!$A:$A,$B$8,SummaryData!$B:$B,$M$10,SummaryData!$C:$C,$B22)>=50,"**", (IF(SUMIFS(SummaryData!$N:$N,SummaryData!$A:$A,$B$8,SummaryData!$B:$B,$M$10,SummaryData!$C:$C,$B22)>25, IF(SUMIFS(SummaryData!$N:$N,SummaryData!$A:$A,$B$8,SummaryData!$B:$B,$M$10,SummaryData!$C:$C,$B22)<50,"*"," ")," "))) ->  | O22: =IF(N22="**","",SUMIFS(SummaryData!$E:$E,SummaryData!$A:$A,$B$8,SummaryData!$B:$B,$M$10,SummaryData!$C:$C,$B22)) -> 23.36729 | P22: =IF(N22="**","",SUMIFS(SummaryData!$F:$F,SummaryData!$A:$A,$B$8,SummaryData!$B:$B,$M$10,SummaryData!$C:$C,$B22)) -> 34.52053 | R22: =IF(S22="**","",SUMIFS(SummaryData!$D:$D,SummaryData!$A:$A,$B$8,SummaryData!$B:$B,$R$10,SummaryData!$C:$C,$B22)) -> 23.93834 | S22: =IF(SUMIFS(SummaryData!$N:$N,SummaryData!$A:$A,$B$8,SummaryData!$B:$B,$R$10,SummaryData!$C:$C,$B22)>=50,"**", (IF(SUMIFS(SummaryData!$N:$N,SummaryData!$A:$A,$B$8,SummaryData!$B:$B,$R$10,SummaryData!$C:$C,$B22)>25, IF(SUMIFS(SummaryData!$N:$N,SummaryData!$A:$A,$B$8,SummaryData!$B:$B,$R$10,SummaryData!$C:$C,$B22)<50,"*"," ")," "))) ->  | T22: =IF(S22="**","",SUMIFS(SummaryData!$E:$E,SummaryData!$A:$A,$B$8,SummaryData!$B:$B,$R$10,SummaryData!$C:$C,$B22)) -> 18.72868 | U22: =IF(S22="**","",SUMIFS(SummaryData!$F:$F,SummaryData!$A:$A,$B$8,SummaryData!$B:$B,$R$10,SummaryData!$C:$C,$B22)) -> 30.06112 | W22: =IF(X22="**","",SUMIFS(SummaryData!$D:$D,SummaryData!$A:$A,$B$8,SummaryData!$B:$B,$W$10,SummaryData!$C:$C,$B22)) -> 0 | X22: =IF(SUMIFS(SummaryData!$N:$N,SummaryData!$A:$A,$B$8,SummaryData!$B:$B,$W$10,SummaryData!$C:$C,$B22)>=50,"**", (IF(SUMIFS(SummaryData!$N:$N,SummaryData!$A:$A,$B$8,SummaryData!$B:$B,$W$10,SummaryData!$C:$C,$B22)>25, IF(SUMIFS(SummaryData!$N:$N,SummaryData!$A:$A,$B$8,SummaryData!$B:$B,$W$10,SummaryData!$C:$C,$B22)<50,"*"," ")," "))) ->  | Y22: =IF(X22="**","",SUMIFS(SummaryData!$E:$E,SummaryData!$A:$A,$B$8,SummaryData!$B:$B,$W$10,SummaryData!$C:$C,$B22)) -> 0 | Z22: =IF(X22="**","",SUMIFS(SummaryData!$F:$F,SummaryData!$A:$A,$B$8,SummaryData!$B:$B,$W$10,SummaryData!$C:$C,$B22)) -> 0 | AB22: =IF(AC22="**","",SUMIFS(SummaryData!$D:$D,SummaryData!$A:$A,$B$8,SummaryData!$B:$B,$AB$10,SummaryData!$C:$C,$B22)) -> 0 | AC22: =IF(SUMIFS(SummaryData!$N:$N,SummaryData!$A:$A,$B$8,SummaryData!$B:$B,$AB$10,SummaryData!$C:$C,$B22)>=50,"**", (IF(SUMIFS(SummaryData!$N:$N,SummaryData!$A:$A,$B$8,SummaryData!$B:$B,$AB$10,SummaryData!$C:$C,$B22)>25, IF(SUMIFS(SummaryData!$N:$N,SummaryData!$A:$A,$B$8,SummaryData!$B:$B,$AB$10,SummaryData!$C:$C,$B22)<50,"*"," ")," "))) ->  | AD22: =IF(AC22="**","",SUMIFS(SummaryData!$E:$E,SummaryData!$A:$A,$B$8,SummaryData!$B:$B,$AB$10,SummaryData!$C:$C,$B22)) -> 0 | AE22: =IF(AC22="**","",SUMIFS(SummaryData!$F:$F,SummaryData!$A:$A,$B$8,SummaryData!$B:$B,$AB$10,SummaryData!$C:$C,$B22)) -> 0
B23: Buloke (S) | C23: =IF(D23="**","",SUMIFS(SummaryData!$D:$D,SummaryData!$A:$A,$B$8,SummaryData!$B:$B,$C$10,SummaryData!$C:$C,$B23)) -> 0.5079711 | D23: =IF(SUMIFS(SummaryData!$N:$N,SummaryData!$A:$A,$B$8,SummaryData!$B:$B,$C$10,SummaryData!$C:$C,$B23)>=50,"**", (IF(SUMIFS(SummaryData!$N:$N,SummaryData!$A:$A,$B$8,SummaryData!$B:$B,$C$10,SummaryData!$C:$C,$B$13)>25, IF(SUMIFS(SummaryData!$N:$N,SummaryData!$A:$A,$B$8,SummaryData!$B:$B,$C$10,SummaryData!$C:$C,$B$13)<50,"*"," ")," "))) -> * | E23: =IF(D23="**","",SUMIFS(SummaryData!$E:$E,SummaryData!$A:$A,$B$8,SummaryData!$B:$B,$C$10,SummaryData!$C:$C,$B23)) -> 0.1957139 | F23: =IF(D23="**","",SUMIFS(SummaryData!$F:$F,SummaryData!$A:$A,$B$8,SummaryData!$B:$B,$C$10,SummaryData!$C:$C,$B23)) -> 1.311879 | H23: =IF(I23="**","",SUMIFS(SummaryData!$D:$D,SummaryData!$A:$A,$B$8,SummaryData!$B:$B,$H$10,SummaryData!$C:$C,$B23)) -> 24.03718 | I23: =IF(SUMIFS(SummaryData!$N:$N,SummaryData!$A:$A,$B$8,SummaryData!$B:$B,$H$10,SummaryData!$C:$C,$B23)>=50,"**", (IF(SUMIFS(SummaryData!$N:$N,SummaryData!$A:$A,$B$8,SummaryData!$B:$B,$H$10,SummaryData!$C:$C,$B23)>25, IF(SUMIFS(SummaryData!$N:$N,SummaryData!$A:$A,$B$8,SummaryData!$B:$B,$H$10,SummaryData!$C:$C,$B23)<50,"*"," ")," "))) ->  | J23: =IF(I23="**","",SUMIFS(SummaryData!$E:$E,SummaryData!$A:$A,$B$8,SummaryData!$B:$B,$H$10,SummaryData!$C:$C,$B23)) -> 15.56965 | K23: =IF(I23="**","",SUMIFS(SummaryData!$F:$F,SummaryData!$A:$A,$B$8,SummaryData!$B:$B,$H$10,SummaryData!$C:$C,$B23)) -> 35.19037 | M23: =IF(N23="**","",SUMIFS(SummaryData!$D:$D,SummaryData!$A:$A,$B$8,SummaryData!$B:$B,$M$10,SummaryData!$C:$C,$B23)) -> 23.69128 | N23: =IF(SUMIFS(SummaryData!$N:$N,SummaryData!$A:$A,$B$8,SummaryData!$B:$B,$M$10,SummaryData!$C:$C,$B23)>=50,"**", (IF(SUMIFS(SummaryData!$N:$N,SummaryData!$A:$A,$B$8,SummaryData!$B:$B,$M$10,SummaryData!$C:$C,$B23)>25, IF(SUMIFS(SummaryData!$N:$N,SummaryData!$A:$A,$B$8,SummaryData!$B:$B,$M$10,SummaryData!$C:$C,$B23)<50,"*"," ")," "))) ->  | O23: =IF(N23="**","",SUMIFS(SummaryData!$E:$E,SummaryData!$A:$A,$B$8,SummaryData!$B:$B,$M$10,SummaryData!$C:$C,$B23)) -> 17.50491 | P23: =IF(N23="**","",SUMIFS(SummaryData!$F:$F,SummaryData!$A:$A,$B$8,SummaryData!$B:$B,$M$10,SummaryData!$C:$C,$B23)) -> 31.23613 | R23: =IF(S23="**","",SUMIFS(SummaryData!$D:$D,SummaryData!$A:$A,$B$8,SummaryData!$B:$B,$R$10,SummaryData!$C:$C,$B23)) -> 37.76931 | S23: =IF(SUMIFS(SummaryData!$N:$N,SummaryData!$A:$A,$B$8,SummaryData!$B:$B,$R$10,SummaryData!$C:$C,$B23)>=50,"**", (IF(SUMIFS(SummaryData!$N:$N,SummaryData!$A:$A,$B$8,SummaryData!$B:$B,$R$10,SummaryData!$C:$C,$B23)>25, IF(SUMIFS(SummaryData!$N:$N,SummaryData!$A:$A,$B$8,SummaryData!$B:$B,$R$10,SummaryData!$C:$C,$B23)<50,"*"," ")," "))) ->  | T23: =IF(S23="**","",SUMIFS(SummaryData!$E:$E,SummaryData!$A:$A,$B$8,SummaryData!$B:$B,$R$10,SummaryData!$C:$C,$B23)) -> 28.23747 | U23: =IF(S23="**","",SUMIFS(SummaryData!$F:$F,SummaryData!$A:$A,$B$8,SummaryData!$B:$B,$R$10,SummaryData!$C:$C,$B23)) -> 48.35084 | W23: =IF(X23="**","",SUMIFS(SummaryData!$D:$D,SummaryData!$A:$A,$B$8,SummaryData!$B:$B,$W$10,SummaryData!$C:$C,$B23)) -> 0 | X23: =IF(SUMIFS(SummaryData!$N:$N,SummaryData!$A:$A,$B$8,SummaryData!$B:$B,$W$10,SummaryData!$C:$C,$B23)>=50,"**", (IF(SUMIFS(SummaryData!$N:$N,SummaryData!$A:$A,$B$8,SummaryData!$B:$B,$W$10,SummaryData!$C:$C,$B23)>25, IF(SUMIFS(SummaryData!$N:$N,SummaryData!$A:$A,$B$8,SummaryData!$B:$B,$W$10,SummaryData!$C:$C,$B23)<50,"*"," ")," "))) ->  | Y23: =IF(X23="**","",SUMIFS(SummaryData!$E:$E,SummaryData!$A:$A,$B$8,SummaryData!$B:$B,$W$10,SummaryData!$C:$C,$B23)) -> 0 | Z23: =IF(X23="**","",SUMIFS(SummaryData!$F:$F,SummaryData!$A:$A,$B$8,SummaryData!$B:$B,$W$10,SummaryData!$C:$C,$B23)) -> 0 | AB23: =IF(AC23="**","",SUMIFS(SummaryData!$D:$D,SummaryData!$A:$A,$B$8,SummaryData!$B:$B,$AB$10,SummaryData!$C:$C,$B23)) -> 0 | AC23: =IF(SUMIFS(SummaryData!$N:$N,SummaryData!$A:$A,$B$8,SummaryData!$B:$B,$AB$10,SummaryData!$C:$C,$B23)>=50,"**", (IF(SUMIFS(SummaryData!$N:$N,SummaryData!$A:$A,$B$8,SummaryData!$B:$B,$AB$10,SummaryData!$C:$C,$B23)>25, IF(SUMIFS(SummaryData!$N:$N,SummaryData!$A:$A,$B$8,SummaryData!$B:$B,$AB$10,SummaryData!$C:$C,$B23)<50,"*"," ")," "))) ->  | AD23: =IF(AC23="**","",SUMIFS(SummaryData!$E:$E,SummaryData!$A:$A,$B$8,SummaryData!$B:$B,$AB$10,SummaryData!$C:$C,$B23)) -> 0 | AE23: =IF(AC23="**","",SUMIFS(SummaryData!$F:$F,SummaryData!$A:$A,$B$8,SummaryData!$B:$B,$AB$10,SummaryData!$C:$C,$B23)) -> 0
B24: Campaspe (S) | C24: =IF(D24="**","",SUMIFS(SummaryData!$D:$D,SummaryData!$A:$A,$B$8,SummaryData!$B:$B,$C$10,SummaryData!$C:$C,$B24)) -> 0.7528843 | D24: =IF(SUMIFS(SummaryData!$N:$N,SummaryData!$A:$A,$B$8,SummaryData!$B:$B,$C$10,SummaryData!$C:$C,$B24)>=50,"**", (IF(SUMIFS(SummaryData!$N:$N,SummaryData!$A:$A,$B$8,SummaryData!$B:$B,$C$10,SummaryData!$C:$C,$B$13)>25, IF(SUMIFS(SummaryData!$N:$N,SummaryData!$A:$A,$B$8,SummaryData!$B:$B,$C$10,SummaryData!$C:$C,$B$13)<50,"*"," ")," "))) -> * | E24: =IF(D24="**","",SUMIFS(SummaryData!$E:$E,SummaryData!$A:$A,$B$8,SummaryData!$B:$B,$C$10,SummaryData!$C:$C,$B24)) -> 0.3018258 | F24: =IF(D24="**","",SUMIFS(SummaryData!$F:$F,SummaryData!$A:$A,$B$8,SummaryData!$B:$B,$C$10,SummaryData!$C:$C,$B24)) -> 1.865408 | H24: =IF(I24="**","",SUMIFS(SummaryData!$D:$D,SummaryData!$A:$A,$B$8,SummaryData!$B:$B,$H$10,SummaryData!$C:$C,$B24)) -> 26.98359 | I24: =IF(SUMIFS(SummaryData!$N:$N,SummaryData!$A:$A,$B$8,SummaryData!$B:$B,$H$10,SummaryData!$C:$C,$B24)>=50,"**", (IF(SUMIFS(SummaryData!$N:$N,SummaryData!$A:$A,$B$8,SummaryData!$B:$B,$H$10,SummaryData!$C:$C,$B24)>25, IF(SUMIFS(SummaryData!$N:$N,SummaryData!$A:$A,$B$8,SummaryData!$B:$B,$H$10,SummaryData!$C:$C,$B24)<50,"*"," ")," "))) ->  | J24: =IF(I24="**","",SUMIFS(SummaryData!$E:$E,SummaryData!$A:$A,$B$8,SummaryData!$B:$B,$H$10,SummaryData!$C:$C,$B24)) -> 20.68201 | K24: =IF(I24="**","",SUMIFS(SummaryData!$F:$F,SummaryData!$A:$A,$B$8,SummaryData!$B:$B,$H$10,SummaryData!$C:$C,$B24)) -> 34.37315 | M24: =IF(N24="**","",SUMIFS(SummaryData!$D:$D,SummaryData!$A:$A,$B$8,SummaryData!$B:$B,$M$10,SummaryData!$C:$C,$B24)) -> 32.95906 | N24: =IF(SUMIFS(SummaryData!$N:$N,SummaryData!$A:$A,$B$8,SummaryData!$B:$B,$M$10,SummaryData!$C:$C,$B24)>=50,"**", (IF(SUMIFS(SummaryData!$N:$N,SummaryData!$A:$A,$B$8,SummaryData!$B:$B,$M$10,SummaryData!$C:$C,$B24)>25, IF(SUMIFS(SummaryData!$N:$N,SummaryData!$A:$A,$B$8,SummaryData!$B:$B,$M$10,SummaryData!$C:$C,$B24)<50,"*"," ")," "))) ->  | O24: =IF(N24="**","",SUMIFS(SummaryData!$E:$E,SummaryData!$A:$A,$B$8,SummaryData!$B:$B,$M$10,SummaryData!$C:$C,$B24)) -> 26.54052 | P24: =IF(N24="**","",SUMIFS(SummaryData!$F:$F,SummaryData!$A:$A,$B$8,SummaryData!$B:$B,$M$10,SummaryData!$C:$C,$B24)) -> 40.08286 | R24: =IF(S24="**","",SUMIFS(SummaryData!$D:$D,SummaryData!$A:$A,$B$8,SummaryData!$B:$B,$R$10,SummaryData!$C:$C,$B24)) -> 28.22964 | S24: =IF(SUMIFS(SummaryData!$N:$N,SummaryData!$A:$A,$B$8,SummaryData!$B:$B,$R$10,SummaryData!$C:$C,$B24)>=50,"**", (IF(SUMIFS(SummaryData!$N:$N,SummaryData!$A:$A,$B$8,SummaryData!$B:$B,$R$10,SummaryData!$C:$C,$B24)>25, IF(SUMIFS(SummaryData!$N:$N,SummaryData!$A:$A,$B$8,SummaryData!$B:$B,$R$10,SummaryData!$C:$C,$B24)<50,"*"," ")," "))) ->  | T24: =IF(S24="**","",SUMIFS(SummaryData!$E:$E,SummaryData!$A:$A,$B$8,SummaryData!$B:$B,$R$10,SummaryData!$C:$C,$B24)) -> 22.11319 | U24: =IF(S24="**","",SUMIFS(SummaryData!$F:$F,SummaryData!$A:$A,$B$8,SummaryData!$B:$B,$R$10,SummaryData!$C:$C,$B24)) -> 35.27173 | W24: =IF(X24="**","",SUMIFS(SummaryData!$D:$D,SummaryData!$A:$A,$B$8,SummaryData!$B:$B,$W$10,SummaryData!$C:$C,$B24)) -> 0 | X24: =IF(SUMIFS(SummaryData!$N:$N,SummaryData!$A:$A,$B$8,SummaryData!$B:$B,$W$10,SummaryData!$C:$C,$B24)>=50,"**", (IF(SUMIFS(SummaryData!$N:$N,SummaryData!$A:$A,$B$8,SummaryData!$B:$B,$W$10,SummaryData!$C:$C,$B24)>25, IF(SUMIFS(SummaryData!$N:$N,SummaryData!$A:$A,$B$8,SummaryData!$B:$B,$W$10,SummaryData!$C:$C,$B24)<50,"*"," ")," "))) ->  | Y24: =IF(X24="**","",SUMIFS(SummaryData!$E:$E,SummaryData!$A:$A,$B$8,SummaryData!$B:$B,$W$10,SummaryData!$C:$C,$B24)) -> 0 | Z24: =IF(X24="**","",SUMIFS(SummaryData!$F:$F,SummaryData!$A:$A,$B$8,SummaryData!$B:$B,$W$10,SummaryData!$C:$C,$B24)) -> 0 | AB24: =IF(AC24="**","",SUMIFS(SummaryData!$D:$D,SummaryData!$A:$A,$B$8,SummaryData!$B:$B,$AB$10,SummaryData!$C:$C,$B24)) -> 0 | AC24: =IF(SUMIFS(SummaryData!$N:$N,SummaryData!$A:$A,$B$8,SummaryData!$B:$B,$AB$10,SummaryData!$C:$C,$B24)>=50,"**", (IF(SUMIFS(SummaryData!$N:$N,SummaryData!$A:$A,$B$8,SummaryData!$B:$B,$AB$10,SummaryData!$C:$C,$B24)>25, IF(SUMIFS(SummaryData!$N:$N,SummaryData!$A:$A,$B$8,SummaryData!$B:$B,$AB$10,SummaryData!$C:$C,$B24)<50,"*"," ")," "))) ->  | AD24: =IF(AC24="**","",SUMIFS(SummaryData!$E:$E,SummaryData!$A:$A,$B$8,SummaryData!$B:$B,$AB$10,SummaryData!$C:$C,$B24)) -> 0 | AE24: =IF(AC24="**","",SUMIFS(SummaryData!$F:$F,SummaryData!$A:$A,$B$8,SummaryData!$B:$B,$AB$10,SummaryData!$C:$C,$B24)) -> 0
B25: Cardinia (S) | C25: =IF(D25="**","",SUMIFS(SummaryData!$D:$D,SummaryData!$A:$A,$B$8,SummaryData!$B:$B,$C$10,SummaryData!$C:$C,$B25)) ->  | D25: =IF(SUMIFS(SummaryData!$N:$N,SummaryData!$A:$A,$B$8,SummaryData!$B:$B,$C$10,SummaryData!$C:$C,$B25)>=50,"**", (IF(SUMIFS(SummaryData!$N:$N,SummaryData!$A:$A,$B$8,SummaryData!$B:$B,$C$10,SummaryData!$C:$C,$B$13)>25, IF(SUMIFS(SummaryData!$N:$N,SummaryData!$A:$A,$B$8,SummaryData!$B:$B,$C$10,SummaryData!$C:$C,$B$13)<50,"*"," ")," "))) -> ** | E25: =IF(D25="**","",SUMIFS(SummaryData!$E:$E,SummaryData!$A:$A,$B$8,SummaryData!$B:$B,$C$10,SummaryData!$C:$C,$B25)) ->  | F25: =IF(D25="**","",SUMIFS(SummaryData!$F:$F,SummaryData!$A:$A,$B$8,SummaryData!$B:$B,$C$10,SummaryData!$C:$C,$B25)) ->  | H25: =IF(I25="**","",SUMIFS(SummaryData!$D:$D,SummaryData!$A:$A,$B$8,SummaryData!$B:$B,$H$10,SummaryData!$C:$C,$B25)) -> 25.30021 | I25: =IF(SUMIFS(SummaryData!$N:$N,SummaryData!$A:$A,$B$8,SummaryData!$B:$B,$H$10,SummaryData!$C:$C,$B25)>=50,"**", (IF(SUMIFS(SummaryData!$N:$N,SummaryData!$A:$A,$B$8,SummaryData!$B:$B,$H$10,SummaryData!$C:$C,$B25)>25, IF(SUMIFS(SummaryData!$N:$N,SummaryData!$A:$A,$B$8,SummaryData!$B:$B,$H$10,SummaryData!$C:$C,$B25)<50,"*"," ")," "))) ->  | J25: =IF(I25="**","",SUMIFS(SummaryData!$E:$E,SummaryData!$A:$A,$B$8,SummaryData!$B:$B,$H$10,SummaryData!$C:$C,$B25)) -> 20.1824 | K25: =IF(I25="**","",SUMIFS(SummaryData!$F:$F,SummaryData!$A:$A,$B$8,SummaryData!$B:$B,$H$10,SummaryData!$C:$C,$B25)) -> 31.20837 | M25: =IF(N25="**","",SUMIFS(SummaryData!$D:$D,SummaryData!$A:$A,$B$8,SummaryData!$B:$B,$M$10,SummaryData!$C:$C,$B25)) -> 31.95223 | N25: =IF(SUMIFS(SummaryData!$N:$N,SummaryData!$A:$A,$B$8,SummaryData!$B:$B,$M$10,SummaryData!$C:$C,$B25)>=50,"**", (IF(SUMIFS(SummaryData!$N:$N,SummaryData!$A:$A,$B$8,SummaryData!$B:$B,$M$10,SummaryData!$C:$C,$B25)>25, IF(SUMIFS(SummaryData!$N:$N,SummaryData!$A:$A,$B$8,SummaryData!$B:$B,$M$10,SummaryData!$C:$C,$B25)<50,"*"," ")," "))) ->  | O25: =IF(N25="**","",SUMIFS(SummaryData!$E:$E,SummaryData!$A:$A,$B$8,SummaryData!$B:$B,$M$10,SummaryData!$C:$C,$B25)) -> 26.30791 | P25: =IF(N25="**","",SUMIFS(SummaryData!$F:$F,SummaryData!$A:$A,$B$8,SummaryData!$B:$B,$M$10,SummaryData!$C:$C,$B25)) -> 38.18011 | R25: =IF(S25="**","",SUMIFS(SummaryData!$D:$D,SummaryData!$A:$A,$B$8,SummaryData!$B:$B,$R$10,SummaryData!$C:$C,$B25)) -> 29.65937 | S25: =IF(SUMIFS(SummaryData!$N:$N,SummaryData!$A:$A,$B$8,SummaryData!$B:$B,$R$10,SummaryData!$C:$C,$B25)>=50,"**", (IF(SUMIFS(SummaryData!$N:$N,SummaryData!$A:$A,$B$8,SummaryData!$B:$B,$R$10,SummaryData!$C:$C,$B25)>25, IF(SUMIFS(SummaryData!$N:$N,SummaryData!$A:$A,$B$8,SummaryData!$B:$B,$R$10,SummaryData!$C:$C,$B25)<50,"*"," ")," "))) ->  | T25: =IF(S25="**","",SUMIFS(SummaryData!$E:$E,SummaryData!$A:$A,$B$8,SummaryData!$B:$B,$R$10,SummaryData!$C:$C,$B25)) -> 24.07054 | U25: =IF(S25="**","",SUMIFS(SummaryData!$F:$F,SummaryData!$A:$A,$B$8,SummaryData!$B:$B,$R$10,SummaryData!$C:$C,$B25)) -> 35.93177 | W25: =IF(X25="**","",SUMIFS(SummaryData!$D:$D,SummaryData!$A:$A,$B$8,SummaryData!$B:$B,$W$10,SummaryData!$C:$C,$B25)) -> 0 | X25: =IF(SUMIFS(SummaryData!$N:$N,SummaryData!$A:$A,$B$8,SummaryData!$B:$B,$W$10,SummaryData!$C:$C,$B25)>=50,"**", (IF(SUMIFS(SummaryData!$N:$N,SummaryData!$A:$A,$B$8,SummaryData!$B:$B,$W$10,SummaryData!$C:$C,$B25)>25, IF(SUMIFS(SummaryData!$N:$N,SummaryData!$A:$A,$B$8,SummaryData!$B:$B,$W$10,SummaryData!$C:$C,$B25)<50,"*"," ")," "))) ->  | Y25: =IF(X25="**","",SUMIFS(SummaryData!$E:$E,SummaryData!$A:$A,$B$8,SummaryData!$B:$B,$W$10,SummaryData!$C:$C,$B25)) -> 0 | Z25: =IF(X25="**","",SUMIFS(SummaryData!$F:$F,SummaryData!$A:$A,$B$8,SummaryData!$B:$B,$W$10,SummaryData!$C:$C,$B25)) -> 0 | AB25: =IF(AC25="**","",SUMIFS(SummaryData!$D:$D,SummaryData!$A:$A,$B$8,SummaryData!$B:$B,$AB$10,SummaryData!$C:$C,$B25)) -> 0 | AC25: =IF(SUMIFS(SummaryData!$N:$N,SummaryData!$A:$A,$B$8,SummaryData!$B:$B,$AB$10,SummaryData!$C:$C,$B25)>=50,"**", (IF(SUMIFS(SummaryData!$N:$N,SummaryData!$A:$A,$B$8,SummaryData!$B:$B,$AB$10,SummaryData!$C:$C,$B25)>25, IF(SUMIFS(SummaryData!$N:$N,SummaryData!$A:$A,$B$8,SummaryData!$B:$B,$AB$10,SummaryData!$C:$C,$B25)<50,"*"," ")," "))) ->  | AD25: =IF(AC25="**","",SUMIFS(SummaryData!$E:$E,SummaryData!$A:$A,$B$8,SummaryData!$B:$B,$AB$10,SummaryData!$C:$C,$B25)) -> 0 | AE25: =IF(AC25="**","",SUMIFS(SummaryData!$F:$F,SummaryData!$A:$A,$B$8,SummaryData!$B:$B,$AB$10,SummaryData!$C:$C,$B25)) -> 0
B26: Casey (C) | C26: =IF(D26="**","",SUMIFS(SummaryData!$D:$D,SummaryData!$A:$A,$B$8,SummaryData!$B:$B,$C$10,SummaryData!$C:$C,$B26)) ->  | D26: =IF(SUMIFS(SummaryData!$N:$N,SummaryData!$A:$A,$B$8,SummaryData!$B:$B,$C$10,SummaryData!$C:$C,$B26)>=50,"**", (IF(SUMIFS(SummaryData!$N:$N,SummaryData!$A:$A,$B$8,SummaryData!$B:$B,$C$10,SummaryData!$C:$C,$B$13)>25, IF(SUMIFS(SummaryData!$N:$N,SummaryData!$A:$A,$B$8,SummaryData!$B:$B,$C$10,SummaryData!$C:$C,$B$13)<50,"*"," ")," "))) -> ** | E26: =IF(D26="**","",SUMIFS(SummaryData!$E:$E,SummaryData!$A:$A,$B$8,SummaryData!$B:$B,$C$10,SummaryData!$C:$C,$B26)) ->  | F26: =IF(D26="**","",SUMIFS(SummaryData!$F:$F,SummaryData!$A:$A,$B$8,SummaryData!$B:$B,$C$10,SummaryData!$C:$C,$B26)) ->  | H26: =IF(I26="**","",SUMIFS(SummaryData!$D:$D,SummaryData!$A:$A,$B$8,SummaryData!$B:$B,$H$10,SummaryData!$C:$C,$B26)) -> 30.40777 | I26: =IF(SUMIFS(SummaryData!$N:$N,SummaryData!$A:$A,$B$8,SummaryData!$B:$B,$H$10,SummaryData!$C:$C,$B26)>=50,"**", (IF(SUMIFS(SummaryData!$N:$N,SummaryData!$A:$A,$B$8,SummaryData!$B:$B,$H$10,SummaryData!$C:$C,$B26)>25, IF(SUMIFS(SummaryData!$N:$N,SummaryData!$A:$A,$B$8,SummaryData!$B:$B,$H$10,SummaryData!$C:$C,$B26)<50,"*"," ")," "))) ->  | J26: =IF(I26="**","",SUMIFS(SummaryData!$E:$E,SummaryData!$A:$A,$B$8,SummaryData!$B:$B,$H$10,SummaryData!$C:$C,$B26)) -> 24.89041 | K26: =IF(I26="**","",SUMIFS(SummaryData!$F:$F,SummaryData!$A:$A,$B$8,SummaryData!$B:$B,$H$10,SummaryData!$C:$C,$B26)) -> 36.55295 | M26: =IF(N26="**","",SUMIFS(SummaryData!$D:$D,SummaryData!$A:$A,$B$8,SummaryData!$B:$B,$M$10,SummaryData!$C:$C,$B26)) -> 33.3792 | N26: =IF(SUMIFS(SummaryData!$N:$N,SummaryData!$A:$A,$B$8,SummaryData!$B:$B,$M$10,SummaryData!$C:$C,$B26)>=50,"**", (IF(SUMIFS(SummaryData!$N:$N,SummaryData!$A:$A,$B$8,SummaryData!$B:$B,$M$10,SummaryData!$C:$C,$B26)>25, IF(SUMIFS(SummaryData!$N:$N,SummaryData!$A:$A,$B$8,SummaryData!$B:$B,$M$10,SummaryData!$C:$C,$B26)<50,"*"," ")," "))) ->  | O26: =IF(N26="**","",SUMIFS(SummaryData!$E:$E,SummaryData!$A:$A,$B$8,SummaryData!$B:$B,$M$10,SummaryData!$C:$C,$B26)) -> 28.01706 | P26: =IF(N26="**","",SUMIFS(SummaryData!$F:$F,SummaryData!$A:$A,$B$8,SummaryData!$B:$B,$M$10,SummaryData!$C:$C,$B26)) -> 39.2086 | R26: =IF(S26="**","",SUMIFS(SummaryData!$D:$D,SummaryData!$A:$A,$B$8,SummaryData!$B:$B,$R$10,SummaryData!$C:$C,$B26)) -> 25.63474 | S26: =IF(SUMIFS(SummaryData!$N:$N,SummaryData!$A:$A,$B$8,SummaryData!$B:$B,$R$10,SummaryData!$C:$C,$B26)>=50,"**", (IF(SUMIFS(SummaryData!$N:$N,SummaryData!$A:$A,$B$8,SummaryData!$B:$B,$R$10,SummaryData!$C:$C,$B26)>25, IF(SUMIFS(SummaryData!$N:$N,SummaryData!$A:$A,$B$8,SummaryData!$B:$B,$R$10,SummaryData!$C:$C,$B26)<50,"*"," ")," "))) ->  | T26: =IF(S26="**","",SUMIFS(SummaryData!$E:$E,SummaryData!$A:$A,$B$8,SummaryData!$B:$B,$R$10,SummaryData!$C:$C,$B26)) -> 20.48629 | U26: =IF(S26="**","",SUMIFS(SummaryData!$F:$F,SummaryData!$A:$A,$B$8,SummaryData!$B:$B,$R$10,SummaryData!$C:$C,$B26)) -> 31.56345 | W26: =IF(X26="**","",SUMIFS(SummaryData!$D:$D,SummaryData!$A:$A,$B$8,SummaryData!$B:$B,$W$10,SummaryData!$C:$C,$B26)) -> 0 | X26: =IF(SUMIFS(SummaryData!$N:$N,SummaryData!$A:$A,$B$8,SummaryData!$B:$B,$W$10,SummaryData!$C:$C,$B26)>=50,"**", (IF(SUMIFS(SummaryData!$N:$N,SummaryData!$A:$A,$B$8,SummaryData!$B:$B,$W$10,SummaryData!$C:$C,$B26)>25, IF(SUMIFS(SummaryData!$N:$N,SummaryData!$A:$A,$B$8,SummaryData!$B:$B,$W$10,SummaryData!$C:$C,$B26)<50,"*"," ")," "))) ->  | Y26: =IF(X26="**","",SUMIFS(SummaryData!$E:$E,SummaryData!$A:$A,$B$8,SummaryData!$B:$B,$W$10,SummaryData!$C:$C,$B26)) -> 0 | Z26: =IF(X26="**","",SUMIFS(SummaryData!$F:$F,SummaryData!$A:$A,$B$8,SummaryData!$B:$B,$W$10,SummaryData!$C:$C,$B26)) -> 0 | AB26: =IF(AC26="**","",SUMIFS(SummaryData!$D:$D,SummaryData!$A:$A,$B$8,SummaryData!$B:$B,$AB$10,SummaryData!$C:$C,$B26)) -> 0 | AC26: =IF(SUMIFS(SummaryData!$N:$N,SummaryData!$A:$A,$B$8,SummaryData!$B:$B,$AB$10,SummaryData!$C:$C,$B26)>=50,"**", (IF(SUMIFS(SummaryData!$N:$N,SummaryData!$A:$A,$B$8,SummaryData!$B:$B,$AB$10,SummaryData!$C:$C,$B26)>25, IF(SUMIFS(SummaryData!$N:$N,SummaryData!$A:$A,$B$8,SummaryData!$B:$B,$AB$10,SummaryData!$C:$C,$B26)<50,"*"," ")," "))) ->  | AD26: =IF(AC26="**","",SUMIFS(SummaryData!$E:$E,SummaryData!$A:$A,$B$8,SummaryData!$B:$B,$AB$10,SummaryData!$C:$C,$B26)) -> 0 | AE26: =IF(AC26="**","",SUMIFS(SummaryData!$F:$F,SummaryData!$A:$A,$B$8,SummaryData!$B:$B,$AB$10,SummaryData!$C:$C,$B26)) -> 0
B27: Central Goldfields (S) | C27: =IF(D27="**","",SUMIFS(SummaryData!$D:$D,SummaryData!$A:$A,$B$8,SummaryData!$B:$B,$C$10,SummaryData!$C:$C,$B27)) ->  | D27: =IF(SUMIFS(SummaryData!$N:$N,SummaryData!$A:$A,$B$8,SummaryData!$B:$B,$C$10,SummaryData!$C:$C,$B27)>=50,"**", (IF(SUMIFS(SummaryData!$N:$N,SummaryData!$A:$A,$B$8,SummaryData!$B:$B,$C$10,SummaryData!$C:$C,$B$13)>25, IF(SUMIFS(SummaryData!$N:$N,SummaryData!$A:$A,$B$8,SummaryData!$B:$B,$C$10,SummaryData!$C:$C,$B$13)<50,"*"," ")," "))) -> ** | E27: =IF(D27="**","",SUMIFS(SummaryData!$E:$E,SummaryData!$A:$A,$B$8,SummaryData!$B:$B,$C$10,SummaryData!$C:$C,$B27)) ->  | F27: =IF(D27="**","",SUMIFS(SummaryData!$F:$F,SummaryData!$A:$A,$B$8,SummaryData!$B:$B,$C$10,SummaryData!$C:$C,$B27)) ->  | H27: =IF(I27="**","",SUMIFS(SummaryData!$D:$D,SummaryData!$A:$A,$B$8,SummaryData!$B:$B,$H$10,SummaryData!$C:$C,$B27)) -> 21.10314 | I27: =IF(SUMIFS(SummaryData!$N:$N,SummaryData!$A:$A,$B$8,SummaryData!$B:$B,$H$10,SummaryData!$C:$C,$B27)>=50,"**", (IF(SUMIFS(SummaryData!$N:$N,SummaryData!$A:$A,$B$8,SummaryData!$B:$B,$H$10,SummaryData!$C:$C,$B27)>25, IF(SUMIFS(SummaryData!$N:$N,SummaryData!$A:$A,$B$8,SummaryData!$B:$B,$H$10,SummaryData!$C:$C,$B27)<50,"*"," ")," "))) ->  | J27: =IF(I27="**","",SUMIFS(SummaryData!$E:$E,SummaryData!$A:$A,$B$8,SummaryData!$B:$B,$H$10,SummaryData!$C:$C,$B27)) -> 15.13859 | K27: =IF(I27="**","",SUMIFS(SummaryData!$F:$F,SummaryData!$A:$A,$B$8,SummaryData!$B:$B,$H$10,SummaryData!$C:$C,$B27)) -> 28.62502 | M27: =IF(N27="**","",SUMIFS(SummaryData!$D:$D,SummaryData!$A:$A,$B$8,SummaryData!$B:$B,$M$10,SummaryData!$C:$C,$B27)) -> 34.17892 | N27: =IF(SUMIFS(SummaryData!$N:$N,SummaryData!$A:$A,$B$8,SummaryData!$B:$B,$M$10,SummaryData!$C:$C,$B27)>=50,"**", (IF(SUMIFS(SummaryData!$N:$N,SummaryData!$A:$A,$B$8,SummaryData!$B:$B,$M$10,SummaryData!$C:$C,$B27)>25, IF(SUMIFS(SummaryData!$N:$N,SummaryData!$A:$A,$B$8,SummaryData!$B:$B,$M$10,SummaryData!$C:$C,$B27)<50,"*"," ")," "))) ->  | O27: =IF(N27="**","",SUMIFS(SummaryData!$E:$E,SummaryData!$A:$A,$B$8,SummaryData!$B:$B,$M$10,SummaryData!$C:$C,$B27)) -> 27.23988 | P27: =IF(N27="**","",SUMIFS(SummaryData!$F:$F,SummaryData!$A:$A,$B$8,SummaryData!$B:$B,$M$10,SummaryData!$C:$C,$B27)) -> 41.86844 | R27: =IF(S27="**","",SUMIFS(SummaryData!$D:$D,SummaryData!$A:$A,$B$8,SummaryData!$B:$B,$R$10,SummaryData!$C:$C,$B27)) -> 31.51711 | S27: =IF(SUMIFS(SummaryData!$N:$N,SummaryData!$A:$A,$B$8,SummaryData!$B:$B,$R$10,SummaryData!$C:$C,$B27)>=50,"**", (IF(SUMIFS(SummaryData!$N:$N,SummaryData!$A:$A,$B$8,SummaryData!$B:$B,$R$10,SummaryData!$C:$C,$B27)>25, IF(SUMIFS(SummaryData!$N:$N,SummaryData!$A:$A,$B$8,SummaryData!$B:$B,$R$10,SummaryData!$C:$C,$B27)<50,"*"," ")," "))) ->  | T27: =IF(S27="**","",SUMIFS(SummaryData!$E:$E,SummaryData!$A:$A,$B$8,SummaryData!$B:$B,$R$10,SummaryData!$C:$C,$B27)) -> 25.49569 | U27: =IF(S27="**","",SUMIFS(SummaryData!$F:$F,SummaryData!$A:$A,$B$8,SummaryData!$B:$B,$R$10,SummaryData!$C:$C,$B27)) -> 38.23091 | W27: =IF(X27="**","",SUMIFS(SummaryData!$D:$D,SummaryData!$A:$A,$B$8,SummaryData!$B:$B,$W$10,SummaryData!$C:$C,$B27)) -> 0 | X27: =IF(SUMIFS(SummaryData!$N:$N,SummaryData!$A:$A,$B$8,SummaryData!$B:$B,$W$10,SummaryData!$C:$C,$B27)>=50,"**", (IF(SUMIFS(SummaryData!$N:$N,SummaryData!$A:$A,$B$8,SummaryData!$B:$B,$W$10,SummaryData!$C:$C,$B27)>25, IF(SUMIFS(SummaryData!$N:$N,SummaryData!$A:$A,$B$8,SummaryData!$B:$B,$W$10,SummaryData!$C:$C,$B27)<50,"*"," ")," "))) ->  | Y27: =IF(X27="**","",SUMIFS(SummaryData!$E:$E,SummaryData!$A:$A,$B$8,SummaryData!$B:$B,$W$10,SummaryData!$C:$C,$B27)) -> 0 | Z27: =IF(X27="**","",SUMIFS(SummaryData!$F:$F,SummaryData!$A:$A,$B$8,SummaryData!$B:$B,$W$10,SummaryData!$C:$C,$B27)) -> 0 | AB27: =IF(AC27="**","",SUMIFS(SummaryData!$D:$D,SummaryData!$A:$A,$B$8,SummaryData!$B:$B,$AB$10,SummaryData!$C:$C,$B27)) -> 0 | AC27: =IF(SUMIFS(SummaryData!$N:$N,SummaryData!$A:$A,$B$8,SummaryData!$B:$B,$AB$10,SummaryData!$C:$C,$B27)>=50,"**", (IF(SUMIFS(SummaryData!$N:$N,SummaryData!$A:$A,$B$8,SummaryData!$B:$B,$AB$10,SummaryData!$C:$C,$B27)>25, IF(SUMIFS(SummaryData!$N:$N,SummaryData!$A:$A,$B$8,SummaryData!$B:$B,$AB$10,SummaryData!$C:$C,$B27)<50,"*"," ")," "))) ->  | AD27: =IF(AC27="**","",SUMIFS(SummaryData!$E:$E,SummaryData!$A:$A,$B$8,SummaryData!$B:$B,$AB$10,SummaryData!$C:$C,$B27)) -> 0 | AE27: =IF(AC27="**","",SUMIFS(SummaryData!$F:$F,SummaryData!$A:$A,$B$8,SummaryData!$B:$B,$AB$10,SummaryData!$C:$C,$B27)) -> 0
B28: Colac-Otway (S) | C28: =IF(D28="**","",SUMIFS(SummaryData!$D:$D,SummaryData!$A:$A,$B$8,SummaryData!$B:$B,$C$10,SummaryData!$C:$C,$B28)) ->  | D28: =IF(SUMIFS(SummaryData!$N:$N,SummaryData!$A:$A,$B$8,SummaryData!$B:$B,$C$10,SummaryData!$C:$C,$B28)>=50,"**", (IF(SUMIFS(SummaryData!$N:$N,SummaryData!$A:$A,$B$8,SummaryData!$B:$B,$C$10,SummaryData!$C:$C,$B$13)>25, IF(SUMIFS(SummaryData!$N:$N,SummaryData!$A:$A,$B$8,SummaryData!$B:$B,$C$10,SummaryData!$C:$C,$B$13)<50,"*"," ")," "))) -> ** | E28: =IF(D28="**","",SUMIFS(SummaryData!$E:$E,SummaryData!$A:$A,$B$8,SummaryData!$B:$B,$C$10,SummaryData!$C:$C,$B28)) ->  | F28: =IF(D28="**","",SUMIFS(SummaryData!$F:$F,SummaryData!$A:$A,$B$8,SummaryData!$B:$B,$C$10,SummaryData!$C:$C,$B28)) ->  | H28: =IF(I28="**","",SUMIFS(SummaryData!$D:$D,SummaryData!$A:$A,$B$8,SummaryData!$B:$B,$H$10,SummaryData!$C:$C,$B28)) -> 30.78206 | I28: =IF(SUMIFS(SummaryData!$N:$N,SummaryData!$A:$A,$B$8,SummaryData!$B:$B,$H$10,SummaryData!$C:$C,$B28)>=50,"**", (IF(SUMIFS(SummaryData!$N:$N,SummaryData!$A:$A,$B$8,SummaryData!$B:$B,$H$10,SummaryData!$C:$C,$B28)>25, IF(SUMIFS(SummaryData!$N:$N,SummaryData!$A:$A,$B$8,SummaryData!$B:$B,$H$10,SummaryData!$C:$C,$B28)<50,"*"," ")," "))) ->  | J28: =IF(I28="**","",SUMIFS(SummaryData!$E:$E,SummaryData!$A:$A,$B$8,SummaryData!$B:$B,$H$10,SummaryData!$C:$C,$B28)) -> 24.59861 | K28: =IF(I28="**","",SUMIFS(SummaryData!$F:$F,SummaryData!$A:$A,$B$8,SummaryData!$B:$B,$H$10,SummaryData!$C:$C,$B28)) -> 37.74185 | M28: =IF(N28="**","",SUMIFS(SummaryData!$D:$D,SummaryData!$A:$A,$B$8,SummaryData!$B:$B,$M$10,SummaryData!$C:$C,$B28)) -> 28.17082 | N28: =IF(SUMIFS(SummaryData!$N:$N,SummaryData!$A:$A,$B$8,SummaryData!$B:$B,$M$10,SummaryData!$C:$C,$B28)>=50,"**", (IF(SUMIFS(SummaryData!$N:$N,SummaryData!$A:$A,$B$8,SummaryData!$B:$B,$M$10,SummaryData!$C:$C,$B28)>25, IF(SUMIFS(SummaryData!$N:$N,SummaryData!$A:$A,$B$8,SummaryData!$B:$B,$M$10,SummaryData!$C:$C,$B28)<50,"*"," ")," "))) ->  | O28: =IF(N28="**","",SUMIFS(SummaryData!$E:$E,SummaryData!$A:$A,$B$8,SummaryData!$B:$B,$M$10,SummaryData!$C:$C,$B28)) -> 22.31102 | P28: =IF(N28="**","",SUMIFS(SummaryData!$F:$F,SummaryData!$A:$A,$B$8,SummaryData!$B:$B,$M$10,SummaryData!$C:$C,$B28)) -> 34.87868 | R28: =IF(S28="**","",SUMIFS(SummaryData!$D:$D,SummaryData!$A:$A,$B$8,SummaryData!$B:$B,$R$10,SummaryData!$C:$C,$B28)) -> 27.46386 | S28: =IF(SUMIFS(SummaryData!$N:$N,SummaryData!$A:$A,$B$8,SummaryData!$B:$B,$R$10,SummaryData!$C:$C,$B28)>=50,"**", (IF(SUMIFS(SummaryData!$N:$N,SummaryData!$A:$A,$B$8,SummaryData!$B:$B,$R$10,SummaryData!$C:$C,$B28)>25, IF(SUMIFS(SummaryData!$N:$N,SummaryData!$A:$A,$B$8,SummaryData!$B:$B,$R$10,SummaryData!$C:$C,$B28)<50,"*"," ")," "))) ->  | T28: =IF(S28="**","",SUMIFS(SummaryData!$E:$E,SummaryData!$A:$A,$B$8,SummaryData!$B:$B,$R$10,SummaryData!$C:$C,$B28)) -> 21.86511 | U28: =IF(S28="**","",SUMIFS(SummaryData!$F:$F,SummaryData!$A:$A,$B$8,SummaryData!$B:$B,$R$10,SummaryData!$C:$C,$B28)) -> 33.87469 | W28: =IF(X28="**","",SUMIFS(SummaryData!$D:$D,SummaryData!$A:$A,$B$8,SummaryData!$B:$B,$W$10,SummaryData!$C:$C,$B28)) -> 0 | X28: =IF(SUMIFS(SummaryData!$N:$N,SummaryData!$A:$A,$B$8,SummaryData!$B:$B,$W$10,SummaryData!$C:$C,$B28)>=50,"**", (IF(SUMIFS(SummaryData!$N:$N,SummaryData!$A:$A,$B$8,SummaryData!$B:$B,$W$10,SummaryData!$C:$C,$B28)>25, IF(SUMIFS(SummaryData!$N:$N,SummaryData!$A:$A,$B$8,SummaryData!$B:$B,$W$10,SummaryData!$C:$C,$B28)<50,"*"," ")," "))) ->  | Y28: =IF(X28="**","",SUMIFS(SummaryData!$E:$E,SummaryData!$A:$A,$B$8,SummaryData!$B:$B,$W$10,SummaryData!$C:$C,$B28)) -> 0 | Z28: =IF(X28="**","",SUMIFS(SummaryData!$F:$F,SummaryData!$A:$A,$B$8,SummaryData!$B:$B,$W$10,SummaryData!$C:$C,$B28)) -> 0 | AB28: =IF(AC28="**","",SUMIFS(SummaryData!$D:$D,SummaryData!$A:$A,$B$8,SummaryData!$B:$B,$AB$10,SummaryData!$C:$C,$B28)) -> 0 | AC28: =IF(SUMIFS(SummaryData!$N:$N,SummaryData!$A:$A,$B$8,SummaryData!$B:$B,$AB$10,SummaryData!$C:$C,$B28)>=50,"**", (IF(SUMIFS(SummaryData!$N:$N,SummaryData!$A:$A,$B$8,SummaryData!$B:$B,$AB$10,SummaryData!$C:$C,$B28)>25, IF(SUMIFS(SummaryData!$N:$N,SummaryData!$A:$A,$B$8,SummaryData!$B:$B,$AB$10,SummaryData!$C:$C,$B28)<50,"*"," ")," "))) ->  | AD28: =IF(AC28="**","",SUMIFS(SummaryData!$E:$E,SummaryData!$A:$A,$B$8,SummaryData!$B:$B,$AB$10,SummaryData!$C:$C,$B28)) -> 0 | AE28: =IF(AC28="**","",SUMIFS(SummaryData!$F:$F,SummaryData!$A:$A,$B$8,SummaryData!$B:$B,$AB$10,SummaryData!$C:$C,$B28)) -> 0
B29: Corangamite (S) | C29: =IF(D29="**","",SUMIFS(SummaryData!$D:$D,SummaryData!$A:$A,$B$8,SummaryData!$B:$B,$C$10,SummaryData!$C:$C,$B29)) ->  | D29: =IF(SUMIFS(SummaryData!$N:$N,SummaryData!$A:$A,$B$8,SummaryData!$B:$B,$C$10,SummaryData!$C:$C,$B29)>=50,"**", (IF(SUMIFS(SummaryData!$N:$N,SummaryData!$A:$A,$B$8,SummaryData!$B:$B,$C$10,SummaryData!$C:$C,$B$13)>25, IF(SUMIFS(SummaryData!$N:$N,SummaryData!$A:$A,$B$8,SummaryData!$B:$B,$C$10,SummaryData!$C:$C,$B$13)<50,"*"," ")," "))) -> ** | E29: =IF(D29="**","",SUMIFS(SummaryData!$E:$E,SummaryData!$A:$A,$B$8,SummaryData!$B:$B,$C$10,SummaryData!$C:$C,$B29)) ->  | F29: =IF(D29="**","",SUMIFS(SummaryData!$F:$F,SummaryData!$A:$A,$B$8,SummaryData!$B:$B,$C$10,SummaryData!$C:$C,$B29)) ->  | H29: =IF(I29="**","",SUMIFS(SummaryData!$D:$D,SummaryData!$A:$A,$B$8,SummaryData!$B:$B,$H$10,SummaryData!$C:$C,$B29)) -> 25.80217 | I29: =IF(SUMIFS(SummaryData!$N:$N,SummaryData!$A:$A,$B$8,SummaryData!$B:$B,$H$10,SummaryData!$C:$C,$B29)>=50,"**", (IF(SUMIFS(SummaryData!$N:$N,SummaryData!$A:$A,$B$8,SummaryData!$B:$B,$H$10,SummaryData!$C:$C,$B29)>25, IF(SUMIFS(SummaryData!$N:$N,SummaryData!$A:$A,$B$8,SummaryData!$B:$B,$H$10,SummaryData!$C:$C,$B29)<50,"*"," ")," "))) ->  | J29: =IF(I29="**","",SUMIFS(SummaryData!$E:$E,SummaryData!$A:$A,$B$8,SummaryData!$B:$B,$H$10,SummaryData!$C:$C,$B29)) -> 19.4108 | K29: =IF(I29="**","",SUMIFS(SummaryData!$F:$F,SummaryData!$A:$A,$B$8,SummaryData!$B:$B,$H$10,SummaryData!$C:$C,$B29)) -> 33.42517 | M29: =IF(N29="**","",SUMIFS(SummaryData!$D:$D,SummaryData!$A:$A,$B$8,SummaryData!$B:$B,$M$10,SummaryData!$C:$C,$B29)) -> 32.7639 | N29: =IF(SUMIFS(SummaryData!$N:$N,SummaryData!$A:$A,$B$8,SummaryData!$B:$B,$M$10,SummaryData!$C:$C,$B29)>=50,"**", (IF(SUMIFS(SummaryData!$N:$N,SummaryData!$A:$A,$B$8,SummaryData!$B:$B,$M$10,SummaryData!$C:$C,$B29)>25, IF(SUMIFS(SummaryData!$N:$N,SummaryData!$A:$A,$B$8,SummaryData!$B:$B,$M$10,SummaryData!$C:$C,$B29)<50,"*"," ")," "))) ->  | O29: =IF(N29="**","",SUMIFS(SummaryData!$E:$E,SummaryData!$A:$A,$B$8,SummaryData!$B:$B,$M$10,SummaryData!$C:$C,$B29)) -> 25.68682 | P29: =IF(N29="**","",SUMIFS(SummaryData!$F:$F,SummaryData!$A:$A,$B$8,SummaryData!$B:$B,$M$10,SummaryData!$C:$C,$B29)) -> 40.72233 | R29: =IF(S29="**","",SUMIFS(SummaryData!$D:$D,SummaryData!$A:$A,$B$8,SummaryData!$B:$B,$R$10,SummaryData!$C:$C,$B29)) -> 28.84777 | S29: =IF(SUMIFS(SummaryData!$N:$N,SummaryData!$A:$A,$B$8,SummaryData!$B:$B,$R$10,SummaryData!$C:$C,$B29)>=50,"**", (IF(SUMIFS(SummaryData!$N:$N,SummaryData!$A:$A,$B$8,SummaryData!$B:$B,$R$10,SummaryData!$C:$C,$B29)>25, IF(SUMIFS(SummaryData!$N:$N,SummaryData!$A:$A,$B$8,SummaryData!$B:$B,$R$10,SummaryData!$C:$C,$B29)<50,"*"," ")," "))) ->  | T29: =IF(S29="**","",SUMIFS(SummaryData!$E:$E,SummaryData!$A:$A,$B$8,SummaryData!$B:$B,$R$10,SummaryData!$C:$C,$B29)) -> 22.32381 | U29: =IF(S29="**","",SUMIFS(SummaryData!$F:$F,SummaryData!$A:$A,$B$8,SummaryData!$B:$B,$R$10,SummaryData!$C:$C,$B29)) -> 36.38524 | W29: =IF(X29="**","",SUMIFS(SummaryData!$D:$D,SummaryData!$A:$A,$B$8,SummaryData!$B:$B,$W$10,SummaryData!$C:$C,$B29)) -> 0 | X29: =IF(SUMIFS(SummaryData!$N:$N,SummaryData!$A:$A,$B$8,SummaryData!$B:$B,$W$10,SummaryData!$C:$C,$B29)>=50,"**", (IF(SUMIFS(SummaryData!$N:$N,SummaryData!$A:$A,$B$8,SummaryData!$B:$B,$W$10,SummaryData!$C:$C,$B29)>25, IF(SUMIFS(SummaryData!$N:$N,SummaryData!$A:$A,$B$8,SummaryData!$B:$B,$W$10,SummaryData!$C:$C,$B29)<50,"*"," ")," "))) ->  | Y29: =IF(X29="**","",SUMIFS(SummaryData!$E:$E,SummaryData!$A:$A,$B$8,SummaryData!$B:$B,$W$10,SummaryData!$C:$C,$B29)) -> 0 | Z29: =IF(X29="**","",SUMIFS(SummaryData!$F:$F,SummaryData!$A:$A,$B$8,SummaryData!$B:$B,$W$10,SummaryData!$C:$C,$B29)) -> 0 | AB29: =IF(AC29="**","",SUMIFS(SummaryData!$D:$D,SummaryData!$A:$A,$B$8,SummaryData!$B:$B,$AB$10,SummaryData!$C:$C,$B29)) -> 0 | AC29: =IF(SUMIFS(SummaryData!$N:$N,SummaryData!$A:$A,$B$8,SummaryData!$B:$B,$AB$10,SummaryData!$C:$C,$B29)>=50,"**", (IF(SUMIFS(SummaryData!$N:$N,SummaryData!$A:$A,$B$8,SummaryData!$B:$B,$AB$10,SummaryData!$C:$C,$B29)>25, IF(SUMIFS(SummaryData!$N:$N,SummaryData!$A:$A,$B$8,SummaryData!$B:$B,$AB$10,SummaryData!$C:$C,$B29)<50,"*"," ")," "))) ->  | AD29: =IF(AC29="**","",SUMIFS(SummaryData!$E:$E,SummaryData!$A:$A,$B$8,SummaryData!$B:$B,$AB$10,SummaryData!$C:$C,$B29)) -> 0 | AE29: =IF(AC29="**","",SUMIFS(SummaryData!$F:$F,SummaryData!$A:$A,$B$8,SummaryData!$B:$B,$AB$10,SummaryData!$C:$C,$B29)) -> 0
B30: Darebin (C) | C30: =IF(D30="**","",SUMIFS(SummaryData!$D:$D,SummaryData!$A:$A,$B$8,SummaryData!$B:$B,$C$10,SummaryData!$C:$C,$B30)) -> 3.231525 | D30: =IF(SUMIFS(SummaryData!$N:$N,SummaryData!$A:$A,$B$8,SummaryData!$B:$B,$C$10,SummaryData!$C:$C,$B30)>=50,"**", (IF(SUMIFS(SummaryData!$N:$N,SummaryData!$A:$A,$B$8,SummaryData!$B:$B,$C$10,SummaryData!$C:$C,$B$13)>25, IF(SUMIFS(SummaryData!$N:$N,SummaryData!$A:$A,$B$8,SummaryData!$B:$B,$C$10,SummaryData!$C:$C,$B$13)<50,"*"," ")," "))) -> * | E30: =IF(D30="**","",SUMIFS(SummaryData!$E:$E,SummaryData!$A:$A,$B$8,SummaryData!$B:$B,$C$10,SummaryData!$C:$C,$B30)) -> 1.44839 | F30: =IF(D30="**","",SUMIFS(SummaryData!$F:$F,SummaryData!$A:$A,$B$8,SummaryData!$B:$B,$C$10,SummaryData!$C:$C,$B30)) -> 7.052802 | H30: =IF(I30="**","",SUMIFS(SummaryData!$D:$D,SummaryData!$A:$A,$B$8,SummaryData!$B:$B,$H$10,SummaryData!$C:$C,$B30)) -> 45.61017 | I30: =IF(SUMIFS(SummaryData!$N:$N,SummaryData!$A:$A,$B$8,SummaryData!$B:$B,$H$10,SummaryData!$C:$C,$B30)>=50,"**", (IF(SUMIFS(SummaryData!$N:$N,SummaryData!$A:$A,$B$8,SummaryData!$B:$B,$H$10,SummaryData!$C:$C,$B30)>25, IF(SUMIFS(SummaryData!$N:$N,SummaryData!$A:$A,$B$8,SummaryData!$B:$B,$H$10,SummaryData!$C:$C,$B30)<50,"*"," ")," "))) ->  | J30: =IF(I30="**","",SUMIFS(SummaryData!$E:$E,SummaryData!$A:$A,$B$8,SummaryData!$B:$B,$H$10,SummaryData!$C:$C,$B30)) -> 38.99169 | K30: =IF(I30="**","",SUMIFS(SummaryData!$F:$F,SummaryData!$A:$A,$B$8,SummaryData!$B:$B,$H$10,SummaryData!$C:$C,$B30)) -> 52.38739 | M30: =IF(N30="**","",SUMIFS(SummaryData!$D:$D,SummaryData!$A:$A,$B$8,SummaryData!$B:$B,$M$10,SummaryData!$C:$C,$B30)) -> 29.31308 | N30: =IF(SUMIFS(SummaryData!$N:$N,SummaryData!$A:$A,$B$8,SummaryData!$B:$B,$M$10,SummaryData!$C:$C,$B30)>=50,"**", (IF(SUMIFS(SummaryData!$N:$N,SummaryData!$A:$A,$B$8,SummaryData!$B:$B,$M$10,SummaryData!$C:$C,$B30)>25, IF(SUMIFS(SummaryData!$N:$N,SummaryData!$A:$A,$B$8,SummaryData!$B:$B,$M$10,SummaryData!$C:$C,$B30)<50,"*"," ")," "))) ->  | O30: =IF(N30="**","",SUMIFS(SummaryData!$E:$E,SummaryData!$A:$A,$B$8,SummaryData!$B:$B,$M$10,SummaryData!$C:$C,$B30)) -> 23.69567 | P30: =IF(N30="**","",SUMIFS(SummaryData!$F:$F,SummaryData!$A:$A,$B$8,SummaryData!$B:$B,$M$10,SummaryData!$C:$C,$B30)) -> 35.64018 | R30: =IF(S30="**","",SUMIFS(SummaryData!$D:$D,SummaryData!$A:$A,$B$8,SummaryData!$B:$B,$R$10,SummaryData!$C:$C,$B30)) -> 13.97089 | S30: =IF(SUMIFS(SummaryData!$N:$N,SummaryData!$A:$A,$B$8,SummaryData!$B:$B,$R$10,SummaryData!$C:$C,$B30)>=50,"**", (IF(SUMIFS(SummaryData!$N:$N,SummaryData!$A:$A,$B$8,SummaryData!$B:$B,$R$10,SummaryData!$C:$C,$B30)>25, IF(SUMIFS(SummaryData!$N:$N,SummaryData!$A:$A,$B$8,SummaryData!$B:$B,$R$10,SummaryData!$C:$C,$B30)<50,"*"," ")," "))) ->  | T30: =IF(S30="**","",SUMIFS(SummaryData!$E:$E,SummaryData!$A:$A,$B$8,SummaryData!$B:$B,$R$10,SummaryData!$C:$C,$B30)) -> 9.86339 | U30: =IF(S30="**","",SUMIFS(SummaryData!$F:$F,SummaryData!$A:$A,$B$8,SummaryData!$B:$B,$R$10,SummaryData!$C:$C,$B30)) -> 19.42037 | W30: =IF(X30="**","",SUMIFS(SummaryData!$D:$D,SummaryData!$A:$A,$B$8,SummaryData!$B:$B,$W$10,SummaryData!$C:$C,$B30)) -> 0 | X30: =IF(SUMIFS(SummaryData!$N:$N,SummaryData!$A:$A,$B$8,SummaryData!$B:$B,$W$10,SummaryData!$C:$C,$B30)>=50,"**", (IF(SUMIFS(SummaryData!$N:$N,SummaryData!$A:$A,$B$8,SummaryData!$B:$B,$W$10,SummaryData!$C:$C,$B30)>25, IF(SUMIFS(SummaryData!$N:$N,SummaryData!$A:$A,$B$8,SummaryData!$B:$B,$W$10,SummaryData!$C:$C,$B30)<50,"*"," ")," "))) ->  | Y30: =IF(X30="**","",SUMIFS(SummaryData!$E:$E,SummaryData!$A:$A,$B$8,SummaryData!$B:$B,$W$10,SummaryData!$C:$C,$B30)) -> 0 | Z30: =IF(X30="**","",SUMIFS(SummaryData!$F:$F,SummaryData!$A:$A,$B$8,SummaryData!$B:$B,$W$10,SummaryData!$C:$C,$B30)) -> 0 | AB30: =IF(AC30="**","",SUMIFS(SummaryData!$D:$D,SummaryData!$A:$A,$B$8,SummaryData!$B:$B,$AB$10,SummaryData!$C:$C,$B30)) -> 0 | AC30: =IF(SUMIFS(SummaryData!$N:$N,SummaryData!$A:$A,$B$8,SummaryData!$B:$B,$AB$10,SummaryData!$C:$C,$B30)>=50,"**", (IF(SUMIFS(SummaryData!$N:$N,SummaryData!$A:$A,$B$8,SummaryData!$B:$B,$AB$10,SummaryData!$C:$C,$B30)>25, IF(SUMIFS(SummaryData!$N:$N,SummaryData!$A:$A,$B$8,SummaryData!$B:$B,$AB$10,SummaryData!$C:$C,$B30)<50,"*"," ")," "))) ->  | AD30: =IF(AC30="**","",SUMIFS(SummaryData!$E:$E,SummaryData!$A:$A,$B$8,SummaryData!$B:$B,$AB$10,SummaryData!$C:$C,$B30)) -> 0 | AE30: =IF(AC30="**","",SUMIFS(SummaryData!$F:$F,SummaryData!$A:$A,$B$8,SummaryData!$B:$B,$AB$10,SummaryData!$C:$C,$B30)) -> 0
B31: East Gippsland (S) | C31: =IF(D31="**","",SUMIFS(SummaryData!$D:$D,SummaryData!$A:$A,$B$8,SummaryData!$B:$B,$C$10,SummaryData!$C:$C,$B31)) ->  | D31: =IF(SUMIFS(SummaryData!$N:$N,SummaryData!$A:$A,$B$8,SummaryData!$B:$B,$C$10,SummaryData!$C:$C,$B31)>=50,"**", (IF(SUMIFS(SummaryData!$N:$N,SummaryData!$A:$A,$B$8,SummaryData!$B:$B,$C$10,SummaryData!$C:$C,$B$13)>25, IF(SUMIFS(SummaryData!$N:$N,SummaryData!$A:$A,$B$8,SummaryData!$B:$B,$C$10,SummaryData!$C:$C,$B$13)<50,"*"," ")," "))) -> ** | E31: =IF(D31="**","",SUMIFS(SummaryData!$E:$E,SummaryData!$A:$A,$B$8,SummaryData!$B:$B,$C$10,SummaryData!$C:$C,$B31)) ->  | F31: =IF(D31="**","",SUMIFS(SummaryData!$F:$F,SummaryData!$A:$A,$B$8,SummaryData!$B:$B,$C$10,SummaryData!$C:$C,$B31)) ->  | H31: =IF(I31="**","",SUMIFS(SummaryData!$D:$D,SummaryData!$A:$A,$B$8,SummaryData!$B:$B,$H$10,SummaryData!$C:$C,$B31)) -> 24.67445 | I31: =IF(SUMIFS(SummaryData!$N:$N,SummaryData!$A:$A,$B$8,SummaryData!$B:$B,$H$10,SummaryData!$C:$C,$B31)>=50,"**", (IF(SUMIFS(SummaryData!$N:$N,SummaryData!$A:$A,$B$8,SummaryData!$B:$B,$H$10,SummaryData!$C:$C,$B31)>25, IF(SUMIFS(SummaryData!$N:$N,SummaryData!$A:$A,$B$8,SummaryData!$B:$B,$H$10,SummaryData!$C:$C,$B31)<50,"*"," ")," "))) ->  | J31: =IF(I31="**","",SUMIFS(SummaryData!$E:$E,SummaryData!$A:$A,$B$8,SummaryData!$B:$B,$H$10,SummaryData!$C:$C,$B31)) -> 17.50346 | K31: =IF(I31="**","",SUMIFS(SummaryData!$F:$F,SummaryData!$A:$A,$B$8,SummaryData!$B:$B,$H$10,SummaryData!$C:$C,$B31)) -> 33.58721 | M31: =IF(N31="**","",SUMIFS(SummaryData!$D:$D,SummaryData!$A:$A,$B$8,SummaryData!$B:$B,$M$10,SummaryData!$C:$C,$B31)) -> 28.50558 | N31: =IF(SUMIFS(SummaryData!$N:$N,SummaryData!$A:$A,$B$8,SummaryData!$B:$B,$M$10,SummaryData!$C:$C,$B31)>=50,"**", (IF(SUMIFS(SummaryData!$N:$N,SummaryData!$A:$A,$B$8,SummaryData!$B:$B,$M$10,SummaryData!$C:$C,$B31)>25, IF(SUMIFS(SummaryData!$N:$N,SummaryData!$A:$A,$B$8,SummaryData!$B:$B,$M$10,SummaryData!$C:$C,$B31)<50,"*"," ")," "))) ->  | O31: =IF(N31="**","",SUMIFS(SummaryData!$E:$E,SummaryData!$A:$A,$B$8,SummaryData!$B:$B,$M$10,SummaryData!$C:$C,$B31)) -> 21.95763 | P31: =IF(N31="**","",SUMIFS(SummaryData!$F:$F,SummaryData!$A:$A,$B$8,SummaryData!$B:$B,$M$10,SummaryData!$C:$C,$B31)) -> 36.10288 | R31: =IF(S31="**","",SUMIFS(SummaryData!$D:$D,SummaryData!$A:$A,$B$8,SummaryData!$B:$B,$R$10,SummaryData!$C:$C,$B31)) -> 28.11348 | S31: =IF(SUMIFS(SummaryData!$N:$N,SummaryData!$A:$A,$B$8,SummaryData!$B:$B,$R$10,SummaryData!$C:$C,$B31)>=50,"**", (IF(SUMIFS(SummaryData!$N:$N,SummaryData!$A:$A,$B$8,SummaryData!$B:$B,$R$10,SummaryData!$C:$C,$B31)>25, IF(SUMIFS(SummaryData!$N:$N,SummaryData!$A:$A,$B$8,SummaryData!$B:$B,$R$10,SummaryData!$C:$C,$B31)<50,"*"," ")," "))) ->  | T31: =IF(S31="**","",SUMIFS(SummaryData!$E:$E,SummaryData!$A:$A,$B$8,SummaryData!$B:$B,$R$10,SummaryData!$C:$C,$B31)) -> 20.56779 | U31: =IF(S31="**","",SUMIFS(SummaryData!$F:$F,SummaryData!$A:$A,$B$8,SummaryData!$B:$B,$R$10,SummaryData!$C:$C,$B31)) -> 37.13331 | W31: =IF(X31="**","",SUMIFS(SummaryData!$D:$D,SummaryData!$A:$A,$B$8,SummaryData!$B:$B,$W$10,SummaryData!$C:$C,$B31)) -> 0 | X31: =IF(SUMIFS(SummaryData!$N:$N,SummaryData!$A:$A,$B$8,SummaryData!$B:$B,$W$10,SummaryData!$C:$C,$B31)>=50,"**", (IF(SUMIFS(SummaryData!$N:$N,SummaryData!$A:$A,$B$8,SummaryData!$B:$B,$W$10,SummaryData!$C:$C,$B31)>25, IF(SUMIFS(SummaryData!$N:$N,SummaryData!$A:$A,$B$8,SummaryData!$B:$B,$W$10,SummaryData!$C:$C,$B31)<50,"*"," ")," "))) ->  | Y31: =IF(X31="**","",SUMIFS(SummaryData!$E:$E,SummaryData!$A:$A,$B$8,SummaryData!$B:$B,$W$10,SummaryData!$C:$C,$B31)) -> 0 | Z31: =IF(X31="**","",SUMIFS(SummaryData!$F:$F,SummaryData!$A:$A,$B$8,SummaryData!$B:$B,$W$10,SummaryData!$C:$C,$B31)) -> 0 | AB31: =IF(AC31="**","",SUMIFS(SummaryData!$D:$D,SummaryData!$A:$A,$B$8,SummaryData!$B:$B,$AB$10,SummaryData!$C:$C,$B31)) -> 0 | AC31: =IF(SUMIFS(SummaryData!$N:$N,SummaryData!$A:$A,$B$8,SummaryData!$B:$B,$AB$10,SummaryData!$C:$C,$B31)>=50,"**", (IF(SUMIFS(SummaryData!$N:$N,SummaryData!$A:$A,$B$8,SummaryData!$B:$B,$AB$10,SummaryData!$C:$C,$B31)>25, IF(SUMIFS(SummaryData!$N:$N,SummaryData!$A:$A,$B$8,SummaryData!$B:$B,$AB$10,SummaryData!$C:$C,$B31)<50,"*"," ")," "))) ->  | AD31: =IF(AC31="**","",SUMIFS(SummaryData!$E:$E,SummaryData!$A:$A,$B$8,SummaryData!$B:$B,$AB$10,SummaryData!$C:$C,$B31)) -> 0 | AE31: =IF(AC31="**","",SUMIFS(SummaryData!$F:$F,SummaryData!$A:$A,$B$8,SummaryData!$B:$B,$AB$10,SummaryData!$C:$C,$B31)) -> 0
B32: Frankston (C) | C32: =IF(D32="**","",SUMIFS(SummaryData!$D:$D,SummaryData!$A:$A,$B$8,SummaryData!$B:$B,$C$10,SummaryData!$C:$C,$B32)) -> 2.872738 | D32: =IF(SUMIFS(SummaryData!$N:$N,SummaryData!$A:$A,$B$8,SummaryData!$B:$B,$C$10,SummaryData!$C:$C,$B32)>=50,"**", (IF(SUMIFS(SummaryData!$N:$N,SummaryData!$A:$A,$B$8,SummaryData!$B:$B,$C$10,SummaryData!$C:$C,$B$13)>25, IF(SUMIFS(SummaryData!$N:$N,SummaryData!$A:$A,$B$8,SummaryData!$B:$B,$C$10,SummaryData!$C:$C,$B$13)<50,"*"," ")," "))) -> * | E32: =IF(D32="**","",SUMIFS(SummaryData!$E:$E,SummaryData!$A:$A,$B$8,SummaryData!$B:$B,$C$10,SummaryData!$C:$C,$B32)) -> 1.340176 | F32: =IF(D32="**","",SUMIFS(SummaryData!$F:$F,SummaryData!$A:$A,$B$8,SummaryData!$B:$B,$C$10,SummaryData!$C:$C,$B32)) -> 6.05039 | H32: =IF(I32="**","",SUMIFS(SummaryData!$D:$D,SummaryData!$A:$A,$B$8,SummaryData!$B:$B,$H$10,SummaryData!$C:$C,$B32)) -> 30.27617 | I32: =IF(SUMIFS(SummaryData!$N:$N,SummaryData!$A:$A,$B$8,SummaryData!$B:$B,$H$10,SummaryData!$C:$C,$B32)>=50,"**", (IF(SUMIFS(SummaryData!$N:$N,SummaryData!$A:$A,$B$8,SummaryData!$B:$B,$H$10,SummaryData!$C:$C,$B32)>25, IF(SUMIFS(SummaryData!$N:$N,SummaryData!$A:$A,$B$8,SummaryData!$B:$B,$H$10,SummaryData!$C:$C,$B32)<50,"*"," ")," "))) ->  | J32: =IF(I32="**","",SUMIFS(SummaryData!$E:$E,SummaryData!$A:$A,$B$8,SummaryData!$B:$B,$H$10,SummaryData!$C:$C,$B32)) -> 24.9314 | K32: =IF(I32="**","",SUMIFS(SummaryData!$F:$F,SummaryData!$A:$A,$B$8,SummaryData!$B:$B,$H$10,SummaryData!$C:$C,$B32)) -> 36.214 | M32: =IF(N32="**","",SUMIFS(SummaryData!$D:$D,SummaryData!$A:$A,$B$8,SummaryData!$B:$B,$M$10,SummaryData!$C:$C,$B32)) -> 31.98616 | N32: =IF(SUMIFS(SummaryData!$N:$N,SummaryData!$A:$A,$B$8,SummaryData!$B:$B,$M$10,SummaryData!$C:$C,$B32)>=50,"**", (IF(SUMIFS(SummaryData!$N:$N,SummaryData!$A:$A,$B$8,SummaryData!$B:$B,$M$10,SummaryData!$C:$C,$B32)>25, IF(SUMIFS(SummaryData!$N:$N,SummaryData!$A:$A,$B$8,SummaryData!$B:$B,$M$10,SummaryData!$C:$C,$B32)<50,"*"," ")," "))) ->  | O32: =IF(N32="**","",SUMIFS(SummaryData!$E:$E,SummaryData!$A:$A,$B$8,SummaryData!$B:$B,$M$10,SummaryData!$C:$C,$B32)) -> 26.39261 | P32: =IF(N32="**","",SUMIFS(SummaryData!$F:$F,SummaryData!$A:$A,$B$8,SummaryData!$B:$B,$M$10,SummaryData!$C:$C,$B32)) -> 38.15077 | R32: =IF(S32="**","",SUMIFS(SummaryData!$D:$D,SummaryData!$A:$A,$B$8,SummaryData!$B:$B,$R$10,SummaryData!$C:$C,$B32)) -> 27.74223 | S32: =IF(SUMIFS(SummaryData!$N:$N,SummaryData!$A:$A,$B$8,SummaryData!$B:$B,$R$10,SummaryData!$C:$C,$B32)>=50,"**", (IF(SUMIFS(SummaryData!$N:$N,SummaryData!$A:$A,$B$8,SummaryData!$B:$B,$R$10,SummaryData!$C:$C,$B32)>25, IF(SUMIFS(SummaryData!$N:$N,SummaryData!$A:$A,$B$8,SummaryData!$B:$B,$R$10,SummaryData!$C:$C,$B32)<50,"*"," ")," "))) ->  | T32: =IF(S32="**","",SUMIFS(SummaryData!$E:$E,SummaryData!$A:$A,$B$8,SummaryData!$B:$B,$R$10,SummaryData!$C:$C,$B32)) -> 22.58851 | U32: =IF(S32="**","",SUMIFS(SummaryData!$F:$F,SummaryData!$A:$A,$B$8,SummaryData!$B:$B,$R$10,SummaryData!$C:$C,$B32)) -> 33.56202 | W32: =IF(X32="**","",SUMIFS(SummaryData!$D:$D,SummaryData!$A:$A,$B$8,SummaryData!$B:$B,$W$10,SummaryData!$C:$C,$B32)) -> 0 | X32: =IF(SUMIFS(SummaryData!$N:$N,SummaryData!$A:$A,$B$8,SummaryData!$B:$B,$W$10,SummaryData!$C:$C,$B32)>=50,"**", (IF(SUMIFS(SummaryData!$N:$N,SummaryData!$A:$A,$B$8,SummaryData!$B:$B,$W$10,SummaryData!$C:$C,$B32)>25, IF(SUMIFS(SummaryData!$N:$N,SummaryData!$A:$A,$B$8,SummaryData!$B:$B,$W$10,SummaryData!$C:$C,$B32)<50,"*"," ")," "))) ->  | Y32: =IF(X32="**","",SUMIFS(SummaryData!$E:$E,SummaryData!$A:$A,$B$8,SummaryData!$B:$B,$W$10,SummaryData!$C:$C,$B32)) -> 0 | Z32: =IF(X32="**","",SUMIFS(SummaryData!$F:$F,SummaryData!$A:$A,$B$8,SummaryData!$B:$B,$W$10,SummaryData!$C:$C,$B32)) -> 0 | AB32: =IF(AC32="**","",SUMIFS(SummaryData!$D:$D,SummaryData!$A:$A,$B$8,SummaryData!$B:$B,$AB$10,SummaryData!$C:$C,$B32)) -> 0 | AC32: =IF(SUMIFS(SummaryData!$N:$N,SummaryData!$A:$A,$B$8,SummaryData!$B:$B,$AB$10,SummaryData!$C:$C,$B32)>=50,"**", (IF(SUMIFS(SummaryData!$N:$N,SummaryData!$A:$A,$B$8,SummaryData!$B:$B,$AB$10,SummaryData!$C:$C,$B32)>25, IF(SUMIFS(SummaryData!$N:$N,SummaryData!$A:$A,$B$8,SummaryData!$B:$B,$AB$10,SummaryData!$C:$C,$B32)<50,"*"," ")," "))) ->  | AD32: =IF(AC32="**","",SUMIFS(SummaryData!$E:$E,SummaryData!$A:$A,$B$8,SummaryData!$B:$B,$AB$10,SummaryData!$C:$C,$B32)) -> 0 | AE32: =IF(AC32="**","",SUMIFS(SummaryData!$F:$F,SummaryData!$A:$A,$B$8,SummaryData!$B:$B,$AB$10,SummaryData!$C:$C,$B32)) -> 0
B33: Gannawarra (S) | C33: =IF(D33="**","",SUMIFS(SummaryData!$D:$D,SummaryData!$A:$A,$B$8,SummaryData!$B:$B,$C$10,SummaryData!$C:$C,$B33)) ->  | D33: =IF(SUMIFS(SummaryData!$N:$N,SummaryData!$A:$A,$B$8,SummaryData!$B:$B,$C$10,SummaryData!$C:$C,$B33)>=50,"**", (IF(SUMIFS(SummaryData!$N:$N,SummaryData!$A:$A,$B$8,SummaryData!$B:$B,$C$10,SummaryData!$C:$C,$B$13)>25, IF(SUMIFS(SummaryData!$N:$N,SummaryData!$A:$A,$B$8,SummaryData!$B:$B,$C$10,SummaryData!$C:$C,$B$13)<50,"*"," ")," "))) -> ** | E33: =IF(D33="**","",SUMIFS(SummaryData!$E:$E,SummaryData!$A:$A,$B$8,SummaryData!$B:$B,$C$10,SummaryData!$C:$C,$B33)) ->  | F33: =IF(D33="**","",SUMIFS(SummaryData!$F:$F,SummaryData!$A:$A,$B$8,SummaryData!$B:$B,$C$10,SummaryData!$C:$C,$B33)) ->  | H33: =IF(I33="**","",SUMIFS(SummaryData!$D:$D,SummaryData!$A:$A,$B$8,SummaryData!$B:$B,$H$10,SummaryData!$C:$C,$B33)) -> 22.75247 | I33: =IF(SUMIFS(SummaryData!$N:$N,SummaryData!$A:$A,$B$8,SummaryData!$B:$B,$H$10,SummaryData!$C:$C,$B33)>=50,"**", (IF(SUMIFS(SummaryData!$N:$N,SummaryData!$A:$A,$B$8,SummaryData!$B:$B,$H$10,SummaryData!$C:$C,$B33)>25, IF(SUMIFS(SummaryData!$N:$N,SummaryData!$A:$A,$B$8,SummaryData!$B:$B,$H$10,SummaryData!$C:$C,$B33)<50,"*"," ")," "))) ->  | J33: =IF(I33="**","",SUMIFS(SummaryData!$E:$E,SummaryData!$A:$A,$B$8,SummaryData!$B:$B,$H$10,SummaryData!$C:$C,$B33)) -> 14.67471 | K33: =IF(I33="**","",SUMIFS(SummaryData!$F:$F,SummaryData!$A:$A,$B$8,SummaryData!$B:$B,$H$10,SummaryData!$C:$C,$B33)) -> 33.5294 | M33: =IF(N33="**","",SUMIFS(SummaryData!$D:$D,SummaryData!$A:$A,$B$8,SummaryData!$B:$B,$M$10,SummaryData!$C:$C,$B33)) -> 34.22311 | N33: =IF(SUMIFS(SummaryData!$N:$N,SummaryData!$A:$A,$B$8,SummaryData!$B:$B,$M$10,SummaryData!$C:$C,$B33)>=50,"**", (IF(SUMIFS(SummaryData!$N:$N,SummaryData!$A:$A,$B$8,SummaryData!$B:$B,$M$10,SummaryData!$C:$C,$B33)>25, IF(SUMIFS(SummaryData!$N:$N,SummaryData!$A:$A,$B$8,SummaryData!$B:$B,$M$10,SummaryData!$C:$C,$B33)<50,"*"," ")," "))) ->  | O33: =IF(N33="**","",SUMIFS(SummaryData!$E:$E,SummaryData!$A:$A,$B$8,SummaryData!$B:$B,$M$10,SummaryData!$C:$C,$B33)) -> 24.39261 | P33: =IF(N33="**","",SUMIFS(SummaryData!$F:$F,SummaryData!$A:$A,$B$8,SummaryData!$B:$B,$M$10,SummaryData!$C:$C,$B33)) -> 45.62469 | R33: =IF(S33="**","",SUMIFS(SummaryData!$D:$D,SummaryData!$A:$A,$B$8,SummaryData!$B:$B,$R$10,SummaryData!$C:$C,$B33)) -> 31.0288 | S33: =IF(SUMIFS(SummaryData!$N:$N,SummaryData!$A:$A,$B$8,SummaryData!$B:$B,$R$10,SummaryData!$C:$C,$B33)>=50,"**", (IF(SUMIFS(SummaryData!$N:$N,SummaryData!$A:$A,$B$8,SummaryData!$B:$B,$R$10,SummaryData!$C:$C,$B33)>25, IF(SUMIFS(SummaryData!$N:$N,SummaryData!$A:$A,$B$8,SummaryData!$B:$B,$R$10,SummaryData!$C:$C,$B33)<50,"*"," ")," "))) ->  | T33: =IF(S33="**","",SUMIFS(SummaryData!$E:$E,SummaryData!$A:$A,$B$8,SummaryData!$B:$B,$R$10,SummaryData!$C:$C,$B33)) -> 22.36776 | U33: =IF(S33="**","",SUMIFS(SummaryData!$F:$F,SummaryData!$A:$A,$B$8,SummaryData!$B:$B,$R$10,SummaryData!$C:$C,$B33)) -> 41.26105 | W33: =IF(X33="**","",SUMIFS(SummaryData!$D:$D,SummaryData!$A:$A,$B$8,SummaryData!$B:$B,$W$10,SummaryData!$C:$C,$B33)) -> 0 | X33: =IF(SUMIFS(SummaryData!$N:$N,SummaryData!$A:$A,$B$8,SummaryData!$B:$B,$W$10,SummaryData!$C:$C,$B33)>=50,"**", (IF(SUMIFS(SummaryData!$N:$N,SummaryData!$A:$A,$B$8,SummaryData!$B:$B,$W$10,SummaryData!$C:$C,$B33)>25, IF(SUMIFS(SummaryData!$N:$N,SummaryData!$A:$A,$B$8,SummaryData!$B:$B,$W$10,SummaryData!$C:$C,$B33)<50,"*"," ")," "))) ->  | Y33: =IF(X33="**","",SUMIFS(SummaryData!$E:$E,SummaryData!$A:$A,$B$8,SummaryData!$B:$B,$W$10,SummaryData!$C:$C,$B33)) -> 0 | Z33: =IF(X33="**","",SUMIFS(SummaryData!$F:$F,SummaryData!$A:$A,$B$8,SummaryData!$B:$B,$W$10,SummaryData!$C:$C,$B33)) -> 0 | AB33: =IF(AC33="**","",SUMIFS(SummaryData!$D:$D,SummaryData!$A:$A,$B$8,SummaryData!$B:$B,$AB$10,SummaryData!$C:$C,$B33)) -> 0 | AC33: =IF(SUMIFS(SummaryData!$N:$N,SummaryData!$A:$A,$B$8,SummaryData!$B:$B,$AB$10,SummaryData!$C:$C,$B33)>=50,"**", (IF(SUMIFS(SummaryData!$N:$N,SummaryData!$A:$A,$B$8,SummaryData!$B:$B,$AB$10,SummaryData!$C:$C,$B33)>25, IF(SUMIFS(SummaryData!$N:$N,SummaryData!$A:$A,$B$8,SummaryData!$B:$B,$AB$10,SummaryData!$C:$C,$B33)<50,"*"," ")," "))) ->  | AD33: =IF(AC33="**","",SUMIFS(SummaryData!$E:$E,SummaryData!$A:$A,$B$8,SummaryData!$B:$B,$AB$10,SummaryData!$C:$C,$B33)) -> 0 | AE33: =IF(AC33="**","",SUMIFS(SummaryData!$F:$F,SummaryData!$A:$A,$B$8,SummaryData!$B:$B,$AB$10,SummaryData!$C:$C,$B33)) -> 0
B34: Glen Eira (C) | C34: =IF(D34="**","",SUMIFS(SummaryData!$D:$D,SummaryData!$A:$A,$B$8,SummaryData!$B:$B,$C$10,SummaryData!$C:$C,$B34)) -> 2.816939 | D34: =IF(SUMIFS(SummaryData!$N:$N,SummaryData!$A:$A,$B$8,SummaryData!$B:$B,$C$10,SummaryData!$C:$C,$B34)>=50,"**", (IF(SUMIFS(SummaryData!$N:$N,SummaryData!$A:$A,$B$8,SummaryData!$B:$B,$C$10,SummaryData!$C:$C,$B$13)>25, IF(SUMIFS(SummaryData!$N:$N,SummaryData!$A:$A,$B$8,SummaryData!$B:$B,$C$10,SummaryData!$C:$C,$B$13)<50,"*"," ")," "))) -> * | E34: =IF(D34="**","",SUMIFS(SummaryData!$E:$E,SummaryData!$A:$A,$B$8,SummaryData!$B:$B,$C$10,SummaryData!$C:$C,$B34)) -> 1.175527 | F34: =IF(D34="**","",SUMIFS(SummaryData!$F:$F,SummaryData!$A:$A,$B$8,SummaryData!$B:$B,$C$10,SummaryData!$C:$C,$B34)) -> 6.597283 | H34: =IF(I34="**","",SUMIFS(SummaryData!$D:$D,SummaryData!$A:$A,$B$8,SummaryData!$B:$B,$H$10,SummaryData!$C:$C,$B34)) -> 45.01011 | I34: =IF(SUMIFS(SummaryData!$N:$N,SummaryData!$A:$A,$B$8,SummaryData!$B:$B,$H$10,SummaryData!$C:$C,$B34)>=50,"**", (IF(SUMIFS(SummaryData!$N:$N,SummaryData!$A:$A,$B$8,SummaryData!$B:$B,$H$10,SummaryData!$C:$C,$B34)>25, IF(SUMIFS(SummaryData!$N:$N,SummaryData!$A:$A,$B$8,SummaryData!$B:$B,$H$10,SummaryData!$C:$C,$B34)<50,"*"," ")," "))) ->  | J34: =IF(I34="**","",SUMIFS(SummaryData!$E:$E,SummaryData!$A:$A,$B$8,SummaryData!$B:$B,$H$10,SummaryData!$C:$C,$B34)) -> 39.13354 | K34: =IF(I34="**","",SUMIFS(SummaryData!$F:$F,SummaryData!$A:$A,$B$8,SummaryData!$B:$B,$H$10,SummaryData!$C:$C,$B34)) -> 51.0293 | M34: =IF(N34="**","",SUMIFS(SummaryData!$D:$D,SummaryData!$A:$A,$B$8,SummaryData!$B:$B,$M$10,SummaryData!$C:$C,$B34)) -> 24.81675 | N34: =IF(SUMIFS(SummaryData!$N:$N,SummaryData!$A:$A,$B$8,SummaryData!$B:$B,$M$10,SummaryData!$C:$C,$B34)>=50,"**", (IF(SUMIFS(SummaryData!$N:$N,SummaryData!$A:$A,$B$8,SummaryData!$B:$B,$M$10,SummaryData!$C:$C,$B34)>25, IF(SUMIFS(SummaryData!$N:$N,SummaryData!$A:$A,$B$8,SummaryData!$B:$B,$M$10,SummaryData!$C:$C,$B34)<50,"*"," ")," "))) ->  | O34: =IF(N34="**","",SUMIFS(SummaryData!$E:$E,SummaryData!$A:$A,$B$8,SummaryData!$B:$B,$M$10,SummaryData!$C:$C,$B34)) -> 20.01703 | P34: =IF(N34="**","",SUMIFS(SummaryData!$F:$F,SummaryData!$A:$A,$B$8,SummaryData!$B:$B,$M$10,SummaryData!$C:$C,$B34)) -> 30.33092 | R34: =IF(S34="**","",SUMIFS(SummaryData!$D:$D,SummaryData!$A:$A,$B$8,SummaryData!$B:$B,$R$10,SummaryData!$C:$C,$B34)) -> 17.03397 | S34: =IF(SUMIFS(SummaryData!$N:$N,SummaryData!$A:$A,$B$8,SummaryData!$B:$B,$R$10,SummaryData!$C:$C,$B34)>=50,"**", (IF(SUMIFS(SummaryData!$N:$N,SummaryData!$A:$A,$B$8,SummaryData!$B:$B,$R$10,SummaryData!$C:$C,$B34)>25, IF(SUMIFS(SummaryData!$N:$N,SummaryData!$A:$A,$B$8,SummaryData!$B:$B,$R$10,SummaryData!$C:$C,$B34)<50,"*"," ")," "))) ->  | T34: =IF(S34="**","",SUMIFS(SummaryData!$E:$E,SummaryData!$A:$A,$B$8,SummaryData!$B:$B,$R$10,SummaryData!$C:$C,$B34)) -> 12.89177 | U34: =IF(S34="**","",SUMIFS(SummaryData!$F:$F,SummaryData!$A:$A,$B$8,SummaryData!$B:$B,$R$10,SummaryData!$C:$C,$B34)) -> 22.16838 | W34: =IF(X34="**","",SUMIFS(SummaryData!$D:$D,SummaryData!$A:$A,$B$8,SummaryData!$B:$B,$W$10,SummaryData!$C:$C,$B34)) -> 0 | X34: =IF(SUMIFS(SummaryData!$N:$N,SummaryData!$A:$A,$B$8,SummaryData!$B:$B,$W$10,SummaryData!$C:$C,$B34)>=50,"**", (IF(SUMIFS(SummaryData!$N:$N,SummaryData!$A:$A,$B$8,SummaryData!$B:$B,$W$10,SummaryData!$C:$C,$B34)>25, IF(SUMIFS(SummaryData!$N:$N,SummaryData!$A:$A,$B$8,SummaryData!$B:$B,$W$10,SummaryData!$C:$C,$B34)<50,"*"," ")," "))) ->  | Y34: =IF(X34="**","",SUMIFS(SummaryData!$E:$E,SummaryData!$A:$A,$B$8,SummaryData!$B:$B,$W$10,SummaryData!$C:$C,$B34)) -> 0 | Z34: =IF(X34="**","",SUMIFS(SummaryData!$F:$F,SummaryData!$A:$A,$B$8,SummaryData!$B:$B,$W$10,SummaryData!$C:$C,$B34)) -> 0 | AB34: =IF(AC34="**","",SUMIFS(SummaryData!$D:$D,SummaryData!$A:$A,$B$8,SummaryData!$B:$B,$AB$10,SummaryData!$C:$C,$B34)) -> 0 | AC34: =IF(SUMIFS(SummaryData!$N:$N,SummaryData!$A:$A,$B$8,SummaryData!$B:$B,$AB$10,SummaryData!$C:$C,$B34)>=50,"**", (IF(SUMIFS(SummaryData!$N:$N,SummaryData!$A:$A,$B$8,SummaryData!$B:$B,$AB$10,SummaryData!$C:$C,$B34)>25, IF(SUMIFS(SummaryData!$N:$N,SummaryData!$A:$A,$B$8,SummaryData!$B:$B,$AB$10,SummaryData!$C:$C,$B34)<50,"*"," ")," "))) ->  | AD34: =IF(AC34="**","",SUMIFS(SummaryData!$E:$E,SummaryData!$A:$A,$B$8,SummaryData!$B:$B,$AB$10,SummaryData!$C:$C,$B34)) -> 0 | AE34: =IF(AC34="**","",SUMIFS(SummaryData!$F:$F,SummaryData!$A:$A,$B$8,SummaryData!$B:$B,$AB$10,SummaryData!$C:$C,$B34)) -> 0
B35: Glenelg (S) | C35: =IF(D35="**","",SUMIFS(SummaryData!$D:$D,SummaryData!$A:$A,$B$8,SummaryData!$B:$B,$C$10,SummaryData!$C:$C,$B35)) ->  | D35: =IF(SUMIFS(SummaryData!$N:$N,SummaryData!$A:$A,$B$8,SummaryData!$B:$B,$C$10,SummaryData!$C:$C,$B35)>=50,"**", (IF(SUMIFS(SummaryData!$N:$N,SummaryData!$A:$A,$B$8,SummaryData!$B:$B,$C$10,SummaryData!$C:$C,$B$13)>25, IF(SUMIFS(SummaryData!$N:$N,SummaryData!$A:$A,$B$8,SummaryData!$B:$B,$C$10,SummaryData!$C:$C,$B$13)<50,"*"," ")," "))) -> ** | E35: =IF(D35="**","",SUMIFS(SummaryData!$E:$E,SummaryData!$A:$A,$B$8,SummaryData!$B:$B,$C$10,SummaryData!$C:$C,$B35)) ->  | F35: =IF(D35="**","",SUMIFS(SummaryData!$F:$F,SummaryData!$A:$A,$B$8,SummaryData!$B:$B,$C$10,SummaryData!$C:$C,$B35)) ->  | H35: =IF(I35="**","",SUMIFS(SummaryData!$D:$D,SummaryData!$A:$A,$B$8,SummaryData!$B:$B,$H$10,SummaryData!$C:$C,$B35)) -> 27.9103 | I35: =IF(SUMIFS(SummaryData!$N:$N,SummaryData!$A:$A,$B$8,SummaryData!$B:$B,$H$10,SummaryData!$C:$C,$B35)>=50,"**", (IF(SUMIFS(SummaryData!$N:$N,SummaryData!$A:$A,$B$8,SummaryData!$B:$B,$H$10,SummaryData!$C:$C,$B35)>25, IF(SUMIFS(SummaryData!$N:$N,SummaryData!$A:$A,$B$8,SummaryData!$B:$B,$H$10,SummaryData!$C:$C,$B35)<50,"*"," ")," "))) ->  | J35: =IF(I35="**","",SUMIFS(SummaryData!$E:$E,SummaryData!$A:$A,$B$8,SummaryData!$B:$B,$H$10,SummaryData!$C:$C,$B35)) -> 19.0801 | K35: =IF(I35="**","",SUMIFS(SummaryData!$F:$F,SummaryData!$A:$A,$B$8,SummaryData!$B:$B,$H$10,SummaryData!$C:$C,$B35)) -> 38.86437 | M35: =IF(N35="**","",SUMIFS(SummaryData!$D:$D,SummaryData!$A:$A,$B$8,SummaryData!$B:$B,$M$10,SummaryData!$C:$C,$B35)) -> 28.91583 | N35: =IF(SUMIFS(SummaryData!$N:$N,SummaryData!$A:$A,$B$8,SummaryData!$B:$B,$M$10,SummaryData!$C:$C,$B35)>=50,"**", (IF(SUMIFS(SummaryData!$N:$N,SummaryData!$A:$A,$B$8,SummaryData!$B:$B,$M$10,SummaryData!$C:$C,$B35)>25, IF(SUMIFS(SummaryData!$N:$N,SummaryData!$A:$A,$B$8,SummaryData!$B:$B,$M$10,SummaryData!$C:$C,$B35)<50,"*"," ")," "))) ->  | O35: =IF(N35="**","",SUMIFS(SummaryData!$E:$E,SummaryData!$A:$A,$B$8,SummaryData!$B:$B,$M$10,SummaryData!$C:$C,$B35)) -> 20.72658 | P35: =IF(N35="**","",SUMIFS(SummaryData!$F:$F,SummaryData!$A:$A,$B$8,SummaryData!$B:$B,$M$10,SummaryData!$C:$C,$B35)) -> 38.75873 | R35: =IF(S35="**","",SUMIFS(SummaryData!$D:$D,SummaryData!$A:$A,$B$8,SummaryData!$B:$B,$R$10,SummaryData!$C:$C,$B35)) -> 30.53851 | S35: =IF(SUMIFS(SummaryData!$N:$N,SummaryData!$A:$A,$B$8,SummaryData!$B:$B,$R$10,SummaryData!$C:$C,$B35)>=50,"**", (IF(SUMIFS(SummaryData!$N:$N,SummaryData!$A:$A,$B$8,SummaryData!$B:$B,$R$10,SummaryData!$C:$C,$B35)>25, IF(SUMIFS(SummaryData!$N:$N,SummaryData!$A:$A,$B$8,SummaryData!$B:$B,$R$10,SummaryData!$C:$C,$B35)<50,"*"," ")," "))) ->  | T35: =IF(S35="**","",SUMIFS(SummaryData!$E:$E,SummaryData!$A:$A,$B$8,SummaryData!$B:$B,$R$10,SummaryData!$C:$C,$B35)) -> 22.05957 | U35: =IF(S35="**","",SUMIFS(SummaryData!$F:$F,SummaryData!$A:$A,$B$8,SummaryData!$B:$B,$R$10,SummaryData!$C:$C,$B35)) -> 40.57965 | W35: =IF(X35="**","",SUMIFS(SummaryData!$D:$D,SummaryData!$A:$A,$B$8,SummaryData!$B:$B,$W$10,SummaryData!$C:$C,$B35)) -> 0 | X35: =IF(SUMIFS(SummaryData!$N:$N,SummaryData!$A:$A,$B$8,SummaryData!$B:$B,$W$10,SummaryData!$C:$C,$B35)>=50,"**", (IF(SUMIFS(SummaryData!$N:$N,SummaryData!$A:$A,$B$8,SummaryData!$B:$B,$W$10,SummaryData!$C:$C,$B35)>25, IF(SUMIFS(SummaryData!$N:$N,SummaryData!$A:$A,$B$8,SummaryData!$B:$B,$W$10,SummaryData!$C:$C,$B35)<50,"*"," ")," "))) ->  | Y35: =IF(X35="**","",SUMIFS(SummaryData!$E:$E,SummaryData!$A:$A,$B$8,SummaryData!$B:$B,$W$10,SummaryData!$C:$C,$B35)) -> 0 | Z35: =IF(X35="**","",SUMIFS(SummaryData!$F:$F,SummaryData!$A:$A,$B$8,SummaryData!$B:$B,$W$10,SummaryData!$C:$C,$B35)) -> 0 | AB35: =IF(AC35="**","",SUMIFS(SummaryData!$D:$D,SummaryData!$A:$A,$B$8,SummaryData!$B:$B,$AB$10,SummaryData!$C:$C,$B35)) -> 0 | AC35: =IF(SUMIFS(SummaryData!$N:$N,SummaryData!$A:$A,$B$8,SummaryData!$B:$B,$AB$10,SummaryData!$C:$C,$B35)>=50,"**", (IF(SUMIFS(SummaryData!$N:$N,SummaryData!$A:$A,$B$8,SummaryData!$B:$B,$AB$10,SummaryData!$C:$C,$B35)>25, IF(SUMIFS(SummaryData!$N:$N,SummaryData!$A:$A,$B$8,SummaryData!$B:$B,$AB$10,SummaryData!$C:$C,$B35)<50,"*"," ")," "))) ->  | AD35: =IF(AC35="**","",SUMIFS(SummaryData!$E:$E,SummaryData!$A:$A,$B$8,SummaryData!$B:$B,$AB$10,SummaryData!$C:$C,$B35)) -> 0 | AE35: =IF(AC35="**","",SUMIFS(SummaryData!$F:$F,SummaryData!$A:$A,$B$8,SummaryData!$B:$B,$AB$10,SummaryData!$C:$C,$B35)) -> 0
B36: Golden Plains (S) | C36: =IF(D36="**","",SUMIFS(SummaryData!$D:$D,SummaryData!$A:$A,$B$8,SummaryData!$B:$B,$C$10,SummaryData!$C:$C,$B36)) ->  | D36: =IF(SUMIFS(SummaryData!$N:$N,SummaryData!$A:$A,$B$8,SummaryData!$B:$B,$C$10,SummaryData!$C:$C,$B36)>=50,"**", (IF(SUMIFS(SummaryData!$N:$N,SummaryData!$A:$A,$B$8,SummaryData!$B:$B,$C$10,SummaryData!$C:$C,$B$13)>25, IF(SUMIFS(SummaryData!$N:$N,SummaryData!$A:$A,$B$8,SummaryData!$B:$B,$C$10,SummaryData!$C:$C,$B$13)<50,"*"," ")," "))) -> ** | E36: =IF(D36="**","",SUMIFS(SummaryData!$E:$E,SummaryData!$A:$A,$B$8,SummaryData!$B:$B,$C$10,SummaryData!$C:$C,$B36)) ->  | F36: =IF(D36="**","",SUMIFS(SummaryData!$F:$F,SummaryData!$A:$A,$B$8,SummaryData!$B:$B,$C$10,SummaryData!$C:$C,$B36)) ->  | H36: =IF(I36="**","",SUMIFS(SummaryData!$D:$D,SummaryData!$A:$A,$B$8,SummaryData!$B:$B,$H$10,SummaryData!$C:$C,$B36)) -> 31.60742 | I36: =IF(SUMIFS(SummaryData!$N:$N,SummaryData!$A:$A,$B$8,SummaryData!$B:$B,$H$10,SummaryData!$C:$C,$B36)>=50,"**", (IF(SUMIFS(SummaryData!$N:$N,SummaryData!$A:$A,$B$8,SummaryData!$B:$B,$H$10,SummaryData!$C:$C,$B36)>25, IF(SUMIFS(SummaryData!$N:$N,SummaryData!$A:$A,$B$8,SummaryData!$B:$B,$H$10,SummaryData!$C:$C,$B36)<50,"*"," ")," "))) ->  | J36: =IF(I36="**","",SUMIFS(SummaryData!$E:$E,SummaryData!$A:$A,$B$8,SummaryData!$B:$B,$H$10,SummaryData!$C:$C,$B36)) -> 23.36162 | K36: =IF(I36="**","",SUMIFS(SummaryData!$F:$F,SummaryData!$A:$A,$B$8,SummaryData!$B:$B,$H$10,SummaryData!$C:$C,$B36)) -> 41.19908 | M36: =IF(N36="**","",SUMIFS(SummaryData!$D:$D,SummaryData!$A:$A,$B$8,SummaryData!$B:$B,$M$10,SummaryData!$C:$C,$B36)) -> 35.66599 | N36: =IF(SUMIFS(SummaryData!$N:$N,SummaryData!$A:$A,$B$8,SummaryData!$B:$B,$M$10,SummaryData!$C:$C,$B36)>=50,"**", (IF(SUMIFS(SummaryData!$N:$N,SummaryData!$A:$A,$B$8,SummaryData!$B:$B,$M$10,SummaryData!$C:$C,$B36)>25, IF(SUMIFS(SummaryData!$N:$N,SummaryData!$A:$A,$B$8,SummaryData!$B:$B,$M$10,SummaryData!$C:$C,$B36)<50,"*"," ")," "))) ->  | O36: =IF(N36="**","",SUMIFS(SummaryData!$E:$E,SummaryData!$A:$A,$B$8,SummaryData!$B:$B,$M$10,SummaryData!$C:$C,$B36)) -> 26.77137 | P36: =IF(N36="**","",SUMIFS(SummaryData!$F:$F,SummaryData!$A:$A,$B$8,SummaryData!$B:$B,$M$10,SummaryData!$C:$C,$B36)) -> 45.67265 | R36: =IF(S36="**","",SUMIFS(SummaryData!$D:$D,SummaryData!$A:$A,$B$8,SummaryData!$B:$B,$R$10,SummaryData!$C:$C,$B36)) -> 20.88251 | S36: =IF(SUMIFS(SummaryData!$N:$N,SummaryData!$A:$A,$B$8,SummaryData!$B:$B,$R$10,SummaryData!$C:$C,$B36)>=50,"**", (IF(SUMIFS(SummaryData!$N:$N,SummaryData!$A:$A,$B$8,SummaryData!$B:$B,$R$10,SummaryData!$C:$C,$B36)>25, IF(SUMIFS(SummaryData!$N:$N,SummaryData!$A:$A,$B$8,SummaryData!$B:$B,$R$10,SummaryData!$C:$C,$B36)<50,"*"," ")," "))) ->  | T36: =IF(S36="**","",SUMIFS(SummaryData!$E:$E,SummaryData!$A:$A,$B$8,SummaryData!$B:$B,$R$10,SummaryData!$C:$C,$B36)) -> 16.6437 | U36: =IF(S36="**","",SUMIFS(SummaryData!$F:$F,SummaryData!$A:$A,$B$8,SummaryData!$B:$B,$R$10,SummaryData!$C:$C,$B36)) -> 25.86587 | W36: =IF(X36="**","",SUMIFS(SummaryData!$D:$D,SummaryData!$A:$A,$B$8,SummaryData!$B:$B,$W$10,SummaryData!$C:$C,$B36)) -> 0 | X36: =IF(SUMIFS(SummaryData!$N:$N,SummaryData!$A:$A,$B$8,SummaryData!$B:$B,$W$10,SummaryData!$C:$C,$B36)>=50,"**", (IF(SUMIFS(SummaryData!$N:$N,SummaryData!$A:$A,$B$8,SummaryData!$B:$B,$W$10,SummaryData!$C:$C,$B36)>25, IF(SUMIFS(SummaryData!$N:$N,SummaryData!$A:$A,$B$8,SummaryData!$B:$B,$W$10,SummaryData!$C:$C,$B36)<50,"*"," ")," "))) ->  | Y36: =IF(X36="**","",SUMIFS(SummaryData!$E:$E,SummaryData!$A:$A,$B$8,SummaryData!$B:$B,$W$10,SummaryData!$C:$C,$B36)) -> 0 | Z36: =IF(X36="**","",SUMIFS(SummaryData!$F:$F,SummaryData!$A:$A,$B$8,SummaryData!$B:$B,$W$10,SummaryData!$C:$C,$B36)) -> 0 | AB36: =IF(AC36="**","",SUMIFS(SummaryData!$D:$D,SummaryData!$A:$A,$B$8,SummaryData!$B:$B,$AB$10,SummaryData!$C:$C,$B36)) -> 0 | AC36: =IF(SUMIFS(SummaryData!$N:$N,SummaryData!$A:$A,$B$8,SummaryData!$B:$B,$AB$10,SummaryData!$C:$C,$B36)>=50,"**", (IF(SUMIFS(SummaryData!$N:$N,SummaryData!$A:$A,$B$8,SummaryData!$B:$B,$AB$10,SummaryData!$C:$C,$B36)>25, IF(SUMIFS(SummaryData!$N:$N,SummaryData!$A:$A,$B$8,SummaryData!$B:$B,$AB$10,SummaryData!$C:$C,$B36)<50,"*"," ")," "))) ->  | AD36: =IF(AC36="**","",SUMIFS(SummaryData!$E:$E,SummaryData!$A:$A,$B$8,SummaryData!$B:$B,$AB$10,SummaryData!$C:$C,$B36)) -> 0 | AE36: =IF(AC36="**","",SUMIFS(SummaryData!$F:$F,SummaryData!$A:$A,$B$8,SummaryData!$B:$B,$AB$10,SummaryData!$C:$C,$B36)) -> 0
B37: Greater Bendigo (C) | C37: =IF(D37="**","",SUMIFS(SummaryData!$D:$D,SummaryData!$A:$A,$B$8,SummaryData!$B:$B,$C$10,SummaryData!$C:$C,$B37)) ->  | D37: =IF(SUMIFS(SummaryData!$N:$N,SummaryData!$A:$A,$B$8,SummaryData!$B:$B,$C$10,SummaryData!$C:$C,$B37)>=50,"**", (IF(SUMIFS(SummaryData!$N:$N,SummaryData!$A:$A,$B$8,SummaryData!$B:$B,$C$10,SummaryData!$C:$C,$B$13)>25, IF(SUMIFS(SummaryData!$N:$N,SummaryData!$A:$A,$B$8,SummaryData!$B:$B,$C$10,SummaryData!$C:$C,$B$13)<50,"*"," ")," "))) -> ** | E37: =IF(D37="**","",SUMIFS(SummaryData!$E:$E,SummaryData!$A:$A,$B$8,SummaryData!$B:$B,$C$10,SummaryData!$C:$C,$B37)) ->  | F37: =IF(D37="**","",SUMIFS(SummaryData!$F:$F,SummaryData!$A:$A,$B$8,SummaryData!$B:$B,$C$10,SummaryData!$C:$C,$B37)) ->  | H37: =IF(I37="**","",SUMIFS(SummaryData!$D:$D,SummaryData!$A:$A,$B$8,SummaryData!$B:$B,$H$10,SummaryData!$C:$C,$B37)) -> 20.69322 | I37: =IF(SUMIFS(SummaryData!$N:$N,SummaryData!$A:$A,$B$8,SummaryData!$B:$B,$H$10,SummaryData!$C:$C,$B37)>=50,"**", (IF(SUMIFS(SummaryData!$N:$N,SummaryData!$A:$A,$B$8,SummaryData!$B:$B,$H$10,SummaryData!$C:$C,$B37)>25, IF(SUMIFS(SummaryData!$N:$N,SummaryData!$A:$A,$B$8,SummaryData!$B:$B,$H$10,SummaryData!$C:$C,$B37)<50,"*"," ")," "))) ->  | J37: =IF(I37="**","",SUMIFS(SummaryData!$E:$E,SummaryData!$A:$A,$B$8,SummaryData!$B:$B,$H$10,SummaryData!$C:$C,$B37)) -> 15.5787 | K37: =IF(I37="**","",SUMIFS(SummaryData!$F:$F,SummaryData!$A:$A,$B$8,SummaryData!$B:$B,$H$10,SummaryData!$C:$C,$B37)) -> 26.9508 | M37: =IF(N37="**","",SUMIFS(SummaryData!$D:$D,SummaryData!$A:$A,$B$8,SummaryData!$B:$B,$M$10,SummaryData!$C:$C,$B37)) -> 32.11036 | N37: =IF(SUMIFS(SummaryData!$N:$N,SummaryData!$A:$A,$B$8,SummaryData!$B:$B,$M$10,SummaryData!$C:$C,$B37)>=50,"**", (IF(SUMIFS(SummaryData!$N:$N,SummaryData!$A:$A,$B$8,SummaryData!$B:$B,$M$10,SummaryData!$C:$C,$B37)>25, IF(SUMIFS(SummaryData!$N:$N,SummaryData!$A:$A,$B$8,SummaryData!$B:$B,$M$10,SummaryData!$C:$C,$B37)<50,"*"," ")," "))) ->  | O37: =IF(N37="**","",SUMIFS(SummaryData!$E:$E,SummaryData!$A:$A,$B$8,SummaryData!$B:$B,$M$10,SummaryData!$C:$C,$B37)) -> 25.69993 | P37: =IF(N37="**","",SUMIFS(SummaryData!$F:$F,SummaryData!$A:$A,$B$8,SummaryData!$B:$B,$M$10,SummaryData!$C:$C,$B37)) -> 39.27455 | R37: =IF(S37="**","",SUMIFS(SummaryData!$D:$D,SummaryData!$A:$A,$B$8,SummaryData!$B:$B,$R$10,SummaryData!$C:$C,$B37)) -> 29.70434 | S37: =IF(SUMIFS(SummaryData!$N:$N,SummaryData!$A:$A,$B$8,SummaryData!$B:$B,$R$10,SummaryData!$C:$C,$B37)>=50,"**", (IF(SUMIFS(SummaryData!$N:$N,SummaryData!$A:$A,$B$8,SummaryData!$B:$B,$R$10,SummaryData!$C:$C,$B37)>25, IF(SUMIFS(SummaryData!$N:$N,SummaryData!$A:$A,$B$8,SummaryData!$B:$B,$R$10,SummaryData!$C:$C,$B37)<50,"*"," ")," "))) ->  | T37: =IF(S37="**","",SUMIFS(SummaryData!$E:$E,SummaryData!$A:$A,$B$8,SummaryData!$B:$B,$R$10,SummaryData!$C:$C,$B37)) -> 23.80253 | U37: =IF(S37="**","",SUMIFS(SummaryData!$F:$F,SummaryData!$A:$A,$B$8,SummaryData!$B:$B,$R$10,SummaryData!$C:$C,$B37)) -> 36.371 | W37: =IF(X37="**","",SUMIFS(SummaryData!$D:$D,SummaryData!$A:$A,$B$8,SummaryData!$B:$B,$W$10,SummaryData!$C:$C,$B37)) -> 0 | X37: =IF(SUMIFS(SummaryData!$N:$N,SummaryData!$A:$A,$B$8,SummaryData!$B:$B,$W$10,SummaryData!$C:$C,$B37)>=50,"**", (IF(SUMIFS(SummaryData!$N:$N,SummaryData!$A:$A,$B$8,SummaryData!$B:$B,$W$10,SummaryData!$C:$C,$B37)>25, IF(SUMIFS(SummaryData!$N:$N,SummaryData!$A:$A,$B$8,SummaryData!$B:$B,$W$10,SummaryData!$C:$C,$B37)<50,"*"," ")," "))) ->  | Y37: =IF(X37="**","",SUMIFS(SummaryData!$E:$E,SummaryData!$A:$A,$B$8,SummaryData!$B:$B,$W$10,SummaryData!$C:$C,$B37)) -> 0 | Z37: =IF(X37="**","",SUMIFS(SummaryData!$F:$F,SummaryData!$A:$A,$B$8,SummaryData!$B:$B,$W$10,SummaryData!$C:$C,$B37)) -> 0 | AB37: =IF(AC37="**","",SUMIFS(SummaryData!$D:$D,SummaryData!$A:$A,$B$8,SummaryData!$B:$B,$AB$10,SummaryData!$C:$C,$B37)) -> 0 | AC37: =IF(SUMIFS(SummaryData!$N:$N,SummaryData!$A:$A,$B$8,SummaryData!$B:$B,$AB$10,SummaryData!$C:$C,$B37)>=50,"**", (IF(SUMIFS(SummaryData!$N:$N,SummaryData!$A:$A,$B$8,SummaryData!$B:$B,$AB$10,SummaryData!$C:$C,$B37)>25, IF(SUMIFS(SummaryData!$N:$N,SummaryData!$A:$A,$B$8,SummaryData!$B:$B,$AB$10,SummaryData!$C:$C,$B37)<50,"*"," ")," "))) ->  | AD37: =IF(AC37="**","",SUMIFS(SummaryData!$E:$E,SummaryData!$A:$A,$B$8,SummaryData!$B:$B,$AB$10,SummaryData!$C:$C,$B37)) -> 0 | AE37: =IF(AC37="**","",SUMIFS(SummaryData!$F:$F,SummaryData!$A:$A,$B$8,SummaryData!$B:$B,$AB$10,SummaryData!$C:$C,$B37)) -> 0
B38: Greater Dandenong (C) | C38: =IF(D38="**","",SUMIFS(SummaryData!$D:$D,SummaryData!$A:$A,$B$8,SummaryData!$B:$B,$C$10,SummaryData!$C:$C,$B38)) -> 3.951098 | D38: =IF(SUMIFS(SummaryData!$N:$N,SummaryData!$A:$A,$B$8,SummaryData!$B:$B,$C$10,SummaryData!$C:$C,$B38)>=50,"**", (IF(SUMIFS(SummaryData!$N:$N,SummaryData!$A:$A,$B$8,SummaryData!$B:$B,$C$10,SummaryData!$C:$C,$B$13)>25, IF(SUMIFS(SummaryData!$N:$N,SummaryData!$A:$A,$B$8,SummaryData!$B:$B,$C$10,SummaryData!$C:$C,$B$13)<50,"*"," ")," "))) -> * | E38: =IF(D38="**","",SUMIFS(SummaryData!$E:$E,SummaryData!$A:$A,$B$8,SummaryData!$B:$B,$C$10,SummaryData!$C:$C,$B38)) -> 2.029278 | F38: =IF(D38="**","",SUMIFS(SummaryData!$F:$F,SummaryData!$A:$A,$B$8,SummaryData!$B:$B,$C$10,SummaryData!$C:$C,$B38)) -> 7.552662 | H38: =IF(I38="**","",SUMIFS(SummaryData!$D:$D,SummaryData!$A:$A,$B$8,SummaryData!$B:$B,$H$10,SummaryData!$C:$C,$B38)) -> 41.91563 | I38: =IF(SUMIFS(SummaryData!$N:$N,SummaryData!$A:$A,$B$8,SummaryData!$B:$B,$H$10,SummaryData!$C:$C,$B38)>=50,"**", (IF(SUMIFS(SummaryData!$N:$N,SummaryData!$A:$A,$B$8,SummaryData!$B:$B,$H$10,SummaryData!$C:$C,$B38)>25, IF(SUMIFS(SummaryData!$N:$N,SummaryData!$A:$A,$B$8,SummaryData!$B:$B,$H$10,SummaryData!$C:$C,$B38)<50,"*"," ")," "))) ->  | J38: =IF(I38="**","",SUMIFS(SummaryData!$E:$E,SummaryData!$A:$A,$B$8,SummaryData!$B:$B,$H$10,SummaryData!$C:$C,$B38)) -> 35.5209 | K38: =IF(I38="**","",SUMIFS(SummaryData!$F:$F,SummaryData!$A:$A,$B$8,SummaryData!$B:$B,$H$10,SummaryData!$C:$C,$B38)) -> 48.59398 | M38: =IF(N38="**","",SUMIFS(SummaryData!$D:$D,SummaryData!$A:$A,$B$8,SummaryData!$B:$B,$M$10,SummaryData!$C:$C,$B38)) -> 25.58447 | N38: =IF(SUMIFS(SummaryData!$N:$N,SummaryData!$A:$A,$B$8,SummaryData!$B:$B,$M$10,SummaryData!$C:$C,$B38)>=50,"**", (IF(SUMIFS(SummaryData!$N:$N,SummaryData!$A:$A,$B$8,SummaryData!$B:$B,$M$10,SummaryData!$C:$C,$B38)>25, IF(SUMIFS(SummaryData!$N:$N,SummaryData!$A:$A,$B$8,SummaryData!$B:$B,$M$10,SummaryData!$C:$C,$B38)<50,"*"," ")," "))) ->  | O38: =IF(N38="**","",SUMIFS(SummaryData!$E:$E,SummaryData!$A:$A,$B$8,SummaryData!$B:$B,$M$10,SummaryData!$C:$C,$B38)) -> 20.445 | P38: =IF(N38="**","",SUMIFS(SummaryData!$F:$F,SummaryData!$A:$A,$B$8,SummaryData!$B:$B,$M$10,SummaryData!$C:$C,$B38)) -> 31.50428 | R38: =IF(S38="**","",SUMIFS(SummaryData!$D:$D,SummaryData!$A:$A,$B$8,SummaryData!$B:$B,$R$10,SummaryData!$C:$C,$B38)) -> 18.83018 | S38: =IF(SUMIFS(SummaryData!$N:$N,SummaryData!$A:$A,$B$8,SummaryData!$B:$B,$R$10,SummaryData!$C:$C,$B38)>=50,"**", (IF(SUMIFS(SummaryData!$N:$N,SummaryData!$A:$A,$B$8,SummaryData!$B:$B,$R$10,SummaryData!$C:$C,$B38)>25, IF(SUMIFS(SummaryData!$N:$N,SummaryData!$A:$A,$B$8,SummaryData!$B:$B,$R$10,SummaryData!$C:$C,$B38)<50,"*"," ")," "))) ->  | T38: =IF(S38="**","",SUMIFS(SummaryData!$E:$E,SummaryData!$A:$A,$B$8,SummaryData!$B:$B,$R$10,SummaryData!$C:$C,$B38)) -> 14.32306 | U38: =IF(S38="**","",SUMIFS(SummaryData!$F:$F,SummaryData!$A:$A,$B$8,SummaryData!$B:$B,$R$10,SummaryData!$C:$C,$B38)) -> 24.35247 | W38: =IF(X38="**","",SUMIFS(SummaryData!$D:$D,SummaryData!$A:$A,$B$8,SummaryData!$B:$B,$W$10,SummaryData!$C:$C,$B38)) -> 0 | X38: =IF(SUMIFS(SummaryData!$N:$N,SummaryData!$A:$A,$B$8,SummaryData!$B:$B,$W$10,SummaryData!$C:$C,$B38)>=50,"**", (IF(SUMIFS(SummaryData!$N:$N,SummaryData!$A:$A,$B$8,SummaryData!$B:$B,$W$10,SummaryData!$C:$C,$B38)>25, IF(SUMIFS(SummaryData!$N:$N,SummaryData!$A:$A,$B$8,SummaryData!$B:$B,$W$10,SummaryData!$C:$C,$B38)<50,"*"," ")," "))) ->  | Y38: =IF(X38="**","",SUMIFS(SummaryData!$E:$E,SummaryData!$A:$A,$B$8,SummaryData!$B:$B,$W$10,SummaryData!$C:$C,$B38)) -> 0 | Z38: =IF(X38="**","",SUMIFS(SummaryData!$F:$F,SummaryData!$A:$A,$B$8,SummaryData!$B:$B,$W$10,SummaryData!$C:$C,$B38)) -> 0 | AB38: =IF(AC38="**","",SUMIFS(SummaryData!$D:$D,SummaryData!$A:$A,$B$8,SummaryData!$B:$B,$AB$10,SummaryData!$C:$C,$B38)) -> 0 | AC38: =IF(SUMIFS(SummaryData!$N:$N,SummaryData!$A:$A,$B$8,SummaryData!$B:$B,$AB$10,SummaryData!$C:$C,$B38)>=50,"**", (IF(SUMIFS(SummaryData!$N:$N,SummaryData!$A:$A,$B$8,SummaryData!$B:$B,$AB$10,SummaryData!$C:$C,$B38)>25, IF(SUMIFS(SummaryData!$N:$N,SummaryData!$A:$A,$B$8,SummaryData!$B:$B,$AB$10,SummaryData!$C:$C,$B38)<50,"*"," ")," "))) ->  | AD38: =IF(AC38="**","",SUMIFS(SummaryData!$E:$E,SummaryData!$A:$A,$B$8,SummaryData!$B:$B,$AB$10,SummaryData!$C:$C,$B38)) -> 0 | AE38: =IF(AC38="**","",SUMIFS(SummaryData!$F:$F,SummaryData!$A:$A,$B$8,SummaryData!$B:$B,$AB$10,SummaryData!$C:$C,$B38)) -> 0
B39: Greater Geelong (C) | C39: =IF(D39="**","",SUMIFS(SummaryData!$D:$D,SummaryData!$A:$A,$B$8,SummaryData!$B:$B,$C$10,SummaryData!$C:$C,$B39)) -> 3.23897 | D39: =IF(SUMIFS(SummaryData!$N:$N,SummaryData!$A:$A,$B$8,SummaryData!$B:$B,$C$10,SummaryData!$C:$C,$B39)>=50,"**", (IF(SUMIFS(SummaryData!$N:$N,SummaryData!$A:$A,$B$8,SummaryData!$B:$B,$C$10,SummaryData!$C:$C,$B$13)>25, IF(SUMIFS(SummaryData!$N:$N,SummaryData!$A:$A,$B$8,SummaryData!$B:$B,$C$10,SummaryData!$C:$C,$B$13)<50,"*"," ")," "))) -> * | E39: =IF(D39="**","",SUMIFS(SummaryData!$E:$E,SummaryData!$A:$A,$B$8,SummaryData!$B:$B,$C$10,SummaryData!$C:$C,$B39)) -> 1.49439 | F39: =IF(D39="**","",SUMIFS(SummaryData!$F:$F,SummaryData!$A:$A,$B$8,SummaryData!$B:$B,$C$10,SummaryData!$C:$C,$B39)) -> 6.878002 | H39: =IF(I39="**","",SUMIFS(SummaryData!$D:$D,SummaryData!$A:$A,$B$8,SummaryData!$B:$B,$H$10,SummaryData!$C:$C,$B39)) -> 33.35588 | I39: =IF(SUMIFS(SummaryData!$N:$N,SummaryData!$A:$A,$B$8,SummaryData!$B:$B,$H$10,SummaryData!$C:$C,$B39)>=50,"**", (IF(SUMIFS(SummaryData!$N:$N,SummaryData!$A:$A,$B$8,SummaryData!$B:$B,$H$10,SummaryData!$C:$C,$B39)>25, IF(SUMIFS(SummaryData!$N:$N,SummaryData!$A:$A,$B$8,SummaryData!$B:$B,$H$10,SummaryData!$C:$C,$B39)<50,"*"," ")," "))) ->  | J39: =IF(I39="**","",SUMIFS(SummaryData!$E:$E,SummaryData!$A:$A,$B$8,SummaryData!$B:$B,$H$10,SummaryData!$C:$C,$B39)) -> 27.46847 | K39: =IF(I39="**","",SUMIFS(SummaryData!$F:$F,SummaryData!$A:$A,$B$8,SummaryData!$B:$B,$H$10,SummaryData!$C:$C,$B39)) -> 39.81251 | M39: =IF(N39="**","",SUMIFS(SummaryData!$D:$D,SummaryData!$A:$A,$B$8,SummaryData!$B:$B,$M$10,SummaryData!$C:$C,$B39)) -> 29.10141 | N39: =IF(SUMIFS(SummaryData!$N:$N,SummaryData!$A:$A,$B$8,SummaryData!$B:$B,$M$10,SummaryData!$C:$C,$B39)>=50,"**", (IF(SUMIFS(SummaryData!$N:$N,SummaryData!$A:$A,$B$8,SummaryData!$B:$B,$M$10,SummaryData!$C:$C,$B39)>25, IF(SUMIFS(SummaryData!$N:$N,SummaryData!$A:$A,$B$8,SummaryData!$B:$B,$M$10,SummaryData!$C:$C,$B39)<50,"*"," ")," "))) ->  | O39: =IF(N39="**","",SUMIFS(SummaryData!$E:$E,SummaryData!$A:$A,$B$8,SummaryData!$B:$B,$M$10,SummaryData!$C:$C,$B39)) -> 23.6311 | P39: =IF(N39="**","",SUMIFS(SummaryData!$F:$F,SummaryData!$A:$A,$B$8,SummaryData!$B:$B,$M$10,SummaryData!$C:$C,$B39)) -> 35.25348 | R39: =IF(S39="**","",SUMIFS(SummaryData!$D:$D,SummaryData!$A:$A,$B$8,SummaryData!$B:$B,$R$10,SummaryData!$C:$C,$B39)) -> 22.02112 | S39: =IF(SUMIFS(SummaryData!$N:$N,SummaryData!$A:$A,$B$8,SummaryData!$B:$B,$R$10,SummaryData!$C:$C,$B39)>=50,"**", (IF(SUMIFS(SummaryData!$N:$N,SummaryData!$A:$A,$B$8,SummaryData!$B:$B,$R$10,SummaryData!$C:$C,$B39)>25, IF(SUMIFS(SummaryData!$N:$N,SummaryData!$A:$A,$B$8,SummaryData!$B:$B,$R$10,SummaryData!$C:$C,$B39)<50,"*"," ")," "))) ->  | T39: =IF(S39="**","",SUMIFS(SummaryData!$E:$E,SummaryData!$A:$A,$B$8,SummaryData!$B:$B,$R$10,SummaryData!$C:$C,$B39)) -> 16.89597 | U39: =IF(S39="**","",SUMIFS(SummaryData!$F:$F,SummaryData!$A:$A,$B$8,SummaryData!$B:$B,$R$10,SummaryData!$C:$C,$B39)) -> 28.17386 | W39: =IF(X39="**","",SUMIFS(SummaryData!$D:$D,SummaryData!$A:$A,$B$8,SummaryData!$B:$B,$W$10,SummaryData!$C:$C,$B39)) -> 0 | X39: =IF(SUMIFS(SummaryData!$N:$N,SummaryData!$A:$A,$B$8,SummaryData!$B:$B,$W$10,SummaryData!$C:$C,$B39)>=50,"**", (IF(SUMIFS(SummaryData!$N:$N,SummaryData!$A:$A,$B$8,SummaryData!$B:$B,$W$10,SummaryData!$C:$C,$B39)>25, IF(SUMIFS(SummaryData!$N:$N,SummaryData!$A:$A,$B$8,SummaryData!$B:$B,$W$10,SummaryData!$C:$C,$B39)<50,"*"," ")," "))) ->  | Y39: =IF(X39="**","",SUMIFS(SummaryData!$E:$E,SummaryData!$A:$A,$B$8,SummaryData!$B:$B,$W$10,SummaryData!$C:$C,$B39)) -> 0 | Z39: =IF(X39="**","",SUMIFS(SummaryData!$F:$F,SummaryData!$A:$A,$B$8,SummaryData!$B:$B,$W$10,SummaryData!$C:$C,$B39)) -> 0 | AB39: =IF(AC39="**","",SUMIFS(SummaryData!$D:$D,SummaryData!$A:$A,$B$8,SummaryData!$B:$B,$AB$10,SummaryData!$C:$C,$B39)) -> 0 | AC39: =IF(SUMIFS(SummaryData!$N:$N,SummaryData!$A:$A,$B$8,SummaryData!$B:$B,$AB$10,SummaryData!$C:$C,$B39)>=50,"**", (IF(SUMIFS(SummaryData!$N:$N,SummaryData!$A:$A,$B$8,SummaryData!$B:$B,$AB$10,SummaryData!$C:$C,$B39)>25, IF(SUMIFS(SummaryData!$N:$N,SummaryData!$A:$A,$B$8,SummaryData!$B:$B,$AB$10,SummaryData!$C:$C,$B39)<50,"*"," ")," "))) ->  | AD39: =IF(AC39="**","",SUMIFS(SummaryData!$E:$E,SummaryData!$A:$A,$B$8,SummaryData!$B:$B,$AB$10,SummaryData!$C:$C,$B39)) -> 0 | AE39: =IF(AC39="**","",SUMIFS(SummaryData!$F:$F,SummaryData!$A:$A,$B$8,SummaryData!$B:$B,$AB$10,SummaryData!$C:$C,$B39)) -> 0
B40: Greater Shepparton (C) | C40: =IF(D40="**","",SUMIFS(SummaryData!$D:$D,SummaryData!$A:$A,$B$8,SummaryData!$B:$B,$C$10,SummaryData!$C:$C,$B40)) ->  | D40: =IF(SUMIFS(SummaryData!$N:$N,SummaryData!$A:$A,$B$8,SummaryData!$B:$B,$C$10,SummaryData!$C:$C,$B40)>=50,"**", (IF(SUMIFS(SummaryData!$N:$N,SummaryData!$A:$A,$B$8,SummaryData!$B:$B,$C$10,SummaryData!$C:$C,$B$13)>25, IF(SUMIFS(SummaryData!$N:$N,SummaryData!$A:$A,$B$8,SummaryData!$B:$B,$C$10,SummaryData!$C:$C,$B$13)<50,"*"," ")," "))) -> ** | E40: =IF(D40="**","",SUMIFS(SummaryData!$E:$E,SummaryData!$A:$A,$B$8,SummaryData!$B:$B,$C$10,SummaryData!$C:$C,$B40)) ->  | F40: =IF(D40="**","",SUMIFS(SummaryData!$F:$F,SummaryData!$A:$A,$B$8,SummaryData!$B:$B,$C$10,SummaryData!$C:$C,$B40)) ->  | H40: =IF(I40="**","",SUMIFS(SummaryData!$D:$D,SummaryData!$A:$A,$B$8,SummaryData!$B:$B,$H$10,SummaryData!$C:$C,$B40)) -> 27.91827 | I40: =IF(SUMIFS(SummaryData!$N:$N,SummaryData!$A:$A,$B$8,SummaryData!$B:$B,$H$10,SummaryData!$C:$C,$B40)>=50,"**", (IF(SUMIFS(SummaryData!$N:$N,SummaryData!$A:$A,$B$8,SummaryData!$B:$B,$H$10,SummaryData!$C:$C,$B40)>25, IF(SUMIFS(SummaryData!$N:$N,SummaryData!$A:$A,$B$8,SummaryData!$B:$B,$H$10,SummaryData!$C:$C,$B40)<50,"*"," ")," "))) ->  | J40: =IF(I40="**","",SUMIFS(SummaryData!$E:$E,SummaryData!$A:$A,$B$8,SummaryData!$B:$B,$H$10,SummaryData!$C:$C,$B40)) -> 22.27676 | K40: =IF(I40="**","",SUMIFS(SummaryData!$F:$F,SummaryData!$A:$A,$B$8,SummaryData!$B:$B,$H$10,SummaryData!$C:$C,$B40)) -> 34.35692 | M40: =IF(N40="**","",SUMIFS(SummaryData!$D:$D,SummaryData!$A:$A,$B$8,SummaryData!$B:$B,$M$10,SummaryData!$C:$C,$B40)) -> 27.26336 | N40: =IF(SUMIFS(SummaryData!$N:$N,SummaryData!$A:$A,$B$8,SummaryData!$B:$B,$M$10,SummaryData!$C:$C,$B40)>=50,"**", (IF(SUMIFS(SummaryData!$N:$N,SummaryData!$A:$A,$B$8,SummaryData!$B:$B,$M$10,SummaryData!$C:$C,$B40)>25, IF(SUMIFS(SummaryData!$N:$N,SummaryData!$A:$A,$B$8,SummaryData!$B:$B,$M$10,SummaryData!$C:$C,$B40)<50,"*"," ")," "))) ->  | O40: =IF(N40="**","",SUMIFS(SummaryData!$E:$E,SummaryData!$A:$A,$B$8,SummaryData!$B:$B,$M$10,SummaryData!$C:$C,$B40)) -> 22.14831 | P40: =IF(N40="**","",SUMIFS(SummaryData!$F:$F,SummaryData!$A:$A,$B$8,SummaryData!$B:$B,$M$10,SummaryData!$C:$C,$B40)) -> 33.05809 | R40: =IF(S40="**","",SUMIFS(SummaryData!$D:$D,SummaryData!$A:$A,$B$8,SummaryData!$B:$B,$R$10,SummaryData!$C:$C,$B40)) -> 33.24042 | S40: =IF(SUMIFS(SummaryData!$N:$N,SummaryData!$A:$A,$B$8,SummaryData!$B:$B,$R$10,SummaryData!$C:$C,$B40)>=50,"**", (IF(SUMIFS(SummaryData!$N:$N,SummaryData!$A:$A,$B$8,SummaryData!$B:$B,$R$10,SummaryData!$C:$C,$B40)>25, IF(SUMIFS(SummaryData!$N:$N,SummaryData!$A:$A,$B$8,SummaryData!$B:$B,$R$10,SummaryData!$C:$C,$B40)<50,"*"," ")," "))) ->  | T40: =IF(S40="**","",SUMIFS(SummaryData!$E:$E,SummaryData!$A:$A,$B$8,SummaryData!$B:$B,$R$10,SummaryData!$C:$C,$B40)) -> 27.55338 | U40: =IF(S40="**","",SUMIFS(SummaryData!$F:$F,SummaryData!$A:$A,$B$8,SummaryData!$B:$B,$R$10,SummaryData!$C:$C,$B40)) -> 39.46189 | W40: =IF(X40="**","",SUMIFS(SummaryData!$D:$D,SummaryData!$A:$A,$B$8,SummaryData!$B:$B,$W$10,SummaryData!$C:$C,$B40)) -> 0 | X40: =IF(SUMIFS(SummaryData!$N:$N,SummaryData!$A:$A,$B$8,SummaryData!$B:$B,$W$10,SummaryData!$C:$C,$B40)>=50,"**", (IF(SUMIFS(SummaryData!$N:$N,SummaryData!$A:$A,$B$8,SummaryData!$B:$B,$W$10,SummaryData!$C:$C,$B40)>25, IF(SUMIFS(SummaryData!$N:$N,SummaryData!$A:$A,$B$8,SummaryData!$B:$B,$W$10,SummaryData!$C:$C,$B40)<50,"*"," ")," "))) ->  | Y40: =IF(X40="**","",SUMIFS(SummaryData!$E:$E,SummaryData!$A:$A,$B$8,SummaryData!$B:$B,$W$10,SummaryData!$C:$C,$B40)) -> 0 | Z40: =IF(X40="**","",SUMIFS(SummaryData!$F:$F,SummaryData!$A:$A,$B$8,SummaryData!$B:$B,$W$10,SummaryData!$C:$C,$B40)) -> 0 | AB40: =IF(AC40="**","",SUMIFS(SummaryData!$D:$D,SummaryData!$A:$A,$B$8,SummaryData!$B:$B,$AB$10,SummaryData!$C:$C,$B40)) -> 0 | AC40: =IF(SUMIFS(SummaryData!$N:$N,SummaryData!$A:$A,$B$8,SummaryData!$B:$B,$AB$10,SummaryData!$C:$C,$B40)>=50,"**", (IF(SUMIFS(SummaryData!$N:$N,SummaryData!$A:$A,$B$8,SummaryData!$B:$B,$AB$10,SummaryData!$C:$C,$B40)>25, IF(SUMIFS(SummaryData!$N:$N,SummaryData!$A:$A,$B$8,SummaryData!$B:$B,$AB$10,SummaryData!$C:$C,$B40)<50,"*"," ")," "))) ->  | AD40: =IF(AC40="**","",SUMIFS(SummaryData!$E:$E,SummaryData!$A:$A,$B$8,SummaryData!$B:$B,$AB$10,SummaryData!$C:$C,$B40)) -> 0 | AE40: =IF(AC40="**","",SUMIFS(SummaryData!$F:$F,SummaryData!$A:$A,$B$8,SummaryData!$B:$B,$AB$10,SummaryData!$C:$C,$B40)) -> 0
B41: Hepburn (S) | C41: =IF(D41="**","",SUMIFS(SummaryData!$D:$D,SummaryData!$A:$A,$B$8,SummaryData!$B:$B,$C$10,SummaryData!$C:$C,$B41)) ->  | D41: =IF(SUMIFS(SummaryData!$N:$N,SummaryData!$A:$A,$B$8,SummaryData!$B:$B,$C$10,SummaryData!$C:$C,$B41)>=50,"**", (IF(SUMIFS(SummaryData!$N:$N,SummaryData!$A:$A,$B$8,SummaryData!$B:$B,$C$10,SummaryData!$C:$C,$B$13)>25, IF(SUMIFS(SummaryData!$N:$N,SummaryData!$A:$A,$B$8,SummaryData!$B:$B,$C$10,SummaryData!$C:$C,$B$13)<50,"*"," ")," "))) -> ** | E41: =IF(D41="**","",SUMIFS(SummaryData!$E:$E,SummaryData!$A:$A,$B$8,SummaryData!$B:$B,$C$10,SummaryData!$C:$C,$B41)) ->  | F41: =IF(D41="**","",SUMIFS(SummaryData!$F:$F,SummaryData!$A:$A,$B$8,SummaryData!$B:$B,$C$10,SummaryData!$C:$C,$B41)) ->  | H41: =IF(I41="**","",SUMIFS(SummaryData!$D:$D,SummaryData!$A:$A,$B$8,SummaryData!$B:$B,$H$10,SummaryData!$C:$C,$B41)) -> 35.77711 | I41: =IF(SUMIFS(SummaryData!$N:$N,SummaryData!$A:$A,$B$8,SummaryData!$B:$B,$H$10,SummaryData!$C:$C,$B41)>=50,"**", (IF(SUMIFS(SummaryData!$N:$N,SummaryData!$A:$A,$B$8,SummaryData!$B:$B,$H$10,SummaryData!$C:$C,$B41)>25, IF(SUMIFS(SummaryData!$N:$N,SummaryData!$A:$A,$B$8,SummaryData!$B:$B,$H$10,SummaryData!$C:$C,$B41)<50,"*"," ")," "))) ->  | J41: =IF(I41="**","",SUMIFS(SummaryData!$E:$E,SummaryData!$A:$A,$B$8,SummaryData!$B:$B,$H$10,SummaryData!$C:$C,$B41)) -> 27.8619 | K41: =IF(I41="**","",SUMIFS(SummaryData!$F:$F,SummaryData!$A:$A,$B$8,SummaryData!$B:$B,$H$10,SummaryData!$C:$C,$B41)) -> 44.55221 | M41: =IF(N41="**","",SUMIFS(SummaryData!$D:$D,SummaryData!$A:$A,$B$8,SummaryData!$B:$B,$M$10,SummaryData!$C:$C,$B41)) -> 29.00911 | N41: =IF(SUMIFS(SummaryData!$N:$N,SummaryData!$A:$A,$B$8,SummaryData!$B:$B,$M$10,SummaryData!$C:$C,$B41)>=50,"**", (IF(SUMIFS(SummaryData!$N:$N,SummaryData!$A:$A,$B$8,SummaryData!$B:$B,$M$10,SummaryData!$C:$C,$B41)>25, IF(SUMIFS(SummaryData!$N:$N,SummaryData!$A:$A,$B$8,SummaryData!$B:$B,$M$10,SummaryData!$C:$C,$B41)<50,"*"," ")," "))) ->  | O41: =IF(N41="**","",SUMIFS(SummaryData!$E:$E,SummaryData!$A:$A,$B$8,SummaryData!$B:$B,$M$10,SummaryData!$C:$C,$B41)) -> 22.68403 | P41: =IF(N41="**","",SUMIFS(SummaryData!$F:$F,SummaryData!$A:$A,$B$8,SummaryData!$B:$B,$M$10,SummaryData!$C:$C,$B41)) -> 36.27047 | R41: =IF(S41="**","",SUMIFS(SummaryData!$D:$D,SummaryData!$A:$A,$B$8,SummaryData!$B:$B,$R$10,SummaryData!$C:$C,$B41)) -> 23.20595 | S41: =IF(SUMIFS(SummaryData!$N:$N,SummaryData!$A:$A,$B$8,SummaryData!$B:$B,$R$10,SummaryData!$C:$C,$B41)>=50,"**", (IF(SUMIFS(SummaryData!$N:$N,SummaryData!$A:$A,$B$8,SummaryData!$B:$B,$R$10,SummaryData!$C:$C,$B41)>25, IF(SUMIFS(SummaryData!$N:$N,SummaryData!$A:$A,$B$8,SummaryData!$B:$B,$R$10,SummaryData!$C:$C,$B41)<50,"*"," ")," "))) ->  | T41: =IF(S41="**","",SUMIFS(SummaryData!$E:$E,SummaryData!$A:$A,$B$8,SummaryData!$B:$B,$R$10,SummaryData!$C:$C,$B41)) -> 16.75829 | U41: =IF(S41="**","",SUMIFS(SummaryData!$F:$F,SummaryData!$A:$A,$B$8,SummaryData!$B:$B,$R$10,SummaryData!$C:$C,$B41)) -> 31.20439 | W41: =IF(X41="**","",SUMIFS(SummaryData!$D:$D,SummaryData!$A:$A,$B$8,SummaryData!$B:$B,$W$10,SummaryData!$C:$C,$B41)) -> 0 | X41: =IF(SUMIFS(SummaryData!$N:$N,SummaryData!$A:$A,$B$8,SummaryData!$B:$B,$W$10,SummaryData!$C:$C,$B41)>=50,"**", (IF(SUMIFS(SummaryData!$N:$N,SummaryData!$A:$A,$B$8,SummaryData!$B:$B,$W$10,SummaryData!$C:$C,$B41)>25, IF(SUMIFS(SummaryData!$N:$N,SummaryData!$A:$A,$B$8,SummaryData!$B:$B,$W$10,SummaryData!$C:$C,$B41)<50,"*"," ")," "))) ->  | Y41: =IF(X41="**","",SUMIFS(SummaryData!$E:$E,SummaryData!$A:$A,$B$8,SummaryData!$B:$B,$W$10,SummaryData!$C:$C,$B41)) -> 0 | Z41: =IF(X41="**","",SUMIFS(SummaryData!$F:$F,SummaryData!$A:$A,$B$8,SummaryData!$B:$B,$W$10,SummaryData!$C:$C,$B41)) -> 0 | AB41: =IF(AC41="**","",SUMIFS(SummaryData!$D:$D,SummaryData!$A:$A,$B$8,SummaryData!$B:$B,$AB$10,SummaryData!$C:$C,$B41)) -> 0 | AC41: =IF(SUMIFS(SummaryData!$N:$N,SummaryData!$A:$A,$B$8,SummaryData!$B:$B,$AB$10,SummaryData!$C:$C,$B41)>=50,"**", (IF(SUMIFS(SummaryData!$N:$N,SummaryData!$A:$A,$B$8,SummaryData!$B:$B,$AB$10,SummaryData!$C:$C,$B41)>25, IF(SUMIFS(SummaryData!$N:$N,SummaryData!$A:$A,$B$8,SummaryData!$B:$B,$AB$10,SummaryData!$C:$C,$B41)<50,"*"," ")," "))) ->  | AD41: =IF(AC41="**","",SUMIFS(SummaryData!$E:$E,SummaryData!$A:$A,$B$8,SummaryData!$B:$B,$AB$10,SummaryData!$C:$C,$B41)) -> 0 | AE41: =IF(AC41="**","",SUMIFS(SummaryData!$F:$F,SummaryData!$A:$A,$B$8,SummaryData!$B:$B,$AB$10,SummaryData!$C:$C,$B41)) -> 0
